Workbook

Sheet Sample Report (hidden)
A2: Date
A3: Hen
A4: Program
A5: Start at 999999
A6: Sequence component 1 | B6: Time 1 | C6: Seqeunce Component 2 | D6: Time 2 | E6: Seqeunce Component 3 | F6: Time 3 | G6: Correct 0 = No 1=Yes | J6: Seqeunce | K6: Time
A7: 12 | B7: 7 | C7: 12 | D7: 42 | E7: 13 | F7: 18 | G7: if 77 new line, if 31 or 41 = yes new line on 77, | J7: =string of Seqeunce compponent 1, 2 & 3 | K7: =time 3
A8: This continues until ther is a 1 on its own to indicate start of summary data
J9: 10-19 =1
A10: Summary Data | J10: 20-29 =2
A11: Correct | B11: Incorrect | C11: Rft | D11: total | E11: Av Correct | F11: Av Incorrect | G11: Percent correct | H11: Time | J11: in this example the seqeunce would be 111
A12: 40 | B12: 33 | C12: 40 | D12: 73 | E12: 23.95 | F12: 15 | G12: 54 | H12: 806

Sheet Summary
A2: Day | B2: Date | C2: Average Response Rate | D2: Target % | E2: RF for non correct sequence | F2: U Value | K2: Block 1 | L2: Block 2 | M2: Block 3 | N2: Block 4 | O2: Block 5 | P2: Block 6
A3: 1 | B3: ='!MB08840.091'!B2:C2 -> <date> | C3: =('!MB08840.091'!H129/60)/'!MB08840.091'!Q3 -> 3.17303523 | D3: ='!MB08840.091'!N28/'!MB08840.091'!Q3 -> 0 | E3: =SUM('!MB08840.091'!L28:Q28)/'!MB08840.091'!Q3 -> 18.39837398 | F3: ='!MB08840.091'!Q24 -> 0.1586250242 | J3: Average Response Rate | K3: =AVERAGE(C3:C6) -> 3.038893642 | L3: =AVERAGE(C7:C10) -> 2.770305132 | M3: =AVERAGE(C11:C14) -> 2.644530921 | N3: =AVERAGE(C11:C14) -> 2.644530921 | O3: =AVERAGE(C15:C19) -> 2.465163696 | P3: =AVERAGE(C20:C23) -> 2.236686463
A4: 2 | B4: ='!MB09920.091'!B2:C2 -> <date> | C4: =('!MB09920.091'!H119/60)/'!MB09920.091'!Q3 -> 3.527286136 | D4: ='!MB09920.091'!N28/'!MB09920.091'!Q3 -> 0 | E4: =SUM('!MB09920.091'!L28:Q28)/'!MB09920.091'!Q3 -> 10.16814159 | F4: ='!MB09920.091'!Q24 -> 0.1933947147 | J4: Target % | K4: =AVERAGE(D3:D6) -> 0 | L4: =AVERAGE(D7:D10) -> 0.001953125 | M4: =AVERAGE(D11:D14) -> 0.04059164636 | N4: =AVERAGE(D11:D14) -> 0.04059164636 | O4: =AVERAGE(D15:D19) -> 0.2015835793 | P4: =AVERAGE(D20:D23) -> 0.3448809822
A5: 3 | B5: ='!MB10800.091'!B2:C2 -> <date> | C5: =('!MB10800.091'!H160/60)/'!MB10800.091'!Q3 -> 2.587987013 | D5: ='!MB10800.091'!N28/'!MB10800.091'!Q3 -> 0 | E5: =SUM('!MB10800.091'!L28:Q28)/'!MB10800.091'!Q3 -> 7.545454545 | F5: ='!MB10800.091'!Q24 -> 0.149980804 | J5: CCRF | K5: =AVERAGE(E3:E6) -> 11.10892778 | L5: =AVERAGE(E7:E10) -> 13.40085272 | M5: =AVERAGE(E11:E14) -> 14.71187573 | N5: =AVERAGE(E11:E14) -> 14.71187573 | O5: =AVERAGE(E15:E19) -> 11.55561641 | P5: =AVERAGE(E20:E23) -> 20.71479073
A6: 4 | B6: ='!MB11720.091'!B2:C2 -> <date> | C6: =('!MB11720.091'!H145/60)/'!MB11720.091'!Q3 -> 2.867266187 | D6: ='!MB11720.091'!N28/'!MB11720.091'!Q3 -> 0 | E6: =SUM('!MB11720.091'!L28:Q28)/'!MB11720.091'!Q3 -> 8.323741007 | F6: ='!MB11720.091'!Q24 -> 0.1549207197 | J6: U Value | K6: =AVERAGE(F3:F6) -> 0.1642303156 | L6: =AVERAGE(F7:F10) -> 0.2798832316 | M6: =AVERAGE(F11:F14) -> 0.359738806 | N6: =AVERAGE(F11:F14) -> 0.359738806 | O6: =AVERAGE(F15:F19) -> 0.4574764768 | P6: =AVERAGE(F20:F23) -> 0.3607877893
A7: 5 | B7: ='!MB12810.091'!B2:C2 -> <date> | C7: =('!MB12810.091'!H164/60)/'!MB12810.091'!Q3 -> 2.529852321 | D7: ='!MB12810.091'!N28/'!MB12810.091'!Q3 -> 0 | E7: =SUM('!MB12810.091'!L28:Q28)/'!MB12810.091'!Q3 -> 13.69620253 | F7: ='!MB12810.091'!Q24 -> 0.2283161129
A8: 6 | B8: ='!MB13900.091'!B2:C2 -> <date> | C8: =('!MB13900.091'!H162/60)/'!MB13900.091'!Q3 -> 2.557478632 | D8: ='!MB13900.091'!N28/'!MB13900.091'!Q3 -> 0 | E8: =SUM('!MB13900.091'!L28:Q28)/'!MB13900.091'!Q3 -> 14.50641026 | F8: ='!MB13900.091'!Q24 -> 0.2344404348
A9: 7 | B9: ='!MB14800.091'!B2:C2 -> <date> | C9: =('!MB14800.091'!H134/60)/'!MB14800.091'!Q3 -> 3.122786458 | D9: ='!MB14800.091'!N28/'!MB14800.091'!Q3 -> 0.0078125 | E9: =SUM('!MB14800.091'!L28:Q28)/'!MB14800.091'!Q3 -> 9.8828125 | F9: ='!MB14800.091'!Q24 -> 0.3322393208 | G9: =K3 -> 3.038893642 | H9: =L3 -> 2.770305132 | I9: =M3 -> 2.644530921 | J9: =N3 -> 2.644530921 | K9: =O3 -> 2.465163696 | L9: =P3 -> 2.236686463 | M9: =K4 -> 0 | N9: =L4 -> 0.001953125 | O9: =M4 -> 0.04059164636 | P9: =N4 -> 0.04059164636 | Q9: =O4 -> 0.2015835793 | R9: =P4 -> 0.3448809822 | S9: =K6 -> 0.1642303156 | T9: =L6 -> 0.2798832316 | U9: =M6 -> 0.359738806 | V9: =N6 -> 0.359738806 | W9: =O6 -> 0.4574764768 | X9: =P6 -> 0.3607877893
A10: 8 | B10: ='!MB15850.091'!B2:C2 -> <date> | C10: =('!MB15850.091'!H145/60)/'!MB15850.091'!Q3 -> 2.871103118 | D10: ='!MB15850.091'!N28/'!MB15850.091'!Q3 -> 0 | E10: =SUM('!MB15850.091'!L28:Q28)/'!MB15850.091'!Q3 -> 15.51798561 | F10: ='!MB15850.091'!Q24 -> 0.3245370578
A11: 9 | B11: ='!MB16900.091'!B2:C2 -> <date> | C11: =('!MB16900.091'!H141/60)/'!MB16900.091'!Q3 -> 2.947037037 | D11: ='!MB16900.091'!N28/'!MB16900.091'!Q3 -> 0 | E11: =SUM('!MB16900.091'!L28:Q28)/'!MB16900.091'!Q3 -> 15.97037037 | F11: ='!MB16900.091'!Q24 -> 0.3305882641
A12: 10 | B12: ='!MB17940.091'!B2:C2 -> <date> | C12: =('!MB17940.091'!H152/60)/'!MB17940.091'!Q3 -> 2.73630137 | D12: ='!MB17940.091'!N28/'!MB17940.091'!Q3 -> 0.02739726027 | E12: =SUM('!MB17940.091'!L28:Q28)/'!MB17940.091'!Q3 -> 14.82191781 | F12: ='!MB17940.091'!Q24 -> 0.3414751644
A13: 11 | B13: ='!MB18920.091'!B2:C2 -> <date> | C13: =('!MB18920.091'!H169/60)/'!MB18920.091'!Q3 -> 2.443149284 | D13: ='!MB18920.091'!N28/'!MB18920.091'!Q3 -> 0.03680981595 | E13: =SUM('!MB18920.091'!L28:Q28)/'!MB18920.091'!Q3 -> 13.99386503 | F13: ='!MB18920.091'!Q24 -> 0.322182893
A14: 12 | B14: ='!MB19830.091'!B2:C2 -> <date> | C14: =('!MB19830.091'!H169/60)/'!MB19830.091'!Q3 -> 2.451635992 | D14: ='!MB19830.091'!N28/'!MB19830.091'!Q3 -> 0.0981595092 | E14: =SUM('!MB19830.091'!L28:Q28)/'!MB19830.091'!Q3 -> 14.06134969 | F14: ='!MB19830.091'!Q24 -> 0.4447089026
A15: 13 | B15: ='!MB20920.091'!B2:C2 -> <date> | C15: =('!MB20920.091'!H176/60)/'!MB20920.091'!Q3 -> 2.349607843 | D15: ='!MB20920.091'!N28/'!MB20920.091'!Q3 -> 0.1411764706 | E15: =SUM('!MB20920.091'!L28:Q28)/'!MB20920.091'!Q3 -> 13.48823529 | F15: ='!MB20920.091'!Q24 -> 0.4787534277
A16: 14 | B16: ='!MB21800.091'!B2:C2 -> <date> | C16: =('!MB21800.091'!H129/60)/'!MB21800.091'!Q3 -> 3.248644986 | D16: ='!MB21800.091'!N28/'!MB21800.091'!Q3 -> 0.1707317073 | E16: =SUM('!MB21800.091'!L28:Q28)/'!MB21800.091'!Q3 -> 10.3495935 | F16: ='!MB21800.091'!Q24 -> 0.5237423096
A17: 15 | B17: ='!MB22840.091'!B2:C2 -> <date> | C17: =('!MB22840.091'!H186/60)/'!MB22840.091'!Q3 -> 2.170277778 | D17: ='!MB22840.091'!N28/'!MB22840.091'!Q3 -> 0.2222222222 | E17: =SUM('!MB22840.091'!L28:Q28)/'!MB22840.091'!Q3 -> 12.34444444 | F17: ='!MB22840.091'!Q24 -> 0.4366224142
A18: 16 | B18: ='!MB23850.091'!B2:C2 -> <date> | C18: =('!MB23850.091'!H170/60)/'!MB23850.091'!Q3 -> 2.290142276 | D18: ='!MB23850.091'!N28/'!MB23850.091'!Q3 -> 0.243902439 | E18: =SUM('!MB23850.091'!L28:Q28)/'!MB23850.091'!Q3 -> 14.06707317 | F18: ='!MB23850.091'!Q24 -> 0.4453553375
A19: 17 | B19: ='!MB24820.091'!B2:C2 -> <date> | C19: =('!MB24820.091'!H180/60)/'!MB24820.091'!Q3 -> 2.267145594 | D19: ='!MB24820.091'!N28/'!MB24820.091'!Q3 -> 0.2298850575 | E19: =SUM('!MB24820.091'!L28:Q28)/'!MB24820.091'!Q3 -> 7.528735632 | F19: ='!MB24820.091'!Q24 -> 0.4029088948
A20: 18 | B20: ='!MB25800.091'!B2:C2 -> <date> | C20: =('!MB25800.091'!H181/60)/'!MB25800.091'!Q3 -> 2.263352273 | D20: ='!MB25800.091'!N28/'!MB25800.091'!Q3 -> 0.1477272727 | E20: =SUM('!MB25800.091'!L28:Q28)/'!MB25800.091'!Q3 -> 13.05113636 | F20: ='!MB25800.091'!Q24 -> 0.3972443828
A21: 19 | B21: ='!MB26840.091'!B2:C2 -> <date> | C21: =('!MB26840.091'!H173/60)/'!MB26840.091'!Q3 -> 2.29241517 | D21: ='!MB26840.091'!N28/'!MB26840.091'!Q3 -> 0.2395209581 | E21: =SUM('!MB26840.091'!L28:Q28)/'!MB26840.091'!Q3 -> 13.28143713 | F21: ='!MB26840.091'!Q24 -> 0.3792499127
A22: 20 | B22: ='!MB27910.091'!B2:C2 -> <date> | C22: =('!MB27910.091'!H105/60)/'!MB27910.091'!Q3 -> 2.248821549 | D22: ='!MB27910.091'!N28/'!MB27910.091'!Q3 -> 0.404040404 | E22: =SUM('!MB27910.091'!L28:Q28)/'!MB27910.091'!Q3 -> 23.07070707 | F22: ='!MB27910.091'!Q24 -> 0.4090594744
A23: 21 | B23: ='!MB28920.091'!B2:C2 -> <date> | C23: =('!MB28920.091'!H74/60)/'!MB28920.091'!Q3 -> 2.142156863 | D23: ='!MB28920.091'!N28/'!MB28920.091'!Q3 -> 0.5882352941 | E23: =SUM('!MB28920.091'!L28:Q28)/'!MB28920.091'!Q3 -> 33.45588235 | F23: ='!MB28920.091'!Q24 -> 0.2575973871
A24: 22 | B24: ='!MB29C10.091'!B2:C2 -> <date> | C24: =('!MB29C10.091'!H94/60)/'!MB29C10.091'!Q3 -> 2.273674242 | D24: ='!MB29C10.091'!N28/'!MB29C10.091'!Q3 -> 0.4545454545 | E24: =SUM('!MB29C10.091'!L28:Q28)/'!MB29C10.091'!Q3 -> 25.92045455 | F24: ='!MB29C10.091'!Q24 -> 0.3632911068
A25: 23 | B25: ='!MB30940.091'!B2:C2 -> <date> | C25: =('!MB30940.091'!H72/60)/'!MB30940.091'!Q3 -> 2.061616162 | D25: ='!MB30940.091'!N28/'!MB30940.091'!Q3 -> 0.6060606061 | E25: =SUM('!MB30940.091'!L28:Q28)/'!MB30940.091'!Q3 -> 34.45454545 | F25: ='!MB30940.091'!Q24 -> 0.2516767369
A26: 24
A27: 25 | G27: =23/6 -> 3.833333333
A28: 26
A29: 27
A30: 28
A31: 29
A32: 30

Sheet Start
F1: Use Folder 51 | H1: Auto Clean Up | J1: Correct sequence
F2: FALSE | H2: TRUE | J2: 2212
A4: Working with Folder | G4: Process All/Or Pick A number: ALL or an integer
A5: E:\Hen Data\Raw Data\91_17\phase 3 var\ | G5: ALL
A6: Filenames:
A7: !MB21800.091 | G7: Paint Cells
A8: !MB22840.091 | G8: FALSE
A9: !MB08840.091
A10: !MB09920.091
A11: !MB10800.091
A12: !MB11720.091
A13: !MB12810.091
A14: !MB13900.091
A15: !MB14800.091
A16: !MB15850.091
A17: !MB16900.091
A18: !MB17940.091
A19: !MB18920.091
A20: !MB19830.091
A21: !MB20920.091
A22: !MB29C10.091
A23: !MB30940.091
A24: !MB23850.091
A25: !MB24820.091
A26: !MB25800.091
A27: !MB26840.091
A28: !MB27910.091
A29: !MB28920.091

Sheet !MB08840.091
A1: Report for:!MB08840.091
A2: Date: | B2: <date>
A3: Hen: | B3: <hen> | F3: Correct Sequence | G3: =Start!J2 -> 2212 | P3: Total Sequences in Data | Q3: =4994-COUNTBLANK(L7:L5000) -> 123 | V3: Total Sequences in Block Data | W3: =COUNTA(L7:L27) -> 21 | AA3: Total Sequences in Block Data | AB3: =COUNTA(L28:L47) -> 20 | AF3: Total Sequences in Block Data | AG3: =COUNTA(L48:L68) -> 21 | AK3: Total Sequences in Block Data | AL3: =COUNTA(L69:L88) -> 20 | AP3: Total Sequences in Block Data | AQ3: =COUNTA(L89:L109) -> 21 | AU3: Total Sequences in Block Data | AV3: =COUNTA(L110:L129) -> 20
P4: Total Sequences in Summary | Q4: =SUM(O7:O22) -> 123 | V4: Total Sequences in Block Summary | W4: =SUM(U7:U22) -> 21 | AA4: Total Sequences in Block Summary | AB4: =SUM(Z7:Z22) -> 20 | AF4: Total Sequences in Block Summary | AG4: =SUM(AE7:AE22) -> 21 | AK4: Total Sequences in Block Summary | AL4: =SUM(AJ7:AJ22) -> 20 | AP4: Total Sequences in Block Summary | AQ4: =SUM(AO7:AO22) -> 21 | AU4: Total Sequences in Block Summary | AV4: =SUM(AT7:AT22) -> 20
T5: Block 1 | Y5: Block 2 | AD5: Block 3 | AI5: Block 4 | AN5: Block 5 | AS5: Block 6
A6: Sequence Component 1 | B6: Time 1 | C6: Sequence Component 2 | D6: Time 2 | E6: Sequence Component 3 | F6: Time 3 | G6: Sequence Component 4 | H6: Time 4 | I6: Sequence Component 5 | J6: Time 5 | K6: Correct? 0=No 1=Yes | L6: Sequence | N6: Frequency | P6: Relative Frequency | Q6: Variability | T6: Frequency | V6: Relative Frequency | W6: Variability | Y6: Frequency | AA6: Relative Frequency | AB6: Variability | AD6: Frequency | AF6: Relative Frequency | AG6: Variability | AI6: Frequency | AK6: Relative Frequency | AL6: Variability | AN6: Frequency | AP6: Relative Frequency | AQ6: Variability | AS6: Frequency | AU6: Relative Frequency | AV6: Variability
A7: 12 | B7: 19 | C7: 14 | D7: 24 | E7: 13 | F7: 31 | G7: 14 | H7: 38 | K7: 0 | L7: 1111 | N7: 1111 | O7: =COUNTIF($L$7:$L$500,N7) -> 64 | P7: =O7/$Q$4 -> 0.5203252033 | Q7: =IF(P7=0,0,(P7*((LOG(P7))/LOG(2)))) -> -0.4904140516 | T7: =N7 -> 1111 | U7: =COUNTIF(L7:L27,T7) -> 17 | V7: =U7/(W4-U20) -> 0.8095238095 | W7: =IF(V7=0,0,(V7*((LOG(V7))/LOG(2)))) -> -0.2467870422 | Y7: =N7 -> 1111 | Z7: =COUNTIF(L28:L47,Y7) -> 10 | AA7: =Z7/(AB4-Z20) -> 0.5 | AB7: =IF(AA7=0,0,(AA7*((LOG(AA7))/LOG(2)))) -> -0.5 | AD7: =N7 -> 1111 | AE7: =COUNTIF(L48:L68,AD7) -> 12 | AF7: =AE7/(AG4-AE20) -> 0.5714285714 | AG7: =IF(AF7=0,0,(AF7*((LOG(AF7))/LOG(2)))) -> -0.4613456697 | AI7: =N7 -> 1111 | AJ7: =COUNTIF(L69:L88,AI7) -> 9 | AK7: =AJ7/(AL4-AJ20) -> 0.45 | AL7: =IF(AK7=0,0,(AK7*((LOG(AK7))/LOG(2)))) -> -0.5184013921 | AN7: =N7 -> 1111 | AO7: =COUNTIF(L89:L109,AN7) -> 8 | AP7: =AO7/(AQ4-AO20) -> 0.380952381 | AQ7: =IF(AP7=0,0,(AP7*((LOG(AP7))/LOG(2)))) -> -0.5304066372 | AS7: =N7 -> 1111 | AT7: =COUNTIF(L110:L129,AS7) -> 8 | AU7: =AT7/(AV4-AT20) -> 0.4 | AV7: =IF(AU7=0,0,(AU7*((LOG(AU7))/LOG(2)))) -> -0.528771238
A8: 12 | B8: 135 | C8: 14 | D8: 141 | E8: 13 | F8: 146 | G8: 14 | H8: 150 | K8: 0 | L8: 1111 | N8: 1112 | O8: =COUNTIF($L$7:$L$500,N8) -> 0 | P8: =O8/$Q$4 -> 0 | Q8: =IF(P8=0,0,(P8*((LOG(P8))/LOG(2)))) -> 0 | T8: =N8 -> 1112 | U8: =COUNTIF(L7:L27,T8) -> 0 | V8: =U8/(W4-U20) -> 0 | W8: =IF(V8=0,0,(V8*((LOG(V8))/LOG(2)))) -> 0 | Y8: =N8 -> 1112 | Z8: =COUNTIF(L28:L47,Y8) -> 0 | AA8: =Z8/(AB4-Z20) -> 0 | AB8: =IF(AA8=0,0,(AA8*((LOG(AA8))/LOG(2)))) -> 0 | AD8: =N8 -> 1112 | AE8: =COUNTIF(L48:L68,AD8) -> 0 | AF8: =AE8/(AG4-AE20) -> 0 | AG8: =IF(AF8=0,0,(AF8*((LOG(AF8))/LOG(2)))) -> 0 | AI8: =N8 -> 1112 | AJ8: =COUNTIF(L69:L88,AI8) -> 0 | AK8: =AJ8/(AL4-AJ20) -> 0 | AL8: =IF(AK8=0,0,(AK8*((LOG(AK8))/LOG(2)))) -> 0 | AN8: =N8 -> 1112 | AO8: =COUNTIF(L89:L109,AN8) -> 0 | AP8: =AO8/(AQ4-AO20) -> 0 | AQ8: =IF(AP8=0,0,(AP8*((LOG(AP8))/LOG(2)))) -> 0 | AS8: =N8 -> 1112 | AT8: =COUNTIF(L110:L129,AS8) -> 0 | AU8: =AT8/(AV4-AT20) -> 0 | AV8: =IF(AU8=0,0,(AU8*((LOG(AU8))/LOG(2)))) -> 0
A9: 12 | B9: 254 | C9: 14 | D9: 260 | E9: 13 | F9: 266 | G9: 14 | H9: 274 | K9: 0 | L9: 1111 | N9: 1121 | O9: =COUNTIF($L$7:$L$500,N9) -> 0 | P9: =O9/$Q$4 -> 0 | Q9: =IF(P9=0,0,(P9*((LOG(P9))/LOG(2)))) -> 0 | T9: =N9 -> 1121 | U9: =COUNTIF(L7:L27,T9) -> 0 | V9: =U9/(W4-U20) -> 0 | W9: =IF(V9=0,0,(V9*((LOG(V9))/LOG(2)))) -> 0 | Y9: =N9 -> 1121 | Z9: =COUNTIF(L28:L47,Y9) -> 0 | AA9: =Z9/(AB4-Z20) -> 0 | AB9: =IF(AA9=0,0,(AA9*((LOG(AA9))/LOG(2)))) -> 0 | AD9: =N9 -> 1121 | AE9: =COUNTIF(L48:L68,AD9) -> 0 | AF9: =AE9/(AG4-AE20) -> 0 | AG9: =IF(AF9=0,0,(AF9*((LOG(AF9))/LOG(2)))) -> 0 | AI9: =N9 -> 1121 | AJ9: =COUNTIF(L69:L88,AI9) -> 0 | AK9: =AJ9/(AL4-AJ20) -> 0 | AL9: =IF(AK9=0,0,(AK9*((LOG(AK9))/LOG(2)))) -> 0 | AN9: =N9 -> 1121 | AO9: =COUNTIF(L89:L109,AN9) -> 0 | AP9: =AO9/(AQ4-AO20) -> 0 | AQ9: =IF(AP9=0,0,(AP9*((LOG(AP9))/LOG(2)))) -> 0 | AS9: =N9 -> 1121 | AT9: =COUNTIF(L110:L129,AS9) -> 0 | AU9: =AT9/(AV4-AT20) -> 0 | AV9: =IF(AU9=0,0,(AU9*((LOG(AU9))/LOG(2)))) -> 0
A10: 12 | B10: 374 | C10: 14 | D10: 380 | E10: 13 | F10: 385 | G10: 14 | H10: 392 | K10: 0 | L10: 1111 | N10: 1122 | O10: =COUNTIF($L$7:$L$500,N10) -> 0 | P10: =O10/$Q$4 -> 0 | Q10: =IF(P10=0,0,(P10*((LOG(P10))/LOG(2)))) -> 0 | T10: =N10 -> 1122 | U10: =COUNTIF(L7:L27,T10) -> 0 | V10: =U10/(W4-U20) -> 0 | W10: =IF(V10=0,0,(V10*((LOG(V10))/LOG(2)))) -> 0 | Y10: =N10 -> 1122 | Z10: =COUNTIF(L28:L47,Y10) -> 0 | AA10: =Z10/(AB4-Z20) -> 0 | AB10: =IF(AA10=0,0,(AA10*((LOG(AA10))/LOG(2)))) -> 0 | AD10: =N10 -> 1122 | AE10: =COUNTIF(L48:L68,AD10) -> 0 | AF10: =AE10/(AG4-AE20) -> 0 | AG10: =IF(AF10=0,0,(AF10*((LOG(AF10))/LOG(2)))) -> 0 | AI10: =N10 -> 1122 | AJ10: =COUNTIF(L69:L88,AI10) -> 0 | AK10: =AJ10/(AL4-AJ20) -> 0 | AL10: =IF(AK10=0,0,(AK10*((LOG(AK10))/LOG(2)))) -> 0 | AN10: =N10 -> 1122 | AO10: =COUNTIF(L89:L109,AN10) -> 0 | AP10: =AO10/(AQ4-AO20) -> 0 | AQ10: =IF(AP10=0,0,(AP10*((LOG(AP10))/LOG(2)))) -> 0 | AS10: =N10 -> 1122 | AT10: =COUNTIF(L110:L129,AS10) -> 0 | AU10: =AT10/(AV4-AT20) -> 0 | AV10: =IF(AU10=0,0,(AU10*((LOG(AU10))/LOG(2)))) -> 0
A11: 12 | B11: 490 | C11: 14 | D11: 496 | E11: 13 | F11: 501 | G11: 14 | H11: 508 | K11: 0 | L11: 1111 | N11: 1211 | O11: =COUNTIF($L$7:$L$500,N11) -> 0 | P11: =O11/$Q$4 -> 0 | Q11: =IF(P11=0,0,(P11*((LOG(P11))/LOG(2)))) -> 0 | T11: =N11 -> 1211 | U11: =COUNTIF(L7:L27,T11) -> 0 | V11: =U11/(W4-U20) -> 0 | W11: =IF(V11=0,0,(V11*((LOG(V11))/LOG(2)))) -> 0 | Y11: =N11 -> 1211 | Z11: =COUNTIF(L28:L47,Y11) -> 0 | AA11: =Z11/(AB4-Z20) -> 0 | AB11: =IF(AA11=0,0,(AA11*((LOG(AA11))/LOG(2)))) -> 0 | AD11: =N11 -> 1211 | AE11: =COUNTIF(L48:L68,AD11) -> 0 | AF11: =AE11/(AG4-AE20) -> 0 | AG11: =IF(AF11=0,0,(AF11*((LOG(AF11))/LOG(2)))) -> 0 | AI11: =N11 -> 1211 | AJ11: =COUNTIF(L69:L88,AI11) -> 0 | AK11: =AJ11/(AL4-AJ20) -> 0 | AL11: =IF(AK11=0,0,(AK11*((LOG(AK11))/LOG(2)))) -> 0 | AN11: =N11 -> 1211 | AO11: =COUNTIF(L89:L109,AN11) -> 0 | AP11: =AO11/(AQ4-AO20) -> 0 | AQ11: =IF(AP11=0,0,(AP11*((LOG(AP11))/LOG(2)))) -> 0 | AS11: =N11 -> 1211 | AT11: =COUNTIF(L110:L129,AS11) -> 0 | AU11: =AT11/(AV4-AT20) -> 0 | AV11: =IF(AU11=0,0,(AU11*((LOG(AU11))/LOG(2)))) -> 0
A12: 12 | B12: 615 | C12: 14 | D12: 620 | E12: 13 | F12: 626 | G12: 14 | H12: 631 | K12: 0 | L12: 1111 | N12: 1212 | O12: =COUNTIF($L$7:$L$500,N12) -> 0 | P12: =O12/$Q$4 -> 0 | Q12: =IF(P12=0,0,(P12*((LOG(P12))/LOG(2)))) -> 0 | T12: =N12 -> 1212 | U12: =COUNTIF(L7:L27,T12) -> 0 | V12: =U12/(W4-U20) -> 0 | W12: =IF(V12=0,0,(V12*((LOG(V12))/LOG(2)))) -> 0 | Y12: =N12 -> 1212 | Z12: =COUNTIF(L28:L47,Y12) -> 0 | AA12: =Z12/(AB4-Z20) -> 0 | AB12: =IF(AA12=0,0,(AA12*((LOG(AA12))/LOG(2)))) -> 0 | AD12: =N12 -> 1212 | AE12: =COUNTIF(L48:L68,AD12) -> 0 | AF12: =AE12/(AG4-AE20) -> 0 | AG12: =IF(AF12=0,0,(AF12*((LOG(AF12))/LOG(2)))) -> 0 | AI12: =N12 -> 1212 | AJ12: =COUNTIF(L69:L88,AI12) -> 0 | AK12: =AJ12/(AL4-AJ20) -> 0 | AL12: =IF(AK12=0,0,(AK12*((LOG(AK12))/LOG(2)))) -> 0 | AN12: =N12 -> 1212 | AO12: =COUNTIF(L89:L109,AN12) -> 0 | AP12: =AO12/(AQ4-AO20) -> 0 | AQ12: =IF(AP12=0,0,(AP12*((LOG(AP12))/LOG(2)))) -> 0 | AS12: =N12 -> 1212 | AT12: =COUNTIF(L110:L129,AS12) -> 0 | AU12: =AT12/(AV4-AT20) -> 0 | AV12: =IF(AU12=0,0,(AU12*((LOG(AU12))/LOG(2)))) -> 0
A13: 12 | B13: 744 | C13: 14 | D13: 748 | E13: 13 | F13: 755 | G13: 14 | H13: 760 | K13: 0 | L13: 1111 | N13: 1221 | O13: =COUNTIF($L$7:$L$500,N13) -> 0 | P13: =O13/$Q$4 -> 0 | Q13: =IF(P13=0,0,(P13*((LOG(P13))/LOG(2)))) -> 0 | T13: =N13 -> 1221 | U13: =COUNTIF(L7:L27,T13) -> 0 | V13: =U13/(W4-U20) -> 0 | W13: =IF(V13=0,0,(V13*((LOG(V13))/LOG(2)))) -> 0 | Y13: =N13 -> 1221 | Z13: =COUNTIF(L28:L47,Y13) -> 0 | AA13: =Z13/(AB4-Z20) -> 0 | AB13: =IF(AA13=0,0,(AA13*((LOG(AA13))/LOG(2)))) -> 0 | AD13: =N13 -> 1221 | AE13: =COUNTIF(L48:L68,AD13) -> 0 | AF13: =AE13/(AG4-AE20) -> 0 | AG13: =IF(AF13=0,0,(AF13*((LOG(AF13))/LOG(2)))) -> 0 | AI13: =N13 -> 1221 | AJ13: =COUNTIF(L69:L88,AI13) -> 0 | AK13: =AJ13/(AL4-AJ20) -> 0 | AL13: =IF(AK13=0,0,(AK13*((LOG(AK13))/LOG(2)))) -> 0 | AN13: =N13 -> 1221 | AO13: =COUNTIF(L89:L109,AN13) -> 0 | AP13: =AO13/(AQ4-AO20) -> 0 | AQ13: =IF(AP13=0,0,(AP13*((LOG(AP13))/LOG(2)))) -> 0 | AS13: =N13 -> 1221 | AT13: =COUNTIF(L110:L129,AS13) -> 0 | AU13: =AT13/(AV4-AT20) -> 0 | AV13: =IF(AU13=0,0,(AU13*((LOG(AU13))/LOG(2)))) -> 0
A14: 21 | B14: 873 | C14: 12 | D14: 892 | E14: 13 | F14: 898 | G14: 14 | H14: 904 | K14: 0 | L14: 2111 | N14: 1222 | O14: =COUNTIF($L$7:$L$500,N14) -> 0 | P14: =O14/$Q$4 -> 0 | Q14: =IF(P14=0,0,(P14*((LOG(P14))/LOG(2)))) -> 0 | T14: =N14 -> 1222 | U14: =COUNTIF(L7:L27,T14) -> 0 | V14: =U14/(W4-U20) -> 0 | W14: =IF(V14=0,0,(V14*((LOG(V14))/LOG(2)))) -> 0 | Y14: =N14 -> 1222 | Z14: =COUNTIF(L28:L47,Y14) -> 0 | AA14: =Z14/(AB4-Z20) -> 0 | AB14: =IF(AA14=0,0,(AA14*((LOG(AA14))/LOG(2)))) -> 0 | AD14: =N14 -> 1222 | AE14: =COUNTIF(L48:L68,AD14) -> 0 | AF14: =AE14/(AG4-AE20) -> 0 | AG14: =IF(AF14=0,0,(AF14*((LOG(AF14))/LOG(2)))) -> 0 | AI14: =N14 -> 1222 | AJ14: =COUNTIF(L69:L88,AI14) -> 0 | AK14: =AJ14/(AL4-AJ20) -> 0 | AL14: =IF(AK14=0,0,(AK14*((LOG(AK14))/LOG(2)))) -> 0 | AN14: =N14 -> 1222 | AO14: =COUNTIF(L89:L109,AN14) -> 0 | AP14: =AO14/(AQ4-AO20) -> 0 | AQ14: =IF(AP14=0,0,(AP14*((LOG(AP14))/LOG(2)))) -> 0 | AS14: =N14 -> 1222 | AT14: =COUNTIF(L110:L129,AS14) -> 0 | AU14: =AT14/(AV4-AT20) -> 0 | AV14: =IF(AU14=0,0,(AU14*((LOG(AU14))/LOG(2)))) -> 0
A15: 12 | B15: 999 | C15: 14 | D15: 1006 | E15: 13 | F15: 1012 | G15: 14 | H15: 1020 | K15: 0 | L15: 1111 | N15: 2111 | O15: =COUNTIF($L$7:$L$500,N15) -> 2 | P15: =O15/$Q$4 -> 0.0162601626 | Q15: =IF(P15=0,0,(P15*((LOG(P15))/LOG(2)))) -> -0.09662625212 | T15: =N15 -> 2111 | U15: =COUNTIF(L7:L27,T15) -> 1 | V15: =U15/(W4-U20) -> 0.04761904762 | W15: =IF(V15=0,0,(V15*((LOG(V15))/LOG(2)))) -> -0.2091579725 | Y15: =N15 -> 2111 | Z15: =COUNTIF(L28:L47,Y15) -> 0 | AA15: =Z15/(AB4-Z20) -> 0 | AB15: =IF(AA15=0,0,(AA15*((LOG(AA15))/LOG(2)))) -> 0 | AD15: =N15 -> 2111 | AE15: =COUNTIF(L48:L68,AD15) -> 0 | AF15: =AE15/(AG4-AE20) -> 0 | AG15: =IF(AF15=0,0,(AF15*((LOG(AF15))/LOG(2)))) -> 0 | AI15: =N15 -> 2111 | AJ15: =COUNTIF(L69:L88,AI15) -> 0 | AK15: =AJ15/(AL4-AJ20) -> 0 | AL15: =IF(AK15=0,0,(AK15*((LOG(AK15))/LOG(2)))) -> 0 | AN15: =N15 -> 2111 | AO15: =COUNTIF(L89:L109,AN15) -> 1 | AP15: =AO15/(AQ4-AO20) -> 0.04761904762 | AQ15: =IF(AP15=0,0,(AP15*((LOG(AP15))/LOG(2)))) -> -0.2091579725 | AS15: =N15 -> 2111 | AT15: =COUNTIF(L110:L129,AS15) -> 0 | AU15: =AT15/(AV4-AT20) -> 0 | AV15: =IF(AU15=0,0,(AU15*((LOG(AU15))/LOG(2)))) -> 0
A16: 21 | B16: 1119 | C16: 21 | D16: 1124 | E16: 22 | F16: 1130 | G16: 23 | H16: 1138 | K16: 0 | L16: 2222 | N16: 2112 | O16: =COUNTIF($L$7:$L$500,N16) -> 0 | P16: =O16/$Q$4 -> 0 | Q16: =IF(P16=0,0,(P16*((LOG(P16))/LOG(2)))) -> 0 | T16: =N16 -> 2112 | U16: =COUNTIF(L7:L27,T16) -> 0 | V16: =U16/(W4-U20) -> 0 | W16: =IF(V16=0,0,(V16*((LOG(V16))/LOG(2)))) -> 0 | Y16: =N16 -> 2112 | Z16: =COUNTIF(L28:L47,Y16) -> 0 | AA16: =Z16/(AB4-Z20) -> 0 | AB16: =IF(AA16=0,0,(AA16*((LOG(AA16))/LOG(2)))) -> 0 | AD16: =N16 -> 2112 | AE16: =COUNTIF(L48:L68,AD16) -> 0 | AF16: =AE16/(AG4-AE20) -> 0 | AG16: =IF(AF16=0,0,(AF16*((LOG(AF16))/LOG(2)))) -> 0 | AI16: =N16 -> 2112 | AJ16: =COUNTIF(L69:L88,AI16) -> 0 | AK16: =AJ16/(AL4-AJ20) -> 0 | AL16: =IF(AK16=0,0,(AK16*((LOG(AK16))/LOG(2)))) -> 0 | AN16: =N16 -> 2112 | AO16: =COUNTIF(L89:L109,AN16) -> 0 | AP16: =AO16/(AQ4-AO20) -> 0 | AQ16: =IF(AP16=0,0,(AP16*((LOG(AP16))/LOG(2)))) -> 0 | AS16: =N16 -> 2112 | AT16: =COUNTIF(L110:L129,AS16) -> 0 | AU16: =AT16/(AV4-AT20) -> 0 | AV16: =IF(AU16=0,0,(AU16*((LOG(AU16))/LOG(2)))) -> 0
A17: 12 | B17: 1235 | C17: 14 | D17: 1245 | E17: 13 | F17: 1253 | G17: 14 | H17: 1265 | K17: 0 | L17: 1111 | N17: 2121 | O17: =COUNTIF($L$7:$L$500,N17) -> 0 | P17: =O17/$Q$4 -> 0 | Q17: =IF(P17=0,0,(P17*((LOG(P17))/LOG(2)))) -> 0 | T17: =N17 -> 2121 | U17: =COUNTIF(L7:L27,T17) -> 0 | V17: =U17/(W4-U20) -> 0 | W17: =IF(V17=0,0,(V17*((LOG(V17))/LOG(2)))) -> 0 | Y17: =N17 -> 2121 | Z17: =COUNTIF(L28:L47,Y17) -> 0 | AA17: =Z17/(AB4-Z20) -> 0 | AB17: =IF(AA17=0,0,(AA17*((LOG(AA17))/LOG(2)))) -> 0 | AD17: =N17 -> 2121 | AE17: =COUNTIF(L48:L68,AD17) -> 0 | AF17: =AE17/(AG4-AE20) -> 0 | AG17: =IF(AF17=0,0,(AF17*((LOG(AF17))/LOG(2)))) -> 0 | AI17: =N17 -> 2121 | AJ17: =COUNTIF(L69:L88,AI17) -> 0 | AK17: =AJ17/(AL4-AJ20) -> 0 | AL17: =IF(AK17=0,0,(AK17*((LOG(AK17))/LOG(2)))) -> 0 | AN17: =N17 -> 2121 | AO17: =COUNTIF(L89:L109,AN17) -> 0 | AP17: =AO17/(AQ4-AO20) -> 0 | AQ17: =IF(AP17=0,0,(AP17*((LOG(AP17))/LOG(2)))) -> 0 | AS17: =N17 -> 2121 | AT17: =COUNTIF(L110:L129,AS17) -> 0 | AU17: =AT17/(AV4-AT20) -> 0 | AV17: =IF(AU17=0,0,(AU17*((LOG(AU17))/LOG(2)))) -> 0
A18: 21 | B18: 1373 | C18: 21 | D18: 1382 | E18: 22 | F18: 1392 | G18: 23 | H18: 1407 | K18: 0 | L18: 2222 | N18: 2122 | O18: =COUNTIF($L$7:$L$500,N18) -> 0 | P18: =O18/$Q$4 -> 0 | Q18: =IF(P18=0,0,(P18*((LOG(P18))/LOG(2)))) -> 0 | T18: =N18 -> 2122 | U18: =COUNTIF(L7:L27,T18) -> 0 | V18: =U18/(W4-U20) -> 0 | W18: =IF(V18=0,0,(V18*((LOG(V18))/LOG(2)))) -> 0 | Y18: =N18 -> 2122 | Z18: =COUNTIF(L28:L47,Y18) -> 0 | AA18: =Z18/(AB4-Z20) -> 0 | AB18: =IF(AA18=0,0,(AA18*((LOG(AA18))/LOG(2)))) -> 0 | AD18: =N18 -> 2122 | AE18: =COUNTIF(L48:L68,AD18) -> 0 | AF18: =AE18/(AG4-AE20) -> 0 | AG18: =IF(AF18=0,0,(AF18*((LOG(AF18))/LOG(2)))) -> 0 | AI18: =N18 -> 2122 | AJ18: =COUNTIF(L69:L88,AI18) -> 0 | AK18: =AJ18/(AL4-AJ20) -> 0 | AL18: =IF(AK18=0,0,(AK18*((LOG(AK18))/LOG(2)))) -> 0 | AN18: =N18 -> 2122 | AO18: =COUNTIF(L89:L109,AN18) -> 0 | AP18: =AO18/(AQ4-AO20) -> 0 | AQ18: =IF(AP18=0,0,(AP18*((LOG(AP18))/LOG(2)))) -> 0 | AS18: =N18 -> 2122 | AT18: =COUNTIF(L110:L129,AS18) -> 0 | AU18: =AT18/(AV4-AT20) -> 0 | AV18: =IF(AU18=0,0,(AU18*((LOG(AU18))/LOG(2)))) -> 0
A19: 12 | B19: 1515 | C19: 14 | D19: 1522 | E19: 13 | F19: 1530 | G19: 14 | H19: 1542 | K19: 0 | L19: 1111 | N19: 2211 | O19: =COUNTIF($L$7:$L$500,N19) -> 0 | P19: =O19/$Q$4 -> 0 | Q19: =IF(P19=0,0,(P19*((LOG(P19))/LOG(2)))) -> 0 | T19: =N19 -> 2211 | U19: =COUNTIF(L7:L27,T19) -> 0 | V19: =U19/(W4-U20) -> 0 | W19: =IF(V19=0,0,(V19*((LOG(V19))/LOG(2)))) -> 0 | Y19: =N19 -> 2211 | Z19: =COUNTIF(L28:L47,Y19) -> 0 | AA19: =Z19/(AB4-Z20) -> 0 | AB19: =IF(AA19=0,0,(AA19*((LOG(AA19))/LOG(2)))) -> 0 | AD19: =N19 -> 2211 | AE19: =COUNTIF(L48:L68,AD19) -> 0 | AF19: =AE19/(AG4-AE20) -> 0 | AG19: =IF(AF19=0,0,(AF19*((LOG(AF19))/LOG(2)))) -> 0 | AI19: =N19 -> 2211 | AJ19: =COUNTIF(L69:L88,AI19) -> 0 | AK19: =AJ19/(AL4-AJ20) -> 0 | AL19: =IF(AK19=0,0,(AK19*((LOG(AK19))/LOG(2)))) -> 0 | AN19: =N19 -> 2211 | AO19: =COUNTIF(L89:L109,AN19) -> 0 | AP19: =AO19/(AQ4-AO20) -> 0 | AQ19: =IF(AP19=0,0,(AP19*((LOG(AP19))/LOG(2)))) -> 0 | AS19: =N19 -> 2211 | AT19: =COUNTIF(L110:L129,AS19) -> 0 | AU19: =AT19/(AV4-AT20) -> 0 | AV19: =IF(AU19=0,0,(AU19*((LOG(AU19))/LOG(2)))) -> 0
A20: 12 | B20: 1679 | C20: 14 | D20: 1686 | E20: 13 | F20: 1692 | G20: 14 | H20: 1707 | K20: 0 | L20: 1111 | N20: 2212 | O20: =COUNTIF($L$7:$L$500,N20) -> 0 | P20: =O20/$Q$4 -> 0 | Q20: =IF(P20=0,0,(P20*((LOG(P20))/LOG(2)))) -> 0 | T20: =N20 -> 2212 | U20: =COUNTIF(L7:L27,T20) -> 0 | Y20: =N20 -> 2212 | Z20: =COUNTIF(L28:L47,Y20) -> 0 | AD20: =N20 -> 2212 | AE20: =COUNTIF(L48:L68,AD20) -> 0 | AI20: =N20 -> 2212 | AJ20: =COUNTIF(L69:L88,AI20) -> 0 | AN20: =N20 -> 2212 | AO20: =COUNTIF(L89:L109,AN20) -> 0 | AS20: =N20 -> 2212 | AT20: =COUNTIF(L110:L129,AS20) -> 0
A21: 12 | B21: 1814 | C21: 14 | D21: 1821 | E21: 13 | F21: 1828 | G21: 14 | H21: 1836 | K21: 0 | L21: 1111 | N21: 2221 | O21: =COUNTIF($L$7:$L$500,N21) -> 0 | P21: =O21/$Q$4 -> 0 | Q21: =IF(P21=0,0,(P21*((LOG(P21))/LOG(2)))) -> 0 | T21: =N21 -> 2221 | U21: =COUNTIF(L7:L27,T21) -> 0 | V21: =U21/(W4-U20) -> 0 | W21: =IF(V21=0,0,(V21*((LOG(V21))/LOG(2)))) -> 0 | Y21: =N21 -> 2221 | Z21: =COUNTIF(L28:L47,Y21) -> 0 | AA21: =Z21/(AB4-Z20) -> 0 | AB21: =IF(AA21=0,0,(AA21*((LOG(AA21))/LOG(2)))) -> 0 | AD21: =N21 -> 2221 | AE21: =COUNTIF(L48:L68,AD21) -> 0 | AF21: =AE21/(AG4-AE20) -> 0 | AG21: =IF(AF21=0,0,(AF21*((LOG(AF21))/LOG(2)))) -> 0 | AI21: =N21 -> 2221 | AJ21: =COUNTIF(L69:L88,AI21) -> 0 | AK21: =AJ21/(AL4-AJ20) -> 0 | AL21: =IF(AK21=0,0,(AK21*((LOG(AK21))/LOG(2)))) -> 0 | AN21: =N21 -> 2221 | AO21: =COUNTIF(L89:L109,AN21) -> 0 | AP21: =AO21/(AQ4-AO20) -> 0 | AQ21: =IF(AP21=0,0,(AP21*((LOG(AP21))/LOG(2)))) -> 0 | AS21: =N21 -> 2221 | AT21: =COUNTIF(L110:L129,AS21) -> 0 | AU21: =AT21/(AV4-AT20) -> 0 | AV21: =IF(AU21=0,0,(AU21*((LOG(AU21))/LOG(2)))) -> 0
A22: 12 | B22: 1945 | C22: 14 | D22: 1951 | E22: 13 | F22: 1956 | G22: 14 | H22: 1960 | K22: 0 | L22: 1111 | N22: 2222 | O22: =COUNTIF($L$7:$L$500,N22) -> 57 | P22: =O22/$Q$4 -> 0.4634146341 | Q22: =IF(P22=0,0,(P22*((LOG(P22))/LOG(2)))) -> -0.5142162276 | T22: =N22 -> 2222 | U22: =COUNTIF(L7:L27,T22) -> 3 | V22: =U22/(W4-U20) -> 0.1428571429 | W22: =IF(V22=0,0,(V22*((LOG(V22))/LOG(2)))) -> -0.4010507032 | Y22: =N22 -> 2222 | Z22: =COUNTIF(L28:L47,Y22) -> 10 | AA22: =Z22/(AB4-Z20) -> 0.5 | AB22: =IF(AA22=0,0,(AA22*((LOG(AA22))/LOG(2)))) -> -0.5 | AD22: =N22 -> 2222 | AE22: =COUNTIF(L48:L68,AD22) -> 9 | AF22: =AE22/(AG4-AE20) -> 0.4285714286 | AG22: =IF(AF22=0,0,(AF22*((LOG(AF22))/LOG(2)))) -> -0.5238824663 | AI22: =N22 -> 2222 | AJ22: =COUNTIF(L69:L88,AI22) -> 11 | AK22: =AJ22/(AL4-AJ20) -> 0.55 | AL22: =IF(AK22=0,0,(AK22*((LOG(AK22))/LOG(2)))) -> -0.4743730619 | AN22: =N22 -> 2222 | AO22: =COUNTIF(L89:L109,AN22) -> 12 | AP22: =AO22/(AQ4-AO20) -> 0.5714285714 | AQ22: =IF(AP22=0,0,(AP22*((LOG(AP22))/LOG(2)))) -> -0.4613456697 | AS22: =N22 -> 2222 | AT22: =COUNTIF(L110:L129,AS22) -> 12 | AU22: =AT22/(AV4-AT20) -> 0.6 | AV22: =IF(AU22=0,0,(AU22*((LOG(AU22))/LOG(2)))) -> -0.4421793565
A23: 21 | B23: 2079 | C23: 21 | D23: 2084 | E23: 22 | F23: 2092 | G23: 23 | H23: 2099 | K23: 0 | L23: 2222 | P23: =SUM(P7:P22) -> 1 | Q23: =-SUM(Q7:Q22) -> 1.101256531 | V23: =SUM(V7:V22) -> 1 | W23: =-SUM(W7:W22) -> 0.8569957179 | AA23: =SUM(AA7:AA22) -> 1 | AB23: =-SUM(AB7:AB22) -> 1 | AF23: =SUM(AF7:AF22) -> 1 | AG23: =-SUM(AG7:AG22) -> 0.985228136 | AK23: =SUM(AK7:AK22) -> 1 | AL23: =-SUM(AL7:AL22) -> 0.992774454 | AP23: =SUM(AP7:AP22) -> 1 | AQ23: =-SUM(AQ7:AQ22) -> 1.20091028 | AU23: =SUM(AU7:AU22) -> 1 | AV23: =-SUM(AV7:AV22) -> 0.9709505945
A24: 12 | B24: 2222 | C24: 14 | D24: 2231 | E24: 13 | F24: 2236 | G24: 14 | H24: 2244 | K24: 0 | L24: 1111 | P24: U= | Q24: =Q23/(LOG(Q4)/LOG(2)) -> 0.1586250242 | V24: U1= | W24: =W23/(LOG(W4)/LOG(2)) -> 0.1951124282 | AA24: U2= | AB24: =AB23/(LOG(AB4)/LOG(2)) -> 0.2313782132 | AF24: U3= | AG24: =AG23/(LOG(AG4)/LOG(2)) -> 0.2243071348 | AK24: U4= | AL24: =AL23/(LOG(AL4)/LOG(2)) -> 0.2297063792 | AP24: U5= | AQ24: =AQ23/(LOG(AQ4)/LOG(2)) -> 0.273411542 | AU24: U6= | AV24: =AV23/(LOG(AV4)/LOG(2)) -> 0.2246568136
A25: 12 | B25: 2347 | C25: 14 | D25: 2349 | E25: 13 | F25: 2356 | G25: 14 | H25: 2362 | K25: 0 | L25: 1111
A26: 12 | B26: 2478 | C26: 14 | D26: 2483 | E26: 13 | F26: 2489 | G26: 14 | H26: 2497 | K26: 0 | L26: 1111
A27: 12 | B27: 2603 | C27: 14 | D27: 2608 | E27: 13 | F27: 2612 | G27: 14 | H27: 2618 | K27: 0 | L27: 1111 | N27: Total Target Seq
A28: 21 | B28: 2727 | C28: 21 | D28: 2733 | E28: 22 | F28: 2748 | G28: 23 | H28: 2755 | K28: 0 | L28: 2222 | N28: =COUNTIF(L7:L129,G3) -> 0 | P28: 21 | Q28: 20 | R28: 21 | S28: 20 | T28: 21 | U28: 20
A29: 12 | B29: 2877 | C29: 14 | D29: 2881 | E29: 13 | F29: 2886 | G29: 14 | H29: 2894 | K29: 0 | L29: 1111 | P29: % of reinforcement given in 6 equal intervals based on number of trials
A30: 21 | B30: 2999 | C30: 21 | D30: 3004 | E30: 22 | F30: 3012 | G30: 23 | H30: 3020 | K30: 0 | L30: 2222 | P30: %_1 | Q30: %_2 | R30: %_3 | S30: %_4 | T30: %_5 | U30: %_6
A31: 12 | B31: 3125 | C31: 14 | D31: 3130 | E31: 13 | F31: 3136 | G31: 14 | H31: 3143 | K31: 0 | L31: 1111 | O31: target sequence | P31: =$G$3 -> 2212 | Q31: =$G$3 -> 2212 | R31: =$G$3 -> 2212 | S31: =$G$3 -> 2212 | T31: =$G$3 -> 2212 | U31: =$G$3 -> 2212
A32: 12 | B32: 3251 | C32: 14 | D32: 3256 | E32: 13 | F32: 3261 | G32: 14 | H32: 3267 | K32: 0 | L32: 1111 | O32: total reinforcement | P32: =U20 -> 0 | Q32: =Z20 -> 0 | R32: =AE20 -> 0 | S32: =AJ20 -> 0 | T32: =AO20 -> 0 | U32: =AT20 -> 0
A33: 21 | B33: 3389 | C33: 21 | D33: 3393 | E33: 22 | F33: 3401 | G33: 23 | H33: 3418 | K33: 0 | L33: 2222 | O33: % target
A34: 12 | B34: 3525 | C34: 14 | D34: 3528 | E34: 13 | F34: 3533 | G34: 14 | H34: 3538 | K34: 0 | L34: 1111 | O34: CCRF
A35: 21 | B35: 3641 | C35: 21 | D35: 3647 | E35: 22 | F35: 3653 | G35: 23 | H35: 3661 | K35: 0 | L35: 2222 | O35: % CCRf
A36: 21 | B36: 3768 | C36: 21 | D36: 3773 | E36: 22 | F36: 3782 | G36: 23 | H36: 3793 | K36: 0 | L36: 2222 | O36: average response rate | P36: =H27/P28 -> 124.6666667 | Q36: =(H47-H27)/Q28 -> 134.7 | R36: =(H68-H47)/R28 -> 154.5714286 | S36: =(H88-H68)/S28 -> 225.7 | T36: =(H109-H88)/T28 -> 206.7142857 | U36: =(H129-H109)/U28 -> 300.2
A37: 12 | B37: 3905 | C37: 14 | D37: 3910 | E37: 13 | F37: 3911 | G37: 14 | H37: 3915 | K37: 0 | L37: 1111
A38: 21 | B38: 4031 | C38: 21 | D38: 4035 | E38: 22 | F38: 4040 | G38: 23 | H38: 4044 | K38: 0 | L38: 2222
A39: 21 | B39: 4192 | C39: 21 | D39: 4199 | E39: 22 | F39: 4207 | G39: 23 | H39: 4242 | K39: 0 | L39: 2222
A40: 12 | B40: 4343 | C40: 14 | D40: 4347 | E40: 13 | F40: 4352 | G40: 14 | H40: 4356 | K40: 0 | L40: 1111
A41: 12 | B41: 4469 | C41: 14 | D41: 4473 | E41: 13 | F41: 4478 | G41: 14 | H41: 4483 | K41: 0 | L41: 1111
A42: 21 | B42: 4590 | C42: 21 | D42: 4596 | E42: 22 | F42: 4604 | G42: 23 | H42: 4612 | K42: 0 | L42: 2222
A43: 12 | B43: 4729 | C43: 14 | D43: 4735 | E43: 13 | F43: 4740 | G43: 14 | H43: 4746 | K43: 0 | L43: 1111
A44: 21 | B44: 4904 | C44: 21 | D44: 4909 | E44: 22 | F44: 4914 | G44: 23 | H44: 4922 | K44: 0 | L44: 2222
A45: 21 | B45: 5025 | C45: 21 | D45: 5030 | E45: 22 | F45: 5037 | G45: 23 | H45: 5043 | K45: 0 | L45: 2222
A46: 12 | B46: 5167 | C46: 14 | D46: 5172 | E46: 13 | F46: 5176 | G46: 14 | H46: 5181 | K46: 0 | L46: 1111
A47: 12 | B47: 5298 | C47: 14 | D47: 5303 | E47: 13 | F47: 5307 | G47: 14 | H47: 5312 | K47: 0 | L47: 1111
A48: 21 | B48: 5457 | C48: 21 | D48: 5465 | E48: 22 | F48: 5473 | G48: 23 | H48: 5489 | K48: 0 | L48: 2222
A49: 12 | B49: 5597 | C49: 14 | D49: 5601 | E49: 13 | F49: 5606 | G49: 14 | H49: 5610 | K49: 0 | L49: 1111
A50: 21 | B50: 5719 | C50: 21 | D50: 5726 | E50: 22 | F50: 5740 | G50: 23 | H50: 5748 | K50: 0 | L50: 2222
A51: 12 | B51: 5852 | C51: 14 | D51: 5858 | E51: 13 | F51: 5863 | G51: 14 | H51: 5870 | K51: 0 | L51: 1111
A52: 12 | B52: 5979 | C52: 14 | D52: 5983 | E52: 13 | F52: 5988 | G52: 14 | H52: 5992 | K52: 0 | L52: 1111
A53: 12 | B53: 6155 | C53: 14 | D53: 6163 | E53: 13 | F53: 6190 | G53: 14 | H53: 6198 | K53: 0 | L53: 1111
A54: 12 | B54: 6298 | C54: 14 | D54: 6301 | E54: 13 | F54: 6306 | G54: 14 | H54: 6311 | K54: 0 | L54: 1111
A55: 12 | B55: 6426 | C55: 14 | D55: 6430 | E55: 13 | F55: 6435 | G55: 14 | H55: 6439 | K55: 0 | L55: 1111
A56: 21 | B56: 6615 | C56: 21 | D56: 6622 | E56: 22 | F56: 6630 | G56: 23 | H56: 6638 | K56: 0 | L56: 2222
A57: 21 | B57: 6798 | C57: 21 | D57: 6812 | E57: 22 | F57: 6833 | G57: 23 | H57: 6858 | K57: 0 | L57: 2222
A58: 12 | B58: 6961 | C58: 14 | D58: 6969 | E58: 13 | F58: 6975 | G58: 14 | H58: 6981 | K58: 0 | L58: 1111
A59: 21 | B59: 7090 | C59: 21 | D59: 7095 | E59: 22 | F59: 7101 | G59: 23 | H59: 7107 | K59: 0 | L59: 2222
A60: 12 | B60: 7221 | C60: 14 | D60: 7226 | E60: 13 | F60: 7231 | G60: 14 | H60: 7236 | K60: 0 | L60: 1111
A61: 12 | B61: 7489 | C61: 14 | D61: 7494 | E61: 13 | F61: 7499 | G61: 14 | H61: 7503 | K61: 0 | L61: 1111
A62: 21 | B62: 7686 | C62: 21 | D62: 7690 | E62: 22 | F62: 7696 | G62: 23 | H62: 7704 | K62: 0 | L62: 2222
A63: 21 | B63: 7826 | C63: 21 | D63: 7830 | E63: 22 | F63: 7835 | G63: 23 | H63: 7840 | K63: 0 | L63: 2222
A64: 12 | B64: 7936 | C64: 14 | D64: 7941 | E64: 13 | F64: 7947 | G64: 14 | H64: 7956 | K64: 0 | L64: 1111
A65: 12 | B65: 8064 | C65: 14 | D65: 8070 | E65: 13 | F65: 8074 | G65: 14 | H65: 8080 | K65: 0 | L65: 1111
A66: 21 | B66: 8201 | C66: 21 | D66: 8205 | E66: 22 | F66: 8210 | G66: 23 | H66: 8217 | K66: 0 | L66: 2222
A67: 21 | B67: 8338 | C67: 21 | D67: 8342 | E67: 22 | F67: 8350 | G67: 23 | H67: 8358 | K67: 0 | L67: 2222
A68: 12 | B68: 8543 | C68: 14 | D68: 8547 | E68: 13 | F68: 8553 | G68: 14 | H68: 8558 | K68: 0 | L68: 1111
A69: 21 | B69: 8657 | C69: 21 | D69: 8665 | E69: 22 | F69: 8670 | G69: 23 | H69: 8683 | K69: 0 | L69: 2222
A70: 12 | B70: 9014 | C70: 14 | D70: 9018 | E70: 13 | F70: 9038 | G70: 14 | H70: 9043 | K70: 0 | L70: 1111
A71: 12 | B71: 9168 | C71: 14 | D71: 9173 | E71: 13 | F71: 9177 | G71: 14 | H71: 9181 | K71: 0 | L71: 1111
A72: 12 | B72: 9366 | C72: 14 | D72: 9370 | E72: 13 | F72: 9375 | G72: 14 | H72: 9380 | K72: 0 | L72: 1111
A73: 21 | B73: 9498 | C73: 21 | D73: 9508 | E73: 22 | F73: 9515 | G73: 23 | H73: 9522 | K73: 0 | L73: 2222
A74: 12 | B74: 9628 | C74: 14 | D74: 9634 | E74: 13 | F74: 9638 | G74: 14 | H74: 9643 | K74: 0 | L74: 1111
A75: 21 | B75: 9888 | C75: 21 | D75: 9912 | E75: 22 | F75: 9927 | G75: 23 | H75: 9935 | K75: 0 | L75: 2222
A76: 21 | B76: 10109 | C76: 21 | D76: 10115 | E76: 22 | F76: 10120 | G76: 23 | H76: 10128 | K76: 0 | L76: 2222
A77: 12 | B77: 10235 | C77: 14 | D77: 10243 | E77: 13 | F77: 10248 | G77: 14 | H77: 10254 | K77: 0 | L77: 1111
A78: 12 | B78: 10404 | C78: 14 | D78: 10408 | E78: 13 | F78: 10413 | G78: 14 | H78: 10417 | K78: 0 | L78: 1111
A79: 12 | B79: 10804 | C79: 14 | D79: 10812 | E79: 13 | F79: 10818 | G79: 14 | H79: 10826 | K79: 0 | L79: 1111
A80: 21 | B80: 10948 | C80: 21 | D80: 10955 | E80: 22 | F80: 10960 | G80: 23 | H80: 10968 | K80: 0 | L80: 2222
A81: 21 | B81: 11067 | C81: 21 | D81: 11074 | E81: 22 | F81: 11095 | G81: 23 | H81: 11121 | K81: 0 | L81: 2222
A82: 21 | B82: 11232 | C82: 21 | D82: 11237 | E82: 22 | F82: 11242 | G82: 23 | H82: 11248 | K82: 0 | L82: 2222
A83: 12 | B83: 12066 | C83: 14 | D83: 12071 | E83: 13 | F83: 12075 | G83: 14 | H83: 12081 | K83: 0 | L83: 1111
A84: 12 | B84: 12205 | C84: 14 | D84: 12211 | E84: 13 | F84: 12216 | G84: 14 | H84: 12222 | K84: 0 | L84: 1111
A85: 21 | B85: 12414 | C85: 21 | D85: 12419 | E85: 22 | F85: 12429 | G85: 23 | H85: 12450 | K85: 0 | L85: 2222
A86: 21 | B86: 12580 | C86: 21 | D86: 12585 | E86: 22 | F86: 12597 | G86: 23 | H86: 12605 | K86: 0 | L86: 2222
A87: 21 | B87: 12870 | C87: 21 | D87: 12894 | E87: 22 | F87: 12940 | G87: 23 | H87: 12954 | K87: 0 | L87: 2222
A88: 21 | B88: 13058 | C88: 21 | D88: 13063 | E88: 22 | F88: 13067 | G88: 23 | H88: 13072 | K88: 0 | L88: 2222
A89: 21 | B89: 13179 | C89: 21 | D89: 13184 | E89: 22 | F89: 13191 | G89: 23 | H89: 13202 | K89: 0 | L89: 2222
A90: 12 | B90: 13333 | C90: 14 | D90: 13341 | E90: 13 | F90: 13345 | G90: 14 | H90: 13349 | K90: 0 | L90: 1111
A91: 21 | B91: 13528 | C91: 21 | D91: 13535 | E91: 22 | F91: 13542 | G91: 23 | H91: 13578 | K91: 0 | L91: 2222
A92: 12 | B92: 14104 | C92: 14 | D92: 14109 | E92: 13 | F92: 14113 | G92: 14 | H92: 14117 | K92: 0 | L92: 1111
A93: 21 | B93: 14217 | C93: 21 | D93: 14221 | E93: 22 | F93: 14226 | G93: 23 | H93: 14232 | K93: 0 | L93: 2222
A94: 21 | B94: 14341 | C94: 21 | D94: 14346 | E94: 22 | F94: 14350 | G94: 23 | H94: 14354 | K94: 0 | L94: 2222
A95: 21 | B95: 14470 | C95: 21 | D95: 14481 | E95: 22 | F95: 14489 | G95: 23 | H95: 14515 | K95: 0 | L95: 2222
A96: 12 | B96: 14624 | C96: 14 | D96: 14629 | E96: 13 | F96: 14633 | G96: 14 | H96: 14639 | K96: 0 | L96: 1111
A97: 21 | B97: 14752 | C97: 21 | D97: 14757 | E97: 22 | F97: 14761 | G97: 23 | H97: 14767 | K97: 0 | L97: 2222
A98: 12 | B98: 14866 | C98: 14 | D98: 14871 | E98: 13 | F98: 14876 | G98: 14 | H98: 14880 | K98: 0 | L98: 1111
A99: 12 | B99: 14990 | C99: 14 | D99: 14994 | E99: 13 | F99: 15000 | G99: 14 | H99: 15003 | K99: 0 | L99: 1111
A100: 21 | B100: 15150 | C100: 21 | D100: 15160 | E100: 22 | F100: 15183 | G100: 23 | H100: 15191 | K100: 0 | L100: 2222
A101: 21 | B101: 15350 | C101: 21 | D101: 15355 | E101: 22 | F101: 15361 | G101: 23 | H101: 15369 | K101: 0 | L101: 2222
A102: 21 | B102: 15479 | C102: 21 | D102: 15486 | E102: 22 | F102: 15491 | G102: 23 | H102: 15504 | K102: 0 | L102: 2222
A103: 12 | B103: 15663 | C103: 14 | D103: 15667 | E103: 13 | F103: 15671 | G103: 14 | H103: 15675 | K103: 0 | L103: 1111
A104: 12 | B104: 15876 | C104: 14 | D104: 15881 | E104: 13 | F104: 15887 | G104: 14 | H104: 15892 | K104: 0 | L104: 1111
A105: 12 | B105: 16459 | C105: 14 | D105: 16463 | E105: 13 | F105: 16468 | G105: 14 | H105: 16476 | K105: 0 | L105: 1111
A106: 21 | B106: 16682 | C106: 21 | D106: 16686 | E106: 22 | F106: 16693 | G106: 23 | H106: 16717 | K106: 0 | L106: 2222
A107: 21 | B107: 16909 | C107: 12 | D107: 16923 | E107: 13 | F107: 16928 | G107: 14 | H107: 16932 | K107: 0 | L107: 2111
A108: 21 | B108: 17181 | C108: 21 | D108: 17186 | E108: 22 | F108: 17193 | G108: 23 | H108: 17199 | K108: 0 | L108: 2222
A109: 21 | B109: 17393 | C109: 21 | D109: 17400 | E109: 22 | F109: 17405 | G109: 23 | H109: 17413 | K109: 0 | L109: 2222
A110: 12 | B110: 17899 | C110: 14 | D110: 17904 | E110: 13 | F110: 17910 | G110: 14 | H110: 17916 | K110: 0 | L110: 1111
A111: 21 | B111: 18201 | C111: 21 | D111: 18207 | E111: 22 | F111: 18212 | G111: 23 | H111: 18221 | K111: 0 | L111: 2222
A112: 21 | B112: 18526 | C112: 21 | D112: 18535 | E112: 22 | F112: 18552 | G112: 23 | H112: 18563 | K112: 0 | L112: 2222
A113: 12 | B113: 19066 | C113: 14 | D113: 19070 | E113: 13 | F113: 19074 | G113: 14 | H113: 19078 | K113: 0 | L113: 1111
A114: 12 | B114: 19244 | C114: 14 | D114: 19248 | E114: 13 | F114: 19252 | G114: 14 | H114: 19257 | K114: 0 | L114: 1111
A115: 12 | B115: 20083 | C115: 14 | D115: 20087 | E115: 13 | F115: 20092 | G115: 14 | H115: 20097 | K115: 0 | L115: 1111
A116: 21 | B116: 20207 | C116: 21 | D116: 20218 | E116: 22 | F116: 20225 | G116: 23 | H116: 20233 | K116: 0 | L116: 2222
A117: 12 | B117: 20410 | C117: 14 | D117: 20414 | E117: 13 | F117: 20419 | G117: 14 | H117: 20426 | K117: 0 | L117: 1111
A118: 12 | B118: 20659 | C118: 14 | D118: 20664 | E118: 13 | F118: 20671 | G118: 14 | H118: 20679 | K118: 0 | L118: 1111
A119: 21 | B119: 20837 | C119: 21 | D119: 20845 | E119: 22 | F119: 20864 | G119: 23 | H119: 20873 | K119: 0 | L119: 2222
A120: 21 | B120: 20979 | C120: 21 | D120: 20984 | E120: 22 | F120: 20992 | G120: 23 | H120: 21000 | K120: 0 | L120: 2222
A121: 21 | B121: 21204 | C121: 21 | D121: 21209 | E121: 22 | F121: 21214 | G121: 23 | H121: 21235 | K121: 0 | L121: 2222
A122: 12 | B122: 21381 | C122: 14 | D122: 21386 | E122: 13 | F122: 21390 | G122: 14 | H122: 21395 | K122: 0 | L122: 1111
A123: 21 | B123: 21649 | C123: 21 | D123: 21656 | E123: 22 | F123: 21668 | G123: 23 | H123: 21683 | K123: 0 | L123: 2222
A124: 21 | B124: 21969 | C124: 21 | D124: 21983 | E124: 22 | F124: 22011 | G124: 23 | H124: 22018 | K124: 0 | L124: 2222
A125: 21 | B125: 22118 | C125: 21 | D125: 22125 | E125: 22 | F125: 22157 | G125: 23 | H125: 22167 | K125: 0 | L125: 2222
A126: 21 | B126: 22495 | C126: 21 | D126: 22502 | E126: 22 | F126: 22544 | G126: 23 | H126: 22550 | K126: 0 | L126: 2222
A127: 21 | B127: 23081 | C127: 21 | D127: 23087 | E127: 22 | F127: 23095 | G127: 23 | H127: 23110 | K127: 0 | L127: 2222
A128: 21 | B128: 23230 | C128: 21 | D128: 23239 | E128: 22 | F128: 23259 | G128: 23 | H128: 23266 | K128: 0 | L128: 2222
A129: 12 | B129: 23402 | C129: 14 | D129: 23407 | E129: 13 | F129: 23411 | G129: 14 | H129: 23417 | K129: 0 | L129: 1111

Sheet !MB09920.091
A1: Report for:!MB09920.091
A2: Date: | B2: <date>
A3: Hen: | B3: <hen> | F3: Correct Sequence | G3: =Start!J2 -> 2212 | P3: Total Sequences in Data | Q3: =4994-COUNTBLANK(L7:L5000) -> 113 | V3: Total Sequences in Block Data | W3: =COUNTA(L7:L25) -> 19 | AA3: Total Sequences in Block Data | AB3: =COUNTA(L26:L44) -> 19 | AF3: Total Sequences in Block Data | AG3: =COUNTA(L45:L62) -> 18 | AK3: Total Sequences in Block Data | AL3: =COUNTA(L63:L81) -> 19 | AP3: Total Sequences in Block Data | AQ3: =COUNTA(L82:L100) -> 19 | AU3: Total Sequences in Block Data | AV3: =COUNTA(L101:L119) -> 19
P4: Total Sequences in Summary | Q4: =SUM(O7:O22) -> 113 | V4: Total Sequences in Block Summary | W4: =SUM(U7:U22) -> 19 | AA4: Total Sequences in Block Summary | AB4: =SUM(Z7:Z22) -> 19 | AF4: Total Sequences in Block Summary | AG4: =SUM(AE7:AE22) -> 18 | AK4: Total Sequences in Block Summary | AL4: =SUM(AJ7:AJ22) -> 19 | AP4: Total Sequences in Block Summary | AQ4: =SUM(AO7:AO22) -> 19 | AU4: Total Sequences in Block Summary | AV4: =SUM(AT7:AT22) -> 19
T5: Block 1 | Y5: Block 2 | AD5: Block 3 | AI5: Block 4 | AN5: Block 5 | AS5: Block 6
A6: Sequence Component 1 | B6: Time 1 | C6: Sequence Component 2 | D6: Time 2 | E6: Sequence Component 3 | F6: Time 3 | G6: Sequence Component 4 | H6: Time 4 | I6: Sequence Component 5 | J6: Time 5 | K6: Correct? 0=No 1=Yes | L6: Sequence | N6: Frequency | P6: Relative Frequency | Q6: Variability | T6: Frequency | V6: Relative Frequency | W6: Variability | Y6: Frequency | AA6: Relative Frequency | AB6: Variability | AD6: Frequency | AF6: Relative Frequency | AG6: Variability | AI6: Frequency | AK6: Relative Frequency | AL6: Variability | AN6: Frequency | AP6: Relative Frequency | AQ6: Variability | AS6: Frequency | AU6: Relative Frequency | AV6: Variability
A7: 12 | B7: 15 | C7: 14 | D7: 22 | E7: 13 | F7: 29 | G7: 14 | H7: 37 | K7: 0 | L7: 1111 | N7: 1111 | O7: =COUNTIF($L$7:$L$500,N7) -> 56 | P7: =O7/$Q$4 -> 0.4955752212 | Q7: =IF(P7=0,0,(P7*((LOG(P7))/LOG(2)))) -> -0.5019304979 | T7: =N7 -> 1111 | U7: =COUNTIF(L7:L25,T7) -> 9 | V7: =U7/(W4-U20) -> 0.4736842105 | W7: =IF(V7=0,0,(V7*((LOG(V7))/LOG(2)))) -> -0.5106327688 | Y7: =N7 -> 1111 | Z7: =COUNTIF(L26:L44,Y7) -> 15 | AA7: =Z7/(AB4-Z20) -> 0.7894736842 | AB7: =IF(AA7=0,0,(AA7*((LOG(AA7))/LOG(2)))) -> -0.269239672 | AD7: =N7 -> 1111 | AE7: =COUNTIF(L45:L62,AD7) -> 8 | AF7: =AE7/(AG4-AE20) -> 0.4444444444 | AG7: =IF(AF7=0,0,(AF7*((LOG(AF7))/LOG(2)))) -> -0.5199666673 | AI7: =N7 -> 1111 | AJ7: =COUNTIF(L63:L81,AI7) -> 11 | AK7: =AJ7/(AL4-AJ20) -> 0.5789473684 | AL7: =IF(AK7=0,0,(AK7*((LOG(AK7))/LOG(2)))) -> -0.4564976233 | AN7: =N7 -> 1111 | AO7: =COUNTIF(L82:L100,AN7) -> 5 | AP7: =AO7/(AQ4-AO20) -> 0.2631578947 | AQ7: =IF(AP7=0,0,(AP7*((LOG(AP7))/LOG(2)))) -> -0.5068419523 | AS7: =N7 -> 1111 | AT7: =COUNTIF(L101:L119,AS7) -> 8 | AU7: =AT7/(AV4-AT20) -> 0.4210526316 | AV7: =IF(AU7=0,0,(AU7*((LOG(AU7))/LOG(2)))) -> -0.5254431636
A8: 12 | B8: 137 | C8: 14 | D8: 143 | E8: 13 | F8: 149 | G8: 14 | H8: 154 | K8: 0 | L8: 1111 | N8: 1112 | O8: =COUNTIF($L$7:$L$500,N8) -> 1 | P8: =O8/$Q$4 -> 0.008849557522 | Q8: =IF(P8=0,0,(P8*((LOG(P8))/LOG(2)))) -> -0.06035556604 | T8: =N8 -> 1112 | U8: =COUNTIF(L7:L25,T8) -> 1 | V8: =U8/(W4-U20) -> 0.05263157895 | W8: =IF(V8=0,0,(V8*((LOG(V8))/LOG(2)))) -> -0.2235751323 | Y8: =N8 -> 1112 | Z8: =COUNTIF(L26:L44,Y8) -> 0 | AA8: =Z8/(AB4-Z20) -> 0 | AB8: =IF(AA8=0,0,(AA8*((LOG(AA8))/LOG(2)))) -> 0 | AD8: =N8 -> 1112 | AE8: =COUNTIF(L45:L62,AD8) -> 0 | AF8: =AE8/(AG4-AE20) -> 0 | AG8: =IF(AF8=0,0,(AF8*((LOG(AF8))/LOG(2)))) -> 0 | AI8: =N8 -> 1112 | AJ8: =COUNTIF(L63:L81,AI8) -> 0 | AK8: =AJ8/(AL4-AJ20) -> 0 | AL8: =IF(AK8=0,0,(AK8*((LOG(AK8))/LOG(2)))) -> 0 | AN8: =N8 -> 1112 | AO8: =COUNTIF(L82:L100,AN8) -> 0 | AP8: =AO8/(AQ4-AO20) -> 0 | AQ8: =IF(AP8=0,0,(AP8*((LOG(AP8))/LOG(2)))) -> 0 | AS8: =N8 -> 1112 | AT8: =COUNTIF(L101:L119,AS8) -> 0 | AU8: =AT8/(AV4-AT20) -> 0 | AV8: =IF(AU8=0,0,(AU8*((LOG(AU8))/LOG(2)))) -> 0
A9: 12 | B9: 267 | C9: 14 | D9: 271 | E9: 13 | F9: 275 | G9: 14 | H9: 280 | K9: 0 | L9: 1111 | N9: 1121 | O9: =COUNTIF($L$7:$L$500,N9) -> 0 | P9: =O9/$Q$4 -> 0 | Q9: =IF(P9=0,0,(P9*((LOG(P9))/LOG(2)))) -> 0 | T9: =N9 -> 1121 | U9: =COUNTIF(L7:L25,T9) -> 0 | V9: =U9/(W4-U20) -> 0 | W9: =IF(V9=0,0,(V9*((LOG(V9))/LOG(2)))) -> 0 | Y9: =N9 -> 1121 | Z9: =COUNTIF(L26:L44,Y9) -> 0 | AA9: =Z9/(AB4-Z20) -> 0 | AB9: =IF(AA9=0,0,(AA9*((LOG(AA9))/LOG(2)))) -> 0 | AD9: =N9 -> 1121 | AE9: =COUNTIF(L45:L62,AD9) -> 0 | AF9: =AE9/(AG4-AE20) -> 0 | AG9: =IF(AF9=0,0,(AF9*((LOG(AF9))/LOG(2)))) -> 0 | AI9: =N9 -> 1121 | AJ9: =COUNTIF(L63:L81,AI9) -> 0 | AK9: =AJ9/(AL4-AJ20) -> 0 | AL9: =IF(AK9=0,0,(AK9*((LOG(AK9))/LOG(2)))) -> 0 | AN9: =N9 -> 1121 | AO9: =COUNTIF(L82:L100,AN9) -> 0 | AP9: =AO9/(AQ4-AO20) -> 0 | AQ9: =IF(AP9=0,0,(AP9*((LOG(AP9))/LOG(2)))) -> 0 | AS9: =N9 -> 1121 | AT9: =COUNTIF(L101:L119,AS9) -> 0 | AU9: =AT9/(AV4-AT20) -> 0 | AV9: =IF(AU9=0,0,(AU9*((LOG(AU9))/LOG(2)))) -> 0
A10: 12 | B10: 387 | C10: 14 | D10: 392 | E10: 13 | F10: 397 | G10: 23 | H10: 409 | K10: 0 | L10: 1112 | N10: 1122 | O10: =COUNTIF($L$7:$L$500,N10) -> 1 | P10: =O10/$Q$4 -> 0.008849557522 | Q10: =IF(P10=0,0,(P10*((LOG(P10))/LOG(2)))) -> -0.06035556604 | T10: =N10 -> 1122 | U10: =COUNTIF(L7:L25,T10) -> 1 | V10: =U10/(W4-U20) -> 0.05263157895 | W10: =IF(V10=0,0,(V10*((LOG(V10))/LOG(2)))) -> -0.2235751323 | Y10: =N10 -> 1122 | Z10: =COUNTIF(L26:L44,Y10) -> 0 | AA10: =Z10/(AB4-Z20) -> 0 | AB10: =IF(AA10=0,0,(AA10*((LOG(AA10))/LOG(2)))) -> 0 | AD10: =N10 -> 1122 | AE10: =COUNTIF(L45:L62,AD10) -> 0 | AF10: =AE10/(AG4-AE20) -> 0 | AG10: =IF(AF10=0,0,(AF10*((LOG(AF10))/LOG(2)))) -> 0 | AI10: =N10 -> 1122 | AJ10: =COUNTIF(L63:L81,AI10) -> 0 | AK10: =AJ10/(AL4-AJ20) -> 0 | AL10: =IF(AK10=0,0,(AK10*((LOG(AK10))/LOG(2)))) -> 0 | AN10: =N10 -> 1122 | AO10: =COUNTIF(L82:L100,AN10) -> 0 | AP10: =AO10/(AQ4-AO20) -> 0 | AQ10: =IF(AP10=0,0,(AP10*((LOG(AP10))/LOG(2)))) -> 0 | AS10: =N10 -> 1122 | AT10: =COUNTIF(L101:L119,AS10) -> 0 | AU10: =AT10/(AV4-AT20) -> 0 | AV10: =IF(AU10=0,0,(AU10*((LOG(AU10))/LOG(2)))) -> 0
A11: 12 | B11: 510 | C11: 14 | D11: 523 | E11: 13 | F11: 531 | G11: 14 | H11: 543 | K11: 0 | L11: 1111 | N11: 1211 | O11: =COUNTIF($L$7:$L$500,N11) -> 0 | P11: =O11/$Q$4 -> 0 | Q11: =IF(P11=0,0,(P11*((LOG(P11))/LOG(2)))) -> 0 | T11: =N11 -> 1211 | U11: =COUNTIF(L7:L25,T11) -> 0 | V11: =U11/(W4-U20) -> 0 | W11: =IF(V11=0,0,(V11*((LOG(V11))/LOG(2)))) -> 0 | Y11: =N11 -> 1211 | Z11: =COUNTIF(L26:L44,Y11) -> 0 | AA11: =Z11/(AB4-Z20) -> 0 | AB11: =IF(AA11=0,0,(AA11*((LOG(AA11))/LOG(2)))) -> 0 | AD11: =N11 -> 1211 | AE11: =COUNTIF(L45:L62,AD11) -> 0 | AF11: =AE11/(AG4-AE20) -> 0 | AG11: =IF(AF11=0,0,(AF11*((LOG(AF11))/LOG(2)))) -> 0 | AI11: =N11 -> 1211 | AJ11: =COUNTIF(L63:L81,AI11) -> 0 | AK11: =AJ11/(AL4-AJ20) -> 0 | AL11: =IF(AK11=0,0,(AK11*((LOG(AK11))/LOG(2)))) -> 0 | AN11: =N11 -> 1211 | AO11: =COUNTIF(L82:L100,AN11) -> 0 | AP11: =AO11/(AQ4-AO20) -> 0 | AQ11: =IF(AP11=0,0,(AP11*((LOG(AP11))/LOG(2)))) -> 0 | AS11: =N11 -> 1211 | AT11: =COUNTIF(L101:L119,AS11) -> 0 | AU11: =AT11/(AV4-AT20) -> 0 | AV11: =IF(AU11=0,0,(AU11*((LOG(AU11))/LOG(2)))) -> 0
A12: 12 | B12: 646 | C12: 14 | D12: 655 | E12: 13 | F12: 661 | G12: 14 | H12: 668 | K12: 0 | L12: 1111 | N12: 1212 | O12: =COUNTIF($L$7:$L$500,N12) -> 0 | P12: =O12/$Q$4 -> 0 | Q12: =IF(P12=0,0,(P12*((LOG(P12))/LOG(2)))) -> 0 | T12: =N12 -> 1212 | U12: =COUNTIF(L7:L25,T12) -> 0 | V12: =U12/(W4-U20) -> 0 | W12: =IF(V12=0,0,(V12*((LOG(V12))/LOG(2)))) -> 0 | Y12: =N12 -> 1212 | Z12: =COUNTIF(L26:L44,Y12) -> 0 | AA12: =Z12/(AB4-Z20) -> 0 | AB12: =IF(AA12=0,0,(AA12*((LOG(AA12))/LOG(2)))) -> 0 | AD12: =N12 -> 1212 | AE12: =COUNTIF(L45:L62,AD12) -> 0 | AF12: =AE12/(AG4-AE20) -> 0 | AG12: =IF(AF12=0,0,(AF12*((LOG(AF12))/LOG(2)))) -> 0 | AI12: =N12 -> 1212 | AJ12: =COUNTIF(L63:L81,AI12) -> 0 | AK12: =AJ12/(AL4-AJ20) -> 0 | AL12: =IF(AK12=0,0,(AK12*((LOG(AK12))/LOG(2)))) -> 0 | AN12: =N12 -> 1212 | AO12: =COUNTIF(L82:L100,AN12) -> 0 | AP12: =AO12/(AQ4-AO20) -> 0 | AQ12: =IF(AP12=0,0,(AP12*((LOG(AP12))/LOG(2)))) -> 0 | AS12: =N12 -> 1212 | AT12: =COUNTIF(L101:L119,AS12) -> 0 | AU12: =AT12/(AV4-AT20) -> 0 | AV12: =IF(AU12=0,0,(AU12*((LOG(AU12))/LOG(2)))) -> 0
A13: 12 | B13: 777 | C13: 14 | D13: 787 | E13: 24 | F13: 805 | G13: 23 | H13: 812 | K13: 0 | L13: 1122 | N13: 1221 | O13: =COUNTIF($L$7:$L$500,N13) -> 0 | P13: =O13/$Q$4 -> 0 | Q13: =IF(P13=0,0,(P13*((LOG(P13))/LOG(2)))) -> 0 | T13: =N13 -> 1221 | U13: =COUNTIF(L7:L25,T13) -> 0 | V13: =U13/(W4-U20) -> 0 | W13: =IF(V13=0,0,(V13*((LOG(V13))/LOG(2)))) -> 0 | Y13: =N13 -> 1221 | Z13: =COUNTIF(L26:L44,Y13) -> 0 | AA13: =Z13/(AB4-Z20) -> 0 | AB13: =IF(AA13=0,0,(AA13*((LOG(AA13))/LOG(2)))) -> 0 | AD13: =N13 -> 1221 | AE13: =COUNTIF(L45:L62,AD13) -> 0 | AF13: =AE13/(AG4-AE20) -> 0 | AG13: =IF(AF13=0,0,(AF13*((LOG(AF13))/LOG(2)))) -> 0 | AI13: =N13 -> 1221 | AJ13: =COUNTIF(L63:L81,AI13) -> 0 | AK13: =AJ13/(AL4-AJ20) -> 0 | AL13: =IF(AK13=0,0,(AK13*((LOG(AK13))/LOG(2)))) -> 0 | AN13: =N13 -> 1221 | AO13: =COUNTIF(L82:L100,AN13) -> 0 | AP13: =AO13/(AQ4-AO20) -> 0 | AQ13: =IF(AP13=0,0,(AP13*((LOG(AP13))/LOG(2)))) -> 0 | AS13: =N13 -> 1221 | AT13: =COUNTIF(L101:L119,AS13) -> 0 | AU13: =AT13/(AV4-AT20) -> 0 | AV13: =IF(AU13=0,0,(AU13*((LOG(AU13))/LOG(2)))) -> 0
A14: 21 | B14: 1019 | C14: 21 | D14: 1024 | E14: 22 | F14: 1038 | G14: 23 | H14: 1046 | K14: 0 | L14: 2222 | N14: 1222 | O14: =COUNTIF($L$7:$L$500,N14) -> 1 | P14: =O14/$Q$4 -> 0.008849557522 | Q14: =IF(P14=0,0,(P14*((LOG(P14))/LOG(2)))) -> -0.06035556604 | T14: =N14 -> 1222 | U14: =COUNTIF(L7:L25,T14) -> 0 | V14: =U14/(W4-U20) -> 0 | W14: =IF(V14=0,0,(V14*((LOG(V14))/LOG(2)))) -> 0 | Y14: =N14 -> 1222 | Z14: =COUNTIF(L26:L44,Y14) -> 0 | AA14: =Z14/(AB4-Z20) -> 0 | AB14: =IF(AA14=0,0,(AA14*((LOG(AA14))/LOG(2)))) -> 0 | AD14: =N14 -> 1222 | AE14: =COUNTIF(L45:L62,AD14) -> 1 | AF14: =AE14/(AG4-AE20) -> 0.05555555556 | AG14: =IF(AF14=0,0,(AF14*((LOG(AF14))/LOG(2)))) -> -0.2316625001 | AI14: =N14 -> 1222 | AJ14: =COUNTIF(L63:L81,AI14) -> 0 | AK14: =AJ14/(AL4-AJ20) -> 0 | AL14: =IF(AK14=0,0,(AK14*((LOG(AK14))/LOG(2)))) -> 0 | AN14: =N14 -> 1222 | AO14: =COUNTIF(L82:L100,AN14) -> 0 | AP14: =AO14/(AQ4-AO20) -> 0 | AQ14: =IF(AP14=0,0,(AP14*((LOG(AP14))/LOG(2)))) -> 0 | AS14: =N14 -> 1222 | AT14: =COUNTIF(L101:L119,AS14) -> 0 | AU14: =AT14/(AV4-AT20) -> 0 | AV14: =IF(AU14=0,0,(AU14*((LOG(AU14))/LOG(2)))) -> 0
A15: 21 | B15: 1148 | C15: 21 | D15: 1154 | E15: 22 | F15: 1159 | G15: 23 | H15: 1166 | K15: 0 | L15: 2222 | N15: 2111 | O15: =COUNTIF($L$7:$L$500,N15) -> 1 | P15: =O15/$Q$4 -> 0.008849557522 | Q15: =IF(P15=0,0,(P15*((LOG(P15))/LOG(2)))) -> -0.06035556604 | T15: =N15 -> 2111 | U15: =COUNTIF(L7:L25,T15) -> 0 | V15: =U15/(W4-U20) -> 0 | W15: =IF(V15=0,0,(V15*((LOG(V15))/LOG(2)))) -> 0 | Y15: =N15 -> 2111 | Z15: =COUNTIF(L26:L44,Y15) -> 0 | AA15: =Z15/(AB4-Z20) -> 0 | AB15: =IF(AA15=0,0,(AA15*((LOG(AA15))/LOG(2)))) -> 0 | AD15: =N15 -> 2111 | AE15: =COUNTIF(L45:L62,AD15) -> 0 | AF15: =AE15/(AG4-AE20) -> 0 | AG15: =IF(AF15=0,0,(AF15*((LOG(AF15))/LOG(2)))) -> 0 | AI15: =N15 -> 2111 | AJ15: =COUNTIF(L63:L81,AI15) -> 0 | AK15: =AJ15/(AL4-AJ20) -> 0 | AL15: =IF(AK15=0,0,(AK15*((LOG(AK15))/LOG(2)))) -> 0 | AN15: =N15 -> 2111 | AO15: =COUNTIF(L82:L100,AN15) -> 1 | AP15: =AO15/(AQ4-AO20) -> 0.05263157895 | AQ15: =IF(AP15=0,0,(AP15*((LOG(AP15))/LOG(2)))) -> -0.2235751323 | AS15: =N15 -> 2111 | AT15: =COUNTIF(L101:L119,AS15) -> 0 | AU15: =AT15/(AV4-AT20) -> 0 | AV15: =IF(AU15=0,0,(AU15*((LOG(AU15))/LOG(2)))) -> 0
A16: 21 | B16: 1285 | C16: 21 | D16: 1292 | E16: 22 | F16: 1341 | G16: 23 | H16: 1350 | K16: 0 | L16: 2222 | N16: 2112 | O16: =COUNTIF($L$7:$L$500,N16) -> 0 | P16: =O16/$Q$4 -> 0 | Q16: =IF(P16=0,0,(P16*((LOG(P16))/LOG(2)))) -> 0 | T16: =N16 -> 2112 | U16: =COUNTIF(L7:L25,T16) -> 0 | V16: =U16/(W4-U20) -> 0 | W16: =IF(V16=0,0,(V16*((LOG(V16))/LOG(2)))) -> 0 | Y16: =N16 -> 2112 | Z16: =COUNTIF(L26:L44,Y16) -> 0 | AA16: =Z16/(AB4-Z20) -> 0 | AB16: =IF(AA16=0,0,(AA16*((LOG(AA16))/LOG(2)))) -> 0 | AD16: =N16 -> 2112 | AE16: =COUNTIF(L45:L62,AD16) -> 0 | AF16: =AE16/(AG4-AE20) -> 0 | AG16: =IF(AF16=0,0,(AF16*((LOG(AF16))/LOG(2)))) -> 0 | AI16: =N16 -> 2112 | AJ16: =COUNTIF(L63:L81,AI16) -> 0 | AK16: =AJ16/(AL4-AJ20) -> 0 | AL16: =IF(AK16=0,0,(AK16*((LOG(AK16))/LOG(2)))) -> 0 | AN16: =N16 -> 2112 | AO16: =COUNTIF(L82:L100,AN16) -> 0 | AP16: =AO16/(AQ4-AO20) -> 0 | AQ16: =IF(AP16=0,0,(AP16*((LOG(AP16))/LOG(2)))) -> 0 | AS16: =N16 -> 2112 | AT16: =COUNTIF(L101:L119,AS16) -> 0 | AU16: =AT16/(AV4-AT20) -> 0 | AV16: =IF(AU16=0,0,(AU16*((LOG(AU16))/LOG(2)))) -> 0
A17: 21 | B17: 1485 | C17: 21 | D17: 1490 | E17: 22 | F17: 1496 | G17: 23 | H17: 1504 | K17: 0 | L17: 2222 | N17: 2121 | O17: =COUNTIF($L$7:$L$500,N17) -> 0 | P17: =O17/$Q$4 -> 0 | Q17: =IF(P17=0,0,(P17*((LOG(P17))/LOG(2)))) -> 0 | T17: =N17 -> 2121 | U17: =COUNTIF(L7:L25,T17) -> 0 | V17: =U17/(W4-U20) -> 0 | W17: =IF(V17=0,0,(V17*((LOG(V17))/LOG(2)))) -> 0 | Y17: =N17 -> 2121 | Z17: =COUNTIF(L26:L44,Y17) -> 0 | AA17: =Z17/(AB4-Z20) -> 0 | AB17: =IF(AA17=0,0,(AA17*((LOG(AA17))/LOG(2)))) -> 0 | AD17: =N17 -> 2121 | AE17: =COUNTIF(L45:L62,AD17) -> 0 | AF17: =AE17/(AG4-AE20) -> 0 | AG17: =IF(AF17=0,0,(AF17*((LOG(AF17))/LOG(2)))) -> 0 | AI17: =N17 -> 2121 | AJ17: =COUNTIF(L63:L81,AI17) -> 0 | AK17: =AJ17/(AL4-AJ20) -> 0 | AL17: =IF(AK17=0,0,(AK17*((LOG(AK17))/LOG(2)))) -> 0 | AN17: =N17 -> 2121 | AO17: =COUNTIF(L82:L100,AN17) -> 0 | AP17: =AO17/(AQ4-AO20) -> 0 | AQ17: =IF(AP17=0,0,(AP17*((LOG(AP17))/LOG(2)))) -> 0 | AS17: =N17 -> 2121 | AT17: =COUNTIF(L101:L119,AS17) -> 0 | AU17: =AT17/(AV4-AT20) -> 0 | AV17: =IF(AU17=0,0,(AU17*((LOG(AU17))/LOG(2)))) -> 0
A18: 21 | B18: 1634 | C18: 21 | D18: 1639 | E18: 22 | F18: 1648 | G18: 23 | H18: 1655 | K18: 0 | L18: 2222 | N18: 2122 | O18: =COUNTIF($L$7:$L$500,N18) -> 0 | P18: =O18/$Q$4 -> 0 | Q18: =IF(P18=0,0,(P18*((LOG(P18))/LOG(2)))) -> 0 | T18: =N18 -> 2122 | U18: =COUNTIF(L7:L25,T18) -> 0 | V18: =U18/(W4-U20) -> 0 | W18: =IF(V18=0,0,(V18*((LOG(V18))/LOG(2)))) -> 0 | Y18: =N18 -> 2122 | Z18: =COUNTIF(L26:L44,Y18) -> 0 | AA18: =Z18/(AB4-Z20) -> 0 | AB18: =IF(AA18=0,0,(AA18*((LOG(AA18))/LOG(2)))) -> 0 | AD18: =N18 -> 2122 | AE18: =COUNTIF(L45:L62,AD18) -> 0 | AF18: =AE18/(AG4-AE20) -> 0 | AG18: =IF(AF18=0,0,(AF18*((LOG(AF18))/LOG(2)))) -> 0 | AI18: =N18 -> 2122 | AJ18: =COUNTIF(L63:L81,AI18) -> 0 | AK18: =AJ18/(AL4-AJ20) -> 0 | AL18: =IF(AK18=0,0,(AK18*((LOG(AK18))/LOG(2)))) -> 0 | AN18: =N18 -> 2122 | AO18: =COUNTIF(L82:L100,AN18) -> 0 | AP18: =AO18/(AQ4-AO20) -> 0 | AQ18: =IF(AP18=0,0,(AP18*((LOG(AP18))/LOG(2)))) -> 0 | AS18: =N18 -> 2122 | AT18: =COUNTIF(L101:L119,AS18) -> 0 | AU18: =AT18/(AV4-AT20) -> 0 | AV18: =IF(AU18=0,0,(AU18*((LOG(AU18))/LOG(2)))) -> 0
A19: 12 | B19: 1821 | C19: 14 | D19: 1827 | E19: 13 | F19: 1832 | G19: 14 | H19: 1837 | K19: 0 | L19: 1111 | N19: 2211 | O19: =COUNTIF($L$7:$L$500,N19) -> 0 | P19: =O19/$Q$4 -> 0 | Q19: =IF(P19=0,0,(P19*((LOG(P19))/LOG(2)))) -> 0 | T19: =N19 -> 2211 | U19: =COUNTIF(L7:L25,T19) -> 0 | V19: =U19/(W4-U20) -> 0 | W19: =IF(V19=0,0,(V19*((LOG(V19))/LOG(2)))) -> 0 | Y19: =N19 -> 2211 | Z19: =COUNTIF(L26:L44,Y19) -> 0 | AA19: =Z19/(AB4-Z20) -> 0 | AB19: =IF(AA19=0,0,(AA19*((LOG(AA19))/LOG(2)))) -> 0 | AD19: =N19 -> 2211 | AE19: =COUNTIF(L45:L62,AD19) -> 0 | AF19: =AE19/(AG4-AE20) -> 0 | AG19: =IF(AF19=0,0,(AF19*((LOG(AF19))/LOG(2)))) -> 0 | AI19: =N19 -> 2211 | AJ19: =COUNTIF(L63:L81,AI19) -> 0 | AK19: =AJ19/(AL4-AJ20) -> 0 | AL19: =IF(AK19=0,0,(AK19*((LOG(AK19))/LOG(2)))) -> 0 | AN19: =N19 -> 2211 | AO19: =COUNTIF(L82:L100,AN19) -> 0 | AP19: =AO19/(AQ4-AO20) -> 0 | AQ19: =IF(AP19=0,0,(AP19*((LOG(AP19))/LOG(2)))) -> 0 | AS19: =N19 -> 2211 | AT19: =COUNTIF(L101:L119,AS19) -> 0 | AU19: =AT19/(AV4-AT20) -> 0 | AV19: =IF(AU19=0,0,(AU19*((LOG(AU19))/LOG(2)))) -> 0
A20: 21 | B20: 1976 | C20: 21 | D20: 1981 | E20: 22 | F20: 1987 | G20: 23 | H20: 1992 | K20: 0 | L20: 2222 | N20: 2212 | O20: =COUNTIF($L$7:$L$500,N20) -> 0 | P20: =O20/$Q$4 -> 0 | Q20: =IF(P20=0,0,(P20*((LOG(P20))/LOG(2)))) -> 0 | T20: =N20 -> 2212 | U20: =COUNTIF(L7:L25,T20) -> 0 | Y20: =N20 -> 2212 | Z20: =COUNTIF(L26:L44,Y20) -> 0 | AD20: =N20 -> 2212 | AE20: =COUNTIF(L45:L62,AD20) -> 0 | AI20: =N20 -> 2212 | AJ20: =COUNTIF(L63:L81,AI20) -> 0 | AN20: =N20 -> 2212 | AO20: =COUNTIF(L82:L100,AN20) -> 0 | AS20: =N20 -> 2212 | AT20: =COUNTIF(L101:L119,AS20) -> 0
A21: 12 | B21: 2108 | C21: 14 | D21: 2114 | E21: 13 | F21: 2123 | G21: 14 | H21: 2130 | K21: 0 | L21: 1111 | N21: 2221 | O21: =COUNTIF($L$7:$L$500,N21) -> 1 | P21: =O21/$Q$4 -> 0.008849557522 | Q21: =IF(P21=0,0,(P21*((LOG(P21))/LOG(2)))) -> -0.06035556604 | T21: =N21 -> 2221 | U21: =COUNTIF(L7:L25,T21) -> 0 | V21: =U21/(W4-U20) -> 0 | W21: =IF(V21=0,0,(V21*((LOG(V21))/LOG(2)))) -> 0 | Y21: =N21 -> 2221 | Z21: =COUNTIF(L26:L44,Y21) -> 0 | AA21: =Z21/(AB4-Z20) -> 0 | AB21: =IF(AA21=0,0,(AA21*((LOG(AA21))/LOG(2)))) -> 0 | AD21: =N21 -> 2221 | AE21: =COUNTIF(L45:L62,AD21) -> 1 | AF21: =AE21/(AG4-AE20) -> 0.05555555556 | AG21: =IF(AF21=0,0,(AF21*((LOG(AF21))/LOG(2)))) -> -0.2316625001 | AI21: =N21 -> 2221 | AJ21: =COUNTIF(L63:L81,AI21) -> 0 | AK21: =AJ21/(AL4-AJ20) -> 0 | AL21: =IF(AK21=0,0,(AK21*((LOG(AK21))/LOG(2)))) -> 0 | AN21: =N21 -> 2221 | AO21: =COUNTIF(L82:L100,AN21) -> 0 | AP21: =AO21/(AQ4-AO20) -> 0 | AQ21: =IF(AP21=0,0,(AP21*((LOG(AP21))/LOG(2)))) -> 0 | AS21: =N21 -> 2221 | AT21: =COUNTIF(L101:L119,AS21) -> 0 | AU21: =AT21/(AV4-AT20) -> 0 | AV21: =IF(AU21=0,0,(AU21*((LOG(AU21))/LOG(2)))) -> 0
A22: 21 | B22: 2436 | C22: 21 | D22: 2445 | E22: 22 | F22: 2452 | G22: 23 | H22: 2473 | K22: 0 | L22: 2222 | N22: 2222 | O22: =COUNTIF($L$7:$L$500,N22) -> 52 | P22: =O22/$Q$4 -> 0.4601769912 | Q22: =IF(P22=0,0,(P22*((LOG(P22))/LOG(2)))) -> -0.5152782363 | T22: =N22 -> 2222 | U22: =COUNTIF(L7:L25,T22) -> 8 | V22: =U22/(W4-U20) -> 0.4210526316 | W22: =IF(V22=0,0,(V22*((LOG(V22))/LOG(2)))) -> -0.5254431636 | Y22: =N22 -> 2222 | Z22: =COUNTIF(L26:L44,Y22) -> 4 | AA22: =Z22/(AB4-Z20) -> 0.2105263158 | AB22: =IF(AA22=0,0,(AA22*((LOG(AA22))/LOG(2)))) -> -0.4732478976 | AD22: =N22 -> 2222 | AE22: =COUNTIF(L45:L62,AD22) -> 8 | AF22: =AE22/(AG4-AE20) -> 0.4444444444 | AG22: =IF(AF22=0,0,(AF22*((LOG(AF22))/LOG(2)))) -> -0.5199666673 | AI22: =N22 -> 2222 | AJ22: =COUNTIF(L63:L81,AI22) -> 8 | AK22: =AJ22/(AL4-AJ20) -> 0.4210526316 | AL22: =IF(AK22=0,0,(AK22*((LOG(AK22))/LOG(2)))) -> -0.5254431636 | AN22: =N22 -> 2222 | AO22: =COUNTIF(L82:L100,AN22) -> 13 | AP22: =AO22/(AQ4-AO20) -> 0.6842105263 | AQ22: =IF(AP22=0,0,(AP22*((LOG(AP22))/LOG(2)))) -> -0.3745969126 | AS22: =N22 -> 2222 | AT22: =COUNTIF(L101:L119,AS22) -> 11 | AU22: =AT22/(AV4-AT20) -> 0.5789473684 | AV22: =IF(AU22=0,0,(AU22*((LOG(AU22))/LOG(2)))) -> -0.4564976233
A23: 12 | B23: 2860 | C23: 14 | D23: 2865 | E23: 13 | F23: 2870 | G23: 14 | H23: 2875 | K23: 0 | L23: 1111 | P23: =SUM(P7:P22) -> 1 | Q23: =-SUM(Q7:Q22) -> 1.318986564 | V23: =SUM(V7:V22) -> 1 | W23: =-SUM(W7:W22) -> 1.483226197 | AA23: =SUM(AA7:AA22) -> 1 | AB23: =-SUM(AB7:AB22) -> 0.7424875695 | AF23: =SUM(AF7:AF22) -> 1 | AG23: =-SUM(AG7:AG22) -> 1.503258335 | AK23: =SUM(AK7:AK22) -> 1 | AL23: =-SUM(AL7:AL22) -> 0.9819407869 | AP23: =SUM(AP7:AP22) -> 1 | AQ23: =-SUM(AQ7:AQ22) -> 1.105013997 | AU23: =SUM(AU7:AU22) -> 1 | AV23: =-SUM(AV7:AV22) -> 0.9819407869
A24: 12 | B24: 2995 | C24: 14 | D24: 2999 | E24: 13 | F24: 3004 | G24: 14 | H24: 3009 | K24: 0 | L24: 1111 | P24: U= | Q24: =Q23/(LOG(Q4)/LOG(2)) -> 0.1933947147 | V24: U1= | W24: =W23/(LOG(W4)/LOG(2)) -> 0.3491646673 | AA24: U2= | AB24: =AB23/(LOG(AB4)/LOG(2)) -> 0.1747881919 | AF24: U3= | AG24: =AG23/(LOG(AG4)/LOG(2)) -> 0.3605000892 | AK24: U4= | AL24: =AL23/(LOG(AL4)/LOG(2)) -> 0.2311576136 | AP24: U5= | AQ24: =AQ23/(LOG(AQ4)/LOG(2)) -> 0.2601301443 | AU24: U6= | AV24: =AV23/(LOG(AV4)/LOG(2)) -> 0.2311576136
A25: 21 | B25: 3159 | C25: 21 | D25: 3165 | E25: 22 | F25: 3171 | G25: 23 | H25: 3178 | K25: 0 | L25: 2222
A26: 12 | B26: 3566 | C26: 14 | D26: 3571 | E26: 13 | F26: 3577 | G26: 14 | H26: 3585 | K26: 0 | L26: 1111
A27: 12 | B27: 3771 | C27: 14 | D27: 3779 | E27: 13 | F27: 3784 | G27: 14 | H27: 3788 | K27: 0 | L27: 1111 | N27: Total Target Seq
A28: 12 | B28: 3963 | C28: 14 | D28: 3968 | E28: 13 | F28: 3972 | G28: 14 | H28: 3979 | K28: 0 | L28: 1111 | N28: =COUNTIF(L7:L119,G3) -> 0 | P28: 19 | Q28: 19 | R28: 18 | S28: 19 | T28: 19 | U28: 19
A29: 21 | B29: 4248 | C29: 21 | D29: 4253 | E29: 22 | F29: 4259 | G29: 23 | H29: 4278 | K29: 0 | L29: 2222 | P29: % of reinforcement given in 6 equal intervals based on number of trials
A30: 12 | B30: 4402 | C30: 14 | D30: 4407 | E30: 13 | F30: 4411 | G30: 14 | H30: 4416 | K30: 0 | L30: 1111 | P30: %_1 | Q30: %_2 | R30: %_3 | S30: %_4 | T30: %_5 | U30: %_6
A31: 12 | B31: 4739 | C31: 14 | D31: 4744 | E31: 13 | F31: 4751 | G31: 14 | H31: 4761 | K31: 0 | L31: 1111 | O31: target sequence | P31: =$G$3 -> 2212 | Q31: =$G$3 -> 2212 | R31: =$G$3 -> 2212 | S31: =$G$3 -> 2212 | T31: =$G$3 -> 2212 | U31: =$G$3 -> 2212
A32: 12 | B32: 4875 | C32: 14 | D32: 4879 | E32: 13 | F32: 4883 | G32: 14 | H32: 4892 | K32: 0 | L32: 1111 | O32: total reinforcement | P32: =U20 -> 0 | Q32: =Z20 -> 0 | R32: =AE20 -> 0 | S32: =AJ20 -> 0 | T32: =AO20 -> 0 | U32: =AT20 -> 0
A33: 21 | B33: 5009 | C33: 21 | D33: 5016 | E33: 22 | F33: 5022 | G33: 23 | H33: 5030 | K33: 0 | L33: 2222 | O33: % target
A34: 12 | B34: 5439 | C34: 14 | D34: 5445 | E34: 13 | F34: 5449 | G34: 14 | H34: 5457 | K34: 0 | L34: 1111 | O34: CCRF
A35: 12 | B35: 5699 | C35: 14 | D35: 5704 | E35: 13 | F35: 5709 | G35: 14 | H35: 5715 | K35: 0 | L35: 1111 | O35: % CCRf
A36: 12 | B36: 6244 | C36: 14 | D36: 6248 | E36: 13 | F36: 6254 | G36: 14 | H36: 6260 | K36: 0 | L36: 1111 | O36: average response rate | P36: =H25/P28 -> 167.2631579 | Q36: =(H44-H25)/Q28 -> 229.7368421 | R36: =(H62-H44)/R28 -> 217.5555556 | S36: =(H81-H62)/S28 -> 302.6842105 | T36: =(H100-H81)/T28 -> 148.5263158 | U36: =(H119-H100)/U28 -> 204.3684211
A37: 21 | B37: 6377 | C37: 21 | D37: 6382 | E37: 22 | F37: 6394 | G37: 23 | H37: 6421 | K37: 0 | L37: 2222
A38: 12 | B38: 6568 | C38: 14 | D38: 6575 | E38: 13 | F38: 6582 | G38: 14 | H38: 6590 | K38: 0 | L38: 1111
A39: 12 | B39: 6796 | C39: 14 | D39: 6801 | E39: 13 | F39: 6807 | G39: 14 | H39: 6814 | K39: 0 | L39: 1111
A40: 12 | B40: 6963 | C40: 14 | D40: 6968 | E40: 13 | F40: 6972 | G40: 14 | H40: 6977 | K40: 0 | L40: 1111
A41: 12 | B41: 7095 | C41: 14 | D41: 7099 | E41: 13 | F41: 7104 | G41: 14 | H41: 7108 | K41: 0 | L41: 1111
A42: 12 | B42: 7231 | C42: 14 | D42: 7235 | E42: 13 | F42: 7239 | G42: 14 | H42: 7244 | K42: 0 | L42: 1111
A43: 12 | B43: 7372 | C43: 14 | D43: 7378 | E43: 13 | F43: 7382 | G43: 14 | H43: 7388 | K43: 0 | L43: 1111
A44: 21 | B44: 7511 | C44: 21 | D44: 7516 | E44: 22 | F44: 7521 | G44: 23 | H44: 7543 | K44: 0 | L44: 2222
A45: 12 | B45: 7665 | C45: 14 | D45: 7670 | E45: 13 | F45: 7674 | G45: 14 | H45: 7680 | K45: 0 | L45: 1111
A46: 21 | B46: 7789 | C46: 21 | D46: 7794 | E46: 22 | F46: 7799 | G46: 23 | H46: 7805 | K46: 0 | L46: 2222
A47: 12 | B47: 7916 | C47: 14 | D47: 7921 | E47: 13 | F47: 7925 | G47: 14 | H47: 7929 | K47: 0 | L47: 1111
A48: 12 | B48: 8050 | C48: 14 | D48: 8056 | E48: 13 | F48: 8060 | G48: 14 | H48: 8065 | K48: 0 | L48: 1111
A49: 21 | B49: 8210 | C49: 21 | D49: 8216 | E49: 22 | F49: 8222 | G49: 14 | H49: 8237 | K49: 0 | L49: 2221
A50: 12 | B50: 8485 | C50: 14 | D50: 8491 | E50: 13 | F50: 8496 | G50: 14 | H50: 8501 | K50: 0 | L50: 1111
A51: 21 | B51: 8627 | C51: 21 | D51: 8669 | E51: 22 | F51: 8713 | G51: 23 | H51: 8741 | K51: 0 | L51: 2222
A52: 12 | B52: 8885 | C52: 14 | D52: 8890 | E52: 13 | F52: 8894 | G52: 14 | H52: 8901 | K52: 0 | L52: 1111
A53: 12 | B53: 9222 | C53: 14 | D53: 9226 | E53: 13 | F53: 9232 | G53: 14 | H53: 9237 | K53: 0 | L53: 1111
A54: 21 | B54: 9383 | C54: 21 | D54: 9389 | E54: 22 | F54: 9402 | G54: 23 | H54: 9419 | K54: 0 | L54: 2222
A55: 21 | B55: 9717 | C55: 21 | D55: 9722 | E55: 22 | F55: 9733 | G55: 23 | H55: 9742 | K55: 0 | L55: 2222
A56: 21 | B56: 9901 | C56: 21 | D56: 9906 | E56: 22 | F56: 9911 | G56: 23 | H56: 9917 | K56: 0 | L56: 2222
A57: 21 | B57: 10367 | C57: 21 | D57: 10378 | E57: 22 | F57: 10393 | G57: 23 | H57: 10399 | K57: 0 | L57: 2222
A58: 12 | B58: 10500 | C58: 23 | D58: 10517 | E58: 24 | F58: 10528 | G58: 23 | H58: 10546 | K58: 0 | L58: 1222
A59: 21 | B59: 10658 | C59: 21 | D59: 10665 | E59: 22 | F59: 10674 | G59: 23 | H59: 10680 | K59: 0 | L59: 2222
A60: 12 | B60: 10828 | C60: 14 | D60: 10832 | E60: 13 | F60: 10839 | G60: 14 | H60: 10845 | K60: 0 | L60: 1111
A61: 21 | B61: 11014 | C61: 21 | D61: 11021 | E61: 22 | F61: 11026 | G61: 23 | H61: 11032 | K61: 0 | L61: 2222
A62: 12 | B62: 11446 | C62: 14 | D62: 11451 | E62: 13 | F62: 11455 | G62: 14 | H62: 11459 | K62: 0 | L62: 1111
A63: 12 | B63: 11941 | C63: 14 | D63: 11945 | E63: 13 | F63: 11949 | G63: 14 | H63: 11954 | K63: 0 | L63: 1111
A64: 21 | B64: 12059 | C64: 21 | D64: 12069 | E64: 22 | F64: 12075 | G64: 23 | H64: 12080 | K64: 0 | L64: 2222
A65: 12 | B65: 12341 | C65: 14 | D65: 12354 | E65: 13 | F65: 12360 | G65: 14 | H65: 12367 | K65: 0 | L65: 1111
A66: 12 | B66: 12796 | C66: 14 | D66: 12802 | E66: 13 | F66: 12806 | G66: 14 | H66: 12811 | K66: 0 | L66: 1111
A67: 12 | B67: 12963 | C67: 14 | D67: 12968 | E67: 13 | F67: 12976 | G67: 14 | H67: 12981 | K67: 0 | L67: 1111
A68: 21 | B68: 13140 | C68: 21 | D68: 13144 | E68: 22 | F68: 13153 | G68: 23 | H68: 13158 | K68: 0 | L68: 2222
A69: 21 | B69: 13469 | C69: 21 | D69: 13473 | E69: 22 | F69: 13479 | G69: 23 | H69: 13486 | K69: 0 | L69: 2222
A70: 12 | B70: 13734 | C70: 14 | D70: 13739 | E70: 13 | F70: 13743 | G70: 14 | H70: 13747 | K70: 0 | L70: 1111
A71: 21 | B71: 13902 | C71: 21 | D71: 13907 | E71: 22 | F71: 13912 | G71: 23 | H71: 13938 | K71: 0 | L71: 2222
A72: 21 | B72: 14048 | C72: 21 | D72: 14053 | E72: 22 | F72: 14057 | G72: 23 | H72: 14062 | K72: 0 | L72: 2222
A73: 21 | B73: 14986 | C73: 21 | D73: 14991 | E73: 22 | F73: 14996 | G73: 23 | H73: 15002 | K73: 0 | L73: 2222
A74: 12 | B74: 15398 | C74: 14 | D74: 15403 | E74: 13 | F74: 15407 | G74: 14 | H74: 15414 | K74: 0 | L74: 1111
A75: 12 | B75: 15862 | C75: 14 | D75: 15867 | E75: 13 | F75: 15872 | G75: 14 | H75: 15878 | K75: 0 | L75: 1111
A76: 21 | B76: 16037 | C76: 21 | D76: 16042 | E76: 22 | F76: 16048 | G76: 23 | H76: 16062 | K76: 0 | L76: 2222
A77: 12 | B77: 16451 | C77: 14 | D77: 16456 | E77: 13 | F77: 16460 | G77: 14 | H77: 16464 | K77: 0 | L77: 1111
A78: 12 | B78: 16572 | C78: 14 | D78: 16577 | E78: 13 | F78: 16582 | G78: 14 | H78: 16590 | K78: 0 | L78: 1111
A79: 12 | B79: 16699 | C79: 14 | D79: 16710 | E79: 13 | F79: 16715 | G79: 14 | H79: 16722 | K79: 0 | L79: 1111
A80: 12 | B80: 17000 | C80: 14 | D80: 17005 | E80: 13 | F80: 17009 | G80: 14 | H80: 17014 | K80: 0 | L80: 1111
A81: 21 | B81: 17142 | C81: 21 | D81: 17155 | E81: 22 | F81: 17170 | G81: 23 | H81: 17210 | K81: 0 | L81: 2222
A82: 21 | B82: 17503 | C82: 12 | D82: 17538 | E82: 13 | F82: 17543 | G82: 14 | H82: 17547 | K82: 0 | L82: 2111
A83: 12 | B83: 17656 | C83: 14 | D83: 17661 | E83: 13 | F83: 17669 | G83: 14 | H83: 17679 | K83: 0 | L83: 1111
A84: 21 | B84: 17794 | C84: 21 | D84: 17801 | E84: 22 | F84: 17823 | G84: 23 | H84: 17851 | K84: 0 | L84: 2222
A85: 21 | B85: 17954 | C85: 21 | D85: 17972 | E85: 22 | F85: 17979 | G85: 23 | H85: 18000 | K85: 0 | L85: 2222
A86: 21 | B86: 18101 | C86: 21 | D86: 18107 | E86: 22 | F86: 18120 | G86: 23 | H86: 18138 | K86: 0 | L86: 2222
A87: 12 | B87: 18244 | C87: 14 | D87: 18245 | E87: 13 | F87: 18251 | G87: 14 | H87: 18256 | K87: 0 | L87: 1111
A88: 12 | B88: 18364 | C88: 14 | D88: 18368 | E88: 13 | F88: 18374 | G88: 14 | H88: 18382 | K88: 0 | L88: 1111
A89: 12 | B89: 18490 | C89: 14 | D89: 18496 | E89: 13 | F89: 18502 | G89: 14 | H89: 18512 | K89: 0 | L89: 1111
A90: 21 | B90: 18623 | C90: 21 | D90: 18628 | E90: 22 | F90: 18648 | G90: 23 | H90: 18657 | K90: 0 | L90: 2222
A91: 21 | B91: 18767 | C91: 21 | D91: 18772 | E91: 22 | F91: 18778 | G91: 23 | H91: 18785 | K91: 0 | L91: 2222
A92: 21 | B92: 18922 | C92: 21 | D92: 18926 | E92: 22 | F92: 18930 | G92: 23 | H92: 18956 | K92: 0 | L92: 2222
A93: 21 | B93: 19062 | C93: 21 | D93: 19067 | E93: 22 | F93: 19072 | G93: 23 | H93: 19078 | K93: 0 | L93: 2222
A94: 21 | B94: 19195 | C94: 21 | D94: 19200 | E94: 22 | F94: 19205 | G94: 23 | H94: 19262 | K94: 0 | L94: 2222
A95: 21 | B95: 19371 | C95: 21 | D95: 19376 | E95: 22 | F95: 19385 | G95: 23 | H95: 19394 | K95: 0 | L95: 2222
A96: 21 | B96: 19506 | C96: 21 | D96: 19511 | E96: 22 | F96: 19516 | G96: 23 | H96: 19530 | K96: 0 | L96: 2222
A97: 12 | B97: 19633 | C97: 14 | D97: 19637 | E97: 13 | F97: 19643 | G97: 14 | H97: 19649 | K97: 0 | L97: 1111
A98: 21 | B98: 19755 | C98: 21 | D98: 19756 | E98: 22 | F98: 19765 | G98: 23 | H98: 19771 | K98: 0 | L98: 2222
A99: 21 | B99: 19878 | C99: 21 | D99: 19883 | E99: 22 | F99: 19891 | G99: 23 | H99: 19898 | K99: 0 | L99: 2222
A100: 21 | B100: 20015 | C100: 21 | D100: 20019 | E100: 22 | F100: 20024 | G100: 23 | H100: 20032 | K100: 0 | L100: 2222
A101: 12 | B101: 20165 | C101: 14 | D101: 20180 | E101: 13 | F101: 20188 | G101: 14 | H101: 20197 | K101: 0 | L101: 1111
A102: 21 | B102: 20306 | C102: 21 | D102: 20311 | E102: 22 | F102: 20316 | G102: 23 | H102: 20322 | K102: 0 | L102: 2222
A103: 21 | B103: 20517 | C103: 21 | D103: 20524 | E103: 22 | F103: 20548 | G103: 23 | H103: 20601 | K103: 0 | L103: 2222
A104: 21 | B104: 20698 | C104: 21 | D104: 20704 | E104: 22 | F104: 20710 | G104: 23 | H104: 20717 | K104: 0 | L104: 2222
A105: 21 | B105: 20826 | C105: 21 | D105: 20831 | E105: 22 | F105: 20837 | G105: 23 | H105: 20847 | K105: 0 | L105: 2222
A106: 21 | B106: 21102 | C106: 21 | D106: 21108 | E106: 22 | F106: 21123 | G106: 23 | H106: 21138 | K106: 0 | L106: 2222
A107: 12 | B107: 21235 | C107: 14 | D107: 21241 | E107: 13 | F107: 21246 | G107: 14 | H107: 21252 | K107: 0 | L107: 1111
A108: 21 | B108: 21363 | C108: 21 | D108: 21368 | E108: 22 | F108: 21374 | G108: 23 | H108: 21425 | K108: 0 | L108: 2222
A109: 12 | B109: 21542 | C109: 14 | D109: 21550 | E109: 13 | F109: 21556 | G109: 14 | H109: 21564 | K109: 0 | L109: 1111
A110: 12 | B110: 22000 | C110: 14 | D110: 22006 | E110: 13 | F110: 22010 | G110: 14 | H110: 22017 | K110: 0 | L110: 1111
A111: 21 | B111: 22125 | C111: 21 | D111: 22130 | E111: 22 | F111: 22134 | G111: 23 | H111: 22142 | K111: 0 | L111: 2222
A112: 12 | B112: 22253 | C112: 14 | D112: 22259 | E112: 13 | F112: 22264 | G112: 14 | H112: 22268 | K112: 0 | L112: 1111
A113: 21 | B113: 22377 | C113: 21 | D113: 22381 | E113: 22 | F113: 22386 | G113: 23 | H113: 22395 | K113: 0 | L113: 2222
A114: 21 | B114: 22828 | C114: 21 | D114: 22833 | E114: 22 | F114: 22861 | G114: 23 | H114: 22869 | K114: 0 | L114: 2222
A115: 12 | B115: 22974 | C115: 14 | D115: 22979 | E115: 13 | F115: 22984 | G115: 14 | H115: 22989 | K115: 0 | L115: 1111
A116: 12 | B116: 23228 | C116: 14 | D116: 23232 | E116: 13 | F116: 23236 | G116: 14 | H116: 23241 | K116: 0 | L116: 1111
A117: 21 | B117: 23348 | C117: 21 | D117: 23354 | E117: 22 | F117: 23360 | G117: 23 | H117: 23368 | K117: 0 | L117: 2222
A118: 21 | B118: 23748 | C118: 21 | D118: 23755 | E118: 22 | F118: 23763 | G118: 23 | H118: 23780 | K118: 0 | L118: 2222
A119: 12 | B119: 23896 | C119: 14 | D119: 23901 | E119: 13 | F119: 23909 | G119: 14 | H119: 23915 | L119: 1111

Sheet !MB10800.091
A1: Report for:!MB10800.091
A2: Date: | B2: <date>
A3: Hen: | B3: <hen> | F3: Correct Sequence | G3: =Start!J2 -> 2212 | P3: Total Sequences in Data | Q3: =4994-COUNTBLANK(L7:L5000) -> 154 | V3: Total Sequences in Block Data | W3: =COUNTA(L7:L32) -> 26 | AA3: Total Sequences in Block Data | AB3: =COUNTA(L33:L57) -> 25 | AF3: Total Sequences in Block Data | AG3: =COUNTA(L58:L83) -> 26 | AK3: Total Sequences in Block Data | AL3: =COUNTA(L84:L109) -> 26 | AP3: Total Sequences in Block Data | AQ3: =COUNTA(L110:L134) -> 25 | AU3: Total Sequences in Block Data | AV3: =COUNTA(L135:L160) -> 26
P4: Total Sequences in Summary | Q4: =SUM(O7:O22) -> 154 | V4: Total Sequences in Block Summary | W4: =SUM(U7:U22) -> 26 | AA4: Total Sequences in Block Summary | AB4: =SUM(Z7:Z22) -> 25 | AF4: Total Sequences in Block Summary | AG4: =SUM(AE7:AE22) -> 26 | AK4: Total Sequences in Block Summary | AL4: =SUM(AJ7:AJ22) -> 26 | AP4: Total Sequences in Block Summary | AQ4: =SUM(AO7:AO22) -> 25 | AU4: Total Sequences in Block Summary | AV4: =SUM(AT7:AT22) -> 26
T5: Block 1 | Y5: Block 2 | AD5: Block 3 | AI5: Block 4 | AN5: Block 5 | AS5: Block 6
A6: Sequence Component 1 | B6: Time 1 | C6: Sequence Component 2 | D6: Time 2 | E6: Sequence Component 3 | F6: Time 3 | G6: Sequence Component 4 | H6: Time 4 | I6: Sequence Component 5 | J6: Time 5 | K6: Correct? 0=No 1=Yes | L6: Sequence | N6: Frequency | P6: Relative Frequency | Q6: Variability | T6: Frequency | V6: Relative Frequency | W6: Variability | Y6: Frequency | AA6: Relative Frequency | AB6: Variability | AD6: Frequency | AF6: Relative Frequency | AG6: Variability | AI6: Frequency | AK6: Relative Frequency | AL6: Variability | AN6: Frequency | AP6: Relative Frequency | AQ6: Variability | AS6: Frequency | AU6: Relative Frequency | AV6: Variability
A7: 12 | B7: 23 | C7: 14 | D7: 29 | E7: 13 | F7: 34 | G7: 14 | H7: 42 | K7: 0 | L7: 1111 | N7: 1111 | O7: =COUNTIF($L$7:$L$500,N7) -> 106 | P7: =O7/$Q$4 -> 0.6883116883 | Q7: =IF(P7=0,0,(P7*((LOG(P7))/LOG(2)))) -> -0.3709078255 | T7: =N7 -> 1111 | U7: =COUNTIF(L7:L32,T7) -> 19 | V7: =U7/(W4-U20) -> 0.7307692308 | W7: =IF(V7=0,0,(V7*((LOG(V7))/LOG(2)))) -> -0.3306819957 | Y7: =N7 -> 1111 | Z7: =COUNTIF(L33:L57,Y7) -> 13 | AA7: =Z7/(AB4-Z20) -> 0.52 | AB7: =IF(AA7=0,0,(AA7*((LOG(AA7))/LOG(2)))) -> -0.4905765652 | AD7: =N7 -> 1111 | AE7: =COUNTIF(L58:L83,AD7) -> 17 | AF7: =AE7/(AG4-AE20) -> 0.6538461538 | AG7: =IF(AF7=0,0,(AF7*((LOG(AF7))/LOG(2)))) -> -0.4007925734 | AI7: =N7 -> 1111 | AJ7: =COUNTIF(L84:L109,AI7) -> 15 | AK7: =AJ7/(AL4-AJ20) -> 0.5769230769 | AL7: =IF(AK7=0,0,(AK7*((LOG(AK7))/LOG(2)))) -> -0.4578168015 | AN7: =N7 -> 1111 | AO7: =COUNTIF(L110:L134,AN7) -> 20 | AP7: =AO7/(AQ4-AO20) -> 0.8 | AQ7: =IF(AP7=0,0,(AP7*((LOG(AP7))/LOG(2)))) -> -0.2575424759 | AS7: =N7 -> 1111 | AT7: =COUNTIF(L135:L160,AS7) -> 22 | AU7: =AT7/(AV4-AT20) -> 0.8461538462 | AV7: =IF(AU7=0,0,(AU7*((LOG(AU7))/LOG(2)))) -> -0.2039299303
A8: 12 | B8: 135 | C8: 14 | D8: 140 | E8: 13 | F8: 144 | G8: 14 | H8: 149 | K8: 0 | L8: 1111 | N8: 1112 | O8: =COUNTIF($L$7:$L$500,N8) -> 0 | P8: =O8/$Q$4 -> 0 | Q8: =IF(P8=0,0,(P8*((LOG(P8))/LOG(2)))) -> 0 | T8: =N8 -> 1112 | U8: =COUNTIF(L7:L32,T8) -> 0 | V8: =U8/(W4-U20) -> 0 | W8: =IF(V8=0,0,(V8*((LOG(V8))/LOG(2)))) -> 0 | Y8: =N8 -> 1112 | Z8: =COUNTIF(L33:L57,Y8) -> 0 | AA8: =Z8/(AB4-Z20) -> 0 | AB8: =IF(AA8=0,0,(AA8*((LOG(AA8))/LOG(2)))) -> 0 | AD8: =N8 -> 1112 | AE8: =COUNTIF(L58:L83,AD8) -> 0 | AF8: =AE8/(AG4-AE20) -> 0 | AG8: =IF(AF8=0,0,(AF8*((LOG(AF8))/LOG(2)))) -> 0 | AI8: =N8 -> 1112 | AJ8: =COUNTIF(L84:L109,AI8) -> 0 | AK8: =AJ8/(AL4-AJ20) -> 0 | AL8: =IF(AK8=0,0,(AK8*((LOG(AK8))/LOG(2)))) -> 0 | AN8: =N8 -> 1112 | AO8: =COUNTIF(L110:L134,AN8) -> 0 | AP8: =AO8/(AQ4-AO20) -> 0 | AQ8: =IF(AP8=0,0,(AP8*((LOG(AP8))/LOG(2)))) -> 0 | AS8: =N8 -> 1112 | AT8: =COUNTIF(L135:L160,AS8) -> 0 | AU8: =AT8/(AV4-AT20) -> 0 | AV8: =IF(AU8=0,0,(AU8*((LOG(AU8))/LOG(2)))) -> 0
A9: 12 | B9: 248 | C9: 14 | D9: 253 | E9: 13 | F9: 260 | G9: 14 | H9: 268 | K9: 0 | L9: 1111 | N9: 1121 | O9: =COUNTIF($L$7:$L$500,N9) -> 0 | P9: =O9/$Q$4 -> 0 | Q9: =IF(P9=0,0,(P9*((LOG(P9))/LOG(2)))) -> 0 | T9: =N9 -> 1121 | U9: =COUNTIF(L7:L32,T9) -> 0 | V9: =U9/(W4-U20) -> 0 | W9: =IF(V9=0,0,(V9*((LOG(V9))/LOG(2)))) -> 0 | Y9: =N9 -> 1121 | Z9: =COUNTIF(L33:L57,Y9) -> 0 | AA9: =Z9/(AB4-Z20) -> 0 | AB9: =IF(AA9=0,0,(AA9*((LOG(AA9))/LOG(2)))) -> 0 | AD9: =N9 -> 1121 | AE9: =COUNTIF(L58:L83,AD9) -> 0 | AF9: =AE9/(AG4-AE20) -> 0 | AG9: =IF(AF9=0,0,(AF9*((LOG(AF9))/LOG(2)))) -> 0 | AI9: =N9 -> 1121 | AJ9: =COUNTIF(L84:L109,AI9) -> 0 | AK9: =AJ9/(AL4-AJ20) -> 0 | AL9: =IF(AK9=0,0,(AK9*((LOG(AK9))/LOG(2)))) -> 0 | AN9: =N9 -> 1121 | AO9: =COUNTIF(L110:L134,AN9) -> 0 | AP9: =AO9/(AQ4-AO20) -> 0 | AQ9: =IF(AP9=0,0,(AP9*((LOG(AP9))/LOG(2)))) -> 0 | AS9: =N9 -> 1121 | AT9: =COUNTIF(L135:L160,AS9) -> 0 | AU9: =AT9/(AV4-AT20) -> 0 | AV9: =IF(AU9=0,0,(AU9*((LOG(AU9))/LOG(2)))) -> 0
A10: 12 | B10: 376 | C10: 14 | D10: 380 | E10: 13 | F10: 386 | G10: 14 | H10: 391 | K10: 0 | L10: 1111 | N10: 1122 | O10: =COUNTIF($L$7:$L$500,N10) -> 0 | P10: =O10/$Q$4 -> 0 | Q10: =IF(P10=0,0,(P10*((LOG(P10))/LOG(2)))) -> 0 | T10: =N10 -> 1122 | U10: =COUNTIF(L7:L32,T10) -> 0 | V10: =U10/(W4-U20) -> 0 | W10: =IF(V10=0,0,(V10*((LOG(V10))/LOG(2)))) -> 0 | Y10: =N10 -> 1122 | Z10: =COUNTIF(L33:L57,Y10) -> 0 | AA10: =Z10/(AB4-Z20) -> 0 | AB10: =IF(AA10=0,0,(AA10*((LOG(AA10))/LOG(2)))) -> 0 | AD10: =N10 -> 1122 | AE10: =COUNTIF(L58:L83,AD10) -> 0 | AF10: =AE10/(AG4-AE20) -> 0 | AG10: =IF(AF10=0,0,(AF10*((LOG(AF10))/LOG(2)))) -> 0 | AI10: =N10 -> 1122 | AJ10: =COUNTIF(L84:L109,AI10) -> 0 | AK10: =AJ10/(AL4-AJ20) -> 0 | AL10: =IF(AK10=0,0,(AK10*((LOG(AK10))/LOG(2)))) -> 0 | AN10: =N10 -> 1122 | AO10: =COUNTIF(L110:L134,AN10) -> 0 | AP10: =AO10/(AQ4-AO20) -> 0 | AQ10: =IF(AP10=0,0,(AP10*((LOG(AP10))/LOG(2)))) -> 0 | AS10: =N10 -> 1122 | AT10: =COUNTIF(L135:L160,AS10) -> 0 | AU10: =AT10/(AV4-AT20) -> 0 | AV10: =IF(AU10=0,0,(AU10*((LOG(AU10))/LOG(2)))) -> 0
A11: 21 | B11: 497 | C11: 21 | D11: 506 | E11: 22 | F11: 512 | G11: 23 | H11: 520 | K11: 0 | L11: 2222 | N11: 1211 | O11: =COUNTIF($L$7:$L$500,N11) -> 0 | P11: =O11/$Q$4 -> 0 | Q11: =IF(P11=0,0,(P11*((LOG(P11))/LOG(2)))) -> 0 | T11: =N11 -> 1211 | U11: =COUNTIF(L7:L32,T11) -> 0 | V11: =U11/(W4-U20) -> 0 | W11: =IF(V11=0,0,(V11*((LOG(V11))/LOG(2)))) -> 0 | Y11: =N11 -> 1211 | Z11: =COUNTIF(L33:L57,Y11) -> 0 | AA11: =Z11/(AB4-Z20) -> 0 | AB11: =IF(AA11=0,0,(AA11*((LOG(AA11))/LOG(2)))) -> 0 | AD11: =N11 -> 1211 | AE11: =COUNTIF(L58:L83,AD11) -> 0 | AF11: =AE11/(AG4-AE20) -> 0 | AG11: =IF(AF11=0,0,(AF11*((LOG(AF11))/LOG(2)))) -> 0 | AI11: =N11 -> 1211 | AJ11: =COUNTIF(L84:L109,AI11) -> 0 | AK11: =AJ11/(AL4-AJ20) -> 0 | AL11: =IF(AK11=0,0,(AK11*((LOG(AK11))/LOG(2)))) -> 0 | AN11: =N11 -> 1211 | AO11: =COUNTIF(L110:L134,AN11) -> 0 | AP11: =AO11/(AQ4-AO20) -> 0 | AQ11: =IF(AP11=0,0,(AP11*((LOG(AP11))/LOG(2)))) -> 0 | AS11: =N11 -> 1211 | AT11: =COUNTIF(L135:L160,AS11) -> 0 | AU11: =AT11/(AV4-AT20) -> 0 | AV11: =IF(AU11=0,0,(AU11*((LOG(AU11))/LOG(2)))) -> 0
A12: 21 | B12: 620 | C12: 21 | D12: 629 | E12: 22 | F12: 635 | G12: 23 | H12: 649 | K12: 0 | L12: 2222 | N12: 1212 | O12: =COUNTIF($L$7:$L$500,N12) -> 0 | P12: =O12/$Q$4 -> 0 | Q12: =IF(P12=0,0,(P12*((LOG(P12))/LOG(2)))) -> 0 | T12: =N12 -> 1212 | U12: =COUNTIF(L7:L32,T12) -> 0 | V12: =U12/(W4-U20) -> 0 | W12: =IF(V12=0,0,(V12*((LOG(V12))/LOG(2)))) -> 0 | Y12: =N12 -> 1212 | Z12: =COUNTIF(L33:L57,Y12) -> 0 | AA12: =Z12/(AB4-Z20) -> 0 | AB12: =IF(AA12=0,0,(AA12*((LOG(AA12))/LOG(2)))) -> 0 | AD12: =N12 -> 1212 | AE12: =COUNTIF(L58:L83,AD12) -> 0 | AF12: =AE12/(AG4-AE20) -> 0 | AG12: =IF(AF12=0,0,(AF12*((LOG(AF12))/LOG(2)))) -> 0 | AI12: =N12 -> 1212 | AJ12: =COUNTIF(L84:L109,AI12) -> 0 | AK12: =AJ12/(AL4-AJ20) -> 0 | AL12: =IF(AK12=0,0,(AK12*((LOG(AK12))/LOG(2)))) -> 0 | AN12: =N12 -> 1212 | AO12: =COUNTIF(L110:L134,AN12) -> 0 | AP12: =AO12/(AQ4-AO20) -> 0 | AQ12: =IF(AP12=0,0,(AP12*((LOG(AP12))/LOG(2)))) -> 0 | AS12: =N12 -> 1212 | AT12: =COUNTIF(L135:L160,AS12) -> 0 | AU12: =AT12/(AV4-AT20) -> 0 | AV12: =IF(AU12=0,0,(AU12*((LOG(AU12))/LOG(2)))) -> 0
A13: 21 | B13: 759 | C13: 21 | D13: 765 | E13: 22 | F13: 786 | G13: 23 | H13: 795 | K13: 0 | L13: 2222 | N13: 1221 | O13: =COUNTIF($L$7:$L$500,N13) -> 0 | P13: =O13/$Q$4 -> 0 | Q13: =IF(P13=0,0,(P13*((LOG(P13))/LOG(2)))) -> 0 | T13: =N13 -> 1221 | U13: =COUNTIF(L7:L32,T13) -> 0 | V13: =U13/(W4-U20) -> 0 | W13: =IF(V13=0,0,(V13*((LOG(V13))/LOG(2)))) -> 0 | Y13: =N13 -> 1221 | Z13: =COUNTIF(L33:L57,Y13) -> 0 | AA13: =Z13/(AB4-Z20) -> 0 | AB13: =IF(AA13=0,0,(AA13*((LOG(AA13))/LOG(2)))) -> 0 | AD13: =N13 -> 1221 | AE13: =COUNTIF(L58:L83,AD13) -> 0 | AF13: =AE13/(AG4-AE20) -> 0 | AG13: =IF(AF13=0,0,(AF13*((LOG(AF13))/LOG(2)))) -> 0 | AI13: =N13 -> 1221 | AJ13: =COUNTIF(L84:L109,AI13) -> 0 | AK13: =AJ13/(AL4-AJ20) -> 0 | AL13: =IF(AK13=0,0,(AK13*((LOG(AK13))/LOG(2)))) -> 0 | AN13: =N13 -> 1221 | AO13: =COUNTIF(L110:L134,AN13) -> 0 | AP13: =AO13/(AQ4-AO20) -> 0 | AQ13: =IF(AP13=0,0,(AP13*((LOG(AP13))/LOG(2)))) -> 0 | AS13: =N13 -> 1221 | AT13: =COUNTIF(L135:L160,AS13) -> 0 | AU13: =AT13/(AV4-AT20) -> 0 | AV13: =IF(AU13=0,0,(AU13*((LOG(AU13))/LOG(2)))) -> 0
A14: 12 | B14: 897 | C14: 14 | D14: 902 | E14: 13 | F14: 911 | G14: 14 | H14: 919 | K14: 0 | L14: 1111 | N14: 1222 | O14: =COUNTIF($L$7:$L$500,N14) -> 3 | P14: =O14/$Q$4 -> 0.01948051948 | Q14: =IF(P14=0,0,(P14*((LOG(P14))/LOG(2)))) -> -0.1106848839 | T14: =N14 -> 1222 | U14: =COUNTIF(L7:L32,T14) -> 0 | V14: =U14/(W4-U20) -> 0 | W14: =IF(V14=0,0,(V14*((LOG(V14))/LOG(2)))) -> 0 | Y14: =N14 -> 1222 | Z14: =COUNTIF(L33:L57,Y14) -> 1 | AA14: =Z14/(AB4-Z20) -> 0.04 | AB14: =IF(AA14=0,0,(AA14*((LOG(AA14))/LOG(2)))) -> -0.1857542476 | AD14: =N14 -> 1222 | AE14: =COUNTIF(L58:L83,AD14) -> 0 | AF14: =AE14/(AG4-AE20) -> 0 | AG14: =IF(AF14=0,0,(AF14*((LOG(AF14))/LOG(2)))) -> 0 | AI14: =N14 -> 1222 | AJ14: =COUNTIF(L84:L109,AI14) -> 1 | AK14: =AJ14/(AL4-AJ20) -> 0.03846153846 | AL14: =IF(AK14=0,0,(AK14*((LOG(AK14))/LOG(2)))) -> -0.180786143 | AN14: =N14 -> 1222 | AO14: =COUNTIF(L110:L134,AN14) -> 0 | AP14: =AO14/(AQ4-AO20) -> 0 | AQ14: =IF(AP14=0,0,(AP14*((LOG(AP14))/LOG(2)))) -> 0 | AS14: =N14 -> 1222 | AT14: =COUNTIF(L135:L160,AS14) -> 1 | AU14: =AT14/(AV4-AT20) -> 0.03846153846 | AV14: =IF(AU14=0,0,(AU14*((LOG(AU14))/LOG(2)))) -> -0.180786143
A15: 12 | B15: 1097 | C15: 14 | D15: 1108 | E15: 13 | F15: 1116 | G15: 14 | H15: 1123 | K15: 0 | L15: 1111 | N15: 2111 | O15: =COUNTIF($L$7:$L$500,N15) -> 1 | P15: =O15/$Q$4 -> 0.006493506494 | Q15: =IF(P15=0,0,(P15*((LOG(P15))/LOG(2)))) -> -0.04718692559 | T15: =N15 -> 2111 | U15: =COUNTIF(L7:L32,T15) -> 0 | V15: =U15/(W4-U20) -> 0 | W15: =IF(V15=0,0,(V15*((LOG(V15))/LOG(2)))) -> 0 | Y15: =N15 -> 2111 | Z15: =COUNTIF(L33:L57,Y15) -> 0 | AA15: =Z15/(AB4-Z20) -> 0 | AB15: =IF(AA15=0,0,(AA15*((LOG(AA15))/LOG(2)))) -> 0 | AD15: =N15 -> 2111 | AE15: =COUNTIF(L58:L83,AD15) -> 0 | AF15: =AE15/(AG4-AE20) -> 0 | AG15: =IF(AF15=0,0,(AF15*((LOG(AF15))/LOG(2)))) -> 0 | AI15: =N15 -> 2111 | AJ15: =COUNTIF(L84:L109,AI15) -> 1 | AK15: =AJ15/(AL4-AJ20) -> 0.03846153846 | AL15: =IF(AK15=0,0,(AK15*((LOG(AK15))/LOG(2)))) -> -0.180786143 | AN15: =N15 -> 2111 | AO15: =COUNTIF(L110:L134,AN15) -> 0 | AP15: =AO15/(AQ4-AO20) -> 0 | AQ15: =IF(AP15=0,0,(AP15*((LOG(AP15))/LOG(2)))) -> 0 | AS15: =N15 -> 2111 | AT15: =COUNTIF(L135:L160,AS15) -> 0 | AU15: =AT15/(AV4-AT20) -> 0 | AV15: =IF(AU15=0,0,(AU15*((LOG(AU15))/LOG(2)))) -> 0
A16: 12 | B16: 1240 | C16: 14 | D16: 1246 | E16: 13 | F16: 1251 | G16: 14 | H16: 1256 | K16: 0 | L16: 1111 | N16: 2112 | O16: =COUNTIF($L$7:$L$500,N16) -> 0 | P16: =O16/$Q$4 -> 0 | Q16: =IF(P16=0,0,(P16*((LOG(P16))/LOG(2)))) -> 0 | T16: =N16 -> 2112 | U16: =COUNTIF(L7:L32,T16) -> 0 | V16: =U16/(W4-U20) -> 0 | W16: =IF(V16=0,0,(V16*((LOG(V16))/LOG(2)))) -> 0 | Y16: =N16 -> 2112 | Z16: =COUNTIF(L33:L57,Y16) -> 0 | AA16: =Z16/(AB4-Z20) -> 0 | AB16: =IF(AA16=0,0,(AA16*((LOG(AA16))/LOG(2)))) -> 0 | AD16: =N16 -> 2112 | AE16: =COUNTIF(L58:L83,AD16) -> 0 | AF16: =AE16/(AG4-AE20) -> 0 | AG16: =IF(AF16=0,0,(AF16*((LOG(AF16))/LOG(2)))) -> 0 | AI16: =N16 -> 2112 | AJ16: =COUNTIF(L84:L109,AI16) -> 0 | AK16: =AJ16/(AL4-AJ20) -> 0 | AL16: =IF(AK16=0,0,(AK16*((LOG(AK16))/LOG(2)))) -> 0 | AN16: =N16 -> 2112 | AO16: =COUNTIF(L110:L134,AN16) -> 0 | AP16: =AO16/(AQ4-AO20) -> 0 | AQ16: =IF(AP16=0,0,(AP16*((LOG(AP16))/LOG(2)))) -> 0 | AS16: =N16 -> 2112 | AT16: =COUNTIF(L135:L160,AS16) -> 0 | AU16: =AT16/(AV4-AT20) -> 0 | AV16: =IF(AU16=0,0,(AU16*((LOG(AU16))/LOG(2)))) -> 0
A17: 12 | B17: 1352 | C17: 14 | D17: 1359 | E17: 13 | F17: 1363 | G17: 14 | H17: 1368 | K17: 0 | L17: 1111 | N17: 2121 | O17: =COUNTIF($L$7:$L$500,N17) -> 0 | P17: =O17/$Q$4 -> 0 | Q17: =IF(P17=0,0,(P17*((LOG(P17))/LOG(2)))) -> 0 | T17: =N17 -> 2121 | U17: =COUNTIF(L7:L32,T17) -> 0 | V17: =U17/(W4-U20) -> 0 | W17: =IF(V17=0,0,(V17*((LOG(V17))/LOG(2)))) -> 0 | Y17: =N17 -> 2121 | Z17: =COUNTIF(L33:L57,Y17) -> 0 | AA17: =Z17/(AB4-Z20) -> 0 | AB17: =IF(AA17=0,0,(AA17*((LOG(AA17))/LOG(2)))) -> 0 | AD17: =N17 -> 2121 | AE17: =COUNTIF(L58:L83,AD17) -> 0 | AF17: =AE17/(AG4-AE20) -> 0 | AG17: =IF(AF17=0,0,(AF17*((LOG(AF17))/LOG(2)))) -> 0 | AI17: =N17 -> 2121 | AJ17: =COUNTIF(L84:L109,AI17) -> 0 | AK17: =AJ17/(AL4-AJ20) -> 0 | AL17: =IF(AK17=0,0,(AK17*((LOG(AK17))/LOG(2)))) -> 0 | AN17: =N17 -> 2121 | AO17: =COUNTIF(L110:L134,AN17) -> 0 | AP17: =AO17/(AQ4-AO20) -> 0 | AQ17: =IF(AP17=0,0,(AP17*((LOG(AP17))/LOG(2)))) -> 0 | AS17: =N17 -> 2121 | AT17: =COUNTIF(L135:L160,AS17) -> 0 | AU17: =AT17/(AV4-AT20) -> 0 | AV17: =IF(AU17=0,0,(AU17*((LOG(AU17))/LOG(2)))) -> 0
A18: 21 | B18: 1497 | C18: 21 | D18: 1503 | E18: 22 | F18: 1509 | G18: 23 | H18: 1522 | K18: 0 | L18: 2222 | N18: 2122 | O18: =COUNTIF($L$7:$L$500,N18) -> 0 | P18: =O18/$Q$4 -> 0 | Q18: =IF(P18=0,0,(P18*((LOG(P18))/LOG(2)))) -> 0 | T18: =N18 -> 2122 | U18: =COUNTIF(L7:L32,T18) -> 0 | V18: =U18/(W4-U20) -> 0 | W18: =IF(V18=0,0,(V18*((LOG(V18))/LOG(2)))) -> 0 | Y18: =N18 -> 2122 | Z18: =COUNTIF(L33:L57,Y18) -> 0 | AA18: =Z18/(AB4-Z20) -> 0 | AB18: =IF(AA18=0,0,(AA18*((LOG(AA18))/LOG(2)))) -> 0 | AD18: =N18 -> 2122 | AE18: =COUNTIF(L58:L83,AD18) -> 0 | AF18: =AE18/(AG4-AE20) -> 0 | AG18: =IF(AF18=0,0,(AF18*((LOG(AF18))/LOG(2)))) -> 0 | AI18: =N18 -> 2122 | AJ18: =COUNTIF(L84:L109,AI18) -> 0 | AK18: =AJ18/(AL4-AJ20) -> 0 | AL18: =IF(AK18=0,0,(AK18*((LOG(AK18))/LOG(2)))) -> 0 | AN18: =N18 -> 2122 | AO18: =COUNTIF(L110:L134,AN18) -> 0 | AP18: =AO18/(AQ4-AO20) -> 0 | AQ18: =IF(AP18=0,0,(AP18*((LOG(AP18))/LOG(2)))) -> 0 | AS18: =N18 -> 2122 | AT18: =COUNTIF(L135:L160,AS18) -> 0 | AU18: =AT18/(AV4-AT20) -> 0 | AV18: =IF(AU18=0,0,(AU18*((LOG(AU18))/LOG(2)))) -> 0
A19: 12 | B19: 1694 | C19: 14 | D19: 1703 | E19: 13 | F19: 1716 | G19: 14 | H19: 1724 | K19: 0 | L19: 1111 | N19: 2211 | O19: =COUNTIF($L$7:$L$500,N19) -> 1 | P19: =O19/$Q$4 -> 0.006493506494 | Q19: =IF(P19=0,0,(P19*((LOG(P19))/LOG(2)))) -> -0.04718692559 | T19: =N19 -> 2211 | U19: =COUNTIF(L7:L32,T19) -> 0 | V19: =U19/(W4-U20) -> 0 | W19: =IF(V19=0,0,(V19*((LOG(V19))/LOG(2)))) -> 0 | Y19: =N19 -> 2211 | Z19: =COUNTIF(L33:L57,Y19) -> 1 | AA19: =Z19/(AB4-Z20) -> 0.04 | AB19: =IF(AA19=0,0,(AA19*((LOG(AA19))/LOG(2)))) -> -0.1857542476 | AD19: =N19 -> 2211 | AE19: =COUNTIF(L58:L83,AD19) -> 0 | AF19: =AE19/(AG4-AE20) -> 0 | AG19: =IF(AF19=0,0,(AF19*((LOG(AF19))/LOG(2)))) -> 0 | AI19: =N19 -> 2211 | AJ19: =COUNTIF(L84:L109,AI19) -> 0 | AK19: =AJ19/(AL4-AJ20) -> 0 | AL19: =IF(AK19=0,0,(AK19*((LOG(AK19))/LOG(2)))) -> 0 | AN19: =N19 -> 2211 | AO19: =COUNTIF(L110:L134,AN19) -> 0 | AP19: =AO19/(AQ4-AO20) -> 0 | AQ19: =IF(AP19=0,0,(AP19*((LOG(AP19))/LOG(2)))) -> 0 | AS19: =N19 -> 2211 | AT19: =COUNTIF(L135:L160,AS19) -> 0 | AU19: =AT19/(AV4-AT20) -> 0 | AV19: =IF(AU19=0,0,(AU19*((LOG(AU19))/LOG(2)))) -> 0
A20: 12 | B20: 1836 | C20: 14 | D20: 1840 | E20: 13 | F20: 1845 | G20: 14 | H20: 1850 | K20: 0 | L20: 1111 | N20: 2212 | O20: =COUNTIF($L$7:$L$500,N20) -> 0 | P20: =O20/$Q$4 -> 0 | Q20: =IF(P20=0,0,(P20*((LOG(P20))/LOG(2)))) -> 0 | T20: =N20 -> 2212 | U20: =COUNTIF(L7:L32,T20) -> 0 | Y20: =N20 -> 2212 | Z20: =COUNTIF(L33:L57,Y20) -> 0 | AD20: =N20 -> 2212 | AE20: =COUNTIF(L58:L83,AD20) -> 0 | AI20: =N20 -> 2212 | AJ20: =COUNTIF(L84:L109,AI20) -> 0 | AN20: =N20 -> 2212 | AO20: =COUNTIF(L110:L134,AN20) -> 0 | AS20: =N20 -> 2212 | AT20: =COUNTIF(L135:L160,AS20) -> 0
A21: 21 | B21: 1971 | C21: 21 | D21: 1976 | E21: 22 | F21: 1981 | G21: 23 | H21: 1987 | K21: 0 | L21: 2222 | N21: 2221 | O21: =COUNTIF($L$7:$L$500,N21) -> 0 | P21: =O21/$Q$4 -> 0 | Q21: =IF(P21=0,0,(P21*((LOG(P21))/LOG(2)))) -> 0 | T21: =N21 -> 2221 | U21: =COUNTIF(L7:L32,T21) -> 0 | V21: =U21/(W4-U20) -> 0 | W21: =IF(V21=0,0,(V21*((LOG(V21))/LOG(2)))) -> 0 | Y21: =N21 -> 2221 | Z21: =COUNTIF(L33:L57,Y21) -> 0 | AA21: =Z21/(AB4-Z20) -> 0 | AB21: =IF(AA21=0,0,(AA21*((LOG(AA21))/LOG(2)))) -> 0 | AD21: =N21 -> 2221 | AE21: =COUNTIF(L58:L83,AD21) -> 0 | AF21: =AE21/(AG4-AE20) -> 0 | AG21: =IF(AF21=0,0,(AF21*((LOG(AF21))/LOG(2)))) -> 0 | AI21: =N21 -> 2221 | AJ21: =COUNTIF(L84:L109,AI21) -> 0 | AK21: =AJ21/(AL4-AJ20) -> 0 | AL21: =IF(AK21=0,0,(AK21*((LOG(AK21))/LOG(2)))) -> 0 | AN21: =N21 -> 2221 | AO21: =COUNTIF(L110:L134,AN21) -> 0 | AP21: =AO21/(AQ4-AO20) -> 0 | AQ21: =IF(AP21=0,0,(AP21*((LOG(AP21))/LOG(2)))) -> 0 | AS21: =N21 -> 2221 | AT21: =COUNTIF(L135:L160,AS21) -> 0 | AU21: =AT21/(AV4-AT20) -> 0 | AV21: =IF(AU21=0,0,(AU21*((LOG(AU21))/LOG(2)))) -> 0
A22: 12 | B22: 2099 | C22: 14 | D22: 2103 | E22: 13 | F22: 2108 | G22: 14 | H22: 2115 | K22: 0 | L22: 1111 | N22: 2222 | O22: =COUNTIF($L$7:$L$500,N22) -> 43 | P22: =O22/$Q$4 -> 0.2792207792 | Q22: =IF(P22=0,0,(P22*((LOG(P22))/LOG(2)))) -> -0.5139119273 | T22: =N22 -> 2222 | U22: =COUNTIF(L7:L32,T22) -> 7 | V22: =U22/(W4-U20) -> 0.2692307692 | W22: =IF(V22=0,0,(V22*((LOG(V22))/LOG(2)))) -> -0.5096766759 | Y22: =N22 -> 2222 | Z22: =COUNTIF(L33:L57,Y22) -> 10 | AA22: =Z22/(AB4-Z20) -> 0.4 | AB22: =IF(AA22=0,0,(AA22*((LOG(AA22))/LOG(2)))) -> -0.528771238 | AD22: =N22 -> 2222 | AE22: =COUNTIF(L58:L83,AD22) -> 9 | AF22: =AE22/(AG4-AE20) -> 0.3461538462 | AG22: =IF(AF22=0,0,(AF22*((LOG(AF22))/LOG(2)))) -> -0.5297935558 | AI22: =N22 -> 2222 | AJ22: =COUNTIF(L84:L109,AI22) -> 9 | AK22: =AJ22/(AL4-AJ20) -> 0.3461538462 | AL22: =IF(AK22=0,0,(AK22*((LOG(AK22))/LOG(2)))) -> -0.5297935558 | AN22: =N22 -> 2222 | AO22: =COUNTIF(L110:L134,AN22) -> 5 | AP22: =AO22/(AQ4-AO20) -> 0.2 | AQ22: =IF(AP22=0,0,(AP22*((LOG(AP22))/LOG(2)))) -> -0.464385619 | AS22: =N22 -> 2222 | AT22: =COUNTIF(L135:L160,AS22) -> 3 | AU22: =AT22/(AV4-AT20) -> 0.1153846154 | AV22: =IF(AU22=0,0,(AU22*((LOG(AU22))/LOG(2)))) -> -0.3594781405
A23: 12 | B23: 2239 | C23: 14 | D23: 2244 | E23: 13 | F23: 2249 | G23: 14 | H23: 2254 | K23: 0 | L23: 1111 | P23: =SUM(P7:P22) -> 1 | Q23: =-SUM(Q7:Q22) -> 1.089878488 | V23: =SUM(V7:V22) -> 1 | W23: =-SUM(W7:W22) -> 0.8403586716 | AA23: =SUM(AA7:AA22) -> 1 | AB23: =-SUM(AB7:AB22) -> 1.390856298 | AF23: =SUM(AF7:AF22) -> 1 | AG23: =-SUM(AG7:AG22) -> 0.9305861291 | AK23: =SUM(AK7:AK22) -> 1 | AL23: =-SUM(AL7:AL22) -> 1.349182643 | AP23: =SUM(AP7:AP22) -> 1 | AQ23: =-SUM(AQ7:AQ22) -> 0.7219280949 | AU23: =SUM(AU7:AU22) -> 1 | AV23: =-SUM(AV7:AV22) -> 0.7441942138
A24: 12 | B24: 2361 | C24: 14 | D24: 2365 | E24: 13 | F24: 2370 | G24: 14 | H24: 2375 | K24: 0 | L24: 1111 | P24: U= | Q24: =Q23/(LOG(Q4)/LOG(2)) -> 0.149980804 | V24: U1= | W24: =W23/(LOG(W4)/LOG(2)) -> 0.178782991 | AA24: U2= | AB24: =AB23/(LOG(AB4)/LOG(2)) -> 0.2995046017 | AF24: U3= | AG24: =AG23/(LOG(AG4)/LOG(2)) -> 0.1979785265 | AK24: U4= | AL24: =AL23/(LOG(AL4)/LOG(2)) -> 0.2870332829 | AP24: U5= | AQ24: =AQ23/(LOG(AQ4)/LOG(2)) -> 0.1554587535 | AU24: U6= | AV24: =AV23/(LOG(AV4)/LOG(2)) -> 0.1583243821
A25: 12 | B25: 2548 | C25: 14 | D25: 2555 | E25: 13 | F25: 2559 | G25: 14 | H25: 2567 | K25: 0 | L25: 1111
A26: 21 | B26: 2692 | C26: 21 | D26: 2697 | E26: 22 | F26: 2703 | G26: 23 | H26: 2714 | K26: 0 | L26: 2222
A27: 12 | B27: 2833 | C27: 14 | D27: 2838 | E27: 13 | F27: 2843 | G27: 14 | H27: 2848 | K27: 0 | L27: 1111 | N27: Total Target Seq
A28: 12 | B28: 2964 | C28: 14 | D28: 2972 | E28: 13 | F28: 2976 | G28: 14 | H28: 2985 | K28: 0 | L28: 1111 | N28: =COUNTIF(L7:L160,G3) -> 0 | P28: 26 | Q28: 25 | R28: 26 | S28: 26 | T28: 25 | U28: 26
A29: 12 | B29: 3232 | C29: 14 | D29: 3239 | E29: 13 | F29: 3246 | G29: 14 | H29: 3256 | K29: 0 | L29: 1111 | P29: % of reinforcement given in 6 equal intervals based on number of trials
A30: 12 | B30: 3372 | C30: 14 | D30: 3377 | E30: 13 | F30: 3383 | G30: 14 | H30: 3392 | K30: 0 | L30: 1111 | P30: %_1 | Q30: %_2 | R30: %_3 | S30: %_4 | T30: %_5 | U30: %_6
A31: 21 | B31: 3505 | C31: 21 | D31: 3515 | E31: 22 | F31: 3527 | G31: 23 | H31: 3543 | K31: 0 | L31: 2222 | O31: target sequence | P31: =$G$3 -> 2212 | Q31: =$G$3 -> 2212 | R31: =$G$3 -> 2212 | S31: =$G$3 -> 2212 | T31: =$G$3 -> 2212 | U31: =$G$3 -> 2212
A32: 12 | B32: 3654 | C32: 14 | D32: 3659 | E32: 13 | F32: 3666 | G32: 14 | H32: 3670 | K32: 0 | L32: 1111 | O32: total reinforcement | P32: =U20 -> 0 | Q32: =Z20 -> 0 | R32: =AE20 -> 0 | S32: =AJ20 -> 0 | T32: =AO20 -> 0 | U32: =AT20 -> 0
A33: 12 | B33: 3785 | C33: 14 | D33: 3789 | E33: 13 | F33: 3793 | G33: 14 | H33: 3801 | K33: 0 | L33: 1111 | O33: % target
A34: 12 | B34: 3942 | C34: 14 | D34: 3951 | E34: 13 | F34: 3956 | G34: 14 | H34: 3964 | K34: 0 | L34: 1111 | O34: CCRF
A35: 12 | B35: 4140 | C35: 14 | D35: 4149 | E35: 13 | F35: 4155 | G35: 14 | H35: 4162 | K35: 0 | L35: 1111 | O35: % CCRf
A36: 21 | B36: 4274 | C36: 21 | D36: 4279 | E36: 22 | F36: 4283 | G36: 23 | H36: 4296 | K36: 0 | L36: 2222 | O36: average response rate | P36: =H32/P28 -> 141.1538462 | Q36: =(H57-H32)/Q28 -> 148.44 | R36: =(H83-H57)/R28 -> 139.5384615 | S36: =(H109-H83)/S28 -> 171.1153846 | T36: =(H134-H109)/T28 -> 128.96 | U36: =(H160-H134)/U28 -> 201.1923077
A37: 12 | B37: 4410 | C37: 14 | D37: 4414 | E37: 13 | F37: 4419 | G37: 14 | H37: 4423 | K37: 0 | L37: 1111
A38: 12 | B38: 4528 | C38: 14 | D38: 4533 | E38: 13 | F38: 4537 | G38: 14 | H38: 4542 | K38: 0 | L38: 1111
A39: 21 | B39: 4715 | C39: 21 | D39: 4722 | E39: 22 | F39: 4727 | G39: 23 | H39: 4744 | K39: 0 | L39: 2222
A40: 12 | B40: 4856 | C40: 14 | D40: 4861 | E40: 13 | F40: 4869 | G40: 14 | H40: 4878 | K40: 0 | L40: 1111
A41: 12 | B41: 4982 | C41: 14 | D41: 4989 | E41: 13 | F41: 4996 | G41: 14 | H41: 5005 | K41: 0 | L41: 1111
A42: 21 | B42: 5142 | C42: 21 | D42: 5147 | E42: 22 | F42: 5154 | G42: 23 | H42: 5163 | K42: 0 | L42: 2222
A43: 12 | B43: 5284 | C43: 14 | D43: 5289 | E43: 13 | F43: 5294 | G43: 14 | H43: 5302 | K43: 0 | L43: 1111
A44: 12 | B44: 5424 | C44: 14 | D44: 5428 | E44: 13 | F44: 5432 | G44: 14 | H44: 5437 | K44: 0 | L44: 1111
A45: 12 | B45: 5558 | C45: 14 | D45: 5563 | E45: 13 | F45: 5567 | G45: 14 | H45: 5572 | K45: 0 | L45: 1111
A46: 21 | B46: 5676 | C46: 21 | D46: 5688 | E46: 22 | F46: 5705 | G46: 23 | H46: 5711 | K46: 0 | L46: 2222
A47: 21 | B47: 5876 | C47: 21 | D47: 5890 | E47: 11 | F47: 5903 | G47: 12 | H47: 5908 | K47: 0 | L47: 2211
A48: 12 | B48: 6004 | C48: 14 | D48: 6013 | E48: 13 | F48: 6021 | G48: 14 | H48: 6029 | K48: 0 | L48: 1111
A49: 21 | B49: 6169 | C49: 21 | D49: 6174 | E49: 22 | F49: 6182 | G49: 23 | H49: 6190 | K49: 0 | L49: 2222
A50: 21 | B50: 6306 | C50: 21 | D50: 6407 | E50: 22 | F50: 6441 | G50: 23 | H50: 6465 | K50: 0 | L50: 2222
A51: 21 | B51: 6587 | C51: 21 | D51: 6593 | E51: 22 | F51: 6598 | G51: 23 | H51: 6611 | K51: 0 | L51: 2222
A52: 12 | B52: 6713 | C52: 14 | D52: 6714 | E52: 13 | F52: 6721 | G52: 14 | H52: 6727 | K52: 0 | L52: 1111
A53: 12 | B53: 6847 | C53: 23 | D53: 6861 | E53: 24 | F53: 6867 | G53: 23 | H53: 6874 | K53: 0 | L53: 1222
A54: 21 | B54: 6977 | C54: 21 | D54: 6982 | E54: 22 | F54: 6988 | G54: 23 | H54: 6995 | K54: 0 | L54: 2222
A55: 21 | B55: 7105 | C55: 21 | D55: 7110 | E55: 22 | F55: 7116 | G55: 23 | H55: 7122 | K55: 0 | L55: 2222
A56: 21 | B56: 7234 | C56: 21 | D56: 7239 | E56: 22 | F56: 7245 | G56: 23 | H56: 7253 | K56: 0 | L56: 2222
A57: 12 | B57: 7363 | C57: 14 | D57: 7368 | E57: 13 | F57: 7375 | G57: 14 | H57: 7381 | K57: 0 | L57: 1111
A58: 12 | B58: 7486 | C58: 14 | D58: 7493 | E58: 13 | F58: 7499 | G58: 14 | H58: 7508 | K58: 0 | L58: 1111
A59: 12 | B59: 7623 | C59: 14 | D59: 7628 | E59: 13 | F59: 7633 | G59: 14 | H59: 7641 | K59: 0 | L59: 1111
A60: 21 | B60: 7752 | C60: 21 | D60: 7758 | E60: 22 | F60: 7764 | G60: 23 | H60: 7774 | K60: 0 | L60: 2222
A61: 21 | B61: 7913 | C61: 21 | D61: 7917 | E61: 22 | F61: 7922 | G61: 23 | H61: 7927 | K61: 0 | L61: 2222
A62: 21 | B62: 8066 | C62: 21 | D62: 8072 | E62: 22 | F62: 8083 | G62: 23 | H62: 8103 | K62: 0 | L62: 2222
A63: 12 | B63: 8254 | C63: 14 | D63: 8259 | E63: 13 | F63: 8264 | G63: 14 | H63: 8274 | K63: 0 | L63: 1111
A64: 12 | B64: 8395 | C64: 14 | D64: 8400 | E64: 13 | F64: 8406 | G64: 14 | H64: 8411 | K64: 0 | L64: 1111
A65: 12 | B65: 8537 | C65: 14 | D65: 8541 | E65: 13 | F65: 8545 | G65: 14 | H65: 8552 | K65: 0 | L65: 1111
A66: 21 | B66: 8676 | C66: 21 | D66: 8681 | E66: 22 | F66: 8687 | G66: 23 | H66: 8709 | K66: 0 | L66: 2222
A67: 12 | B67: 8839 | C67: 14 | D67: 8843 | E67: 13 | F67: 8848 | G67: 14 | H67: 8853 | K67: 0 | L67: 1111
A68: 12 | B68: 8964 | C68: 14 | D68: 8969 | E68: 13 | F68: 8973 | G68: 14 | H68: 8977 | K68: 0 | L68: 1111
A69: 21 | B69: 9106 | C69: 21 | D69: 9112 | E69: 22 | F69: 9119 | G69: 23 | H69: 9126 | K69: 0 | L69: 2222
A70: 12 | B70: 9224 | C70: 14 | D70: 9231 | E70: 13 | F70: 9239 | G70: 14 | H70: 9248 | K70: 0 | L70: 1111
A71: 21 | B71: 9357 | C71: 21 | D71: 9361 | E71: 22 | F71: 9367 | G71: 23 | H71: 9375 | K71: 0 | L71: 2222
A72: 21 | B72: 9488 | C72: 21 | D72: 9493 | E72: 22 | F72: 9498 | G72: 23 | H72: 9504 | K72: 0 | L72: 2222
A73: 12 | B73: 9613 | C73: 14 | D73: 9618 | E73: 13 | F73: 9622 | G73: 14 | H73: 9627 | K73: 0 | L73: 1111
A74: 12 | B74: 9758 | C74: 14 | D74: 9766 | E74: 13 | F74: 9771 | G74: 14 | H74: 9778 | K74: 0 | L74: 1111
A75: 12 | B75: 9896 | C75: 14 | D75: 9905 | E75: 13 | F75: 9910 | G75: 14 | H75: 9915 | K75: 0 | L75: 1111
A76: 12 | B76: 10042 | C76: 14 | D76: 10047 | E76: 13 | F76: 10051 | G76: 14 | H76: 10056 | K76: 0 | L76: 1111
A77: 12 | B77: 10161 | C77: 14 | D77: 10165 | E77: 13 | F77: 10170 | G77: 14 | H77: 10174 | K77: 0 | L77: 1111
A78: 21 | B78: 10282 | C78: 21 | D78: 10287 | E78: 22 | F78: 10293 | G78: 23 | H78: 10302 | K78: 0 | L78: 2222
A79: 12 | B79: 10431 | C79: 14 | D79: 10435 | E79: 13 | F79: 10439 | G79: 14 | H79: 10444 | K79: 0 | L79: 1111
A80: 12 | B80: 10568 | C80: 14 | D80: 10573 | E80: 13 | F80: 10578 | G80: 14 | H80: 10587 | K80: 0 | L80: 1111
A81: 21 | B81: 10708 | C81: 21 | D81: 10714 | E81: 22 | F81: 10719 | G81: 23 | H81: 10724 | K81: 0 | L81: 2222
A82: 12 | B82: 10832 | C82: 14 | D82: 10837 | E82: 13 | F82: 10842 | G82: 14 | H82: 10849 | K82: 0 | L82: 1111
A83: 12 | B83: 10994 | C83: 14 | D83: 10999 | E83: 13 | F83: 11003 | G83: 14 | H83: 11009 | K83: 0 | L83: 1111
A84: 21 | B84: 11162 | C84: 21 | D84: 11168 | E84: 22 | F84: 11177 | G84: 23 | H84: 11193 | K84: 0 | L84: 2222
A85: 12 | B85: 11298 | C85: 14 | D85: 11304 | E85: 13 | F85: 11308 | G85: 14 | H85: 11314 | K85: 0 | L85: 1111
A86: 12 | B86: 11493 | C86: 14 | D86: 11500 | E86: 13 | F86: 11505 | G86: 14 | H86: 11510 | K86: 0 | L86: 1111
A87: 12 | B87: 11623 | C87: 23 | D87: 11642 | E87: 24 | F87: 11647 | G87: 23 | H87: 11654 | K87: 0 | L87: 1222
A88: 21 | B88: 11798 | C88: 21 | D88: 11807 | E88: 22 | F88: 11830 | G88: 23 | H88: 11841 | K88: 0 | L88: 2222
A89: 12 | B89: 11976 | C89: 14 | D89: 11984 | E89: 13 | F89: 11991 | G89: 14 | H89: 11999 | K89: 0 | L89: 1111
A90: 12 | B90: 12127 | C90: 14 | D90: 12132 | E90: 13 | F90: 12136 | G90: 14 | H90: 12142 | K90: 0 | L90: 1111
A91: 21 | B91: 12451 | C91: 21 | D91: 12507 | E91: 22 | F91: 12515 | G91: 23 | H91: 12533 | K91: 0 | L91: 2222
A92: 21 | B92: 12653 | C92: 21 | D92: 12658 | E92: 22 | F92: 12664 | G92: 23 | H92: 12678 | K92: 0 | L92: 2222
A93: 21 | B93: 12807 | C93: 21 | D93: 12812 | E93: 22 | F93: 12818 | G93: 23 | H93: 12835 | K93: 0 | L93: 2222
A94: 21 | B94: 13017 | C94: 21 | D94: 13023 | E94: 22 | F94: 13031 | G94: 23 | H94: 13045 | K94: 0 | L94: 2222
A95: 12 | B95: 13495 | C95: 14 | D95: 13499 | E95: 13 | F95: 13505 | G95: 14 | H95: 13513 | K95: 0 | L95: 1111
A96: 21 | B96: 13668 | C96: 21 | D96: 13674 | E96: 22 | F96: 13690 | G96: 23 | H96: 13709 | K96: 0 | L96: 2222
A97: 12 | B97: 13864 | C97: 14 | D97: 13868 | E97: 13 | F97: 13872 | G97: 14 | H97: 13877 | K97: 0 | L97: 1111
A98: 12 | B98: 14036 | C98: 14 | D98: 14040 | E98: 13 | F98: 14045 | G98: 14 | H98: 14052 | K98: 0 | L98: 1111
A99: 12 | B99: 14192 | C99: 14 | D99: 14197 | E99: 13 | F99: 14201 | G99: 14 | H99: 14207 | K99: 0 | L99: 1111
A100: 12 | B100: 14303 | C100: 14 | D100: 14308 | E100: 13 | F100: 14312 | G100: 14 | H100: 14319 | K100: 0 | L100: 1111
A101: 21 | B101: 14438 | C101: 21 | D101: 14444 | E101: 22 | F101: 14450 | G101: 23 | H101: 14457 | K101: 0 | L101: 2222
A102: 12 | B102: 14568 | C102: 14 | D102: 14573 | E102: 13 | F102: 14578 | G102: 14 | H102: 14584 | K102: 0 | L102: 1111
A103: 21 | B103: 14690 | C103: 12 | D103: 14725 | E103: 13 | F103: 14730 | G103: 14 | H103: 14734 | K103: 0 | L103: 2111
A104: 12 | B104: 14837 | C104: 14 | D104: 14842 | E104: 13 | F104: 14847 | G104: 14 | H104: 14855 | K104: 0 | L104: 1111
A105: 12 | B105: 14955 | C105: 14 | D105: 14962 | E105: 13 | F105: 14967 | G105: 14 | H105: 14971 | K105: 0 | L105: 1111
A106: 12 | B106: 15074 | C106: 14 | D106: 15079 | E106: 13 | F106: 15084 | G106: 14 | H106: 15089 | K106: 0 | L106: 1111
A107: 12 | B107: 15209 | C107: 14 | D107: 15213 | E107: 13 | F107: 15218 | G107: 14 | H107: 15224 | K107: 0 | L107: 1111
A108: 21 | B108: 15316 | C108: 21 | D108: 15332 | E108: 22 | F108: 15339 | G108: 23 | H108: 15344 | K108: 0 | L108: 2222
A109: 12 | B109: 15444 | C109: 14 | D109: 15448 | E109: 13 | F109: 15453 | G109: 14 | H109: 15458 | K109: 0 | L109: 1111
A110: 12 | B110: 15567 | C110: 14 | D110: 15572 | E110: 13 | F110: 15580 | G110: 14 | H110: 15587 | K110: 0 | L110: 1111
A111: 12 | B111: 15687 | C111: 14 | D111: 15692 | E111: 13 | F111: 15696 | G111: 14 | H111: 15700 | K111: 0 | L111: 1111
A112: 12 | B112: 15816 | C112: 14 | D112: 15821 | E112: 13 | F112: 15826 | G112: 14 | H112: 15832 | K112: 0 | L112: 1111
A113: 12 | B113: 15944 | C113: 14 | D113: 15950 | E113: 13 | F113: 15955 | G113: 14 | H113: 15959 | K113: 0 | L113: 1111
A114: 12 | B114: 16072 | C114: 14 | D114: 16076 | E114: 13 | F114: 16080 | G114: 14 | H114: 16085 | K114: 0 | L114: 1111
A115: 12 | B115: 16193 | C115: 14 | D115: 16201 | E115: 13 | F115: 16206 | G115: 14 | H115: 16213 | K115: 0 | L115: 1111
A116: 12 | B116: 16315 | C116: 14 | D116: 16320 | E116: 13 | F116: 16324 | G116: 14 | H116: 16328 | K116: 0 | L116: 1111
A117: 12 | B117: 16434 | C117: 14 | D117: 16440 | E117: 13 | F117: 16445 | G117: 14 | H117: 16453 | K117: 0 | L117: 1111
A118: 12 | B118: 16568 | C118: 14 | D118: 16573 | E118: 13 | F118: 16577 | G118: 14 | H118: 16583 | K118: 0 | L118: 1111
A119: 21 | B119: 16692 | C119: 21 | D119: 16697 | E119: 22 | F119: 16702 | G119: 23 | H119: 16708 | K119: 0 | L119: 2222
A120: 21 | B120: 16810 | C120: 21 | D120: 16816 | E120: 22 | F120: 16821 | G120: 23 | H120: 16827 | K120: 0 | L120: 2222
A121: 12 | B121: 16934 | C121: 14 | D121: 16939 | E121: 13 | F121: 16943 | G121: 14 | H121: 16947 | K121: 0 | L121: 1111
A122: 12 | B122: 17052 | C122: 14 | D122: 17056 | E122: 13 | F122: 17061 | G122: 14 | H122: 17066 | K122: 0 | L122: 1111
A123: 21 | B123: 17168 | C123: 21 | D123: 17176 | E123: 22 | F123: 17182 | G123: 23 | H123: 17189 | K123: 0 | L123: 2222
A124: 12 | B124: 17306 | C124: 14 | D124: 17310 | E124: 13 | F124: 17316 | G124: 14 | H124: 17321 | K124: 0 | L124: 1111
A125: 12 | B125: 17425 | C125: 14 | D125: 17430 | E125: 13 | F125: 17434 | G125: 14 | H125: 17439 | K125: 0 | L125: 1111
A126: 21 | B126: 17561 | C126: 21 | D126: 17571 | E126: 22 | F126: 17579 | G126: 23 | H126: 17586 | K126: 0 | L126: 2222
A127: 12 | B127: 17689 | C127: 14 | D127: 17694 | E127: 13 | F127: 17701 | G127: 14 | H127: 17712 | K127: 0 | L127: 1111
A128: 12 | B128: 17824 | C128: 14 | D128: 17829 | E128: 13 | F128: 17834 | G128: 14 | H128: 17838 | K128: 0 | L128: 1111
A129: 12 | B129: 17949 | C129: 14 | D129: 17954 | E129: 13 | F129: 17958 | G129: 14 | H129: 17963 | K129: 0 | L129: 1111
A130: 12 | B130: 18077 | C130: 14 | D130: 18083 | E130: 13 | F130: 18087 | G130: 14 | H130: 18092 | K130: 0 | L130: 1111
A131: 12 | B131: 18208 | C131: 14 | D131: 18215 | E131: 13 | F131: 18222 | G131: 14 | H131: 18228 | K131: 0 | L131: 1111
A132: 12 | B132: 18337 | C132: 14 | D132: 18343 | E132: 13 | F132: 18348 | G132: 14 | H132: 18357 | K132: 0 | L132: 1111
A133: 12 | B133: 18464 | C133: 14 | D133: 18469 | E133: 13 | F133: 18473 | G133: 14 | H133: 18478 | K133: 0 | L133: 1111
A134: 21 | B134: 18656 | C134: 21 | D134: 18663 | E134: 22 | F134: 18672 | G134: 23 | H134: 18682 | K134: 0 | L134: 2222
A135: 12 | B135: 18800 | C135: 14 | D135: 18804 | E135: 13 | F135: 18810 | G135: 14 | H135: 18814 | K135: 0 | L135: 1111
A136: 12 | B136: 18963 | C136: 14 | D136: 18969 | E136: 13 | F136: 18974 | G136: 14 | H136: 18978 | K136: 0 | L136: 1111
A137: 21 | B137: 19110 | C137: 21 | D137: 19117 | E137: 22 | F137: 19122 | G137: 23 | H137: 19130 | K137: 0 | L137: 2222
A138: 12 | B138: 19248 | C138: 23 | D138: 19268 | E138: 24 | F138: 19272 | G138: 23 | H138: 19278 | K138: 0 | L138: 1222
A139: 12 | B139: 19388 | C139: 14 | D139: 19394 | E139: 13 | F139: 19398 | G139: 14 | H139: 19402 | K139: 0 | L139: 1111
A140: 12 | B140: 19610 | C140: 14 | D140: 19615 | E140: 13 | F140: 19620 | G140: 14 | H140: 19626 | K140: 0 | L140: 1111
A141: 12 | B141: 19747 | C141: 14 | D141: 19751 | E141: 13 | F141: 19755 | G141: 14 | H141: 19761 | K141: 0 | L141: 1111
A142: 21 | B142: 19873 | C142: 21 | D142: 19880 | E142: 22 | F142: 19886 | G142: 23 | H142: 19892 | K142: 0 | L142: 2222
A143: 12 | B143: 19998 | C143: 14 | D143: 20003 | E143: 13 | F143: 20007 | G143: 14 | H143: 20012 | K143: 0 | L143: 1111
A144: 12 | B144: 20149 | C144: 14 | D144: 20154 | E144: 13 | F144: 20159 | G144: 14 | H144: 20167 | K144: 0 | L144: 1111
A145: 12 | B145: 20282 | C145: 14 | D145: 20291 | E145: 13 | F145: 20294 | G145: 14 | H145: 20301 | K145: 0 | L145: 1111
A146: 12 | B146: 20438 | C146: 14 | D146: 20442 | E146: 13 | F146: 20447 | G146: 14 | H146: 20452 | K146: 0 | L146: 1111
A147: 12 | B147: 20627 | C147: 14 | D147: 20631 | E147: 13 | F147: 20636 | G147: 14 | H147: 20642 | K147: 0 | L147: 1111
A148: 12 | B148: 20958 | C148: 14 | D148: 20965 | E148: 13 | F148: 20972 | G148: 14 | H148: 20980 | K148: 0 | L148: 1111
A149: 12 | B149: 21102 | C149: 14 | D149: 21107 | E149: 13 | F149: 21111 | G149: 14 | H149: 21116 | K149: 0 | L149: 1111
A150: 21 | B150: 21283 | C150: 21 | D150: 21290 | E150: 22 | F150: 21296 | G150: 23 | H150: 21301 | K150: 0 | L150: 2222
A151: 12 | B151: 21442 | C151: 14 | D151: 21448 | E151: 13 | F151: 21452 | G151: 14 | H151: 21459 | K151: 0 | L151: 1111
A152: 12 | B152: 21590 | C152: 14 | D152: 21594 | E152: 13 | F152: 21601 | G152: 14 | H152: 21608 | K152: 0 | L152: 1111
A153: 12 | B153: 21714 | C153: 14 | D153: 21720 | E153: 13 | F153: 21724 | G153: 14 | H153: 21730 | K153: 0 | L153: 1111
A154: 12 | B154: 21964 | C154: 14 | D154: 21969 | E154: 13 | F154: 21973 | G154: 14 | H154: 21980 | K154: 0 | L154: 1111
A155: 12 | B155: 22100 | C155: 14 | D155: 22105 | E155: 13 | F155: 22112 | G155: 14 | H155: 22127 | K155: 0 | L155: 1111
A156: 12 | B156: 22236 | C156: 14 | D156: 22241 | E156: 13 | F156: 22245 | G156: 14 | H156: 22249 | K156: 0 | L156: 1111
A157: 12 | B157: 22364 | C157: 14 | D157: 22369 | E157: 13 | F157: 22373 | G157: 14 | H157: 22384 | K157: 0 | L157: 1111
A158: 12 | B158: 22555 | C158: 14 | D158: 22560 | E158: 13 | F158: 22566 | G158: 14 | H158: 22571 | K158: 0 | L158: 1111
A159: 12 | B159: 22702 | C159: 14 | D159: 22707 | E159: 13 | F159: 22712 | G159: 14 | H159: 22716 | K159: 0 | L159: 1111
A160: 12 | B160: 23885 | C160: 14 | D160: 23890 | E160: 13 | F160: 23898 | G160: 14 | H160: 23913 | L160: 1111

Sheet !MB11720.091
A1: Report for:!MB11720.091
A2: Date: | B2: <date>
A3: Hen: | B3: <hen> | F3: Correct Sequence | G3: =Start!J2 -> 2212 | P3: Total Sequences in Data | Q3: =4994-COUNTBLANK(L7:L5000) -> 139 | V3: Total Sequences in Block Data | W3: =COUNTA(L7:L29) -> 23 | AA3: Total Sequences in Block Data | AB3: =COUNTA(L30:L52) -> 23 | AF3: Total Sequences in Block Data | AG3: =COUNTA(L53:L76) -> 24 | AK3: Total Sequences in Block Data | AL3: =COUNTA(L77:L99) -> 23 | AP3: Total Sequences in Block Data | AQ3: =COUNTA(L100:L122) -> 23 | AU3: Total Sequences in Block Data | AV3: =COUNTA(L123:L145) -> 23
P4: Total Sequences in Summary | Q4: =SUM(O7:O22) -> 139 | V4: Total Sequences in Block Summary | W4: =SUM(U7:U22) -> 23 | AA4: Total Sequences in Block Summary | AB4: =SUM(Z7:Z22) -> 23 | AF4: Total Sequences in Block Summary | AG4: =SUM(AE7:AE22) -> 24 | AK4: Total Sequences in Block Summary | AL4: =SUM(AJ7:AJ22) -> 23 | AP4: Total Sequences in Block Summary | AQ4: =SUM(AO7:AO22) -> 23 | AU4: Total Sequences in Block Summary | AV4: =SUM(AT7:AT22) -> 23
T5: Block 1 | Y5: Block 2 | AD5: Block 3 | AI5: Block 4 | AN5: Block 5 | AS5: Block 6
A6: Sequence Component 1 | B6: Time 1 | C6: Sequence Component 2 | D6: Time 2 | E6: Sequence Component 3 | F6: Time 3 | G6: Sequence Component 4 | H6: Time 4 | I6: Sequence Component 5 | J6: Time 5 | K6: Correct? 0=No 1=Yes | L6: Sequence | N6: Frequency | P6: Relative Frequency | Q6: Variability | T6: Frequency | V6: Relative Frequency | W6: Variability | Y6: Frequency | AA6: Relative Frequency | AB6: Variability | AD6: Frequency | AF6: Relative Frequency | AG6: Variability | AI6: Frequency | AK6: Relative Frequency | AL6: Variability | AN6: Frequency | AP6: Relative Frequency | AQ6: Variability | AS6: Frequency | AU6: Relative Frequency | AV6: Variability
A7: 21 | B7: 8 | C7: 12 | D7: 23 | E7: 13 | F7: 32 | G7: 14 | H7: 40 | K7: 0 | L7: 2111 | N7: 1111 | O7: =COUNTIF($L$7:$L$500,N7) -> 114 | P7: =O7/$Q$4 -> 0.8201438849 | Q7: =IF(P7=0,0,(P7*((LOG(P7))/LOG(2)))) -> -0.2346030264 | T7: =N7 -> 1111 | U7: =COUNTIF(L7:L29,T7) -> 17 | V7: =U7/(W4-U20) -> 0.7391304348 | W7: =IF(V7=0,0,(V7*((LOG(V7))/LOG(2)))) -> -0.3223341283 | Y7: =N7 -> 1111 | Z7: =COUNTIF(L30:L52,Y7) -> 17 | AA7: =Z7/(AB4-Z20) -> 0.7391304348 | AB7: =IF(AA7=0,0,(AA7*((LOG(AA7))/LOG(2)))) -> -0.3223341283 | AD7: =N7 -> 1111 | AE7: =COUNTIF(L53:L76,AD7) -> 21 | AF7: =AE7/(AG4-AE20) -> 0.875 | AG7: =IF(AF7=0,0,(AF7*((LOG(AF7))/LOG(2)))) -> -0.1685644432 | AI7: =N7 -> 1111 | AJ7: =COUNTIF(L77:L99,AI7) -> 19 | AK7: =AJ7/(AL4-AJ20) -> 0.8260869565 | AL7: =IF(AK7=0,0,(AK7*((LOG(AK7))/LOG(2)))) -> -0.2276980178 | AN7: =N7 -> 1111 | AO7: =COUNTIF(L100:L122,AN7) -> 19 | AP7: =AO7/(AQ4-AO20) -> 0.8260869565 | AQ7: =IF(AP7=0,0,(AP7*((LOG(AP7))/LOG(2)))) -> -0.2276980178 | AS7: =N7 -> 1111 | AT7: =COUNTIF(L123:L145,AS7) -> 21 | AU7: =AT7/(AV4-AT20) -> 0.9130434783 | AV7: =IF(AU7=0,0,(AU7*((LOG(AU7))/LOG(2)))) -> -0.1198319652
A8: 12 | B8: 149 | C8: 14 | D8: 153 | E8: 13 | F8: 158 | G8: 14 | H8: 162 | K8: 0 | L8: 1111 | N8: 1112 | O8: =COUNTIF($L$7:$L$500,N8) -> 0 | P8: =O8/$Q$4 -> 0 | Q8: =IF(P8=0,0,(P8*((LOG(P8))/LOG(2)))) -> 0 | T8: =N8 -> 1112 | U8: =COUNTIF(L7:L29,T8) -> 0 | V8: =U8/(W4-U20) -> 0 | W8: =IF(V8=0,0,(V8*((LOG(V8))/LOG(2)))) -> 0 | Y8: =N8 -> 1112 | Z8: =COUNTIF(L30:L52,Y8) -> 0 | AA8: =Z8/(AB4-Z20) -> 0 | AB8: =IF(AA8=0,0,(AA8*((LOG(AA8))/LOG(2)))) -> 0 | AD8: =N8 -> 1112 | AE8: =COUNTIF(L53:L76,AD8) -> 0 | AF8: =AE8/(AG4-AE20) -> 0 | AG8: =IF(AF8=0,0,(AF8*((LOG(AF8))/LOG(2)))) -> 0 | AI8: =N8 -> 1112 | AJ8: =COUNTIF(L77:L99,AI8) -> 0 | AK8: =AJ8/(AL4-AJ20) -> 0 | AL8: =IF(AK8=0,0,(AK8*((LOG(AK8))/LOG(2)))) -> 0 | AN8: =N8 -> 1112 | AO8: =COUNTIF(L100:L122,AN8) -> 0 | AP8: =AO8/(AQ4-AO20) -> 0 | AQ8: =IF(AP8=0,0,(AP8*((LOG(AP8))/LOG(2)))) -> 0 | AS8: =N8 -> 1112 | AT8: =COUNTIF(L123:L145,AS8) -> 0 | AU8: =AT8/(AV4-AT20) -> 0 | AV8: =IF(AU8=0,0,(AU8*((LOG(AU8))/LOG(2)))) -> 0
A9: 12 | B9: 271 | C9: 14 | D9: 277 | E9: 13 | F9: 282 | G9: 14 | H9: 288 | K9: 0 | L9: 1111 | N9: 1121 | O9: =COUNTIF($L$7:$L$500,N9) -> 0 | P9: =O9/$Q$4 -> 0 | Q9: =IF(P9=0,0,(P9*((LOG(P9))/LOG(2)))) -> 0 | T9: =N9 -> 1121 | U9: =COUNTIF(L7:L29,T9) -> 0 | V9: =U9/(W4-U20) -> 0 | W9: =IF(V9=0,0,(V9*((LOG(V9))/LOG(2)))) -> 0 | Y9: =N9 -> 1121 | Z9: =COUNTIF(L30:L52,Y9) -> 0 | AA9: =Z9/(AB4-Z20) -> 0 | AB9: =IF(AA9=0,0,(AA9*((LOG(AA9))/LOG(2)))) -> 0 | AD9: =N9 -> 1121 | AE9: =COUNTIF(L53:L76,AD9) -> 0 | AF9: =AE9/(AG4-AE20) -> 0 | AG9: =IF(AF9=0,0,(AF9*((LOG(AF9))/LOG(2)))) -> 0 | AI9: =N9 -> 1121 | AJ9: =COUNTIF(L77:L99,AI9) -> 0 | AK9: =AJ9/(AL4-AJ20) -> 0 | AL9: =IF(AK9=0,0,(AK9*((LOG(AK9))/LOG(2)))) -> 0 | AN9: =N9 -> 1121 | AO9: =COUNTIF(L100:L122,AN9) -> 0 | AP9: =AO9/(AQ4-AO20) -> 0 | AQ9: =IF(AP9=0,0,(AP9*((LOG(AP9))/LOG(2)))) -> 0 | AS9: =N9 -> 1121 | AT9: =COUNTIF(L123:L145,AS9) -> 0 | AU9: =AT9/(AV4-AT20) -> 0 | AV9: =IF(AU9=0,0,(AU9*((LOG(AU9))/LOG(2)))) -> 0
A10: 12 | B10: 392 | C10: 14 | D10: 397 | E10: 13 | F10: 402 | G10: 14 | H10: 410 | K10: 0 | L10: 1111 | N10: 1122 | O10: =COUNTIF($L$7:$L$500,N10) -> 1 | P10: =O10/$Q$4 -> 0.007194244604 | Q10: =IF(P10=0,0,(P10*((LOG(P10))/LOG(2)))) -> -0.0512154034 | T10: =N10 -> 1122 | U10: =COUNTIF(L7:L29,T10) -> 1 | V10: =U10/(W4-U20) -> 0.04347826087 | W10: =IF(V10=0,0,(V10*((LOG(V10))/LOG(2)))) -> -0.1966766068 | Y10: =N10 -> 1122 | Z10: =COUNTIF(L30:L52,Y10) -> 0 | AA10: =Z10/(AB4-Z20) -> 0 | AB10: =IF(AA10=0,0,(AA10*((LOG(AA10))/LOG(2)))) -> 0 | AD10: =N10 -> 1122 | AE10: =COUNTIF(L53:L76,AD10) -> 0 | AF10: =AE10/(AG4-AE20) -> 0 | AG10: =IF(AF10=0,0,(AF10*((LOG(AF10))/LOG(2)))) -> 0 | AI10: =N10 -> 1122 | AJ10: =COUNTIF(L77:L99,AI10) -> 0 | AK10: =AJ10/(AL4-AJ20) -> 0 | AL10: =IF(AK10=0,0,(AK10*((LOG(AK10))/LOG(2)))) -> 0 | AN10: =N10 -> 1122 | AO10: =COUNTIF(L100:L122,AN10) -> 0 | AP10: =AO10/(AQ4-AO20) -> 0 | AQ10: =IF(AP10=0,0,(AP10*((LOG(AP10))/LOG(2)))) -> 0 | AS10: =N10 -> 1122 | AT10: =COUNTIF(L123:L145,AS10) -> 0 | AU10: =AT10/(AV4-AT20) -> 0 | AV10: =IF(AU10=0,0,(AU10*((LOG(AU10))/LOG(2)))) -> 0
A11: 12 | B11: 511 | C11: 14 | D11: 517 | E11: 13 | F11: 525 | G11: 14 | H11: 534 | K11: 0 | L11: 1111 | N11: 1211 | O11: =COUNTIF($L$7:$L$500,N11) -> 1 | P11: =O11/$Q$4 -> 0.007194244604 | Q11: =IF(P11=0,0,(P11*((LOG(P11))/LOG(2)))) -> -0.0512154034 | T11: =N11 -> 1211 | U11: =COUNTIF(L7:L29,T11) -> 0 | V11: =U11/(W4-U20) -> 0 | W11: =IF(V11=0,0,(V11*((LOG(V11))/LOG(2)))) -> 0 | Y11: =N11 -> 1211 | Z11: =COUNTIF(L30:L52,Y11) -> 0 | AA11: =Z11/(AB4-Z20) -> 0 | AB11: =IF(AA11=0,0,(AA11*((LOG(AA11))/LOG(2)))) -> 0 | AD11: =N11 -> 1211 | AE11: =COUNTIF(L53:L76,AD11) -> 0 | AF11: =AE11/(AG4-AE20) -> 0 | AG11: =IF(AF11=0,0,(AF11*((LOG(AF11))/LOG(2)))) -> 0 | AI11: =N11 -> 1211 | AJ11: =COUNTIF(L77:L99,AI11) -> 0 | AK11: =AJ11/(AL4-AJ20) -> 0 | AL11: =IF(AK11=0,0,(AK11*((LOG(AK11))/LOG(2)))) -> 0 | AN11: =N11 -> 1211 | AO11: =COUNTIF(L100:L122,AN11) -> 1 | AP11: =AO11/(AQ4-AO20) -> 0.04347826087 | AQ11: =IF(AP11=0,0,(AP11*((LOG(AP11))/LOG(2)))) -> -0.1966766068 | AS11: =N11 -> 1211 | AT11: =COUNTIF(L123:L145,AS11) -> 0 | AU11: =AT11/(AV4-AT20) -> 0 | AV11: =IF(AU11=0,0,(AU11*((LOG(AU11))/LOG(2)))) -> 0
A12: 12 | B12: 639 | C12: 14 | D12: 644 | E12: 13 | F12: 649 | G12: 14 | H12: 654 | K12: 0 | L12: 1111 | N12: 1212 | O12: =COUNTIF($L$7:$L$500,N12) -> 0 | P12: =O12/$Q$4 -> 0 | Q12: =IF(P12=0,0,(P12*((LOG(P12))/LOG(2)))) -> 0 | T12: =N12 -> 1212 | U12: =COUNTIF(L7:L29,T12) -> 0 | V12: =U12/(W4-U20) -> 0 | W12: =IF(V12=0,0,(V12*((LOG(V12))/LOG(2)))) -> 0 | Y12: =N12 -> 1212 | Z12: =COUNTIF(L30:L52,Y12) -> 0 | AA12: =Z12/(AB4-Z20) -> 0 | AB12: =IF(AA12=0,0,(AA12*((LOG(AA12))/LOG(2)))) -> 0 | AD12: =N12 -> 1212 | AE12: =COUNTIF(L53:L76,AD12) -> 0 | AF12: =AE12/(AG4-AE20) -> 0 | AG12: =IF(AF12=0,0,(AF12*((LOG(AF12))/LOG(2)))) -> 0 | AI12: =N12 -> 1212 | AJ12: =COUNTIF(L77:L99,AI12) -> 0 | AK12: =AJ12/(AL4-AJ20) -> 0 | AL12: =IF(AK12=0,0,(AK12*((LOG(AK12))/LOG(2)))) -> 0 | AN12: =N12 -> 1212 | AO12: =COUNTIF(L100:L122,AN12) -> 0 | AP12: =AO12/(AQ4-AO20) -> 0 | AQ12: =IF(AP12=0,0,(AP12*((LOG(AP12))/LOG(2)))) -> 0 | AS12: =N12 -> 1212 | AT12: =COUNTIF(L123:L145,AS12) -> 0 | AU12: =AT12/(AV4-AT20) -> 0 | AV12: =IF(AU12=0,0,(AU12*((LOG(AU12))/LOG(2)))) -> 0
A13: 12 | B13: 765 | C13: 14 | D13: 769 | E13: 13 | F13: 775 | G13: 14 | H13: 780 | K13: 0 | L13: 1111 | N13: 1221 | O13: =COUNTIF($L$7:$L$500,N13) -> 1 | P13: =O13/$Q$4 -> 0.007194244604 | Q13: =IF(P13=0,0,(P13*((LOG(P13))/LOG(2)))) -> -0.0512154034 | T13: =N13 -> 1221 | U13: =COUNTIF(L7:L29,T13) -> 0 | V13: =U13/(W4-U20) -> 0 | W13: =IF(V13=0,0,(V13*((LOG(V13))/LOG(2)))) -> 0 | Y13: =N13 -> 1221 | Z13: =COUNTIF(L30:L52,Y13) -> 0 | AA13: =Z13/(AB4-Z20) -> 0 | AB13: =IF(AA13=0,0,(AA13*((LOG(AA13))/LOG(2)))) -> 0 | AD13: =N13 -> 1221 | AE13: =COUNTIF(L53:L76,AD13) -> 0 | AF13: =AE13/(AG4-AE20) -> 0 | AG13: =IF(AF13=0,0,(AF13*((LOG(AF13))/LOG(2)))) -> 0 | AI13: =N13 -> 1221 | AJ13: =COUNTIF(L77:L99,AI13) -> 0 | AK13: =AJ13/(AL4-AJ20) -> 0 | AL13: =IF(AK13=0,0,(AK13*((LOG(AK13))/LOG(2)))) -> 0 | AN13: =N13 -> 1221 | AO13: =COUNTIF(L100:L122,AN13) -> 1 | AP13: =AO13/(AQ4-AO20) -> 0.04347826087 | AQ13: =IF(AP13=0,0,(AP13*((LOG(AP13))/LOG(2)))) -> -0.1966766068 | AS13: =N13 -> 1221 | AT13: =COUNTIF(L123:L145,AS13) -> 0 | AU13: =AT13/(AV4-AT20) -> 0 | AV13: =IF(AU13=0,0,(AU13*((LOG(AU13))/LOG(2)))) -> 0
A14: 12 | B14: 895 | C14: 14 | D14: 902 | E14: 13 | F14: 905 | G14: 14 | H14: 914 | K14: 0 | L14: 1111 | N14: 1222 | O14: =COUNTIF($L$7:$L$500,N14) -> 3 | P14: =O14/$Q$4 -> 0.02158273381 | Q14: =IF(P14=0,0,(P14*((LOG(P14))/LOG(2)))) -> -0.1194383864 | T14: =N14 -> 1222 | U14: =COUNTIF(L7:L29,T14) -> 1 | V14: =U14/(W4-U20) -> 0.04347826087 | W14: =IF(V14=0,0,(V14*((LOG(V14))/LOG(2)))) -> -0.1966766068 | Y14: =N14 -> 1222 | Z14: =COUNTIF(L30:L52,Y14) -> 0 | AA14: =Z14/(AB4-Z20) -> 0 | AB14: =IF(AA14=0,0,(AA14*((LOG(AA14))/LOG(2)))) -> 0 | AD14: =N14 -> 1222 | AE14: =COUNTIF(L53:L76,AD14) -> 1 | AF14: =AE14/(AG4-AE20) -> 0.04166666667 | AG14: =IF(AF14=0,0,(AF14*((LOG(AF14))/LOG(2)))) -> -0.1910401042 | AI14: =N14 -> 1222 | AJ14: =COUNTIF(L77:L99,AI14) -> 1 | AK14: =AJ14/(AL4-AJ20) -> 0.04347826087 | AL14: =IF(AK14=0,0,(AK14*((LOG(AK14))/LOG(2)))) -> -0.1966766068 | AN14: =N14 -> 1222 | AO14: =COUNTIF(L100:L122,AN14) -> 0 | AP14: =AO14/(AQ4-AO20) -> 0 | AQ14: =IF(AP14=0,0,(AP14*((LOG(AP14))/LOG(2)))) -> 0 | AS14: =N14 -> 1222 | AT14: =COUNTIF(L123:L145,AS14) -> 0 | AU14: =AT14/(AV4-AT20) -> 0 | AV14: =IF(AU14=0,0,(AU14*((LOG(AU14))/LOG(2)))) -> 0
A15: 12 | B15: 1018 | C15: 14 | D15: 1026 | E15: 24 | F15: 1046 | G15: 23 | H15: 1052 | K15: 0 | L15: 1122 | N15: 2111 | O15: =COUNTIF($L$7:$L$500,N15) -> 1 | P15: =O15/$Q$4 -> 0.007194244604 | Q15: =IF(P15=0,0,(P15*((LOG(P15))/LOG(2)))) -> -0.0512154034 | T15: =N15 -> 2111 | U15: =COUNTIF(L7:L29,T15) -> 1 | V15: =U15/(W4-U20) -> 0.04347826087 | W15: =IF(V15=0,0,(V15*((LOG(V15))/LOG(2)))) -> -0.1966766068 | Y15: =N15 -> 2111 | Z15: =COUNTIF(L30:L52,Y15) -> 0 | AA15: =Z15/(AB4-Z20) -> 0 | AB15: =IF(AA15=0,0,(AA15*((LOG(AA15))/LOG(2)))) -> 0 | AD15: =N15 -> 2111 | AE15: =COUNTIF(L53:L76,AD15) -> 0 | AF15: =AE15/(AG4-AE20) -> 0 | AG15: =IF(AF15=0,0,(AF15*((LOG(AF15))/LOG(2)))) -> 0 | AI15: =N15 -> 2111 | AJ15: =COUNTIF(L77:L99,AI15) -> 0 | AK15: =AJ15/(AL4-AJ20) -> 0 | AL15: =IF(AK15=0,0,(AK15*((LOG(AK15))/LOG(2)))) -> 0 | AN15: =N15 -> 2111 | AO15: =COUNTIF(L100:L122,AN15) -> 0 | AP15: =AO15/(AQ4-AO20) -> 0 | AQ15: =IF(AP15=0,0,(AP15*((LOG(AP15))/LOG(2)))) -> 0 | AS15: =N15 -> 2111 | AT15: =COUNTIF(L123:L145,AS15) -> 0 | AU15: =AT15/(AV4-AT20) -> 0 | AV15: =IF(AU15=0,0,(AU15*((LOG(AU15))/LOG(2)))) -> 0
A16: 21 | B16: 1160 | C16: 21 | D16: 1165 | E16: 11 | F16: 1178 | G16: 12 | H16: 1182 | K16: 0 | L16: 2211 | N16: 2112 | O16: =COUNTIF($L$7:$L$500,N16) -> 0 | P16: =O16/$Q$4 -> 0 | Q16: =IF(P16=0,0,(P16*((LOG(P16))/LOG(2)))) -> 0 | T16: =N16 -> 2112 | U16: =COUNTIF(L7:L29,T16) -> 0 | V16: =U16/(W4-U20) -> 0 | W16: =IF(V16=0,0,(V16*((LOG(V16))/LOG(2)))) -> 0 | Y16: =N16 -> 2112 | Z16: =COUNTIF(L30:L52,Y16) -> 0 | AA16: =Z16/(AB4-Z20) -> 0 | AB16: =IF(AA16=0,0,(AA16*((LOG(AA16))/LOG(2)))) -> 0 | AD16: =N16 -> 2112 | AE16: =COUNTIF(L53:L76,AD16) -> 0 | AF16: =AE16/(AG4-AE20) -> 0 | AG16: =IF(AF16=0,0,(AF16*((LOG(AF16))/LOG(2)))) -> 0 | AI16: =N16 -> 2112 | AJ16: =COUNTIF(L77:L99,AI16) -> 0 | AK16: =AJ16/(AL4-AJ20) -> 0 | AL16: =IF(AK16=0,0,(AK16*((LOG(AK16))/LOG(2)))) -> 0 | AN16: =N16 -> 2112 | AO16: =COUNTIF(L100:L122,AN16) -> 0 | AP16: =AO16/(AQ4-AO20) -> 0 | AQ16: =IF(AP16=0,0,(AP16*((LOG(AP16))/LOG(2)))) -> 0 | AS16: =N16 -> 2112 | AT16: =COUNTIF(L123:L145,AS16) -> 0 | AU16: =AT16/(AV4-AT20) -> 0 | AV16: =IF(AU16=0,0,(AU16*((LOG(AU16))/LOG(2)))) -> 0
A17: 12 | B17: 1275 | C17: 14 | D17: 1284 | E17: 13 | F17: 1292 | G17: 14 | H17: 1300 | K17: 0 | L17: 1111 | N17: 2121 | O17: =COUNTIF($L$7:$L$500,N17) -> 0 | P17: =O17/$Q$4 -> 0 | Q17: =IF(P17=0,0,(P17*((LOG(P17))/LOG(2)))) -> 0 | T17: =N17 -> 2121 | U17: =COUNTIF(L7:L29,T17) -> 0 | V17: =U17/(W4-U20) -> 0 | W17: =IF(V17=0,0,(V17*((LOG(V17))/LOG(2)))) -> 0 | Y17: =N17 -> 2121 | Z17: =COUNTIF(L30:L52,Y17) -> 0 | AA17: =Z17/(AB4-Z20) -> 0 | AB17: =IF(AA17=0,0,(AA17*((LOG(AA17))/LOG(2)))) -> 0 | AD17: =N17 -> 2121 | AE17: =COUNTIF(L53:L76,AD17) -> 0 | AF17: =AE17/(AG4-AE20) -> 0 | AG17: =IF(AF17=0,0,(AF17*((LOG(AF17))/LOG(2)))) -> 0 | AI17: =N17 -> 2121 | AJ17: =COUNTIF(L77:L99,AI17) -> 0 | AK17: =AJ17/(AL4-AJ20) -> 0 | AL17: =IF(AK17=0,0,(AK17*((LOG(AK17))/LOG(2)))) -> 0 | AN17: =N17 -> 2121 | AO17: =COUNTIF(L100:L122,AN17) -> 0 | AP17: =AO17/(AQ4-AO20) -> 0 | AQ17: =IF(AP17=0,0,(AP17*((LOG(AP17))/LOG(2)))) -> 0 | AS17: =N17 -> 2121 | AT17: =COUNTIF(L123:L145,AS17) -> 0 | AU17: =AT17/(AV4-AT20) -> 0 | AV17: =IF(AU17=0,0,(AU17*((LOG(AU17))/LOG(2)))) -> 0
A18: 21 | B18: 1410 | C18: 21 | D18: 1415 | E18: 22 | F18: 1422 | G18: 23 | H18: 1432 | K18: 0 | L18: 2222 | N18: 2122 | O18: =COUNTIF($L$7:$L$500,N18) -> 0 | P18: =O18/$Q$4 -> 0 | Q18: =IF(P18=0,0,(P18*((LOG(P18))/LOG(2)))) -> 0 | T18: =N18 -> 2122 | U18: =COUNTIF(L7:L29,T18) -> 0 | V18: =U18/(W4-U20) -> 0 | W18: =IF(V18=0,0,(V18*((LOG(V18))/LOG(2)))) -> 0 | Y18: =N18 -> 2122 | Z18: =COUNTIF(L30:L52,Y18) -> 0 | AA18: =Z18/(AB4-Z20) -> 0 | AB18: =IF(AA18=0,0,(AA18*((LOG(AA18))/LOG(2)))) -> 0 | AD18: =N18 -> 2122 | AE18: =COUNTIF(L53:L76,AD18) -> 0 | AF18: =AE18/(AG4-AE20) -> 0 | AG18: =IF(AF18=0,0,(AF18*((LOG(AF18))/LOG(2)))) -> 0 | AI18: =N18 -> 2122 | AJ18: =COUNTIF(L77:L99,AI18) -> 0 | AK18: =AJ18/(AL4-AJ20) -> 0 | AL18: =IF(AK18=0,0,(AK18*((LOG(AK18))/LOG(2)))) -> 0 | AN18: =N18 -> 2122 | AO18: =COUNTIF(L100:L122,AN18) -> 0 | AP18: =AO18/(AQ4-AO20) -> 0 | AQ18: =IF(AP18=0,0,(AP18*((LOG(AP18))/LOG(2)))) -> 0 | AS18: =N18 -> 2122 | AT18: =COUNTIF(L123:L145,AS18) -> 0 | AU18: =AT18/(AV4-AT20) -> 0 | AV18: =IF(AU18=0,0,(AU18*((LOG(AU18))/LOG(2)))) -> 0
A19: 12 | B19: 1535 | C19: 14 | D19: 1543 | E19: 13 | F19: 1549 | G19: 14 | H19: 1557 | K19: 0 | L19: 1111 | N19: 2211 | O19: =COUNTIF($L$7:$L$500,N19) -> 3 | P19: =O19/$Q$4 -> 0.02158273381 | Q19: =IF(P19=0,0,(P19*((LOG(P19))/LOG(2)))) -> -0.1194383864 | T19: =N19 -> 2211 | U19: =COUNTIF(L7:L29,T19) -> 1 | V19: =U19/(W4-U20) -> 0.04347826087 | W19: =IF(V19=0,0,(V19*((LOG(V19))/LOG(2)))) -> -0.1966766068 | Y19: =N19 -> 2211 | Z19: =COUNTIF(L30:L52,Y19) -> 0 | AA19: =Z19/(AB4-Z20) -> 0 | AB19: =IF(AA19=0,0,(AA19*((LOG(AA19))/LOG(2)))) -> 0 | AD19: =N19 -> 2211 | AE19: =COUNTIF(L53:L76,AD19) -> 0 | AF19: =AE19/(AG4-AE20) -> 0 | AG19: =IF(AF19=0,0,(AF19*((LOG(AF19))/LOG(2)))) -> 0 | AI19: =N19 -> 2211 | AJ19: =COUNTIF(L77:L99,AI19) -> 0 | AK19: =AJ19/(AL4-AJ20) -> 0 | AL19: =IF(AK19=0,0,(AK19*((LOG(AK19))/LOG(2)))) -> 0 | AN19: =N19 -> 2211 | AO19: =COUNTIF(L100:L122,AN19) -> 1 | AP19: =AO19/(AQ4-AO20) -> 0.04347826087 | AQ19: =IF(AP19=0,0,(AP19*((LOG(AP19))/LOG(2)))) -> -0.1966766068 | AS19: =N19 -> 2211 | AT19: =COUNTIF(L123:L145,AS19) -> 1 | AU19: =AT19/(AV4-AT20) -> 0.04347826087 | AV19: =IF(AU19=0,0,(AU19*((LOG(AU19))/LOG(2)))) -> -0.1966766068
A20: 12 | B20: 1654 | C20: 14 | D20: 1660 | E20: 13 | F20: 1665 | G20: 14 | H20: 1670 | K20: 0 | L20: 1111 | N20: 2212 | O20: =COUNTIF($L$7:$L$500,N20) -> 0 | P20: =O20/$Q$4 -> 0 | Q20: =IF(P20=0,0,(P20*((LOG(P20))/LOG(2)))) -> 0 | T20: =N20 -> 2212 | U20: =COUNTIF(L7:L29,T20) -> 0 | Y20: =N20 -> 2212 | Z20: =COUNTIF(L30:L52,Y20) -> 0 | AD20: =N20 -> 2212 | AE20: =COUNTIF(L53:L76,AD20) -> 0 | AI20: =N20 -> 2212 | AJ20: =COUNTIF(L77:L99,AI20) -> 0 | AN20: =N20 -> 2212 | AO20: =COUNTIF(L100:L122,AN20) -> 0 | AS20: =N20 -> 2212 | AT20: =COUNTIF(L123:L145,AS20) -> 0
A21: 12 | B21: 1778 | C21: 14 | D21: 1785 | E21: 13 | F21: 1790 | G21: 14 | H21: 1795 | K21: 0 | L21: 1111 | N21: 2221 | O21: =COUNTIF($L$7:$L$500,N21) -> 3 | P21: =O21/$Q$4 -> 0.02158273381 | Q21: =IF(P21=0,0,(P21*((LOG(P21))/LOG(2)))) -> -0.1194383864 | T21: =N21 -> 2221 | U21: =COUNTIF(L7:L29,T21) -> 0 | V21: =U21/(W4-U20) -> 0 | W21: =IF(V21=0,0,(V21*((LOG(V21))/LOG(2)))) -> 0 | Y21: =N21 -> 2221 | Z21: =COUNTIF(L30:L52,Y21) -> 3 | AA21: =Z21/(AB4-Z20) -> 0.1304347826 | AB21: =IF(AA21=0,0,(AA21*((LOG(AA21))/LOG(2)))) -> -0.3832955811 | AD21: =N21 -> 2221 | AE21: =COUNTIF(L53:L76,AD21) -> 0 | AF21: =AE21/(AG4-AE20) -> 0 | AG21: =IF(AF21=0,0,(AF21*((LOG(AF21))/LOG(2)))) -> 0 | AI21: =N21 -> 2221 | AJ21: =COUNTIF(L77:L99,AI21) -> 0 | AK21: =AJ21/(AL4-AJ20) -> 0 | AL21: =IF(AK21=0,0,(AK21*((LOG(AK21))/LOG(2)))) -> 0 | AN21: =N21 -> 2221 | AO21: =COUNTIF(L100:L122,AN21) -> 0 | AP21: =AO21/(AQ4-AO20) -> 0 | AQ21: =IF(AP21=0,0,(AP21*((LOG(AP21))/LOG(2)))) -> 0 | AS21: =N21 -> 2221 | AT21: =COUNTIF(L123:L145,AS21) -> 0 | AU21: =AT21/(AV4-AT20) -> 0 | AV21: =IF(AU21=0,0,(AU21*((LOG(AU21))/LOG(2)))) -> 0
A22: 12 | B22: 1932 | C22: 14 | D22: 1937 | E22: 13 | F22: 1942 | G22: 14 | H22: 1947 | K22: 0 | L22: 1111 | N22: 2222 | O22: =COUNTIF($L$7:$L$500,N22) -> 12 | P22: =O22/$Q$4 -> 0.08633093525 | Q22: =IF(P22=0,0,(P22*((LOG(P22))/LOG(2)))) -> -0.3050916753 | T22: =N22 -> 2222 | U22: =COUNTIF(L7:L29,T22) -> 2 | V22: =U22/(W4-U20) -> 0.08695652174 | W22: =IF(V22=0,0,(V22*((LOG(V22))/LOG(2)))) -> -0.3063966918 | Y22: =N22 -> 2222 | Z22: =COUNTIF(L30:L52,Y22) -> 3 | AA22: =Z22/(AB4-Z20) -> 0.1304347826 | AB22: =IF(AA22=0,0,(AA22*((LOG(AA22))/LOG(2)))) -> -0.3832955811 | AD22: =N22 -> 2222 | AE22: =COUNTIF(L53:L76,AD22) -> 2 | AF22: =AE22/(AG4-AE20) -> 0.08333333333 | AG22: =IF(AF22=0,0,(AF22*((LOG(AF22))/LOG(2)))) -> -0.2987468751 | AI22: =N22 -> 2222 | AJ22: =COUNTIF(L77:L99,AI22) -> 3 | AK22: =AJ22/(AL4-AJ20) -> 0.1304347826 | AL22: =IF(AK22=0,0,(AK22*((LOG(AK22))/LOG(2)))) -> -0.3832955811 | AN22: =N22 -> 2222 | AO22: =COUNTIF(L100:L122,AN22) -> 1 | AP22: =AO22/(AQ4-AO20) -> 0.04347826087 | AQ22: =IF(AP22=0,0,(AP22*((LOG(AP22))/LOG(2)))) -> -0.1966766068 | AS22: =N22 -> 2222 | AT22: =COUNTIF(L123:L145,AS22) -> 1 | AU22: =AT22/(AV4-AT20) -> 0.04347826087 | AV22: =IF(AU22=0,0,(AU22*((LOG(AU22))/LOG(2)))) -> -0.1966766068
A23: 12 | B23: 2052 | C23: 23 | D23: 2071 | E23: 24 | F23: 2075 | G23: 23 | H23: 2085 | K23: 0 | L23: 1222 | P23: =SUM(P7:P22) -> 1 | Q23: =-SUM(Q7:Q22) -> 1.102871475 | V23: =SUM(V7:V22) -> 1 | W23: =-SUM(W7:W22) -> 1.415437247 | AA23: =SUM(AA7:AA22) -> 1 | AB23: =-SUM(AB7:AB22) -> 1.088925291 | AF23: =SUM(AF7:AF22) -> 1 | AG23: =-SUM(AG7:AG22) -> 0.6583514225 | AK23: =SUM(AK7:AK22) -> 1 | AL23: =-SUM(AL7:AL22) -> 0.8076702057 | AP23: =SUM(AP7:AP22) -> 1 | AQ23: =-SUM(AQ7:AQ22) -> 1.014404445 | AU23: =SUM(AU7:AU22) -> 1 | AV23: =-SUM(AV7:AV22) -> 0.5131851787
A24: 12 | B24: 2194 | C24: 14 | D24: 2199 | E24: 13 | F24: 2203 | G24: 14 | H24: 2211 | K24: 0 | L24: 1111 | P24: U= | Q24: =Q23/(LOG(Q4)/LOG(2)) -> 0.1549207197 | V24: U1= | W24: =W23/(LOG(W4)/LOG(2)) -> 0.3129032521 | AA24: U2= | AB24: =AB23/(LOG(AB4)/LOG(2)) -> 0.2407229748 | AF24: U3= | AG24: =AG23/(LOG(AG4)/LOG(2)) -> 0.1435892709 | AK24: U4= | AL24: =AL23/(LOG(AL4)/LOG(2)) -> 0.1785473955 | AP24: U5= | AQ24: =AQ23/(LOG(AQ4)/LOG(2)) -> 0.2242490442 | AU24: U6= | AV24: =AV23/(LOG(AV4)/LOG(2)) -> 0.1134471427
A25: 12 | B25: 2317 | C25: 14 | D25: 2323 | E25: 13 | F25: 2327 | G25: 14 | H25: 2332 | K25: 0 | L25: 1111
A26: 21 | B26: 2455 | C26: 21 | D26: 2470 | E26: 22 | F26: 2478 | G26: 23 | H26: 2492 | K26: 0 | L26: 2222
A27: 12 | B27: 2611 | C27: 14 | D27: 2615 | E27: 13 | F27: 2620 | G27: 14 | H27: 2629 | K27: 0 | L27: 1111 | N27: Total Target Seq
A28: 12 | B28: 2738 | C28: 14 | D28: 2743 | E28: 13 | F28: 2749 | G28: 14 | H28: 2753 | K28: 0 | L28: 1111 | N28: =COUNTIF(L7:L145,G3) -> 0 | P28: 23 | Q28: 23 | R28: 24 | S28: 23 | T28: 23 | U28: 23
A29: 12 | B29: 2857 | C29: 14 | D29: 2863 | E29: 13 | F29: 2868 | G29: 14 | H29: 2873 | K29: 0 | L29: 1111 | P29: % of reinforcement given in 6 equal intervals based on number of trials
A30: 12 | B30: 2981 | C30: 14 | D30: 2987 | E30: 13 | F30: 2994 | G30: 14 | H30: 2999 | K30: 0 | L30: 1111 | P30: %_1 | Q30: %_2 | R30: %_3 | S30: %_4 | T30: %_5 | U30: %_6
A31: 12 | B31: 3111 | C31: 14 | D31: 3117 | E31: 13 | F31: 3122 | G31: 14 | H31: 3131 | K31: 0 | L31: 1111 | O31: target sequence | P31: =$G$3 -> 2212 | Q31: =$G$3 -> 2212 | R31: =$G$3 -> 2212 | S31: =$G$3 -> 2212 | T31: =$G$3 -> 2212 | U31: =$G$3 -> 2212
A32: 21 | B32: 3257 | C32: 21 | D32: 3262 | E32: 22 | F32: 3269 | G32: 14 | H32: 3284 | K32: 0 | L32: 2221 | O32: total reinforcement | P32: =U20 -> 0 | Q32: =Z20 -> 0 | R32: =AE20 -> 0 | S32: =AJ20 -> 0 | T32: =AO20 -> 0 | U32: =AT20 -> 0
A33: 21 | B33: 3398 | C33: 21 | D33: 3403 | E33: 22 | F33: 3409 | G33: 23 | H33: 3415 | K33: 0 | L33: 2222 | O33: % target
A34: 12 | B34: 3658 | C34: 14 | D34: 3663 | E34: 13 | F34: 3667 | G34: 14 | H34: 3688 | K34: 0 | L34: 1111 | O34: CCRF
A35: 12 | B35: 3801 | C35: 14 | D35: 3806 | E35: 13 | F35: 3812 | G35: 14 | H35: 3819 | K35: 0 | L35: 1111 | O35: % CCRf
A36: 21 | B36: 3966 | C36: 21 | D36: 3973 | E36: 22 | F36: 4003 | G36: 14 | H36: 4069 | K36: 0 | L36: 2221 | O36: average response rate | P36: =H29/P28 -> 124.9130435 | Q36: =(H52-H29)/Q28 -> 153.6956522 | R36: =(H76-H52)/R28 -> 184.7916667 | S36: =(H99-H76)/S28 -> 180.0869565 | T36: =(H122-H99)/T28 -> 211.2608696 | U36: =(H145-H122)/U28 -> 176.9130435
A37: 21 | B37: 4185 | C37: 21 | D37: 4194 | E37: 22 | F37: 4204 | G37: 23 | H37: 4222 | K37: 0 | L37: 2222
A38: 12 | B38: 4323 | C38: 14 | D38: 4335 | E38: 13 | F38: 4349 | G38: 14 | H38: 4365 | K38: 0 | L38: 1111
A39: 12 | B39: 4484 | C39: 14 | D39: 4490 | E39: 13 | F39: 4497 | G39: 14 | H39: 4506 | K39: 0 | L39: 1111
A40: 12 | B40: 4624 | C40: 14 | D40: 4630 | E40: 13 | F40: 4635 | G40: 14 | H40: 4640 | K40: 0 | L40: 1111
A41: 12 | B41: 4756 | C41: 14 | D41: 4761 | E41: 13 | F41: 4766 | G41: 14 | H41: 4770 | K41: 0 | L41: 1111
A42: 21 | B42: 4916 | C42: 21 | D42: 4923 | E42: 22 | F42: 4930 | G42: 23 | H42: 4937 | K42: 0 | L42: 2222
A43: 12 | B43: 5042 | C43: 14 | D43: 5047 | E43: 13 | F43: 5053 | G43: 14 | H43: 5058 | K43: 0 | L43: 1111
A44: 12 | B44: 5161 | C44: 14 | D44: 5169 | E44: 13 | F44: 5174 | G44: 14 | H44: 5183 | K44: 0 | L44: 1111
A45: 12 | B45: 5293 | C45: 14 | D45: 5297 | E45: 13 | F45: 5302 | G45: 14 | H45: 5306 | K45: 0 | L45: 1111
A46: 21 | B46: 5420 | C46: 21 | D46: 5425 | E46: 22 | F46: 5436 | G46: 14 | H46: 5450 | K46: 0 | L46: 2221
A47: 12 | B47: 5613 | C47: 14 | D47: 5617 | E47: 13 | F47: 5622 | G47: 14 | H47: 5626 | K47: 0 | L47: 1111
A48: 12 | B48: 5737 | C48: 14 | D48: 5743 | E48: 13 | F48: 5747 | G48: 14 | H48: 5754 | K48: 0 | L48: 1111
A49: 12 | B49: 5860 | C49: 14 | D49: 5865 | E49: 13 | F49: 5869 | G49: 14 | H49: 5874 | K49: 0 | L49: 1111
A50: 12 | B50: 6001 | C50: 14 | D50: 6006 | E50: 13 | F50: 6013 | G50: 14 | H50: 6018 | K50: 0 | L50: 1111
A51: 12 | B51: 6258 | C51: 14 | D51: 6264 | E51: 13 | F51: 6269 | G51: 14 | H51: 6275 | K51: 0 | L51: 1111
A52: 12 | B52: 6386 | C52: 14 | D52: 6392 | E52: 13 | F52: 6397 | G52: 14 | H52: 6408 | K52: 0 | L52: 1111
A53: 12 | B53: 6572 | C53: 14 | D53: 6579 | E53: 13 | F53: 6585 | G53: 14 | H53: 6593 | K53: 0 | L53: 1111
A54: 12 | B54: 6716 | C54: 14 | D54: 6721 | E54: 13 | F54: 6726 | G54: 14 | H54: 6733 | K54: 0 | L54: 1111
A55: 12 | B55: 6842 | C55: 14 | D55: 6847 | E55: 13 | F55: 6851 | G55: 14 | H55: 6855 | K55: 0 | L55: 1111
A56: 12 | B56: 7050 | C56: 14 | D56: 7055 | E56: 13 | F56: 7060 | G56: 14 | H56: 7069 | K56: 0 | L56: 1111
A57: 12 | B57: 7160 | C57: 14 | D57: 7169 | E57: 13 | F57: 7175 | G57: 14 | H57: 7180 | K57: 0 | L57: 1111
A58: 12 | B58: 7429 | C58: 14 | D58: 7441 | E58: 13 | F58: 7449 | G58: 14 | H58: 7457 | K58: 0 | L58: 1111
A59: 12 | B59: 7561 | C59: 14 | D59: 7582 | E59: 13 | F59: 7587 | G59: 14 | H59: 7591 | K59: 0 | L59: 1111
A60: 12 | B60: 7754 | C60: 14 | D60: 7758 | E60: 13 | F60: 7762 | G60: 14 | H60: 7766 | K60: 0 | L60: 1111
A61: 12 | B61: 7869 | C61: 14 | D61: 7873 | E61: 13 | F61: 7877 | G61: 14 | H61: 7881 | K61: 0 | L61: 1111
A62: 12 | B62: 8051 | C62: 14 | D62: 8056 | E62: 13 | F62: 8060 | G62: 14 | H62: 8065 | K62: 0 | L62: 1111
A63: 21 | B63: 8257 | C63: 21 | D63: 8264 | E63: 22 | F63: 8274 | G63: 23 | H63: 8282 | K63: 0 | L63: 2222
A64: 12 | B64: 8478 | C64: 14 | D64: 8484 | E64: 13 | F64: 8490 | G64: 14 | H64: 8497 | K64: 0 | L64: 1111
A65: 12 | B65: 8640 | C65: 14 | D65: 8647 | E65: 13 | F65: 8654 | G65: 14 | H65: 8662 | K65: 0 | L65: 1111
A66: 12 | B66: 8772 | C66: 14 | D66: 8777 | E66: 13 | F66: 8782 | G66: 14 | H66: 8790 | K66: 0 | L66: 1111
A67: 12 | B67: 8947 | C67: 14 | D67: 8952 | E67: 13 | F67: 8956 | G67: 14 | H67: 8964 | K67: 0 | L67: 1111
A68: 12 | B68: 9401 | C68: 14 | D68: 9408 | E68: 13 | F68: 9418 | G68: 14 | H68: 9425 | K68: 0 | L68: 1111
A69: 21 | B69: 9552 | C69: 21 | D69: 9609 | E69: 22 | F69: 9615 | G69: 23 | H69: 9624 | K69: 0 | L69: 2222
A70: 12 | B70: 9729 | C70: 14 | D70: 9733 | E70: 13 | F70: 9737 | G70: 14 | H70: 9741 | K70: 0 | L70: 1111
A71: 12 | B71: 9856 | C71: 14 | D71: 9860 | E71: 13 | F71: 9864 | G71: 14 | H71: 9872 | K71: 0 | L71: 1111
A72: 12 | B72: 10046 | C72: 14 | D72: 10051 | E72: 13 | F72: 10056 | G72: 14 | H72: 10060 | K72: 0 | L72: 1111
A73: 12 | B73: 10185 | C73: 14 | D73: 10191 | E73: 13 | F73: 10196 | G73: 14 | H73: 10202 | K73: 0 | L73: 1111
A74: 12 | B74: 10321 | C74: 14 | D74: 10325 | E74: 13 | F74: 10329 | G74: 14 | H74: 10333 | K74: 0 | L74: 1111
A75: 12 | B75: 10674 | C75: 14 | D75: 10679 | E75: 13 | F75: 10685 | G75: 14 | H75: 10693 | K75: 0 | L75: 1111
A76: 12 | B76: 10815 | C76: 23 | D76: 10833 | E76: 24 | F76: 10837 | G76: 23 | H76: 10843 | K76: 0 | L76: 1222
A77: 12 | B77: 11005 | C77: 14 | D77: 11011 | E77: 13 | F77: 11015 | G77: 14 | H77: 11020 | K77: 0 | L77: 1111
A78: 12 | B78: 11166 | C78: 14 | D78: 11170 | E78: 13 | F78: 11175 | G78: 14 | H78: 11179 | K78: 0 | L78: 1111
A79: 12 | B79: 11448 | C79: 14 | D79: 11458 | E79: 13 | F79: 11465 | G79: 14 | H79: 11471 | K79: 0 | L79: 1111
A80: 12 | B80: 11610 | C80: 14 | D80: 11617 | E80: 13 | F80: 11621 | G80: 14 | H80: 11626 | K80: 0 | L80: 1111
A81: 12 | B81: 11766 | C81: 14 | D81: 11772 | E81: 13 | F81: 11777 | G81: 14 | H81: 11781 | K81: 0 | L81: 1111
A82: 12 | B82: 11991 | C82: 14 | D82: 11996 | E82: 13 | F82: 12000 | G82: 14 | H82: 12007 | K82: 0 | L82: 1111
A83: 12 | B83: 12134 | C83: 14 | D83: 12138 | E83: 13 | F83: 12143 | G83: 14 | H83: 12148 | K83: 0 | L83: 1111
A84: 12 | B84: 12280 | C84: 14 | D84: 12287 | E84: 13 | F84: 12292 | G84: 14 | H84: 12297 | K84: 0 | L84: 1111
A85: 12 | B85: 12522 | C85: 14 | D85: 12528 | E85: 13 | F85: 12532 | G85: 14 | H85: 12540 | K85: 0 | L85: 1111
A86: 12 | B86: 12707 | C86: 14 | D86: 12712 | E86: 13 | F86: 12716 | G86: 14 | H86: 12722 | K86: 0 | L86: 1111
A87: 12 | B87: 12861 | C87: 14 | D87: 12869 | E87: 13 | F87: 12877 | G87: 14 | H87: 12884 | K87: 0 | L87: 1111
A88: 12 | B88: 12997 | C88: 14 | D88: 13002 | E88: 13 | F88: 13007 | G88: 14 | H88: 13012 | K88: 0 | L88: 1111
A89: 12 | B89: 13158 | C89: 14 | D89: 13162 | E89: 13 | F89: 13167 | G89: 14 | H89: 13171 | K89: 0 | L89: 1111
A90: 12 | B90: 13316 | C90: 14 | D90: 13324 | E90: 13 | F90: 13331 | G90: 14 | H90: 13339 | K90: 0 | L90: 1111
A91: 21 | B91: 13471 | C91: 21 | D91: 13476 | E91: 22 | F91: 13481 | G91: 23 | H91: 13486 | K91: 0 | L91: 2222
A92: 12 | B92: 13601 | C92: 14 | D92: 13607 | E92: 13 | F92: 13611 | G92: 14 | H92: 13617 | K92: 0 | L92: 1111
A93: 21 | B93: 13765 | C93: 21 | D93: 13770 | E93: 22 | F93: 13775 | G93: 23 | H93: 13790 | K93: 0 | L93: 2222
A94: 12 | B94: 14027 | C94: 14 | D94: 14033 | E94: 13 | F94: 14037 | G94: 14 | H94: 14045 | K94: 0 | L94: 1111
A95: 12 | B95: 14145 | C95: 14 | D95: 14152 | E95: 13 | F95: 14157 | G95: 14 | H95: 14163 | K95: 0 | L95: 1111
A96: 21 | B96: 14350 | C96: 21 | D96: 14371 | E96: 22 | F96: 14384 | G96: 23 | H96: 14391 | K96: 0 | L96: 2222
A97: 12 | B97: 14655 | C97: 14 | D97: 14659 | E97: 13 | F97: 14668 | G97: 14 | H97: 14675 | K97: 0 | L97: 1111
A98: 12 | B98: 14820 | C98: 14 | D98: 14826 | E98: 13 | F98: 14830 | G98: 14 | H98: 14836 | K98: 0 | L98: 1111
A99: 12 | B99: 14960 | C99: 23 | D99: 14972 | E99: 24 | F99: 14978 | G99: 23 | H99: 14985 | K99: 0 | L99: 1222
A100: 12 | B100: 15311 | C100: 14 | D100: 15319 | E100: 13 | F100: 15324 | G100: 14 | H100: 15329 | K100: 0 | L100: 1111
A101: 12 | B101: 15436 | C101: 14 | D101: 15441 | E101: 13 | F101: 15446 | G101: 14 | H101: 15451 | K101: 0 | L101: 1111
A102: 12 | B102: 15569 | C102: 14 | D102: 15573 | E102: 13 | F102: 15578 | G102: 14 | H102: 15586 | K102: 0 | L102: 1111
A103: 12 | B103: 15842 | C103: 14 | D103: 15847 | E103: 13 | F103: 15851 | G103: 14 | H103: 15856 | K103: 0 | L103: 1111
A104: 12 | B104: 15976 | C104: 14 | D104: 15982 | E104: 13 | F104: 15986 | G104: 14 | H104: 15991 | K104: 0 | L104: 1111
A105: 12 | B105: 16206 | C105: 14 | D105: 16211 | E105: 13 | F105: 16216 | G105: 14 | H105: 16221 | K105: 0 | L105: 1111
A106: 12 | B106: 16326 | C106: 14 | D106: 16332 | E106: 13 | F106: 16340 | G106: 14 | H106: 16347 | K106: 0 | L106: 1111
A107: 12 | B107: 16687 | C107: 14 | D107: 16692 | E107: 13 | F107: 16697 | G107: 14 | H107: 16705 | K107: 0 | L107: 1111
A108: 12 | B108: 16802 | C108: 23 | D108: 16823 | E108: 24 | F108: 16829 | G108: 14 | H108: 16842 | K108: 0 | L108: 1221
A109: 12 | B109: 16973 | C109: 14 | D109: 16979 | E109: 13 | F109: 16984 | G109: 14 | H109: 16992 | K109: 0 | L109: 1111
A110: 12 | B110: 17123 | C110: 14 | D110: 17155 | E110: 13 | F110: 17161 | G110: 14 | H110: 17170 | K110: 0 | L110: 1111
A111: 12 | B111: 17385 | C111: 14 | D111: 17390 | E111: 13 | F111: 17395 | G111: 14 | H111: 17401 | K111: 0 | L111: 1111
A112: 12 | B112: 17729 | C112: 14 | D112: 17733 | E112: 13 | F112: 17738 | G112: 14 | H112: 17743 | K112: 0 | L112: 1111
A113: 12 | B113: 18246 | C113: 14 | D113: 18251 | E113: 13 | F113: 18258 | G113: 14 | H113: 18267 | K113: 0 | L113: 1111
A114: 12 | B114: 18692 | C114: 23 | D114: 18708 | E114: 13 | F114: 18723 | G114: 14 | H114: 18730 | K114: 0 | L114: 1211
A115: 12 | B115: 18828 | C115: 14 | D115: 18838 | E115: 13 | F115: 18852 | G115: 14 | H115: 18858 | K115: 0 | L115: 1111
A116: 12 | B116: 18956 | C116: 14 | D116: 18961 | E116: 13 | F116: 18966 | G116: 14 | H116: 18971 | K116: 0 | L116: 1111
A117: 12 | B117: 19070 | C117: 14 | D117: 19080 | E117: 13 | F117: 19085 | G117: 14 | H117: 19092 | K117: 0 | L117: 1111
A118: 12 | B118: 19193 | C118: 14 | D118: 19203 | E118: 13 | F118: 19207 | G118: 14 | H118: 19212 | K118: 0 | L118: 1111
A119: 21 | B119: 19330 | C119: 21 | D119: 19335 | E119: 22 | F119: 19340 | G119: 23 | H119: 19344 | K119: 0 | L119: 2222
A120: 12 | B120: 19469 | C120: 14 | D120: 19477 | E120: 13 | F120: 19484 | G120: 14 | H120: 19491 | K120: 0 | L120: 1111
A121: 21 | B121: 19700 | C121: 21 | D121: 19706 | E121: 11 | F121: 19719 | G121: 12 | H121: 19724 | K121: 0 | L121: 2211
A122: 12 | B122: 19829 | C122: 14 | D122: 19835 | E122: 13 | F122: 19839 | G122: 14 | H122: 19844 | K122: 0 | L122: 1111
A123: 21 | B123: 20041 | C123: 21 | D123: 20046 | E123: 22 | F123: 20053 | G123: 23 | H123: 20064 | K123: 0 | L123: 2222
A124: 12 | B124: 20162 | C124: 14 | D124: 20167 | E124: 13 | F124: 20172 | G124: 14 | H124: 20177 | K124: 0 | L124: 1111
A125: 12 | B125: 20305 | C125: 14 | D125: 20310 | E125: 13 | F125: 20314 | G125: 14 | H125: 20319 | K125: 0 | L125: 1111
A126: 12 | B126: 20429 | C126: 14 | D126: 20434 | E126: 13 | F126: 20439 | G126: 14 | H126: 20444 | K126: 0 | L126: 1111
A127: 12 | B127: 20612 | C127: 14 | D127: 20616 | E127: 13 | F127: 20621 | G127: 14 | H127: 20629 | K127: 0 | L127: 1111
A128: 12 | B128: 20739 | C128: 14 | D128: 20744 | E128: 13 | F128: 20766 | G128: 14 | H128: 20771 | K128: 0 | L128: 1111
A129: 12 | B129: 20877 | C129: 14 | D129: 20885 | E129: 13 | F129: 20890 | G129: 14 | H129: 20898 | K129: 0 | L129: 1111
A130: 12 | B130: 21014 | C130: 14 | D130: 21019 | E130: 13 | F130: 21023 | G130: 14 | H130: 21029 | K130: 0 | L130: 1111
A131: 12 | B131: 21169 | C131: 14 | D131: 21174 | E131: 13 | F131: 21179 | G131: 14 | H131: 21186 | K131: 0 | L131: 1111
A132: 12 | B132: 21300 | C132: 14 | D132: 21304 | E132: 13 | F132: 21308 | G132: 14 | H132: 21313 | K132: 0 | L132: 1111
A133: 12 | B133: 21472 | C133: 14 | D133: 21479 | E133: 13 | F133: 21485 | G133: 14 | H133: 21492 | K133: 0 | L133: 1111
A134: 21 | B134: 21608 | C134: 21 | D134: 21614 | E134: 11 | F134: 21626 | G134: 12 | H134: 21630 | K134: 0 | L134: 2211
A135: 12 | B135: 21740 | C135: 14 | D135: 21745 | E135: 13 | F135: 21750 | G135: 14 | H135: 21756 | K135: 0 | L135: 1111
A136: 12 | B136: 21872 | C136: 14 | D136: 21878 | E136: 13 | F136: 21882 | G136: 14 | H136: 21887 | K136: 0 | L136: 1111
A137: 12 | B137: 22012 | C137: 14 | D137: 22016 | E137: 13 | F137: 22020 | G137: 14 | H137: 22026 | K137: 0 | L137: 1111
A138: 12 | B138: 22330 | C138: 14 | D138: 22335 | E138: 13 | F138: 22340 | G138: 14 | H138: 22345 | K138: 0 | L138: 1111
A139: 12 | B139: 22468 | C139: 14 | D139: 22472 | E139: 13 | F139: 22476 | G139: 14 | H139: 22482 | K139: 0 | L139: 1111
A140: 12 | B140: 22706 | C140: 14 | D140: 22711 | E140: 13 | F140: 22717 | G140: 14 | H140: 22722 | K140: 0 | L140: 1111
A141: 12 | B141: 23104 | C141: 14 | D141: 23112 | E141: 13 | F141: 23119 | G141: 14 | H141: 23126 | K141: 0 | L141: 1111
A142: 12 | B142: 23261 | C142: 14 | D142: 23269 | E142: 13 | F142: 23276 | G142: 14 | H142: 23281 | K142: 0 | L142: 1111
A143: 12 | B143: 23444 | C143: 14 | D143: 23448 | E143: 13 | F143: 23453 | G143: 14 | H143: 23458 | K143: 0 | L143: 1111
A144: 12 | B144: 23696 | C144: 14 | D144: 23701 | E144: 13 | F144: 23707 | G144: 14 | H144: 23711 | K144: 0 | L144: 1111
A145: 12 | B145: 23899 | C145: 14 | D145: 23904 | E145: 13 | F145: 23909 | G145: 14 | H145: 23913 | L145: 1111

Sheet !MB12810.091
A1: Report for:!MB12810.091
A2: Date: | B2: <date>
A3: Hen: | B3: <hen> | F3: Correct Sequence | G3: =Start!J2 -> 2212 | P3: Total Sequences in Data | Q3: =4994-COUNTBLANK(L7:L5000) -> 158 | V3: Total Sequences in Block Data | W3: =COUNTA(L7:L32) -> 26 | AA3: Total Sequences in Block Data | AB3: =COUNTA(L33:L59) -> 27 | AF3: Total Sequences in Block Data | AG3: =COUNTA(L60:L85) -> 26 | AK3: Total Sequences in Block Data | AL3: =COUNTA(L86:L111) -> 26 | AP3: Total Sequences in Block Data | AQ3: =COUNTA(L112:L138) -> 27 | AU3: Total Sequences in Block Data | AV3: =COUNTA(L139:L164) -> 26
P4: Total Sequences in Summary | Q4: =SUM(O7:O22) -> 158 | V4: Total Sequences in Block Summary | W4: =SUM(U7:U22) -> 26 | AA4: Total Sequences in Block Summary | AB4: =SUM(Z7:Z22) -> 27 | AF4: Total Sequences in Block Summary | AG4: =SUM(AE7:AE22) -> 26 | AK4: Total Sequences in Block Summary | AL4: =SUM(AJ7:AJ22) -> 26 | AP4: Total Sequences in Block Summary | AQ4: =SUM(AO7:AO22) -> 27 | AU4: Total Sequences in Block Summary | AV4: =SUM(AT7:AT22) -> 26
T5: Block 1 | Y5: Block 2 | AD5: Block 3 | AI5: Block 4 | AN5: Block 5 | AS5: Block 6
A6: Sequence Component 1 | B6: Time 1 | C6: Sequence Component 2 | D6: Time 2 | E6: Sequence Component 3 | F6: Time 3 | G6: Sequence Component 4 | H6: Time 4 | I6: Sequence Component 5 | J6: Time 5 | K6: Correct? 0=No 1=Yes | L6: Sequence | N6: Frequency | P6: Relative Frequency | Q6: Variability | T6: Frequency | V6: Relative Frequency | W6: Variability | Y6: Frequency | AA6: Relative Frequency | AB6: Variability | AD6: Frequency | AF6: Relative Frequency | AG6: Variability | AI6: Frequency | AK6: Relative Frequency | AL6: Variability | AN6: Frequency | AP6: Relative Frequency | AQ6: Variability | AS6: Frequency | AU6: Relative Frequency | AV6: Variability
A7: 12 | B7: 16 | C7: 14 | D7: 25 | E7: 13 | F7: 32 | G7: 14 | H7: 40 | K7: 0 | L7: 1111 | N7: 1111 | O7: =COUNTIF($L$7:$L$500,N7) -> 104 | P7: =O7/$Q$4 -> 0.6582278481 | Q7: =IF(P7=0,0,(P7*((LOG(P7))/LOG(2)))) -> -0.3971358679 | T7: =N7 -> 1111 | U7: =COUNTIF(L7:L32,T7) -> 21 | V7: =U7/(W4-U20) -> 0.8076923077 | W7: =IF(V7=0,0,(V7*((LOG(V7))/LOG(2)))) -> -0.2488680078 | Y7: =N7 -> 1111 | Z7: =COUNTIF(L33:L59,Y7) -> 19 | AA7: =Z7/(AB4-Z20) -> 0.7037037037 | AB7: =IF(AA7=0,0,(AA7*((LOG(AA7))/LOG(2)))) -> -0.3567496217 | AD7: =N7 -> 1111 | AE7: =COUNTIF(L60:L85,AD7) -> 20 | AF7: =AE7/(AG4-AE20) -> 0.7692307692 | AG7: =IF(AF7=0,0,(AF7*((LOG(AF7))/LOG(2)))) -> -0.2911627871 | AI7: =N7 -> 1111 | AJ7: =COUNTIF(L86:L111,AI7) -> 12 | AK7: =AJ7/(AL4-AJ20) -> 0.4615384615 | AL7: =IF(AK7=0,0,(AK7*((LOG(AK7))/LOG(2)))) -> -0.5148356388 | AN7: =N7 -> 1111 | AO7: =COUNTIF(L112:L138,AN7) -> 11 | AP7: =AO7/(AQ4-AO20) -> 0.4074074074 | AQ7: =IF(AP7=0,0,(AP7*((LOG(AP7))/LOG(2)))) -> -0.5277783229 | AS7: =N7 -> 1111 | AT7: =COUNTIF(L139:L164,AS7) -> 21 | AU7: =AT7/(AV4-AT20) -> 0.8076923077 | AV7: =IF(AU7=0,0,(AU7*((LOG(AU7))/LOG(2)))) -> -0.2488680078
A8: 12 | B8: 144 | C8: 14 | D8: 150 | E8: 13 | F8: 156 | G8: 14 | H8: 163 | K8: 0 | L8: 1111 | N8: 1112 | O8: =COUNTIF($L$7:$L$500,N8) -> 2 | P8: =O8/$Q$4 -> 0.01265822785 | Q8: =IF(P8=0,0,(P8*((LOG(P8))/LOG(2)))) -> -0.07979469301 | T8: =N8 -> 1112 | U8: =COUNTIF(L7:L32,T8) -> 0 | V8: =U8/(W4-U20) -> 0 | W8: =IF(V8=0,0,(V8*((LOG(V8))/LOG(2)))) -> 0 | Y8: =N8 -> 1112 | Z8: =COUNTIF(L33:L59,Y8) -> 1 | AA8: =Z8/(AB4-Z20) -> 0.03703703704 | AB8: =IF(AA8=0,0,(AA8*((LOG(AA8))/LOG(2)))) -> -0.1761069445 | AD8: =N8 -> 1112 | AE8: =COUNTIF(L60:L85,AD8) -> 1 | AF8: =AE8/(AG4-AE20) -> 0.03846153846 | AG8: =IF(AF8=0,0,(AF8*((LOG(AF8))/LOG(2)))) -> -0.180786143 | AI8: =N8 -> 1112 | AJ8: =COUNTIF(L86:L111,AI8) -> 0 | AK8: =AJ8/(AL4-AJ20) -> 0 | AL8: =IF(AK8=0,0,(AK8*((LOG(AK8))/LOG(2)))) -> 0 | AN8: =N8 -> 1112 | AO8: =COUNTIF(L112:L138,AN8) -> 0 | AP8: =AO8/(AQ4-AO20) -> 0 | AQ8: =IF(AP8=0,0,(AP8*((LOG(AP8))/LOG(2)))) -> 0 | AS8: =N8 -> 1112 | AT8: =COUNTIF(L139:L164,AS8) -> 0 | AU8: =AT8/(AV4-AT20) -> 0 | AV8: =IF(AU8=0,0,(AU8*((LOG(AU8))/LOG(2)))) -> 0
A9: 12 | B9: 270 | C9: 14 | D9: 281 | E9: 13 | F9: 286 | G9: 14 | H9: 291 | K9: 0 | L9: 1111 | N9: 1121 | O9: =COUNTIF($L$7:$L$500,N9) -> 0 | P9: =O9/$Q$4 -> 0 | Q9: =IF(P9=0,0,(P9*((LOG(P9))/LOG(2)))) -> 0 | T9: =N9 -> 1121 | U9: =COUNTIF(L7:L32,T9) -> 0 | V9: =U9/(W4-U20) -> 0 | W9: =IF(V9=0,0,(V9*((LOG(V9))/LOG(2)))) -> 0 | Y9: =N9 -> 1121 | Z9: =COUNTIF(L33:L59,Y9) -> 0 | AA9: =Z9/(AB4-Z20) -> 0 | AB9: =IF(AA9=0,0,(AA9*((LOG(AA9))/LOG(2)))) -> 0 | AD9: =N9 -> 1121 | AE9: =COUNTIF(L60:L85,AD9) -> 0 | AF9: =AE9/(AG4-AE20) -> 0 | AG9: =IF(AF9=0,0,(AF9*((LOG(AF9))/LOG(2)))) -> 0 | AI9: =N9 -> 1121 | AJ9: =COUNTIF(L86:L111,AI9) -> 0 | AK9: =AJ9/(AL4-AJ20) -> 0 | AL9: =IF(AK9=0,0,(AK9*((LOG(AK9))/LOG(2)))) -> 0 | AN9: =N9 -> 1121 | AO9: =COUNTIF(L112:L138,AN9) -> 0 | AP9: =AO9/(AQ4-AO20) -> 0 | AQ9: =IF(AP9=0,0,(AP9*((LOG(AP9))/LOG(2)))) -> 0 | AS9: =N9 -> 1121 | AT9: =COUNTIF(L139:L164,AS9) -> 0 | AU9: =AT9/(AV4-AT20) -> 0 | AV9: =IF(AU9=0,0,(AU9*((LOG(AU9))/LOG(2)))) -> 0
A10: 12 | B10: 388 | C10: 14 | D10: 396 | E10: 13 | F10: 402 | G10: 14 | H10: 408 | K10: 0 | L10: 1111 | N10: 1122 | O10: =COUNTIF($L$7:$L$500,N10) -> 2 | P10: =O10/$Q$4 -> 0.01265822785 | Q10: =IF(P10=0,0,(P10*((LOG(P10))/LOG(2)))) -> -0.07979469301 | T10: =N10 -> 1122 | U10: =COUNTIF(L7:L32,T10) -> 0 | V10: =U10/(W4-U20) -> 0 | W10: =IF(V10=0,0,(V10*((LOG(V10))/LOG(2)))) -> 0 | Y10: =N10 -> 1122 | Z10: =COUNTIF(L33:L59,Y10) -> 0 | AA10: =Z10/(AB4-Z20) -> 0 | AB10: =IF(AA10=0,0,(AA10*((LOG(AA10))/LOG(2)))) -> 0 | AD10: =N10 -> 1122 | AE10: =COUNTIF(L60:L85,AD10) -> 1 | AF10: =AE10/(AG4-AE20) -> 0.03846153846 | AG10: =IF(AF10=0,0,(AF10*((LOG(AF10))/LOG(2)))) -> -0.180786143 | AI10: =N10 -> 1122 | AJ10: =COUNTIF(L86:L111,AI10) -> 0 | AK10: =AJ10/(AL4-AJ20) -> 0 | AL10: =IF(AK10=0,0,(AK10*((LOG(AK10))/LOG(2)))) -> 0 | AN10: =N10 -> 1122 | AO10: =COUNTIF(L112:L138,AN10) -> 1 | AP10: =AO10/(AQ4-AO20) -> 0.03703703704 | AQ10: =IF(AP10=0,0,(AP10*((LOG(AP10))/LOG(2)))) -> -0.1761069445 | AS10: =N10 -> 1122 | AT10: =COUNTIF(L139:L164,AS10) -> 0 | AU10: =AT10/(AV4-AT20) -> 0 | AV10: =IF(AU10=0,0,(AU10*((LOG(AU10))/LOG(2)))) -> 0
A11: 12 | B11: 526 | C11: 14 | D11: 534 | E11: 13 | F11: 540 | G11: 14 | H11: 548 | K11: 0 | L11: 1111 | N11: 1211 | O11: =COUNTIF($L$7:$L$500,N11) -> 1 | P11: =O11/$Q$4 -> 0.006329113924 | Q11: =IF(P11=0,0,(P11*((LOG(P11))/LOG(2)))) -> -0.04622646043 | T11: =N11 -> 1211 | U11: =COUNTIF(L7:L32,T11) -> 0 | V11: =U11/(W4-U20) -> 0 | W11: =IF(V11=0,0,(V11*((LOG(V11))/LOG(2)))) -> 0 | Y11: =N11 -> 1211 | Z11: =COUNTIF(L33:L59,Y11) -> 1 | AA11: =Z11/(AB4-Z20) -> 0.03703703704 | AB11: =IF(AA11=0,0,(AA11*((LOG(AA11))/LOG(2)))) -> -0.1761069445 | AD11: =N11 -> 1211 | AE11: =COUNTIF(L60:L85,AD11) -> 0 | AF11: =AE11/(AG4-AE20) -> 0 | AG11: =IF(AF11=0,0,(AF11*((LOG(AF11))/LOG(2)))) -> 0 | AI11: =N11 -> 1211 | AJ11: =COUNTIF(L86:L111,AI11) -> 0 | AK11: =AJ11/(AL4-AJ20) -> 0 | AL11: =IF(AK11=0,0,(AK11*((LOG(AK11))/LOG(2)))) -> 0 | AN11: =N11 -> 1211 | AO11: =COUNTIF(L112:L138,AN11) -> 0 | AP11: =AO11/(AQ4-AO20) -> 0 | AQ11: =IF(AP11=0,0,(AP11*((LOG(AP11))/LOG(2)))) -> 0 | AS11: =N11 -> 1211 | AT11: =COUNTIF(L139:L164,AS11) -> 0 | AU11: =AT11/(AV4-AT20) -> 0 | AV11: =IF(AU11=0,0,(AU11*((LOG(AU11))/LOG(2)))) -> 0
A12: 12 | B12: 651 | C12: 14 | D12: 656 | E12: 13 | F12: 663 | G12: 14 | H12: 671 | K12: 0 | L12: 1111 | N12: 1212 | O12: =COUNTIF($L$7:$L$500,N12) -> 0 | P12: =O12/$Q$4 -> 0 | Q12: =IF(P12=0,0,(P12*((LOG(P12))/LOG(2)))) -> 0 | T12: =N12 -> 1212 | U12: =COUNTIF(L7:L32,T12) -> 0 | V12: =U12/(W4-U20) -> 0 | W12: =IF(V12=0,0,(V12*((LOG(V12))/LOG(2)))) -> 0 | Y12: =N12 -> 1212 | Z12: =COUNTIF(L33:L59,Y12) -> 0 | AA12: =Z12/(AB4-Z20) -> 0 | AB12: =IF(AA12=0,0,(AA12*((LOG(AA12))/LOG(2)))) -> 0 | AD12: =N12 -> 1212 | AE12: =COUNTIF(L60:L85,AD12) -> 0 | AF12: =AE12/(AG4-AE20) -> 0 | AG12: =IF(AF12=0,0,(AF12*((LOG(AF12))/LOG(2)))) -> 0 | AI12: =N12 -> 1212 | AJ12: =COUNTIF(L86:L111,AI12) -> 0 | AK12: =AJ12/(AL4-AJ20) -> 0 | AL12: =IF(AK12=0,0,(AK12*((LOG(AK12))/LOG(2)))) -> 0 | AN12: =N12 -> 1212 | AO12: =COUNTIF(L112:L138,AN12) -> 0 | AP12: =AO12/(AQ4-AO20) -> 0 | AQ12: =IF(AP12=0,0,(AP12*((LOG(AP12))/LOG(2)))) -> 0 | AS12: =N12 -> 1212 | AT12: =COUNTIF(L139:L164,AS12) -> 0 | AU12: =AT12/(AV4-AT20) -> 0 | AV12: =IF(AU12=0,0,(AU12*((LOG(AU12))/LOG(2)))) -> 0
A13: 12 | B13: 789 | C13: 14 | D13: 795 | E13: 13 | F13: 803 | G13: 14 | H13: 811 | K13: 0 | L13: 1111 | N13: 1221 | O13: =COUNTIF($L$7:$L$500,N13) -> 1 | P13: =O13/$Q$4 -> 0.006329113924 | Q13: =IF(P13=0,0,(P13*((LOG(P13))/LOG(2)))) -> -0.04622646043 | T13: =N13 -> 1221 | U13: =COUNTIF(L7:L32,T13) -> 1 | V13: =U13/(W4-U20) -> 0.03846153846 | W13: =IF(V13=0,0,(V13*((LOG(V13))/LOG(2)))) -> -0.180786143 | Y13: =N13 -> 1221 | Z13: =COUNTIF(L33:L59,Y13) -> 0 | AA13: =Z13/(AB4-Z20) -> 0 | AB13: =IF(AA13=0,0,(AA13*((LOG(AA13))/LOG(2)))) -> 0 | AD13: =N13 -> 1221 | AE13: =COUNTIF(L60:L85,AD13) -> 0 | AF13: =AE13/(AG4-AE20) -> 0 | AG13: =IF(AF13=0,0,(AF13*((LOG(AF13))/LOG(2)))) -> 0 | AI13: =N13 -> 1221 | AJ13: =COUNTIF(L86:L111,AI13) -> 0 | AK13: =AJ13/(AL4-AJ20) -> 0 | AL13: =IF(AK13=0,0,(AK13*((LOG(AK13))/LOG(2)))) -> 0 | AN13: =N13 -> 1221 | AO13: =COUNTIF(L112:L138,AN13) -> 0 | AP13: =AO13/(AQ4-AO20) -> 0 | AQ13: =IF(AP13=0,0,(AP13*((LOG(AP13))/LOG(2)))) -> 0 | AS13: =N13 -> 1221 | AT13: =COUNTIF(L139:L164,AS13) -> 0 | AU13: =AT13/(AV4-AT20) -> 0 | AV13: =IF(AU13=0,0,(AU13*((LOG(AU13))/LOG(2)))) -> 0
A14: 12 | B14: 911 | C14: 14 | D14: 916 | E14: 13 | F14: 921 | G14: 14 | H14: 925 | K14: 0 | L14: 1111 | N14: 1222 | O14: =COUNTIF($L$7:$L$500,N14) -> 6 | P14: =O14/$Q$4 -> 0.03797468354 | Q14: =IF(P14=0,0,(P14*((LOG(P14))/LOG(2)))) -> -0.1791956297 | T14: =N14 -> 1222 | U14: =COUNTIF(L7:L32,T14) -> 0 | V14: =U14/(W4-U20) -> 0 | W14: =IF(V14=0,0,(V14*((LOG(V14))/LOG(2)))) -> 0 | Y14: =N14 -> 1222 | Z14: =COUNTIF(L33:L59,Y14) -> 1 | AA14: =Z14/(AB4-Z20) -> 0.03703703704 | AB14: =IF(AA14=0,0,(AA14*((LOG(AA14))/LOG(2)))) -> -0.1761069445 | AD14: =N14 -> 1222 | AE14: =COUNTIF(L60:L85,AD14) -> 1 | AF14: =AE14/(AG4-AE20) -> 0.03846153846 | AG14: =IF(AF14=0,0,(AF14*((LOG(AF14))/LOG(2)))) -> -0.180786143 | AI14: =N14 -> 1222 | AJ14: =COUNTIF(L86:L111,AI14) -> 1 | AK14: =AJ14/(AL4-AJ20) -> 0.03846153846 | AL14: =IF(AK14=0,0,(AK14*((LOG(AK14))/LOG(2)))) -> -0.180786143 | AN14: =N14 -> 1222 | AO14: =COUNTIF(L112:L138,AN14) -> 3 | AP14: =AO14/(AQ4-AO20) -> 0.1111111111 | AQ14: =IF(AP14=0,0,(AP14*((LOG(AP14))/LOG(2)))) -> -0.352213889 | AS14: =N14 -> 1222 | AT14: =COUNTIF(L139:L164,AS14) -> 0 | AU14: =AT14/(AV4-AT20) -> 0 | AV14: =IF(AU14=0,0,(AU14*((LOG(AU14))/LOG(2)))) -> 0
A15: 12 | B15: 1036 | C15: 14 | D15: 1041 | E15: 13 | F15: 1048 | G15: 14 | H15: 1056 | K15: 0 | L15: 1111 | N15: 2111 | O15: =COUNTIF($L$7:$L$500,N15) -> 9 | P15: =O15/$Q$4 -> 0.05696202532 | Q15: =IF(P15=0,0,(P15*((LOG(P15))/LOG(2)))) -> -0.2354727957 | T15: =N15 -> 2111 | U15: =COUNTIF(L7:L32,T15) -> 1 | V15: =U15/(W4-U20) -> 0.03846153846 | W15: =IF(V15=0,0,(V15*((LOG(V15))/LOG(2)))) -> -0.180786143 | Y15: =N15 -> 2111 | Z15: =COUNTIF(L33:L59,Y15) -> 2 | AA15: =Z15/(AB4-Z20) -> 0.07407407407 | AB15: =IF(AA15=0,0,(AA15*((LOG(AA15))/LOG(2)))) -> -0.278139815 | AD15: =N15 -> 2111 | AE15: =COUNTIF(L60:L85,AD15) -> 0 | AF15: =AE15/(AG4-AE20) -> 0 | AG15: =IF(AF15=0,0,(AF15*((LOG(AF15))/LOG(2)))) -> 0 | AI15: =N15 -> 2111 | AJ15: =COUNTIF(L86:L111,AI15) -> 0 | AK15: =AJ15/(AL4-AJ20) -> 0 | AL15: =IF(AK15=0,0,(AK15*((LOG(AK15))/LOG(2)))) -> 0 | AN15: =N15 -> 2111 | AO15: =COUNTIF(L112:L138,AN15) -> 3 | AP15: =AO15/(AQ4-AO20) -> 0.1111111111 | AQ15: =IF(AP15=0,0,(AP15*((LOG(AP15))/LOG(2)))) -> -0.352213889 | AS15: =N15 -> 2111 | AT15: =COUNTIF(L139:L164,AS15) -> 3 | AU15: =AT15/(AV4-AT20) -> 0.1153846154 | AV15: =IF(AU15=0,0,(AU15*((LOG(AU15))/LOG(2)))) -> -0.3594781405
A16: 12 | B16: 1196 | C16: 14 | D16: 1202 | E16: 13 | F16: 1207 | G16: 14 | H16: 1215 | K16: 0 | L16: 1111 | N16: 2112 | O16: =COUNTIF($L$7:$L$500,N16) -> 0 | P16: =O16/$Q$4 -> 0 | Q16: =IF(P16=0,0,(P16*((LOG(P16))/LOG(2)))) -> 0 | T16: =N16 -> 2112 | U16: =COUNTIF(L7:L32,T16) -> 0 | V16: =U16/(W4-U20) -> 0 | W16: =IF(V16=0,0,(V16*((LOG(V16))/LOG(2)))) -> 0 | Y16: =N16 -> 2112 | Z16: =COUNTIF(L33:L59,Y16) -> 0 | AA16: =Z16/(AB4-Z20) -> 0 | AB16: =IF(AA16=0,0,(AA16*((LOG(AA16))/LOG(2)))) -> 0 | AD16: =N16 -> 2112 | AE16: =COUNTIF(L60:L85,AD16) -> 0 | AF16: =AE16/(AG4-AE20) -> 0 | AG16: =IF(AF16=0,0,(AF16*((LOG(AF16))/LOG(2)))) -> 0 | AI16: =N16 -> 2112 | AJ16: =COUNTIF(L86:L111,AI16) -> 0 | AK16: =AJ16/(AL4-AJ20) -> 0 | AL16: =IF(AK16=0,0,(AK16*((LOG(AK16))/LOG(2)))) -> 0 | AN16: =N16 -> 2112 | AO16: =COUNTIF(L112:L138,AN16) -> 0 | AP16: =AO16/(AQ4-AO20) -> 0 | AQ16: =IF(AP16=0,0,(AP16*((LOG(AP16))/LOG(2)))) -> 0 | AS16: =N16 -> 2112 | AT16: =COUNTIF(L139:L164,AS16) -> 0 | AU16: =AT16/(AV4-AT20) -> 0 | AV16: =IF(AU16=0,0,(AU16*((LOG(AU16))/LOG(2)))) -> 0
A17: 21 | B17: 1367 | C17: 21 | D17: 1372 | E17: 22 | F17: 1378 | G17: 23 | H17: 1384 | K17: 0 | L17: 2222 | N17: 2121 | O17: =COUNTIF($L$7:$L$500,N17) -> 0 | P17: =O17/$Q$4 -> 0 | Q17: =IF(P17=0,0,(P17*((LOG(P17))/LOG(2)))) -> 0 | T17: =N17 -> 2121 | U17: =COUNTIF(L7:L32,T17) -> 0 | V17: =U17/(W4-U20) -> 0 | W17: =IF(V17=0,0,(V17*((LOG(V17))/LOG(2)))) -> 0 | Y17: =N17 -> 2121 | Z17: =COUNTIF(L33:L59,Y17) -> 0 | AA17: =Z17/(AB4-Z20) -> 0 | AB17: =IF(AA17=0,0,(AA17*((LOG(AA17))/LOG(2)))) -> 0 | AD17: =N17 -> 2121 | AE17: =COUNTIF(L60:L85,AD17) -> 0 | AF17: =AE17/(AG4-AE20) -> 0 | AG17: =IF(AF17=0,0,(AF17*((LOG(AF17))/LOG(2)))) -> 0 | AI17: =N17 -> 2121 | AJ17: =COUNTIF(L86:L111,AI17) -> 0 | AK17: =AJ17/(AL4-AJ20) -> 0 | AL17: =IF(AK17=0,0,(AK17*((LOG(AK17))/LOG(2)))) -> 0 | AN17: =N17 -> 2121 | AO17: =COUNTIF(L112:L138,AN17) -> 0 | AP17: =AO17/(AQ4-AO20) -> 0 | AQ17: =IF(AP17=0,0,(AP17*((LOG(AP17))/LOG(2)))) -> 0 | AS17: =N17 -> 2121 | AT17: =COUNTIF(L139:L164,AS17) -> 0 | AU17: =AT17/(AV4-AT20) -> 0 | AV17: =IF(AU17=0,0,(AU17*((LOG(AU17))/LOG(2)))) -> 0
A18: 12 | B18: 1498 | C18: 14 | D18: 1505 | E18: 13 | F18: 1513 | G18: 14 | H18: 1521 | K18: 0 | L18: 1111 | N18: 2122 | O18: =COUNTIF($L$7:$L$500,N18) -> 0 | P18: =O18/$Q$4 -> 0 | Q18: =IF(P18=0,0,(P18*((LOG(P18))/LOG(2)))) -> 0 | T18: =N18 -> 2122 | U18: =COUNTIF(L7:L32,T18) -> 0 | V18: =U18/(W4-U20) -> 0 | W18: =IF(V18=0,0,(V18*((LOG(V18))/LOG(2)))) -> 0 | Y18: =N18 -> 2122 | Z18: =COUNTIF(L33:L59,Y18) -> 0 | AA18: =Z18/(AB4-Z20) -> 0 | AB18: =IF(AA18=0,0,(AA18*((LOG(AA18))/LOG(2)))) -> 0 | AD18: =N18 -> 2122 | AE18: =COUNTIF(L60:L85,AD18) -> 0 | AF18: =AE18/(AG4-AE20) -> 0 | AG18: =IF(AF18=0,0,(AF18*((LOG(AF18))/LOG(2)))) -> 0 | AI18: =N18 -> 2122 | AJ18: =COUNTIF(L86:L111,AI18) -> 0 | AK18: =AJ18/(AL4-AJ20) -> 0 | AL18: =IF(AK18=0,0,(AK18*((LOG(AK18))/LOG(2)))) -> 0 | AN18: =N18 -> 2122 | AO18: =COUNTIF(L112:L138,AN18) -> 0 | AP18: =AO18/(AQ4-AO20) -> 0 | AQ18: =IF(AP18=0,0,(AP18*((LOG(AP18))/LOG(2)))) -> 0 | AS18: =N18 -> 2122 | AT18: =COUNTIF(L139:L164,AS18) -> 0 | AU18: =AT18/(AV4-AT20) -> 0 | AV18: =IF(AU18=0,0,(AU18*((LOG(AU18))/LOG(2)))) -> 0
A19: 21 | B19: 1654 | C19: 21 | D19: 1661 | E19: 22 | F19: 1669 | G19: 14 | H19: 1683 | K19: 0 | L19: 2221 | N19: 2211 | O19: =COUNTIF($L$7:$L$500,N19) -> 3 | P19: =O19/$Q$4 -> 0.01898734177 | Q19: =IF(P19=0,0,(P19*((LOG(P19))/LOG(2)))) -> -0.1085851566 | T19: =N19 -> 2211 | U19: =COUNTIF(L7:L32,T19) -> 0 | V19: =U19/(W4-U20) -> 0 | W19: =IF(V19=0,0,(V19*((LOG(V19))/LOG(2)))) -> 0 | Y19: =N19 -> 2211 | Z19: =COUNTIF(L33:L59,Y19) -> 0 | AA19: =Z19/(AB4-Z20) -> 0 | AB19: =IF(AA19=0,0,(AA19*((LOG(AA19))/LOG(2)))) -> 0 | AD19: =N19 -> 2211 | AE19: =COUNTIF(L60:L85,AD19) -> 0 | AF19: =AE19/(AG4-AE20) -> 0 | AG19: =IF(AF19=0,0,(AF19*((LOG(AF19))/LOG(2)))) -> 0 | AI19: =N19 -> 2211 | AJ19: =COUNTIF(L86:L111,AI19) -> 2 | AK19: =AJ19/(AL4-AJ20) -> 0.07692307692 | AL19: =IF(AK19=0,0,(AK19*((LOG(AK19))/LOG(2)))) -> -0.2846492091 | AN19: =N19 -> 2211 | AO19: =COUNTIF(L112:L138,AN19) -> 1 | AP19: =AO19/(AQ4-AO20) -> 0.03703703704 | AQ19: =IF(AP19=0,0,(AP19*((LOG(AP19))/LOG(2)))) -> -0.1761069445 | AS19: =N19 -> 2211 | AT19: =COUNTIF(L139:L164,AS19) -> 0 | AU19: =AT19/(AV4-AT20) -> 0 | AV19: =IF(AU19=0,0,(AU19*((LOG(AU19))/LOG(2)))) -> 0
A20: 12 | B20: 1801 | C20: 14 | D20: 1807 | E20: 13 | F20: 1813 | G20: 14 | H20: 1821 | K20: 0 | L20: 1111 | N20: 2212 | O20: =COUNTIF($L$7:$L$500,N20) -> 0 | P20: =O20/$Q$4 -> 0 | Q20: =IF(P20=0,0,(P20*((LOG(P20))/LOG(2)))) -> 0 | T20: =N20 -> 2212 | U20: =COUNTIF(L7:L32,T20) -> 0 | Y20: =N20 -> 2212 | Z20: =COUNTIF(L33:L59,Y20) -> 0 | AD20: =N20 -> 2212 | AE20: =COUNTIF(L60:L85,AD20) -> 0 | AI20: =N20 -> 2212 | AJ20: =COUNTIF(L86:L111,AI20) -> 0 | AN20: =N20 -> 2212 | AO20: =COUNTIF(L112:L138,AN20) -> 0 | AS20: =N20 -> 2212 | AT20: =COUNTIF(L139:L164,AS20) -> 0
A21: 12 | B21: 1936 | C21: 14 | D21: 1944 | E21: 13 | F21: 1952 | G21: 14 | H21: 1960 | K21: 0 | L21: 1111 | N21: 2221 | O21: =COUNTIF($L$7:$L$500,N21) -> 1 | P21: =O21/$Q$4 -> 0.006329113924 | Q21: =IF(P21=0,0,(P21*((LOG(P21))/LOG(2)))) -> -0.04622646043 | T21: =N21 -> 2221 | U21: =COUNTIF(L7:L32,T21) -> 1 | V21: =U21/(W4-U20) -> 0.03846153846 | W21: =IF(V21=0,0,(V21*((LOG(V21))/LOG(2)))) -> -0.180786143 | Y21: =N21 -> 2221 | Z21: =COUNTIF(L33:L59,Y21) -> 0 | AA21: =Z21/(AB4-Z20) -> 0 | AB21: =IF(AA21=0,0,(AA21*((LOG(AA21))/LOG(2)))) -> 0 | AD21: =N21 -> 2221 | AE21: =COUNTIF(L60:L85,AD21) -> 0 | AF21: =AE21/(AG4-AE20) -> 0 | AG21: =IF(AF21=0,0,(AF21*((LOG(AF21))/LOG(2)))) -> 0 | AI21: =N21 -> 2221 | AJ21: =COUNTIF(L86:L111,AI21) -> 0 | AK21: =AJ21/(AL4-AJ20) -> 0 | AL21: =IF(AK21=0,0,(AK21*((LOG(AK21))/LOG(2)))) -> 0 | AN21: =N21 -> 2221 | AO21: =COUNTIF(L112:L138,AN21) -> 0 | AP21: =AO21/(AQ4-AO20) -> 0 | AQ21: =IF(AP21=0,0,(AP21*((LOG(AP21))/LOG(2)))) -> 0 | AS21: =N21 -> 2221 | AT21: =COUNTIF(L139:L164,AS21) -> 0 | AU21: =AT21/(AV4-AT20) -> 0 | AV21: =IF(AU21=0,0,(AU21*((LOG(AU21))/LOG(2)))) -> 0
A22: 12 | B22: 2069 | C22: 23 | D22: 2082 | E22: 24 | F22: 2088 | G22: 14 | H22: 2107 | K22: 0 | L22: 1221 | N22: 2222 | O22: =COUNTIF($L$7:$L$500,N22) -> 29 | P22: =O22/$Q$4 -> 0.1835443038 | Q22: =IF(P22=0,0,(P22*((LOG(P22))/LOG(2)))) -> -0.4489126129 | T22: =N22 -> 2222 | U22: =COUNTIF(L7:L32,T22) -> 2 | V22: =U22/(W4-U20) -> 0.07692307692 | W22: =IF(V22=0,0,(V22*((LOG(V22))/LOG(2)))) -> -0.2846492091 | Y22: =N22 -> 2222 | Z22: =COUNTIF(L33:L59,Y22) -> 3 | AA22: =Z22/(AB4-Z20) -> 0.1111111111 | AB22: =IF(AA22=0,0,(AA22*((LOG(AA22))/LOG(2)))) -> -0.352213889 | AD22: =N22 -> 2222 | AE22: =COUNTIF(L60:L85,AD22) -> 3 | AF22: =AE22/(AG4-AE20) -> 0.1153846154 | AG22: =IF(AF22=0,0,(AF22*((LOG(AF22))/LOG(2)))) -> -0.3594781405 | AI22: =N22 -> 2222 | AJ22: =COUNTIF(L86:L111,AI22) -> 11 | AK22: =AJ22/(AL4-AJ20) -> 0.4230769231 | AL22: =IF(AK22=0,0,(AK22*((LOG(AK22))/LOG(2)))) -> -0.5250418883 | AN22: =N22 -> 2222 | AO22: =COUNTIF(L112:L138,AN22) -> 8 | AP22: =AO22/(AQ4-AO20) -> 0.2962962963 | AQ22: =IF(AP22=0,0,(AP22*((LOG(AP22))/LOG(2)))) -> -0.5199666673 | AS22: =N22 -> 2222 | AT22: =COUNTIF(L139:L164,AS22) -> 2 | AU22: =AT22/(AV4-AT20) -> 0.07692307692 | AV22: =IF(AU22=0,0,(AU22*((LOG(AU22))/LOG(2)))) -> -0.2846492091
A23: 21 | B23: 2257 | C23: 21 | D23: 2263 | E23: 22 | F23: 2268 | G23: 23 | H23: 2274 | K23: 0 | L23: 2222 | P23: =SUM(P7:P22) -> 1 | Q23: =-SUM(Q7:Q22) -> 1.66757083 | V23: =SUM(V7:V22) -> 1 | W23: =-SUM(W7:W22) -> 1.075875646 | AA23: =SUM(AA7:AA22) -> 1 | AB23: =-SUM(AB7:AB22) -> 1.515424159 | AF23: =SUM(AF7:AF22) -> 1 | AG23: =-SUM(AG7:AG22) -> 1.192999357 | AK23: =SUM(AK7:AK22) -> 1 | AL23: =-SUM(AL7:AL22) -> 1.505312879 | AP23: =SUM(AP7:AP22) -> 1 | AQ23: =-SUM(AQ7:AQ22) -> 2.104386657 | AU23: =SUM(AU7:AU22) -> 1 | AV23: =-SUM(AV7:AV22) -> 0.8929953574
A24: 12 | B24: 2378 | C24: 14 | D24: 2383 | E24: 13 | F24: 2387 | G24: 14 | H24: 2394 | K24: 0 | L24: 1111 | P24: U= | Q24: =Q23/(LOG(Q4)/LOG(2)) -> 0.2283161129 | V24: U1= | W24: =W23/(LOG(W4)/LOG(2)) -> 0.2288882978 | AA24: U2= | AB24: =AB23/(LOG(AB4)/LOG(2)) -> 0.3187087305 | AF24: U3= | AG24: =AG23/(LOG(AG4)/LOG(2)) -> 0.253805905 | AK24: U4= | AL24: =AL23/(LOG(AL4)/LOG(2)) -> 0.3202493744 | AP24: U5= | AQ24: =AQ23/(LOG(AQ4)/LOG(2)) -> 0.4425733851 | AU24: U6= | AV24: =AV23/(LOG(AV4)/LOG(2)) -> 0.1899812381
A25: 12 | B25: 2521 | C25: 14 | D25: 2530 | E25: 13 | F25: 2537 | G25: 14 | H25: 2546 | K25: 0 | L25: 1111
A26: 12 | B26: 2835 | C26: 14 | D26: 2843 | E26: 13 | F26: 2852 | G26: 14 | H26: 2861 | K26: 0 | L26: 1111
A27: 12 | B27: 3085 | C27: 14 | D27: 3092 | E27: 13 | F27: 3100 | G27: 14 | H27: 3108 | K27: 0 | L27: 1111 | N27: Total Target Seq
A28: 21 | B28: 3221 | C28: 12 | D28: 3242 | E28: 13 | F28: 3248 | G28: 14 | H28: 3255 | K28: 0 | L28: 2111 | N28: =COUNTIF(L7:L164,G3) -> 0 | P28: 26 | Q28: 27 | R28: 26 | S28: 26 | T28: 27 | U28: 26
A29: 12 | B29: 3379 | C29: 14 | D29: 3385 | E29: 13 | F29: 3389 | G29: 14 | H29: 3394 | K29: 0 | L29: 1111 | P29: % of reinforcement given in 6 equal intervals based on number of trials
A30: 12 | B30: 3499 | C30: 14 | D30: 3505 | E30: 13 | F30: 3510 | G30: 14 | H30: 3540 | K30: 0 | L30: 1111 | P30: %_1 | Q30: %_2 | R30: %_3 | S30: %_4 | T30: %_5 | U30: %_6
A31: 12 | B31: 3642 | C31: 14 | D31: 3651 | E31: 13 | F31: 3656 | G31: 14 | H31: 3662 | K31: 0 | L31: 1111 | O31: target sequence | P31: =$G$3 -> 2212 | Q31: =$G$3 -> 2212 | R31: =$G$3 -> 2212 | S31: =$G$3 -> 2212 | T31: =$G$3 -> 2212 | U31: =$G$3 -> 2212
A32: 12 | B32: 3782 | C32: 14 | D32: 3787 | E32: 13 | F32: 3792 | G32: 14 | H32: 3797 | K32: 0 | L32: 1111 | O32: total reinforcement | P32: =U20 -> 0 | Q32: =Z20 -> 0 | R32: =AE20 -> 0 | S32: =AJ20 -> 0 | T32: =AO20 -> 0 | U32: =AT20 -> 0
A33: 12 | B33: 3901 | C33: 14 | D33: 3907 | E33: 13 | F33: 3911 | G33: 14 | H33: 3916 | K33: 0 | L33: 1111 | O33: % target
A34: 12 | B34: 4039 | C34: 14 | D34: 4043 | E34: 13 | F34: 4049 | G34: 14 | H34: 4053 | K34: 0 | L34: 1111 | O34: CCRF
A35: 12 | B35: 4156 | C35: 14 | D35: 4163 | E35: 13 | F35: 4168 | G35: 14 | H35: 4172 | K35: 0 | L35: 1111 | O35: % CCRf
A36: 12 | B36: 4346 | C36: 14 | D36: 4351 | E36: 13 | F36: 4356 | G36: 14 | H36: 4362 | K36: 0 | L36: 1111 | O36: average response rate | P36: =H32/P28 -> 146.0384615 | Q36: =(H59-H32)/Q28 -> 147.2962963 | R36: =(H85-H59)/R28 -> 134.6538462 | S36: =(H111-H85)/S28 -> 134.6538462 | T36: =(H138-H111)/T28 -> 155.037037 | U36: =(H164-H138)/U28 -> 193.1153846
A37: 12 | B37: 4467 | C37: 14 | D37: 4472 | E37: 13 | F37: 4477 | G37: 14 | H37: 4482 | K37: 0 | L37: 1111
A38: 21 | B38: 4613 | C38: 21 | D38: 4618 | E38: 22 | F38: 4623 | G38: 23 | H38: 4631 | K38: 0 | L38: 2222
A39: 21 | B39: 4734 | C39: 21 | D39: 4739 | E39: 22 | F39: 4751 | G39: 23 | H39: 4761 | K39: 0 | L39: 2222
A40: 12 | B40: 4888 | C40: 14 | D40: 4893 | E40: 13 | F40: 4897 | G40: 14 | H40: 4902 | K40: 0 | L40: 1111
A41: 12 | B41: 5007 | C41: 14 | D41: 5012 | E41: 13 | F41: 5018 | G41: 14 | H41: 5025 | K41: 0 | L41: 1111
A42: 12 | B42: 5149 | C42: 14 | D42: 5153 | E42: 13 | F42: 5158 | G42: 14 | H42: 5167 | K42: 0 | L42: 1111
A43: 12 | B43: 5280 | C43: 14 | D43: 5286 | E43: 13 | F43: 5291 | G43: 14 | H43: 5296 | K43: 0 | L43: 1111
A44: 12 | B44: 5444 | C44: 14 | D44: 5454 | E44: 13 | F44: 5462 | G44: 14 | H44: 5470 | K44: 0 | L44: 1111
A45: 21 | B45: 5624 | C45: 12 | D45: 5641 | E45: 13 | F45: 5649 | G45: 14 | H45: 5657 | K45: 0 | L45: 2111
A46: 12 | B46: 5769 | C46: 14 | D46: 5779 | E46: 13 | F46: 5787 | G46: 14 | H46: 5796 | K46: 0 | L46: 1111
A47: 12 | B47: 6009 | C47: 23 | D47: 6023 | E47: 24 | F47: 6028 | G47: 23 | H47: 6034 | K47: 0 | L47: 1222
A48: 12 | B48: 6152 | C48: 14 | D48: 6158 | E48: 13 | F48: 6164 | G48: 14 | H48: 6173 | K48: 0 | L48: 1111
A49: 21 | B49: 6341 | C49: 12 | D49: 6356 | E49: 13 | F49: 6361 | G49: 14 | H49: 6368 | K49: 0 | L49: 2111
A50: 12 | B50: 6507 | C50: 14 | D50: 6512 | E50: 13 | F50: 6517 | G50: 14 | H50: 6522 | K50: 0 | L50: 1111
A51: 12 | B51: 6649 | C51: 14 | D51: 6655 | E51: 13 | F51: 6660 | G51: 14 | H51: 6667 | K51: 0 | L51: 1111
A52: 12 | B52: 6783 | C52: 14 | D52: 6788 | E52: 13 | F52: 6794 | G52: 14 | H52: 6798 | K52: 0 | L52: 1111
A53: 12 | B53: 6962 | C53: 14 | D53: 6967 | E53: 13 | F53: 6971 | G53: 14 | H53: 6978 | K53: 0 | L53: 1111
A54: 12 | B54: 7100 | C54: 14 | D54: 7105 | E54: 13 | F54: 7111 | G54: 23 | H54: 7143 | K54: 0 | L54: 1112
A55: 12 | B55: 7242 | C55: 23 | D55: 7260 | E55: 13 | F55: 7277 | G55: 14 | H55: 7281 | K55: 0 | L55: 1211
A56: 12 | B56: 7391 | C56: 14 | D56: 7397 | E56: 13 | F56: 7402 | G56: 14 | H56: 7408 | K56: 0 | L56: 1111
A57: 21 | B57: 7524 | C57: 21 | D57: 7529 | E57: 22 | F57: 7535 | G57: 23 | H57: 7542 | K57: 0 | L57: 2222
A58: 12 | B58: 7643 | C58: 14 | D58: 7648 | E58: 13 | F58: 7654 | G58: 14 | H58: 7660 | K58: 0 | L58: 1111
A59: 12 | B59: 7759 | C59: 14 | D59: 7764 | E59: 13 | F59: 7769 | G59: 14 | H59: 7774 | K59: 0 | L59: 1111
A60: 12 | B60: 7889 | C60: 14 | D60: 7893 | E60: 13 | F60: 7898 | G60: 14 | H60: 7904 | K60: 0 | L60: 1111
A61: 12 | B61: 8003 | C61: 14 | D61: 8010 | E61: 13 | F61: 8015 | G61: 14 | H61: 8024 | K61: 0 | L61: 1111
A62: 12 | B62: 8131 | C62: 14 | D62: 8136 | E62: 13 | F62: 8141 | G62: 14 | H62: 8150 | K62: 0 | L62: 1111
A63: 12 | B63: 8261 | C63: 14 | D63: 8268 | E63: 13 | F63: 8272 | G63: 14 | H63: 8282 | K63: 0 | L63: 1111
A64: 12 | B64: 8384 | C64: 14 | D64: 8389 | E64: 13 | F64: 8395 | G64: 14 | H64: 8400 | K64: 0 | L64: 1111
A65: 12 | B65: 8503 | C65: 14 | D65: 8508 | E65: 13 | F65: 8512 | G65: 14 | H65: 8518 | K65: 0 | L65: 1111
A66: 12 | B66: 8620 | C66: 14 | D66: 8625 | E66: 13 | F66: 8632 | G66: 23 | H66: 8647 | K66: 0 | L66: 1112
A67: 12 | B67: 8756 | C67: 14 | D67: 8765 | E67: 13 | F67: 8785 | G67: 14 | H67: 8793 | K67: 0 | L67: 1111
A68: 12 | B68: 8899 | C68: 14 | D68: 8906 | E68: 13 | F68: 8910 | G68: 14 | H68: 8918 | K68: 0 | L68: 1111
A69: 12 | B69: 9023 | C69: 14 | D69: 9029 | E69: 13 | F69: 9034 | G69: 14 | H69: 9042 | K69: 0 | L69: 1111
A70: 12 | B70: 9176 | C70: 14 | D70: 9184 | E70: 13 | F70: 9192 | G70: 14 | H70: 9199 | K70: 0 | L70: 1111
A71: 12 | B71: 9310 | C71: 14 | D71: 9318 | E71: 13 | F71: 9323 | G71: 14 | H71: 9328 | K71: 0 | L71: 1111
A72: 21 | B72: 9458 | C72: 21 | D72: 9483 | E72: 22 | F72: 9491 | G72: 23 | H72: 9500 | K72: 0 | L72: 2222
A73: 21 | B73: 9610 | C73: 21 | D73: 9629 | E73: 22 | F73: 9634 | G73: 23 | H73: 9639 | K73: 0 | L73: 2222
A74: 12 | B74: 9744 | C74: 14 | D74: 9749 | E74: 13 | F74: 9754 | G74: 14 | H74: 9758 | K74: 0 | L74: 1111
A75: 12 | B75: 9873 | C75: 14 | D75: 9878 | E75: 13 | F75: 9884 | G75: 14 | H75: 9888 | K75: 0 | L75: 1111
A76: 12 | B76: 10057 | C76: 14 | D76: 10065 | E76: 13 | F76: 10072 | G76: 14 | H76: 10079 | K76: 0 | L76: 1111
A77: 12 | B77: 10188 | C77: 14 | D77: 10195 | E77: 13 | F77: 10199 | G77: 14 | H77: 10204 | K77: 0 | L77: 1111
A78: 12 | B78: 10313 | C78: 14 | D78: 10317 | E78: 13 | F78: 10322 | G78: 14 | H78: 10327 | K78: 0 | L78: 1111
A79: 12 | B79: 10434 | C79: 23 | D79: 10447 | E79: 24 | F79: 10452 | G79: 23 | H79: 10458 | K79: 0 | L79: 1222
A80: 12 | B80: 10561 | C80: 14 | D80: 10567 | E80: 24 | F80: 10582 | G80: 23 | H80: 10588 | K80: 0 | L80: 1122
A81: 12 | B81: 10702 | C81: 14 | D81: 10707 | E81: 13 | F81: 10712 | G81: 14 | H81: 10720 | K81: 0 | L81: 1111
A82: 12 | B82: 10833 | C82: 14 | D82: 10840 | E82: 13 | F82: 10845 | G82: 14 | H82: 10853 | K82: 0 | L82: 1111
A83: 12 | B83: 10980 | C83: 14 | D83: 10986 | E83: 13 | F83: 10991 | G83: 14 | H83: 10999 | K83: 0 | L83: 1111
A84: 21 | B84: 11108 | C84: 21 | D84: 11118 | E84: 22 | F84: 11133 | G84: 23 | H84: 11145 | K84: 0 | L84: 2222
A85: 12 | B85: 11248 | C85: 14 | D85: 11262 | E85: 13 | F85: 11268 | G85: 14 | H85: 11275 | K85: 0 | L85: 1111
A86: 21 | B86: 11382 | C86: 21 | D86: 11388 | E86: 11 | F86: 11405 | G86: 12 | H86: 11410 | K86: 0 | L86: 2211
A87: 12 | B87: 11510 | C87: 14 | D87: 11515 | E87: 13 | F87: 11521 | G87: 14 | H87: 11525 | K87: 0 | L87: 1111
A88: 12 | B88: 11636 | C88: 14 | D88: 11641 | E88: 13 | F88: 11646 | G88: 14 | H88: 11651 | K88: 0 | L88: 1111
A89: 12 | B89: 11764 | C89: 14 | D89: 11768 | E89: 13 | F89: 11773 | G89: 14 | H89: 11778 | K89: 0 | L89: 1111
A90: 21 | B90: 11886 | C90: 21 | D90: 11892 | E90: 22 | F90: 11898 | G90: 23 | H90: 11907 | K90: 0 | L90: 2222
A91: 12 | B91: 12006 | C91: 14 | D91: 12007 | E91: 13 | F91: 12013 | G91: 14 | H91: 12019 | K91: 0 | L91: 1111
A92: 12 | B92: 12140 | C92: 14 | D92: 12145 | E92: 13 | F92: 12151 | G92: 14 | H92: 12156 | K92: 0 | L92: 1111
A93: 21 | B93: 12274 | C93: 21 | D93: 12279 | E93: 22 | F93: 12285 | G93: 23 | H93: 12295 | K93: 0 | L93: 2222
A94: 21 | B94: 12405 | C94: 21 | D94: 12411 | E94: 22 | F94: 12417 | G94: 23 | H94: 12425 | K94: 0 | L94: 2222
A95: 21 | B95: 12538 | C95: 21 | D95: 12544 | E95: 22 | F95: 12554 | G95: 23 | H95: 12562 | K95: 0 | L95: 2222
A96: 12 | B96: 12674 | C96: 14 | D96: 12679 | E96: 13 | F96: 12685 | G96: 14 | H96: 12690 | K96: 0 | L96: 1111
A97: 21 | B97: 12801 | C97: 21 | D97: 12807 | E97: 22 | F97: 12814 | G97: 23 | H97: 12822 | K97: 0 | L97: 2222
A98: 12 | B98: 12949 | C98: 14 | D98: 12955 | E98: 13 | F98: 12960 | G98: 14 | H98: 12969 | K98: 0 | L98: 1111
A99: 12 | B99: 13085 | C99: 14 | D99: 13089 | E99: 13 | F99: 13094 | G99: 14 | H99: 13103 | K99: 0 | L99: 1111
A100: 21 | B100: 13212 | C100: 21 | D100: 13218 | E100: 22 | F100: 13224 | G100: 23 | H100: 13232 | K100: 0 | L100: 2222
A101: 21 | B101: 13344 | C101: 21 | D101: 13348 | E101: 22 | F101: 13353 | G101: 23 | H101: 13358 | K101: 0 | L101: 2222
A102: 21 | B102: 13472 | C102: 21 | D102: 13477 | E102: 22 | F102: 13482 | G102: 23 | H102: 13487 | K102: 0 | L102: 2222
A103: 21 | B103: 13598 | C103: 21 | D103: 13604 | E103: 22 | F103: 13609 | G103: 23 | H103: 13616 | K103: 0 | L103: 2222
A104: 21 | B104: 13741 | C104: 21 | D104: 13749 | E104: 22 | F104: 13757 | G104: 23 | H104: 13769 | K104: 0 | L104: 2222
A105: 12 | B105: 13883 | C105: 14 | D105: 13888 | E105: 13 | F105: 13893 | G105: 14 | H105: 13901 | K105: 0 | L105: 1111
A106: 12 | B106: 14022 | C106: 23 | D106: 14039 | E106: 24 | F106: 14050 | G106: 23 | H106: 14061 | K106: 0 | L106: 1222
A107: 21 | B107: 14173 | C107: 21 | D107: 14177 | E107: 22 | F107: 14182 | G107: 23 | H107: 14189 | K107: 0 | L107: 2222
A108: 12 | B108: 14316 | C108: 14 | D108: 14323 | E108: 13 | F108: 14328 | G108: 14 | H108: 14338 | K108: 0 | L108: 1111
A109: 12 | B109: 14452 | C109: 14 | D109: 14457 | E109: 13 | F109: 14462 | G109: 14 | H109: 14467 | K109: 0 | L109: 1111
A110: 21 | B110: 14614 | C110: 21 | D110: 14622 | E110: 11 | F110: 14641 | G110: 12 | H110: 14649 | K110: 0 | L110: 2211
A111: 12 | B111: 14758 | C111: 14 | D111: 14763 | E111: 13 | F111: 14768 | G111: 14 | H111: 14776 | K111: 0 | L111: 1111
A112: 12 | B112: 14886 | C112: 14 | D112: 14891 | E112: 13 | F112: 14903 | G112: 14 | H112: 14908 | K112: 0 | L112: 1111
A113: 21 | B113: 15041 | C113: 12 | D113: 15054 | E113: 13 | F113: 15060 | G113: 14 | H113: 15065 | K113: 0 | L113: 2111
A114: 12 | B114: 15179 | C114: 14 | D114: 15184 | E114: 24 | F114: 15197 | G114: 23 | H114: 15211 | K114: 0 | L114: 1122
A115: 12 | B115: 15320 | C115: 14 | D115: 15326 | E115: 13 | F115: 15330 | G115: 14 | H115: 15337 | K115: 0 | L115: 1111
A116: 21 | B116: 15446 | C116: 21 | D116: 15451 | E116: 22 | F116: 15457 | G116: 23 | H116: 15462 | K116: 0 | L116: 2222
A117: 12 | B117: 15639 | C117: 14 | D117: 15646 | E117: 13 | F117: 15650 | G117: 14 | H117: 15655 | K117: 0 | L117: 1111
A118: 12 | B118: 15766 | C118: 14 | D118: 15771 | E118: 13 | F118: 15775 | G118: 14 | H118: 15780 | K118: 0 | L118: 1111
A119: 21 | B119: 15877 | C119: 12 | D119: 15890 | E119: 13 | F119: 15896 | G119: 14 | H119: 15900 | K119: 0 | L119: 2111
A120: 12 | B120: 16009 | C120: 23 | D120: 16023 | E120: 24 | F120: 16031 | G120: 23 | H120: 16037 | K120: 0 | L120: 1222
A121: 21 | B121: 16170 | C121: 21 | D121: 16175 | E121: 22 | F121: 16183 | G121: 23 | H121: 16189 | K121: 0 | L121: 2222
A122: 12 | B122: 16317 | C122: 14 | D122: 16323 | E122: 13 | F122: 16328 | G122: 14 | H122: 16332 | K122: 0 | L122: 1111
A123: 21 | B123: 16546 | C123: 21 | D123: 16555 | E123: 22 | F123: 16569 | G123: 23 | H123: 16582 | K123: 0 | L123: 2222
A124: 21 | B124: 16711 | C124: 21 | D124: 16717 | E124: 22 | F124: 16723 | G124: 23 | H124: 16736 | K124: 0 | L124: 2222
A125: 21 | B125: 16877 | C125: 21 | D125: 16884 | E125: 22 | F125: 16920 | G125: 23 | H125: 16928 | K125: 0 | L125: 2222
A126: 12 | B126: 17051 | C126: 23 | D126: 17063 | E126: 24 | F126: 17068 | G126: 23 | H126: 17073 | K126: 0 | L126: 1222
A127: 12 | B127: 17270 | C127: 14 | D127: 17275 | E127: 13 | F127: 17280 | G127: 14 | H127: 17286 | K127: 0 | L127: 1111
A128: 21 | B128: 17430 | C128: 21 | D128: 17435 | E128: 22 | F128: 17444 | G128: 23 | H128: 17455 | K128: 0 | L128: 2222
A129: 12 | B129: 17564 | C129: 14 | D129: 17569 | E129: 13 | F129: 17577 | G129: 14 | H129: 17585 | K129: 0 | L129: 1111
A130: 21 | B130: 17722 | C130: 21 | D130: 17731 | E130: 22 | F130: 17749 | G130: 23 | H130: 17757 | K130: 0 | L130: 2222
A131: 21 | B131: 17882 | C131: 12 | D131: 17895 | E131: 13 | F131: 17900 | G131: 14 | H131: 17905 | K131: 0 | L131: 2111
A132: 12 | B132: 18022 | C132: 14 | D132: 18038 | E132: 13 | F132: 18046 | G132: 14 | H132: 18050 | K132: 0 | L132: 1111
A133: 12 | B133: 18167 | C133: 14 | D133: 18171 | E133: 13 | F133: 18175 | G133: 14 | H133: 18180 | K133: 0 | L133: 1111
A134: 12 | B134: 18348 | C134: 14 | D134: 18354 | E134: 13 | F134: 18359 | G134: 14 | H134: 18367 | K134: 0 | L134: 1111
A135: 12 | B135: 18472 | C135: 23 | D135: 18488 | E135: 24 | F135: 18493 | G135: 23 | H135: 18499 | K135: 0 | L135: 1222
A136: 21 | B136: 18632 | C136: 21 | D136: 18636 | E136: 11 | F136: 18651 | G136: 12 | H136: 18656 | K136: 0 | L136: 2211
A137: 12 | B137: 18760 | C137: 14 | D137: 18765 | E137: 13 | F137: 18769 | G137: 14 | H137: 18773 | K137: 0 | L137: 1111
A138: 21 | B138: 18947 | C138: 21 | D138: 18952 | E138: 22 | F138: 18957 | G138: 23 | H138: 18962 | K138: 0 | L138: 2222
A139: 12 | B139: 19076 | C139: 14 | D139: 19081 | E139: 13 | F139: 19086 | G139: 14 | H139: 19090 | K139: 0 | L139: 1111
A140: 12 | B140: 19272 | C140: 14 | D140: 19277 | E140: 13 | F140: 19282 | G140: 14 | H140: 19288 | K140: 0 | L140: 1111
A141: 12 | B141: 19406 | C141: 14 | D141: 19431 | E141: 13 | F141: 19436 | G141: 14 | H141: 19445 | K141: 0 | L141: 1111
A142: 12 | B142: 19720 | C142: 14 | D142: 19725 | E142: 13 | F142: 19729 | G142: 14 | H142: 19734 | K142: 0 | L142: 1111
A143: 12 | B143: 19871 | C143: 14 | D143: 19876 | E143: 13 | F143: 19881 | G143: 14 | H143: 19887 | K143: 0 | L143: 1111
A144: 12 | B144: 20025 | C144: 14 | D144: 20030 | E144: 13 | F144: 20038 | G144: 14 | H144: 20042 | K144: 0 | L144: 1111
A145: 12 | B145: 20323 | C145: 14 | D145: 20329 | E145: 13 | F145: 20334 | G145: 14 | H145: 20338 | K145: 0 | L145: 1111
A146: 12 | B146: 20489 | C146: 14 | D146: 20493 | E146: 13 | F146: 20499 | G146: 14 | H146: 20504 | K146: 0 | L146: 1111
A147: 12 | B147: 20711 | C147: 14 | D147: 20715 | E147: 13 | F147: 20719 | G147: 14 | H147: 20724 | K147: 0 | L147: 1111
A148: 12 | B148: 20907 | C148: 14 | D148: 20913 | E148: 13 | F148: 20921 | G148: 14 | H148: 20930 | K148: 0 | L148: 1111
A149: 12 | B149: 21173 | C149: 14 | D149: 21177 | E149: 13 | F149: 21182 | G149: 14 | H149: 21188 | K149: 0 | L149: 1111
A150: 21 | B150: 21363 | C150: 12 | D150: 21375 | E150: 13 | F150: 21380 | G150: 14 | H150: 21386 | K150: 0 | L150: 2111
A151: 21 | B151: 21524 | C151: 12 | D151: 21536 | E151: 13 | F151: 21541 | G151: 14 | H151: 21545 | K151: 0 | L151: 2111
A152: 21 | B152: 21668 | C152: 12 | D152: 21680 | E152: 13 | F152: 21685 | G152: 14 | H152: 21690 | K152: 0 | L152: 2111
A153: 12 | B153: 21821 | C153: 14 | D153: 21826 | E153: 13 | F153: 21831 | G153: 14 | H153: 21835 | K153: 0 | L153: 1111
A154: 12 | B154: 21980 | C154: 14 | D154: 21985 | E154: 13 | F154: 21990 | G154: 14 | H154: 21996 | K154: 0 | L154: 1111
A155: 12 | B155: 22275 | C155: 14 | D155: 22280 | E155: 13 | F155: 22285 | G155: 14 | H155: 22290 | K155: 0 | L155: 1111
A156: 21 | B156: 22535 | C156: 21 | D156: 22567 | E156: 22 | F156: 22578 | G156: 23 | H156: 22587 | K156: 0 | L156: 2222
A157: 12 | B157: 22698 | C157: 14 | D157: 22706 | E157: 13 | F157: 22711 | G157: 14 | H157: 22716 | K157: 0 | L157: 1111
A158: 12 | B158: 22844 | C158: 14 | D158: 22849 | E158: 13 | F158: 22854 | G158: 14 | H158: 22859 | K158: 0 | L158: 1111
A159: 12 | B159: 23065 | C159: 14 | D159: 23071 | E159: 13 | F159: 23075 | G159: 14 | H159: 23080 | K159: 0 | L159: 1111
A160: 21 | B160: 23257 | C160: 21 | D160: 23266 | E160: 22 | F160: 23274 | G160: 23 | H160: 23288 | K160: 0 | L160: 2222
A161: 12 | B161: 23443 | C161: 14 | D161: 23448 | E161: 13 | F161: 23453 | G161: 14 | H161: 23458 | K161: 0 | L161: 1111
A162: 12 | B162: 23648 | C162: 14 | D162: 23655 | E162: 13 | F162: 23662 | G162: 14 | H162: 23669 | K162: 0 | L162: 1111
A163: 12 | B163: 23826 | C163: 14 | D163: 23832 | E163: 13 | F163: 23837 | G163: 14 | H163: 23842 | K163: 0 | L163: 1111
A164: 12 | B164: 23969 | C164: 14 | D164: 23974 | E164: 13 | F164: 23978 | G164: 14 | H164: 23983 | L164: 1111

Sheet !MB13900.091
A1: Report for:!MB13900.091
A2: Date: | B2: <date>
A3: Hen: | B3: <hen> | F3: Correct Sequence | G3: =Start!J2 -> 2212 | P3: Total Sequences in Data | Q3: =4994-COUNTBLANK(L7:L5000) -> 156 | V3: Total Sequences in Block Data | W3: =COUNTA(L7:L32) -> 26 | AA3: Total Sequences in Block Data | AB3: =COUNTA(L33:L58) -> 26 | AF3: Total Sequences in Block Data | AG3: =COUNTA(L59:L84) -> 26 | AK3: Total Sequences in Block Data | AL3: =COUNTA(L85:L110) -> 26 | AP3: Total Sequences in Block Data | AQ3: =COUNTA(L111:L136) -> 26 | AU3: Total Sequences in Block Data | AV3: =COUNTA(L137:L162) -> 26
P4: Total Sequences in Summary | Q4: =SUM(O7:O22) -> 156 | V4: Total Sequences in Block Summary | W4: =SUM(U7:U22) -> 26 | AA4: Total Sequences in Block Summary | AB4: =SUM(Z7:Z22) -> 26 | AF4: Total Sequences in Block Summary | AG4: =SUM(AE7:AE22) -> 26 | AK4: Total Sequences in Block Summary | AL4: =SUM(AJ7:AJ22) -> 26 | AP4: Total Sequences in Block Summary | AQ4: =SUM(AO7:AO22) -> 26 | AU4: Total Sequences in Block Summary | AV4: =SUM(AT7:AT22) -> 26
T5: Block 1 | Y5: Block 2 | AD5: Block 3 | AI5: Block 4 | AN5: Block 5 | AS5: Block 6
A6: Sequence Component 1 | B6: Time 1 | C6: Sequence Component 2 | D6: Time 2 | E6: Sequence Component 3 | F6: Time 3 | G6: Sequence Component 4 | H6: Time 4 | I6: Sequence Component 5 | J6: Time 5 | K6: Correct? 0=No 1=Yes | L6: Sequence | N6: Frequency | P6: Relative Frequency | Q6: Variability | T6: Frequency | V6: Relative Frequency | W6: Variability | Y6: Frequency | AA6: Relative Frequency | AB6: Variability | AD6: Frequency | AF6: Relative Frequency | AG6: Variability | AI6: Frequency | AK6: Relative Frequency | AL6: Variability | AN6: Frequency | AP6: Relative Frequency | AQ6: Variability | AS6: Frequency | AU6: Relative Frequency | AV6: Variability
A7: 12 | B7: 20 | C7: 14 | D7: 29 | E7: 13 | F7: 37 | G7: 14 | H7: 45 | K7: 0 | L7: 1111 | N7: 1111 | O7: =COUNTIF($L$7:$L$500,N7) -> 104 | P7: =O7/$Q$4 -> 0.6666666667 | Q7: =IF(P7=0,0,(P7*((LOG(P7))/LOG(2)))) -> -0.3899750005 | T7: =N7 -> 1111 | U7: =COUNTIF(L7:L32,T7) -> 20 | V7: =U7/(W4-U20) -> 0.7692307692 | W7: =IF(V7=0,0,(V7*((LOG(V7))/LOG(2)))) -> -0.2911627871 | Y7: =N7 -> 1111 | Z7: =COUNTIF(L33:L58,Y7) -> 17 | AA7: =Z7/(AB4-Z20) -> 0.6538461538 | AB7: =IF(AA7=0,0,(AA7*((LOG(AA7))/LOG(2)))) -> -0.4007925734 | AD7: =N7 -> 1111 | AE7: =COUNTIF(L59:L84,AD7) -> 20 | AF7: =AE7/(AG4-AE20) -> 0.7692307692 | AG7: =IF(AF7=0,0,(AF7*((LOG(AF7))/LOG(2)))) -> -0.2911627871 | AI7: =N7 -> 1111 | AJ7: =COUNTIF(L85:L110,AI7) -> 13 | AK7: =AJ7/(AL4-AJ20) -> 0.5 | AL7: =IF(AK7=0,0,(AK7*((LOG(AK7))/LOG(2)))) -> -0.5 | AN7: =N7 -> 1111 | AO7: =COUNTIF(L111:L136,AN7) -> 17 | AP7: =AO7/(AQ4-AO20) -> 0.6538461538 | AQ7: =IF(AP7=0,0,(AP7*((LOG(AP7))/LOG(2)))) -> -0.4007925734 | AS7: =N7 -> 1111 | AT7: =COUNTIF(L137:L162,AS7) -> 17 | AU7: =AT7/(AV4-AT20) -> 0.6538461538 | AV7: =IF(AU7=0,0,(AU7*((LOG(AU7))/LOG(2)))) -> -0.4007925734
A8: 12 | B8: 149 | C8: 14 | D8: 160 | E8: 13 | F8: 183 | G8: 14 | H8: 190 | K8: 0 | L8: 1111 | N8: 1112 | O8: =COUNTIF($L$7:$L$500,N8) -> 0 | P8: =O8/$Q$4 -> 0 | Q8: =IF(P8=0,0,(P8*((LOG(P8))/LOG(2)))) -> 0 | T8: =N8 -> 1112 | U8: =COUNTIF(L7:L32,T8) -> 0 | V8: =U8/(W4-U20) -> 0 | W8: =IF(V8=0,0,(V8*((LOG(V8))/LOG(2)))) -> 0 | Y8: =N8 -> 1112 | Z8: =COUNTIF(L33:L58,Y8) -> 0 | AA8: =Z8/(AB4-Z20) -> 0 | AB8: =IF(AA8=0,0,(AA8*((LOG(AA8))/LOG(2)))) -> 0 | AD8: =N8 -> 1112 | AE8: =COUNTIF(L59:L84,AD8) -> 0 | AF8: =AE8/(AG4-AE20) -> 0 | AG8: =IF(AF8=0,0,(AF8*((LOG(AF8))/LOG(2)))) -> 0 | AI8: =N8 -> 1112 | AJ8: =COUNTIF(L85:L110,AI8) -> 0 | AK8: =AJ8/(AL4-AJ20) -> 0 | AL8: =IF(AK8=0,0,(AK8*((LOG(AK8))/LOG(2)))) -> 0 | AN8: =N8 -> 1112 | AO8: =COUNTIF(L111:L136,AN8) -> 0 | AP8: =AO8/(AQ4-AO20) -> 0 | AQ8: =IF(AP8=0,0,(AP8*((LOG(AP8))/LOG(2)))) -> 0 | AS8: =N8 -> 1112 | AT8: =COUNTIF(L137:L162,AS8) -> 0 | AU8: =AT8/(AV4-AT20) -> 0 | AV8: =IF(AU8=0,0,(AU8*((LOG(AU8))/LOG(2)))) -> 0
A9: 12 | B9: 302 | C9: 14 | D9: 306 | E9: 13 | F9: 312 | G9: 14 | H9: 321 | K9: 0 | L9: 1111 | N9: 1121 | O9: =COUNTIF($L$7:$L$500,N9) -> 0 | P9: =O9/$Q$4 -> 0 | Q9: =IF(P9=0,0,(P9*((LOG(P9))/LOG(2)))) -> 0 | T9: =N9 -> 1121 | U9: =COUNTIF(L7:L32,T9) -> 0 | V9: =U9/(W4-U20) -> 0 | W9: =IF(V9=0,0,(V9*((LOG(V9))/LOG(2)))) -> 0 | Y9: =N9 -> 1121 | Z9: =COUNTIF(L33:L58,Y9) -> 0 | AA9: =Z9/(AB4-Z20) -> 0 | AB9: =IF(AA9=0,0,(AA9*((LOG(AA9))/LOG(2)))) -> 0 | AD9: =N9 -> 1121 | AE9: =COUNTIF(L59:L84,AD9) -> 0 | AF9: =AE9/(AG4-AE20) -> 0 | AG9: =IF(AF9=0,0,(AF9*((LOG(AF9))/LOG(2)))) -> 0 | AI9: =N9 -> 1121 | AJ9: =COUNTIF(L85:L110,AI9) -> 0 | AK9: =AJ9/(AL4-AJ20) -> 0 | AL9: =IF(AK9=0,0,(AK9*((LOG(AK9))/LOG(2)))) -> 0 | AN9: =N9 -> 1121 | AO9: =COUNTIF(L111:L136,AN9) -> 0 | AP9: =AO9/(AQ4-AO20) -> 0 | AQ9: =IF(AP9=0,0,(AP9*((LOG(AP9))/LOG(2)))) -> 0 | AS9: =N9 -> 1121 | AT9: =COUNTIF(L137:L162,AS9) -> 0 | AU9: =AT9/(AV4-AT20) -> 0 | AV9: =IF(AU9=0,0,(AU9*((LOG(AU9))/LOG(2)))) -> 0
A10: 12 | B10: 440 | C10: 14 | D10: 446 | E10: 13 | F10: 450 | G10: 14 | H10: 459 | K10: 0 | L10: 1111 | N10: 1122 | O10: =COUNTIF($L$7:$L$500,N10) -> 1 | P10: =O10/$Q$4 -> 0.00641025641 | Q10: =IF(P10=0,0,(P10*((LOG(P10))/LOG(2)))) -> -0.04670129627 | T10: =N10 -> 1122 | U10: =COUNTIF(L7:L32,T10) -> 0 | V10: =U10/(W4-U20) -> 0 | W10: =IF(V10=0,0,(V10*((LOG(V10))/LOG(2)))) -> 0 | Y10: =N10 -> 1122 | Z10: =COUNTIF(L33:L58,Y10) -> 0 | AA10: =Z10/(AB4-Z20) -> 0 | AB10: =IF(AA10=0,0,(AA10*((LOG(AA10))/LOG(2)))) -> 0 | AD10: =N10 -> 1122 | AE10: =COUNTIF(L59:L84,AD10) -> 0 | AF10: =AE10/(AG4-AE20) -> 0 | AG10: =IF(AF10=0,0,(AF10*((LOG(AF10))/LOG(2)))) -> 0 | AI10: =N10 -> 1122 | AJ10: =COUNTIF(L85:L110,AI10) -> 1 | AK10: =AJ10/(AL4-AJ20) -> 0.03846153846 | AL10: =IF(AK10=0,0,(AK10*((LOG(AK10))/LOG(2)))) -> -0.180786143 | AN10: =N10 -> 1122 | AO10: =COUNTIF(L111:L136,AN10) -> 0 | AP10: =AO10/(AQ4-AO20) -> 0 | AQ10: =IF(AP10=0,0,(AP10*((LOG(AP10))/LOG(2)))) -> 0 | AS10: =N10 -> 1122 | AT10: =COUNTIF(L137:L162,AS10) -> 0 | AU10: =AT10/(AV4-AT20) -> 0 | AV10: =IF(AU10=0,0,(AU10*((LOG(AU10))/LOG(2)))) -> 0
A11: 21 | B11: 574 | C11: 12 | D11: 588 | E11: 13 | F11: 593 | G11: 14 | H11: 599 | K11: 0 | L11: 2111 | N11: 1211 | O11: =COUNTIF($L$7:$L$500,N11) -> 3 | P11: =O11/$Q$4 -> 0.01923076923 | Q11: =IF(P11=0,0,(P11*((LOG(P11))/LOG(2)))) -> -0.1096238407 | T11: =N11 -> 1211 | U11: =COUNTIF(L7:L32,T11) -> 0 | V11: =U11/(W4-U20) -> 0 | W11: =IF(V11=0,0,(V11*((LOG(V11))/LOG(2)))) -> 0 | Y11: =N11 -> 1211 | Z11: =COUNTIF(L33:L58,Y11) -> 1 | AA11: =Z11/(AB4-Z20) -> 0.03846153846 | AB11: =IF(AA11=0,0,(AA11*((LOG(AA11))/LOG(2)))) -> -0.180786143 | AD11: =N11 -> 1211 | AE11: =COUNTIF(L59:L84,AD11) -> 0 | AF11: =AE11/(AG4-AE20) -> 0 | AG11: =IF(AF11=0,0,(AF11*((LOG(AF11))/LOG(2)))) -> 0 | AI11: =N11 -> 1211 | AJ11: =COUNTIF(L85:L110,AI11) -> 1 | AK11: =AJ11/(AL4-AJ20) -> 0.03846153846 | AL11: =IF(AK11=0,0,(AK11*((LOG(AK11))/LOG(2)))) -> -0.180786143 | AN11: =N11 -> 1211 | AO11: =COUNTIF(L111:L136,AN11) -> 1 | AP11: =AO11/(AQ4-AO20) -> 0.03846153846 | AQ11: =IF(AP11=0,0,(AP11*((LOG(AP11))/LOG(2)))) -> -0.180786143 | AS11: =N11 -> 1211 | AT11: =COUNTIF(L137:L162,AS11) -> 0 | AU11: =AT11/(AV4-AT20) -> 0 | AV11: =IF(AU11=0,0,(AU11*((LOG(AU11))/LOG(2)))) -> 0
A12: 12 | B12: 700 | C12: 14 | D12: 705 | E12: 13 | F12: 710 | G12: 14 | H12: 716 | K12: 0 | L12: 1111 | N12: 1212 | O12: =COUNTIF($L$7:$L$500,N12) -> 0 | P12: =O12/$Q$4 -> 0 | Q12: =IF(P12=0,0,(P12*((LOG(P12))/LOG(2)))) -> 0 | T12: =N12 -> 1212 | U12: =COUNTIF(L7:L32,T12) -> 0 | V12: =U12/(W4-U20) -> 0 | W12: =IF(V12=0,0,(V12*((LOG(V12))/LOG(2)))) -> 0 | Y12: =N12 -> 1212 | Z12: =COUNTIF(L33:L58,Y12) -> 0 | AA12: =Z12/(AB4-Z20) -> 0 | AB12: =IF(AA12=0,0,(AA12*((LOG(AA12))/LOG(2)))) -> 0 | AD12: =N12 -> 1212 | AE12: =COUNTIF(L59:L84,AD12) -> 0 | AF12: =AE12/(AG4-AE20) -> 0 | AG12: =IF(AF12=0,0,(AF12*((LOG(AF12))/LOG(2)))) -> 0 | AI12: =N12 -> 1212 | AJ12: =COUNTIF(L85:L110,AI12) -> 0 | AK12: =AJ12/(AL4-AJ20) -> 0 | AL12: =IF(AK12=0,0,(AK12*((LOG(AK12))/LOG(2)))) -> 0 | AN12: =N12 -> 1212 | AO12: =COUNTIF(L111:L136,AN12) -> 0 | AP12: =AO12/(AQ4-AO20) -> 0 | AQ12: =IF(AP12=0,0,(AP12*((LOG(AP12))/LOG(2)))) -> 0 | AS12: =N12 -> 1212 | AT12: =COUNTIF(L137:L162,AS12) -> 0 | AU12: =AT12/(AV4-AT20) -> 0 | AV12: =IF(AU12=0,0,(AU12*((LOG(AU12))/LOG(2)))) -> 0
A13: 12 | B13: 819 | C13: 14 | D13: 825 | E13: 13 | F13: 834 | G13: 14 | H13: 842 | K13: 0 | L13: 1111 | N13: 1221 | O13: =COUNTIF($L$7:$L$500,N13) -> 0 | P13: =O13/$Q$4 -> 0 | Q13: =IF(P13=0,0,(P13*((LOG(P13))/LOG(2)))) -> 0 | T13: =N13 -> 1221 | U13: =COUNTIF(L7:L32,T13) -> 0 | V13: =U13/(W4-U20) -> 0 | W13: =IF(V13=0,0,(V13*((LOG(V13))/LOG(2)))) -> 0 | Y13: =N13 -> 1221 | Z13: =COUNTIF(L33:L58,Y13) -> 0 | AA13: =Z13/(AB4-Z20) -> 0 | AB13: =IF(AA13=0,0,(AA13*((LOG(AA13))/LOG(2)))) -> 0 | AD13: =N13 -> 1221 | AE13: =COUNTIF(L59:L84,AD13) -> 0 | AF13: =AE13/(AG4-AE20) -> 0 | AG13: =IF(AF13=0,0,(AF13*((LOG(AF13))/LOG(2)))) -> 0 | AI13: =N13 -> 1221 | AJ13: =COUNTIF(L85:L110,AI13) -> 0 | AK13: =AJ13/(AL4-AJ20) -> 0 | AL13: =IF(AK13=0,0,(AK13*((LOG(AK13))/LOG(2)))) -> 0 | AN13: =N13 -> 1221 | AO13: =COUNTIF(L111:L136,AN13) -> 0 | AP13: =AO13/(AQ4-AO20) -> 0 | AQ13: =IF(AP13=0,0,(AP13*((LOG(AP13))/LOG(2)))) -> 0 | AS13: =N13 -> 1221 | AT13: =COUNTIF(L137:L162,AS13) -> 0 | AU13: =AT13/(AV4-AT20) -> 0 | AV13: =IF(AU13=0,0,(AU13*((LOG(AU13))/LOG(2)))) -> 0
A14: 12 | B14: 944 | C14: 14 | D14: 950 | E14: 13 | F14: 958 | G14: 14 | H14: 965 | K14: 0 | L14: 1111 | N14: 1222 | O14: =COUNTIF($L$7:$L$500,N14) -> 7 | P14: =O14/$Q$4 -> 0.04487179487 | Q14: =IF(P14=0,0,(P14*((LOG(P14))/LOG(2)))) -> -0.2009380197 | T14: =N14 -> 1222 | U14: =COUNTIF(L7:L32,T14) -> 0 | V14: =U14/(W4-U20) -> 0 | W14: =IF(V14=0,0,(V14*((LOG(V14))/LOG(2)))) -> 0 | Y14: =N14 -> 1222 | Z14: =COUNTIF(L33:L58,Y14) -> 1 | AA14: =Z14/(AB4-Z20) -> 0.03846153846 | AB14: =IF(AA14=0,0,(AA14*((LOG(AA14))/LOG(2)))) -> -0.180786143 | AD14: =N14 -> 1222 | AE14: =COUNTIF(L59:L84,AD14) -> 0 | AF14: =AE14/(AG4-AE20) -> 0 | AG14: =IF(AF14=0,0,(AF14*((LOG(AF14))/LOG(2)))) -> 0 | AI14: =N14 -> 1222 | AJ14: =COUNTIF(L85:L110,AI14) -> 3 | AK14: =AJ14/(AL4-AJ20) -> 0.1153846154 | AL14: =IF(AK14=0,0,(AK14*((LOG(AK14))/LOG(2)))) -> -0.3594781405 | AN14: =N14 -> 1222 | AO14: =COUNTIF(L111:L136,AN14) -> 1 | AP14: =AO14/(AQ4-AO20) -> 0.03846153846 | AQ14: =IF(AP14=0,0,(AP14*((LOG(AP14))/LOG(2)))) -> -0.180786143 | AS14: =N14 -> 1222 | AT14: =COUNTIF(L137:L162,AS14) -> 2 | AU14: =AT14/(AV4-AT20) -> 0.07692307692 | AV14: =IF(AU14=0,0,(AU14*((LOG(AU14))/LOG(2)))) -> -0.2846492091
A15: 12 | B15: 1070 | C15: 14 | D15: 1076 | E15: 13 | F15: 1084 | G15: 14 | H15: 1092 | K15: 0 | L15: 1111 | N15: 2111 | O15: =COUNTIF($L$7:$L$500,N15) -> 15 | P15: =O15/$Q$4 -> 0.09615384615 | Q15: =IF(P15=0,0,(P15*((LOG(P15))/LOG(2)))) -> -0.3248568869 | T15: =N15 -> 2111 | U15: =COUNTIF(L7:L32,T15) -> 2 | V15: =U15/(W4-U20) -> 0.07692307692 | W15: =IF(V15=0,0,(V15*((LOG(V15))/LOG(2)))) -> -0.2846492091 | Y15: =N15 -> 2111 | Z15: =COUNTIF(L33:L58,Y15) -> 1 | AA15: =Z15/(AB4-Z20) -> 0.03846153846 | AB15: =IF(AA15=0,0,(AA15*((LOG(AA15))/LOG(2)))) -> -0.180786143 | AD15: =N15 -> 2111 | AE15: =COUNTIF(L59:L84,AD15) -> 2 | AF15: =AE15/(AG4-AE20) -> 0.07692307692 | AG15: =IF(AF15=0,0,(AF15*((LOG(AF15))/LOG(2)))) -> -0.2846492091 | AI15: =N15 -> 2111 | AJ15: =COUNTIF(L85:L110,AI15) -> 2 | AK15: =AJ15/(AL4-AJ20) -> 0.07692307692 | AL15: =IF(AK15=0,0,(AK15*((LOG(AK15))/LOG(2)))) -> -0.2846492091 | AN15: =N15 -> 2111 | AO15: =COUNTIF(L111:L136,AN15) -> 4 | AP15: =AO15/(AQ4-AO20) -> 0.1538461538 | AQ15: =IF(AP15=0,0,(AP15*((LOG(AP15))/LOG(2)))) -> -0.4154522643 | AS15: =N15 -> 2111 | AT15: =COUNTIF(L137:L162,AS15) -> 4 | AU15: =AT15/(AV4-AT20) -> 0.1538461538 | AV15: =IF(AU15=0,0,(AU15*((LOG(AU15))/LOG(2)))) -> -0.4154522643
A16: 21 | B16: 1206 | C16: 21 | D16: 1212 | E16: 22 | F16: 1221 | G16: 23 | H16: 1229 | K16: 0 | L16: 2222 | N16: 2112 | O16: =COUNTIF($L$7:$L$500,N16) -> 0 | P16: =O16/$Q$4 -> 0 | Q16: =IF(P16=0,0,(P16*((LOG(P16))/LOG(2)))) -> 0 | T16: =N16 -> 2112 | U16: =COUNTIF(L7:L32,T16) -> 0 | V16: =U16/(W4-U20) -> 0 | W16: =IF(V16=0,0,(V16*((LOG(V16))/LOG(2)))) -> 0 | Y16: =N16 -> 2112 | Z16: =COUNTIF(L33:L58,Y16) -> 0 | AA16: =Z16/(AB4-Z20) -> 0 | AB16: =IF(AA16=0,0,(AA16*((LOG(AA16))/LOG(2)))) -> 0 | AD16: =N16 -> 2112 | AE16: =COUNTIF(L59:L84,AD16) -> 0 | AF16: =AE16/(AG4-AE20) -> 0 | AG16: =IF(AF16=0,0,(AF16*((LOG(AF16))/LOG(2)))) -> 0 | AI16: =N16 -> 2112 | AJ16: =COUNTIF(L85:L110,AI16) -> 0 | AK16: =AJ16/(AL4-AJ20) -> 0 | AL16: =IF(AK16=0,0,(AK16*((LOG(AK16))/LOG(2)))) -> 0 | AN16: =N16 -> 2112 | AO16: =COUNTIF(L111:L136,AN16) -> 0 | AP16: =AO16/(AQ4-AO20) -> 0 | AQ16: =IF(AP16=0,0,(AP16*((LOG(AP16))/LOG(2)))) -> 0 | AS16: =N16 -> 2112 | AT16: =COUNTIF(L137:L162,AS16) -> 0 | AU16: =AT16/(AV4-AT20) -> 0 | AV16: =IF(AU16=0,0,(AU16*((LOG(AU16))/LOG(2)))) -> 0
A17: 12 | B17: 1342 | C17: 14 | D17: 1347 | E17: 13 | F17: 1352 | G17: 14 | H17: 1359 | K17: 0 | L17: 1111 | N17: 2121 | O17: =COUNTIF($L$7:$L$500,N17) -> 0 | P17: =O17/$Q$4 -> 0 | Q17: =IF(P17=0,0,(P17*((LOG(P17))/LOG(2)))) -> 0 | T17: =N17 -> 2121 | U17: =COUNTIF(L7:L32,T17) -> 0 | V17: =U17/(W4-U20) -> 0 | W17: =IF(V17=0,0,(V17*((LOG(V17))/LOG(2)))) -> 0 | Y17: =N17 -> 2121 | Z17: =COUNTIF(L33:L58,Y17) -> 0 | AA17: =Z17/(AB4-Z20) -> 0 | AB17: =IF(AA17=0,0,(AA17*((LOG(AA17))/LOG(2)))) -> 0 | AD17: =N17 -> 2121 | AE17: =COUNTIF(L59:L84,AD17) -> 0 | AF17: =AE17/(AG4-AE20) -> 0 | AG17: =IF(AF17=0,0,(AF17*((LOG(AF17))/LOG(2)))) -> 0 | AI17: =N17 -> 2121 | AJ17: =COUNTIF(L85:L110,AI17) -> 0 | AK17: =AJ17/(AL4-AJ20) -> 0 | AL17: =IF(AK17=0,0,(AK17*((LOG(AK17))/LOG(2)))) -> 0 | AN17: =N17 -> 2121 | AO17: =COUNTIF(L111:L136,AN17) -> 0 | AP17: =AO17/(AQ4-AO20) -> 0 | AQ17: =IF(AP17=0,0,(AP17*((LOG(AP17))/LOG(2)))) -> 0 | AS17: =N17 -> 2121 | AT17: =COUNTIF(L137:L162,AS17) -> 0 | AU17: =AT17/(AV4-AT20) -> 0 | AV17: =IF(AU17=0,0,(AU17*((LOG(AU17))/LOG(2)))) -> 0
A18: 21 | B18: 1473 | C18: 21 | D18: 1479 | E18: 22 | F18: 1484 | G18: 23 | H18: 1491 | K18: 0 | L18: 2222 | N18: 2122 | O18: =COUNTIF($L$7:$L$500,N18) -> 1 | P18: =O18/$Q$4 -> 0.00641025641 | Q18: =IF(P18=0,0,(P18*((LOG(P18))/LOG(2)))) -> -0.04670129627 | T18: =N18 -> 2122 | U18: =COUNTIF(L7:L32,T18) -> 0 | V18: =U18/(W4-U20) -> 0 | W18: =IF(V18=0,0,(V18*((LOG(V18))/LOG(2)))) -> 0 | Y18: =N18 -> 2122 | Z18: =COUNTIF(L33:L58,Y18) -> 0 | AA18: =Z18/(AB4-Z20) -> 0 | AB18: =IF(AA18=0,0,(AA18*((LOG(AA18))/LOG(2)))) -> 0 | AD18: =N18 -> 2122 | AE18: =COUNTIF(L59:L84,AD18) -> 1 | AF18: =AE18/(AG4-AE20) -> 0.03846153846 | AG18: =IF(AF18=0,0,(AF18*((LOG(AF18))/LOG(2)))) -> -0.180786143 | AI18: =N18 -> 2122 | AJ18: =COUNTIF(L85:L110,AI18) -> 0 | AK18: =AJ18/(AL4-AJ20) -> 0 | AL18: =IF(AK18=0,0,(AK18*((LOG(AK18))/LOG(2)))) -> 0 | AN18: =N18 -> 2122 | AO18: =COUNTIF(L111:L136,AN18) -> 0 | AP18: =AO18/(AQ4-AO20) -> 0 | AQ18: =IF(AP18=0,0,(AP18*((LOG(AP18))/LOG(2)))) -> 0 | AS18: =N18 -> 2122 | AT18: =COUNTIF(L137:L162,AS18) -> 0 | AU18: =AT18/(AV4-AT20) -> 0 | AV18: =IF(AU18=0,0,(AU18*((LOG(AU18))/LOG(2)))) -> 0
A19: 12 | B19: 1591 | C19: 14 | D19: 1597 | E19: 13 | F19: 1602 | G19: 14 | H19: 1609 | K19: 0 | L19: 1111 | N19: 2211 | O19: =COUNTIF($L$7:$L$500,N19) -> 3 | P19: =O19/$Q$4 -> 0.01923076923 | Q19: =IF(P19=0,0,(P19*((LOG(P19))/LOG(2)))) -> -0.1096238407 | T19: =N19 -> 2211 | U19: =COUNTIF(L7:L32,T19) -> 1 | V19: =U19/(W4-U20) -> 0.03846153846 | W19: =IF(V19=0,0,(V19*((LOG(V19))/LOG(2)))) -> -0.180786143 | Y19: =N19 -> 2211 | Z19: =COUNTIF(L33:L58,Y19) -> 1 | AA19: =Z19/(AB4-Z20) -> 0.03846153846 | AB19: =IF(AA19=0,0,(AA19*((LOG(AA19))/LOG(2)))) -> -0.180786143 | AD19: =N19 -> 2211 | AE19: =COUNTIF(L59:L84,AD19) -> 1 | AF19: =AE19/(AG4-AE20) -> 0.03846153846 | AG19: =IF(AF19=0,0,(AF19*((LOG(AF19))/LOG(2)))) -> -0.180786143 | AI19: =N19 -> 2211 | AJ19: =COUNTIF(L85:L110,AI19) -> 0 | AK19: =AJ19/(AL4-AJ20) -> 0 | AL19: =IF(AK19=0,0,(AK19*((LOG(AK19))/LOG(2)))) -> 0 | AN19: =N19 -> 2211 | AO19: =COUNTIF(L111:L136,AN19) -> 0 | AP19: =AO19/(AQ4-AO20) -> 0 | AQ19: =IF(AP19=0,0,(AP19*((LOG(AP19))/LOG(2)))) -> 0 | AS19: =N19 -> 2211 | AT19: =COUNTIF(L137:L162,AS19) -> 0 | AU19: =AT19/(AV4-AT20) -> 0 | AV19: =IF(AU19=0,0,(AU19*((LOG(AU19))/LOG(2)))) -> 0
A20: 12 | B20: 1701 | C20: 14 | D20: 1706 | E20: 13 | F20: 1712 | G20: 14 | H20: 1720 | K20: 0 | L20: 1111 | N20: 2212 | O20: =COUNTIF($L$7:$L$500,N20) -> 0 | P20: =O20/$Q$4 -> 0 | Q20: =IF(P20=0,0,(P20*((LOG(P20))/LOG(2)))) -> 0 | T20: =N20 -> 2212 | U20: =COUNTIF(L7:L32,T20) -> 0 | Y20: =N20 -> 2212 | Z20: =COUNTIF(L33:L58,Y20) -> 0 | AD20: =N20 -> 2212 | AE20: =COUNTIF(L59:L84,AD20) -> 0 | AI20: =N20 -> 2212 | AJ20: =COUNTIF(L85:L110,AI20) -> 0 | AN20: =N20 -> 2212 | AO20: =COUNTIF(L111:L136,AN20) -> 0 | AS20: =N20 -> 2212 | AT20: =COUNTIF(L137:L162,AS20) -> 0
A21: 12 | B21: 1830 | C21: 14 | D21: 1834 | E21: 13 | F21: 1839 | G21: 14 | H21: 1844 | K21: 0 | L21: 1111 | N21: 2221 | O21: =COUNTIF($L$7:$L$500,N21) -> 3 | P21: =O21/$Q$4 -> 0.01923076923 | Q21: =IF(P21=0,0,(P21*((LOG(P21))/LOG(2)))) -> -0.1096238407 | T21: =N21 -> 2221 | U21: =COUNTIF(L7:L32,T21) -> 0 | V21: =U21/(W4-U20) -> 0 | W21: =IF(V21=0,0,(V21*((LOG(V21))/LOG(2)))) -> 0 | Y21: =N21 -> 2221 | Z21: =COUNTIF(L33:L58,Y21) -> 1 | AA21: =Z21/(AB4-Z20) -> 0.03846153846 | AB21: =IF(AA21=0,0,(AA21*((LOG(AA21))/LOG(2)))) -> -0.180786143 | AD21: =N21 -> 2221 | AE21: =COUNTIF(L59:L84,AD21) -> 0 | AF21: =AE21/(AG4-AE20) -> 0 | AG21: =IF(AF21=0,0,(AF21*((LOG(AF21))/LOG(2)))) -> 0 | AI21: =N21 -> 2221 | AJ21: =COUNTIF(L85:L110,AI21) -> 1 | AK21: =AJ21/(AL4-AJ20) -> 0.03846153846 | AL21: =IF(AK21=0,0,(AK21*((LOG(AK21))/LOG(2)))) -> -0.180786143 | AN21: =N21 -> 2221 | AO21: =COUNTIF(L111:L136,AN21) -> 0 | AP21: =AO21/(AQ4-AO20) -> 0 | AQ21: =IF(AP21=0,0,(AP21*((LOG(AP21))/LOG(2)))) -> 0 | AS21: =N21 -> 2221 | AT21: =COUNTIF(L137:L162,AS21) -> 1 | AU21: =AT21/(AV4-AT20) -> 0.03846153846 | AV21: =IF(AU21=0,0,(AU21*((LOG(AU21))/LOG(2)))) -> -0.180786143
A22: 12 | B22: 1953 | C22: 14 | D22: 1958 | E22: 13 | F22: 1963 | G22: 14 | H22: 1972 | K22: 0 | L22: 1111 | N22: 2222 | O22: =COUNTIF($L$7:$L$500,N22) -> 19 | P22: =O22/$Q$4 -> 0.1217948718 | Q22: =IF(P22=0,0,(P22*((LOG(P22))/LOG(2)))) -> -0.3699488423 | T22: =N22 -> 2222 | U22: =COUNTIF(L7:L32,T22) -> 3 | V22: =U22/(W4-U20) -> 0.1153846154 | W22: =IF(V22=0,0,(V22*((LOG(V22))/LOG(2)))) -> -0.3594781405 | Y22: =N22 -> 2222 | Z22: =COUNTIF(L33:L58,Y22) -> 4 | AA22: =Z22/(AB4-Z20) -> 0.1538461538 | AB22: =IF(AA22=0,0,(AA22*((LOG(AA22))/LOG(2)))) -> -0.4154522643 | AD22: =N22 -> 2222 | AE22: =COUNTIF(L59:L84,AD22) -> 2 | AF22: =AE22/(AG4-AE20) -> 0.07692307692 | AG22: =IF(AF22=0,0,(AF22*((LOG(AF22))/LOG(2)))) -> -0.2846492091 | AI22: =N22 -> 2222 | AJ22: =COUNTIF(L85:L110,AI22) -> 5 | AK22: =AJ22/(AL4-AJ20) -> 0.1923076923 | AL22: =IF(AK22=0,0,(AK22*((LOG(AK22))/LOG(2)))) -> -0.4574060814 | AN22: =N22 -> 2222 | AO22: =COUNTIF(L111:L136,AN22) -> 3 | AP22: =AO22/(AQ4-AO20) -> 0.1153846154 | AQ22: =IF(AP22=0,0,(AP22*((LOG(AP22))/LOG(2)))) -> -0.3594781405 | AS22: =N22 -> 2222 | AT22: =COUNTIF(L137:L162,AS22) -> 2 | AU22: =AT22/(AV4-AT20) -> 0.07692307692 | AV22: =IF(AU22=0,0,(AU22*((LOG(AU22))/LOG(2)))) -> -0.2846492091
A23: 12 | B23: 2078 | C23: 14 | D23: 2083 | E23: 13 | F23: 2088 | G23: 14 | H23: 2096 | K23: 0 | L23: 1111 | P23: =SUM(P7:P22) -> 1 | Q23: =-SUM(Q7:Q22) -> 1.707992864 | V23: =SUM(V7:V22) -> 1 | W23: =-SUM(W7:W22) -> 1.11607628 | AA23: =SUM(AA7:AA22) -> 1 | AB23: =-SUM(AB7:AB22) -> 1.720175553 | AF23: =SUM(AF7:AF22) -> 1 | AG23: =-SUM(AG7:AG22) -> 1.222033491 | AK23: =SUM(AK7:AK22) -> 1 | AL23: =-SUM(AL7:AL22) -> 2.14389186 | AP23: =SUM(AP7:AP22) -> 1 | AQ23: =-SUM(AQ7:AQ22) -> 1.537295264 | AU23: =SUM(AU7:AU22) -> 1 | AV23: =-SUM(AV7:AV22) -> 1.566329399
A24: 12 | B24: 2204 | C24: 14 | D24: 2209 | E24: 13 | F24: 2214 | G24: 14 | H24: 2220 | K24: 0 | L24: 1111 | P24: U= | Q24: =Q23/(LOG(Q4)/LOG(2)) -> 0.2344404348 | V24: U1= | W24: =W23/(LOG(W4)/LOG(2)) -> 0.237440824 | AA24: U2= | AB24: =AB23/(LOG(AB4)/LOG(2)) -> 0.3659605603 | AF24: U3= | AG24: =AG23/(LOG(AG4)/LOG(2)) -> 0.2599828026 | AK24: U4= | AL24: =AL23/(LOG(AL4)/LOG(2)) -> 0.4561045325 | AP24: U5= | AQ24: =AQ23/(LOG(AQ4)/LOG(2)) -> 0.3270535006 | AU24: U6= | AV24: =AV23/(LOG(AV4)/LOG(2)) -> 0.3332303982
A25: 12 | B25: 2324 | C25: 14 | D25: 2329 | E25: 13 | F25: 2334 | G25: 14 | H25: 2342 | K25: 0 | L25: 1111
A26: 12 | B26: 2462 | C26: 14 | D26: 2466 | E26: 13 | F26: 2471 | G26: 14 | H26: 2476 | K26: 0 | L26: 1111
A27: 12 | B27: 2586 | C27: 14 | D27: 2592 | E27: 13 | F27: 2601 | G27: 14 | H27: 2606 | K27: 0 | L27: 1111 | N27: Total Target Seq
A28: 21 | B28: 2719 | C28: 21 | D28: 2725 | E28: 11 | F28: 2763 | G28: 12 | H28: 2771 | K28: 0 | L28: 2211 | N28: =COUNTIF(L7:L162,G3) -> 0 | P28: 26 | Q28: 26 | R28: 26 | S28: 26 | T28: 26 | U28: 26
A29: 12 | B29: 2882 | C29: 14 | D29: 2888 | E29: 13 | F29: 2892 | G29: 14 | H29: 2901 | K29: 0 | L29: 1111 | P29: % of reinforcement given in 6 equal intervals based on number of trials
A30: 21 | B30: 3010 | C30: 12 | D30: 3025 | E30: 13 | F30: 3030 | G30: 14 | H30: 3036 | K30: 0 | L30: 2111 | P30: %_1 | Q30: %_2 | R30: %_3 | S30: %_4 | T30: %_5 | U30: %_6
A31: 12 | B31: 3151 | C31: 14 | D31: 3156 | E31: 13 | F31: 3160 | G31: 14 | H31: 3169 | K31: 0 | L31: 1111 | O31: target sequence | P31: =$G$3 -> 2212 | Q31: =$G$3 -> 2212 | R31: =$G$3 -> 2212 | S31: =$G$3 -> 2212 | T31: =$G$3 -> 2212 | U31: =$G$3 -> 2212
A32: 21 | B32: 3282 | C32: 21 | D32: 3288 | E32: 22 | F32: 3296 | G32: 23 | H32: 3305 | K32: 0 | L32: 2222 | O32: total reinforcement | P32: =U20 -> 0 | Q32: =Z20 -> 0 | R32: =AE20 -> 0 | S32: =AJ20 -> 0 | T32: =AO20 -> 0 | U32: =AT20 -> 0
A33: 21 | B33: 3415 | C33: 21 | D33: 3419 | E33: 22 | F33: 3429 | G33: 23 | H33: 3434 | K33: 0 | L33: 2222 | O33: % target
A34: 21 | B34: 3535 | C34: 12 | D34: 3549 | E34: 13 | F34: 3556 | G34: 14 | H34: 3563 | K34: 0 | L34: 2111 | O34: CCRF
A35: 12 | B35: 3676 | C35: 14 | D35: 3681 | E35: 13 | F35: 3685 | G35: 14 | H35: 3690 | K35: 0 | L35: 1111 | O35: % CCRf
A36: 12 | B36: 3807 | C36: 14 | D36: 3811 | E36: 13 | F36: 3816 | G36: 14 | H36: 3823 | K36: 0 | L36: 1111 | O36: average response rate | P36: =H32/P28 -> 127.1153846 | Q36: =(H58-H32)/Q28 -> 165.1923077 | R36: =(H84-H58)/R28 -> 131.9615385 | S36: =(H110-H84)/S28 -> 149.3461538 | T36: =(H136-H110)/T28 -> 148.6923077 | U36: =(H162-H136)/U28 -> 198.3846154
A37: 21 | B37: 3929 | C37: 21 | D37: 3934 | E37: 11 | F37: 3949 | G37: 12 | H37: 3954 | K37: 0 | L37: 2211
A38: 12 | B38: 4063 | C38: 14 | D38: 4068 | E38: 13 | F38: 4072 | G38: 14 | H38: 4077 | K38: 0 | L38: 1111
A39: 12 | B39: 4186 | C39: 14 | D39: 4191 | E39: 13 | F39: 4195 | G39: 14 | H39: 4201 | K39: 0 | L39: 1111
A40: 12 | B40: 5160 | C40: 14 | D40: 5168 | E40: 13 | F40: 5182 | G40: 14 | H40: 5190 | K40: 0 | L40: 1111
A41: 12 | B41: 5309 | C41: 14 | D41: 5314 | E41: 13 | F41: 5320 | G41: 14 | H41: 5327 | K41: 0 | L41: 1111
A42: 12 | B42: 5435 | C42: 23 | D42: 5452 | E42: 13 | F42: 5469 | G42: 14 | H42: 5474 | K42: 0 | L42: 1211
A43: 12 | B43: 5589 | C43: 14 | D43: 5595 | E43: 13 | F43: 5603 | G43: 14 | H43: 5612 | K43: 0 | L43: 1111
A44: 12 | B44: 5715 | C44: 14 | D44: 5721 | E44: 13 | F44: 5728 | G44: 14 | H44: 5733 | K44: 0 | L44: 1111
A45: 21 | B45: 5843 | C45: 21 | D45: 5848 | E45: 22 | F45: 5853 | G45: 14 | H45: 5867 | K45: 0 | L45: 2221
A46: 12 | B46: 5978 | C46: 14 | D46: 5986 | E46: 13 | F46: 5991 | G46: 14 | H46: 5999 | K46: 0 | L46: 1111
A47: 21 | B47: 6112 | C47: 21 | D47: 6117 | E47: 22 | F47: 6122 | G47: 23 | H47: 6131 | K47: 0 | L47: 2222
A48: 12 | B48: 6243 | C48: 14 | D48: 6248 | E48: 13 | F48: 6255 | G48: 14 | H48: 6263 | K48: 0 | L48: 1111
A49: 12 | B49: 6376 | C49: 14 | D49: 6381 | E49: 13 | F49: 6387 | G49: 14 | H49: 6392 | K49: 0 | L49: 1111
A50: 12 | B50: 6496 | C50: 14 | D50: 6502 | E50: 13 | F50: 6511 | G50: 14 | H50: 6518 | K50: 0 | L50: 1111
A51: 21 | B51: 6647 | C51: 21 | D51: 6651 | E51: 22 | F51: 6658 | G51: 23 | H51: 6666 | K51: 0 | L51: 2222
A52: 12 | B52: 6781 | C52: 14 | D52: 6786 | E52: 13 | F52: 6791 | G52: 14 | H52: 6796 | K52: 0 | L52: 1111
A53: 12 | B53: 6902 | C53: 14 | D53: 6909 | E53: 13 | F53: 6923 | G53: 14 | H53: 6932 | K53: 0 | L53: 1111
A54: 12 | B54: 7045 | C54: 14 | D54: 7050 | E54: 13 | F54: 7054 | G54: 14 | H54: 7062 | K54: 0 | L54: 1111
A55: 12 | B55: 7176 | C55: 23 | D55: 7188 | E55: 24 | F55: 7197 | G55: 23 | H55: 7220 | K55: 0 | L55: 1222
A56: 21 | B56: 7328 | C56: 21 | D56: 7333 | E56: 22 | F56: 7339 | G56: 23 | H56: 7345 | K56: 0 | L56: 2222
A57: 12 | B57: 7457 | C57: 14 | D57: 7462 | E57: 13 | F57: 7467 | G57: 14 | H57: 7472 | K57: 0 | L57: 1111
A58: 12 | B58: 7585 | C58: 14 | D58: 7590 | E58: 13 | F58: 7594 | G58: 14 | H58: 7600 | K58: 0 | L58: 1111
A59: 21 | B59: 7706 | C59: 21 | D59: 7711 | E59: 22 | F59: 7716 | G59: 23 | H59: 7721 | K59: 0 | L59: 2222
A60: 12 | B60: 7830 | C60: 14 | D60: 7839 | E60: 13 | F60: 7847 | G60: 14 | H60: 7854 | K60: 0 | L60: 1111
A61: 12 | B61: 7963 | C61: 14 | D61: 7968 | E61: 13 | F61: 7972 | G61: 14 | H61: 7980 | K61: 0 | L61: 1111
A62: 21 | B62: 8083 | C62: 12 | D62: 8099 | E62: 13 | F62: 8104 | G62: 14 | H62: 8112 | K62: 0 | L62: 2111
A63: 21 | B63: 8222 | C63: 12 | D63: 8235 | E63: 24 | F63: 8250 | G63: 23 | H63: 8258 | K63: 0 | L63: 2122
A64: 12 | B64: 8369 | C64: 14 | D64: 8376 | E64: 13 | F64: 8381 | G64: 14 | H64: 8388 | K64: 0 | L64: 1111
A65: 21 | B65: 8502 | C65: 12 | D65: 8514 | E65: 13 | F65: 8519 | G65: 14 | H65: 8524 | K65: 0 | L65: 2111
A66: 12 | B66: 8629 | C66: 14 | D66: 8636 | E66: 13 | F66: 8641 | G66: 14 | H66: 8647 | K66: 0 | L66: 1111
A67: 12 | B67: 8779 | C67: 14 | D67: 8784 | E67: 13 | F67: 8790 | G67: 14 | H67: 8798 | K67: 0 | L67: 1111
A68: 12 | B68: 8905 | C68: 14 | D68: 8910 | E68: 13 | F68: 8918 | G68: 14 | H68: 8924 | K68: 0 | L68: 1111
A69: 21 | B69: 9052 | C69: 21 | D69: 9056 | E69: 22 | F69: 9060 | G69: 23 | H69: 9066 | K69: 0 | L69: 2222
A70: 21 | B70: 9199 | C70: 21 | D70: 9206 | E70: 11 | F70: 9220 | G70: 12 | H70: 9224 | K70: 0 | L70: 2211
A71: 12 | B71: 9336 | C71: 14 | D71: 9341 | E71: 13 | F71: 9345 | G71: 14 | H71: 9351 | K71: 0 | L71: 1111
A72: 12 | B72: 9469 | C72: 14 | D72: 9475 | E72: 13 | F72: 9484 | G72: 14 | H72: 9493 | K72: 0 | L72: 1111
A73: 12 | B73: 9597 | C73: 14 | D73: 9602 | E73: 13 | F73: 9606 | G73: 14 | H73: 9620 | K73: 0 | L73: 1111
A74: 12 | B74: 9738 | C74: 14 | D74: 9743 | E74: 13 | F74: 9748 | G74: 14 | H74: 9753 | K74: 0 | L74: 1111
A75: 12 | B75: 9858 | C75: 14 | D75: 9863 | E75: 13 | F75: 9867 | G75: 14 | H75: 9872 | K75: 0 | L75: 1111
A76: 12 | B76: 9977 | C76: 14 | D76: 9990 | E76: 13 | F76: 9998 | G76: 14 | H76: 10006 | K76: 0 | L76: 1111
A77: 12 | B77: 10115 | C77: 14 | D77: 10144 | E77: 13 | F77: 10151 | G77: 14 | H77: 10158 | K77: 0 | L77: 1111
A78: 12 | B78: 10264 | C78: 14 | D78: 10269 | E78: 13 | F78: 10273 | G78: 14 | H78: 10278 | K78: 0 | L78: 1111
A79: 12 | B79: 10387 | C79: 14 | D79: 10392 | E79: 13 | F79: 10396 | G79: 14 | H79: 10400 | K79: 0 | L79: 1111
A80: 12 | B80: 10510 | C80: 14 | D80: 10515 | E80: 13 | F80: 10520 | G80: 14 | H80: 10524 | K80: 0 | L80: 1111
A81: 12 | B81: 10628 | C81: 14 | D81: 10633 | E81: 13 | F81: 10641 | G81: 14 | H81: 10649 | K81: 0 | L81: 1111
A82: 12 | B82: 10756 | C82: 14 | D82: 10765 | E82: 13 | F82: 10771 | G82: 14 | H82: 10776 | K82: 0 | L82: 1111
A83: 12 | B83: 10880 | C83: 14 | D83: 10893 | E83: 13 | F83: 10898 | G83: 14 | H83: 10907 | K83: 0 | L83: 1111
A84: 12 | B84: 11011 | C84: 14 | D84: 11021 | E84: 13 | F84: 11026 | G84: 14 | H84: 11031 | K84: 0 | L84: 1111
A85: 12 | B85: 11151 | C85: 14 | D85: 11162 | E85: 13 | F85: 11169 | G85: 14 | H85: 11176 | K85: 0 | L85: 1111
A86: 12 | B86: 11296 | C86: 14 | D86: 11302 | E86: 13 | F86: 11306 | G86: 14 | H86: 11310 | K86: 0 | L86: 1111
A87: 12 | B87: 11418 | C87: 23 | D87: 11430 | E87: 24 | F87: 11438 | G87: 23 | H87: 11472 | K87: 0 | L87: 1222
A88: 12 | B88: 11589 | C88: 14 | D88: 11594 | E88: 13 | F88: 11596 | G88: 14 | H88: 11602 | K88: 0 | L88: 1111
A89: 21 | B89: 11821 | C89: 21 | D89: 11828 | E89: 22 | F89: 11835 | G89: 23 | H89: 11841 | K89: 0 | L89: 2222
A90: 21 | B90: 11947 | C90: 21 | D90: 11956 | E90: 22 | F90: 11966 | G90: 23 | H90: 11974 | K90: 0 | L90: 2222
A91: 12 | B91: 12077 | C91: 23 | D91: 12090 | E91: 24 | F91: 12098 | G91: 23 | H91: 12103 | K91: 0 | L91: 1222
A92: 12 | B92: 12224 | C92: 14 | D92: 12229 | E92: 13 | F92: 12233 | G92: 14 | H92: 12238 | K92: 0 | L92: 1111
A93: 21 | B93: 12370 | C93: 12 | D93: 12381 | E93: 13 | F93: 12391 | G93: 14 | H93: 12398 | K93: 0 | L93: 2111
A94: 12 | B94: 12508 | C94: 23 | D94: 12520 | E94: 13 | F94: 12533 | G94: 14 | H94: 12537 | K94: 0 | L94: 1211
A95: 12 | B95: 12648 | C95: 14 | D95: 12653 | E95: 13 | F95: 12657 | G95: 14 | H95: 12662 | K95: 0 | L95: 1111
A96: 21 | B96: 12795 | C96: 21 | D96: 12800 | E96: 22 | F96: 12805 | G96: 14 | H96: 12822 | K96: 0 | L96: 2221
A97: 12 | B97: 12956 | C97: 14 | D97: 12962 | E97: 13 | F97: 12969 | G97: 14 | H97: 12976 | K97: 0 | L97: 1111
A98: 12 | B98: 13083 | C98: 14 | D98: 13091 | E98: 24 | F98: 13103 | G98: 23 | H98: 13108 | K98: 0 | L98: 1122
A99: 21 | B99: 13226 | C99: 21 | D99: 13233 | E99: 22 | F99: 13237 | G99: 23 | H99: 13244 | K99: 0 | L99: 2222
A100: 12 | B100: 13375 | C100: 14 | D100: 13381 | E100: 13 | F100: 13386 | G100: 14 | H100: 13391 | K100: 0 | L100: 1111
A101: 12 | B101: 13499 | C101: 14 | D101: 13505 | E101: 13 | F101: 13510 | G101: 14 | H101: 13513 | K101: 0 | L101: 1111
A102: 12 | B102: 13717 | C102: 14 | D102: 13722 | E102: 13 | F102: 13727 | G102: 14 | H102: 13734 | K102: 0 | L102: 1111
A103: 12 | B103: 13863 | C103: 14 | D103: 13867 | E103: 13 | F103: 13872 | G103: 14 | H103: 13877 | K103: 0 | L103: 1111
A104: 21 | B104: 14035 | C104: 21 | D104: 14048 | E104: 22 | F104: 14063 | G104: 23 | H104: 14072 | K104: 0 | L104: 2222
A105: 12 | B105: 14172 | C105: 23 | D105: 14193 | E105: 24 | F105: 14198 | G105: 23 | H105: 14204 | K105: 0 | L105: 1222
A106: 12 | B106: 14353 | C106: 14 | D106: 14358 | E106: 13 | F106: 14364 | G106: 14 | H106: 14370 | K106: 0 | L106: 1111
A107: 21 | B107: 14484 | C107: 12 | D107: 14496 | E107: 13 | F107: 14501 | G107: 14 | H107: 14508 | K107: 0 | L107: 2111
A108: 21 | B108: 14624 | C108: 21 | D108: 14632 | E108: 22 | F108: 14638 | G108: 23 | H108: 14643 | K108: 0 | L108: 2222
A109: 12 | B109: 14760 | C109: 14 | D109: 14764 | E109: 13 | F109: 14771 | G109: 14 | H109: 14777 | K109: 0 | L109: 1111
A110: 12 | B110: 14900 | C110: 14 | D110: 14904 | E110: 13 | F110: 14910 | G110: 14 | H110: 14914 | K110: 0 | L110: 1111
A111: 12 | B111: 15022 | C111: 14 | D111: 15026 | E111: 13 | F111: 15030 | G111: 14 | H111: 15035 | K111: 0 | L111: 1111
A112: 12 | B112: 15150 | C112: 14 | D112: 15155 | E112: 13 | F112: 15160 | G112: 14 | H112: 15167 | K112: 0 | L112: 1111
A113: 12 | B113: 15269 | C113: 14 | D113: 15287 | E113: 13 | F113: 15290 | G113: 14 | H113: 15295 | K113: 0 | L113: 1111
A114: 12 | B114: 15462 | C114: 14 | D114: 15466 | E114: 13 | F114: 15473 | G114: 14 | H114: 15480 | K114: 0 | L114: 1111
A115: 12 | B115: 15590 | C115: 14 | D115: 15608 | E115: 13 | F115: 15612 | G115: 14 | H115: 15616 | K115: 0 | L115: 1111
A116: 12 | B116: 15722 | C116: 14 | D116: 15739 | E116: 13 | F116: 15744 | G116: 14 | H116: 15750 | K116: 0 | L116: 1111
A117: 12 | B117: 15859 | C117: 14 | D117: 15863 | E117: 13 | F117: 15868 | G117: 14 | H117: 15872 | K117: 0 | L117: 1111
A118: 12 | B118: 16096 | C118: 14 | D118: 16103 | E118: 13 | F118: 16110 | G118: 14 | H118: 16119 | K118: 0 | L118: 1111
A119: 12 | B119: 16226 | C119: 14 | D119: 16232 | E119: 13 | F119: 16236 | G119: 14 | H119: 16241 | K119: 0 | L119: 1111
A120: 12 | B120: 16367 | C120: 23 | D120: 16378 | E120: 13 | F120: 16390 | G120: 14 | H120: 16395 | K120: 0 | L120: 1211
A121: 12 | B121: 16514 | C121: 23 | D121: 16527 | E121: 24 | F121: 16535 | G121: 23 | H121: 16552 | K121: 0 | L121: 1222
A122: 12 | B122: 16665 | C122: 14 | D122: 16672 | E122: 13 | F122: 16677 | G122: 14 | H122: 16681 | K122: 0 | L122: 1111
A123: 12 | B123: 16792 | C123: 14 | D123: 16814 | E123: 13 | F123: 16818 | G123: 14 | H123: 16823 | K123: 0 | L123: 1111
A124: 12 | B124: 16970 | C124: 14 | D124: 16975 | E124: 13 | F124: 16979 | G124: 14 | H124: 16985 | K124: 0 | L124: 1111
A125: 12 | B125: 17116 | C125: 14 | D125: 17121 | E125: 13 | F125: 17126 | G125: 14 | H125: 17131 | K125: 0 | L125: 1111
A126: 21 | B126: 17320 | C126: 21 | D126: 17328 | E126: 22 | F126: 17341 | G126: 23 | H126: 17349 | K126: 0 | L126: 2222
A127: 21 | B127: 17454 | C127: 12 | D127: 17467 | E127: 13 | F127: 17472 | G127: 14 | H127: 17477 | K127: 0 | L127: 2111
A128: 21 | B128: 17595 | C128: 21 | D128: 17604 | E128: 22 | F128: 17610 | G128: 23 | H128: 17616 | K128: 0 | L128: 2222
A129: 21 | B129: 17729 | C129: 12 | D129: 17747 | E129: 13 | F129: 17756 | G129: 14 | H129: 17760 | K129: 0 | L129: 2111
A130: 21 | B130: 17875 | C130: 12 | D130: 17893 | E130: 13 | F130: 17898 | G130: 14 | H130: 17904 | K130: 0 | L130: 2111
A131: 21 | B131: 18026 | C131: 21 | D131: 18035 | E131: 22 | F131: 18042 | G131: 23 | H131: 18047 | K131: 0 | L131: 2222
A132: 12 | B132: 18181 | C132: 14 | D132: 18189 | E132: 13 | F132: 18197 | G132: 14 | H132: 18205 | K132: 0 | L132: 1111
A133: 12 | B133: 18341 | C133: 14 | D133: 18345 | E133: 13 | F133: 18349 | G133: 14 | H133: 18356 | K133: 0 | L133: 1111
A134: 12 | B134: 18502 | C134: 14 | D134: 18506 | E134: 13 | F134: 18511 | G134: 14 | H134: 18517 | K134: 0 | L134: 1111
A135: 12 | B135: 18631 | C135: 14 | D135: 18635 | E135: 13 | F135: 18640 | G135: 14 | H135: 18645 | K135: 0 | L135: 1111
A136: 21 | B136: 18760 | C136: 12 | D136: 18771 | E136: 13 | F136: 18776 | G136: 14 | H136: 18780 | K136: 0 | L136: 2111
A137: 12 | B137: 18897 | C137: 14 | D137: 18904 | E137: 13 | F137: 18909 | G137: 14 | H137: 18915 | K137: 0 | L137: 1111
A138: 21 | B138: 19077 | C138: 21 | D138: 19082 | E138: 22 | F138: 19087 | G138: 23 | H138: 19096 | K138: 0 | L138: 2222
A139: 12 | B139: 19216 | C139: 14 | D139: 19225 | E139: 13 | F139: 19232 | G139: 14 | H139: 19240 | K139: 0 | L139: 1111
A140: 12 | B140: 19398 | C140: 14 | D140: 19403 | E140: 13 | F140: 19407 | G140: 14 | H140: 19413 | K140: 0 | L140: 1111
A141: 12 | B141: 19543 | C141: 14 | D141: 19547 | E141: 13 | F141: 19552 | G141: 14 | H141: 19559 | K141: 0 | L141: 1111
A142: 12 | B142: 19722 | C142: 14 | D142: 19728 | E142: 13 | F142: 19734 | G142: 14 | H142: 19742 | K142: 0 | L142: 1111
A143: 12 | B143: 20135 | C143: 14 | D143: 20140 | E143: 13 | F143: 20145 | G143: 14 | H143: 20150 | K143: 0 | L143: 1111
A144: 12 | B144: 20349 | C144: 14 | D144: 20353 | E144: 13 | F144: 20357 | G144: 14 | H144: 20362 | K144: 0 | L144: 1111
A145: 12 | B145: 20497 | C145: 23 | D145: 20509 | E145: 24 | F145: 20515 | G145: 23 | H145: 20522 | K145: 0 | L145: 1222
A146: 12 | B146: 20663 | C146: 14 | D146: 20669 | E146: 13 | F146: 20674 | G146: 14 | H146: 20681 | K146: 0 | L146: 1111
A147: 12 | B147: 20931 | C147: 14 | D147: 20936 | E147: 13 | F147: 20942 | G147: 14 | H147: 20948 | K147: 0 | L147: 1111
A148: 21 | B148: 21073 | C148: 21 | D148: 21077 | E148: 22 | F148: 21082 | G148: 14 | H148: 21093 | K148: 0 | L148: 2221
A149: 21 | B149: 21203 | C149: 12 | D149: 21215 | E149: 13 | F149: 21224 | G149: 14 | H149: 21228 | K149: 0 | L149: 2111
A150: 12 | B150: 21470 | C150: 14 | D150: 21474 | E150: 13 | F150: 21479 | G150: 14 | H150: 21492 | K150: 0 | L150: 1111
A151: 12 | B151: 21619 | C151: 14 | D151: 21624 | E151: 13 | F151: 21629 | G151: 14 | H151: 21634 | K151: 0 | L151: 1111
A152: 21 | B152: 21746 | C152: 12 | D152: 21757 | E152: 13 | F152: 21766 | G152: 14 | H152: 21771 | K152: 0 | L152: 2111
A153: 12 | B153: 21916 | C153: 23 | D153: 21928 | E153: 24 | F153: 21933 | G153: 23 | H153: 21947 | K153: 0 | L153: 1222
A154: 12 | B154: 22068 | C154: 14 | D154: 22073 | E154: 13 | F154: 22078 | G154: 14 | H154: 22082 | K154: 0 | L154: 1111
A155: 12 | B155: 22288 | C155: 14 | D155: 22292 | E155: 13 | F155: 22296 | G155: 14 | H155: 22301 | K155: 0 | L155: 1111
A156: 12 | B156: 22424 | C156: 14 | D156: 22443 | E156: 13 | F156: 22447 | G156: 14 | H156: 22451 | K156: 0 | L156: 1111
A157: 12 | B157: 22760 | C157: 14 | D157: 22765 | E157: 13 | F157: 22770 | G157: 14 | H157: 22775 | K157: 0 | L157: 1111
A158: 12 | B158: 22929 | C158: 14 | D158: 22934 | E158: 13 | F158: 22939 | G158: 14 | H158: 22944 | K158: 0 | L158: 1111
A159: 21 | B159: 23368 | C159: 21 | D159: 23376 | E159: 22 | F159: 23406 | G159: 23 | H159: 23428 | K159: 0 | L159: 2222
A160: 21 | B160: 23525 | C160: 12 | D160: 23538 | E160: 13 | F160: 23543 | G160: 14 | H160: 23549 | K160: 0 | L160: 2111
A161: 12 | B161: 23772 | C161: 14 | D161: 23778 | E161: 13 | F161: 23782 | G161: 14 | H161: 23787 | K161: 0 | L161: 1111
A162: 21 | B162: 23914 | C162: 12 | D162: 23929 | E162: 13 | F162: 23933 | G162: 14 | H162: 23938 | L162: 2111

Sheet !MB14800.091
A1: Report for:!MB14800.091
A2: Date: | B2: <date>
A3: Hen: | B3: <hen> | F3: Correct Sequence | G3: =Start!J2 -> 2212 | P3: Total Sequences in Data | Q3: =4994-COUNTBLANK(L7:L5000) -> 128 | V3: Total Sequences in Block Data | W3: =COUNTA(L7:L27) -> 21 | AA3: Total Sequences in Block Data | AB3: =COUNTA(L28:L49) -> 22 | AF3: Total Sequences in Block Data | AG3: =COUNTA(L50:L70) -> 21 | AK3: Total Sequences in Block Data | AL3: =COUNTA(L71:L91) -> 21 | AP3: Total Sequences in Block Data | AQ3: =COUNTA(L92:L113) -> 22 | AU3: Total Sequences in Block Data | AV3: =COUNTA(L114:L134) -> 21
P4: Total Sequences in Summary | Q4: =SUM(O7:O22) -> 128 | V4: Total Sequences in Block Summary | W4: =SUM(U7:U22) -> 21 | AA4: Total Sequences in Block Summary | AB4: =SUM(Z7:Z22) -> 22 | AF4: Total Sequences in Block Summary | AG4: =SUM(AE7:AE22) -> 21 | AK4: Total Sequences in Block Summary | AL4: =SUM(AJ7:AJ22) -> 21 | AP4: Total Sequences in Block Summary | AQ4: =SUM(AO7:AO22) -> 22 | AU4: Total Sequences in Block Summary | AV4: =SUM(AT7:AT22) -> 21
T5: Block 1 | Y5: Block 2 | AD5: Block 3 | AI5: Block 4 | AN5: Block 5 | AS5: Block 6
A6: Sequence Component 1 | B6: Time 1 | C6: Sequence Component 2 | D6: Time 2 | E6: Sequence Component 3 | F6: Time 3 | G6: Sequence Component 4 | H6: Time 4 | I6: Sequence Component 5 | J6: Time 5 | K6: Correct? 0=No 1=Yes | L6: Sequence | N6: Frequency | P6: Relative Frequency | Q6: Variability | T6: Frequency | V6: Relative Frequency | W6: Variability | Y6: Frequency | AA6: Relative Frequency | AB6: Variability | AD6: Frequency | AF6: Relative Frequency | AG6: Variability | AI6: Frequency | AK6: Relative Frequency | AL6: Variability | AN6: Frequency | AP6: Relative Frequency | AQ6: Variability | AS6: Frequency | AU6: Relative Frequency | AV6: Variability
A7: 12 | B7: 17 | C7: 14 | D7: 25 | E7: 13 | F7: 31 | G7: 14 | H7: 39 | K7: 0 | L7: 1111 | N7: 1111 | O7: =COUNTIF($L$7:$L$500,N7) -> 47 | P7: =O7/$Q$4 -> 0.3671875 | Q7: =IF(P7=0,0,(P7*((LOG(P7))/LOG(2)))) -> -0.530736906 | T7: =N7 -> 1111 | U7: =COUNTIF(L7:L27,T7) -> 18 | V7: =U7/(W4-U20) -> 0.8571428571 | W7: =IF(V7=0,0,(V7*((LOG(V7))/LOG(2)))) -> -0.1906220754 | Y7: =N7 -> 1111 | Z7: =COUNTIF(L28:L49,Y7) -> 12 | AA7: =Z7/(AB4-Z20) -> 0.5454545455 | AB7: =IF(AA7=0,0,(AA7*((LOG(AA7))/LOG(2)))) -> -0.4769831552 | AD7: =N7 -> 1111 | AE7: =COUNTIF(L50:L70,AD7) -> 8 | AF7: =AE7/(AG4-AE20) -> 0.380952381 | AG7: =IF(AF7=0,0,(AF7*((LOG(AF7))/LOG(2)))) -> -0.5304066372 | AI7: =N7 -> 1111 | AJ7: =COUNTIF(L71:L91,AI7) -> 6 | AK7: =AJ7/(AL4-AJ20) -> 0.2857142857 | AL7: =IF(AK7=0,0,(AK7*((LOG(AK7))/LOG(2)))) -> -0.5163871206 | AN7: =N7 -> 1111 | AO7: =COUNTIF(L92:L113,AN7) -> 1 | AP7: =AO7/(AQ4-AO20) -> 0.04761904762 | AQ7: =IF(AP7=0,0,(AP7*((LOG(AP7))/LOG(2)))) -> -0.2091579725 | AS7: =N7 -> 1111 | AT7: =COUNTIF(L114:L134,AS7) -> 2 | AU7: =AT7/(AV4-AT20) -> 0.09523809524 | AV7: =IF(AU7=0,0,(AU7*((LOG(AU7))/LOG(2)))) -> -0.3230778498
A8: 12 | B8: 142 | C8: 14 | D8: 151 | E8: 13 | F8: 156 | G8: 14 | H8: 160 | K8: 0 | L8: 1111 | N8: 1112 | O8: =COUNTIF($L$7:$L$500,N8) -> 1 | P8: =O8/$Q$4 -> 0.0078125 | Q8: =IF(P8=0,0,(P8*((LOG(P8))/LOG(2)))) -> -0.0546875 | T8: =N8 -> 1112 | U8: =COUNTIF(L7:L27,T8) -> 0 | V8: =U8/(W4-U20) -> 0 | W8: =IF(V8=0,0,(V8*((LOG(V8))/LOG(2)))) -> 0 | Y8: =N8 -> 1112 | Z8: =COUNTIF(L28:L49,Y8) -> 0 | AA8: =Z8/(AB4-Z20) -> 0 | AB8: =IF(AA8=0,0,(AA8*((LOG(AA8))/LOG(2)))) -> 0 | AD8: =N8 -> 1112 | AE8: =COUNTIF(L50:L70,AD8) -> 0 | AF8: =AE8/(AG4-AE20) -> 0 | AG8: =IF(AF8=0,0,(AF8*((LOG(AF8))/LOG(2)))) -> 0 | AI8: =N8 -> 1112 | AJ8: =COUNTIF(L71:L91,AI8) -> 0 | AK8: =AJ8/(AL4-AJ20) -> 0 | AL8: =IF(AK8=0,0,(AK8*((LOG(AK8))/LOG(2)))) -> 0 | AN8: =N8 -> 1112 | AO8: =COUNTIF(L92:L113,AN8) -> 0 | AP8: =AO8/(AQ4-AO20) -> 0 | AQ8: =IF(AP8=0,0,(AP8*((LOG(AP8))/LOG(2)))) -> 0 | AS8: =N8 -> 1112 | AT8: =COUNTIF(L114:L134,AS8) -> 1 | AU8: =AT8/(AV4-AT20) -> 0.04761904762 | AV8: =IF(AU8=0,0,(AU8*((LOG(AU8))/LOG(2)))) -> -0.2091579725
A9: 12 | B9: 272 | C9: 14 | D9: 276 | E9: 13 | F9: 282 | G9: 14 | H9: 290 | K9: 0 | L9: 1111 | N9: 1121 | O9: =COUNTIF($L$7:$L$500,N9) -> 0 | P9: =O9/$Q$4 -> 0 | Q9: =IF(P9=0,0,(P9*((LOG(P9))/LOG(2)))) -> 0 | T9: =N9 -> 1121 | U9: =COUNTIF(L7:L27,T9) -> 0 | V9: =U9/(W4-U20) -> 0 | W9: =IF(V9=0,0,(V9*((LOG(V9))/LOG(2)))) -> 0 | Y9: =N9 -> 1121 | Z9: =COUNTIF(L28:L49,Y9) -> 0 | AA9: =Z9/(AB4-Z20) -> 0 | AB9: =IF(AA9=0,0,(AA9*((LOG(AA9))/LOG(2)))) -> 0 | AD9: =N9 -> 1121 | AE9: =COUNTIF(L50:L70,AD9) -> 0 | AF9: =AE9/(AG4-AE20) -> 0 | AG9: =IF(AF9=0,0,(AF9*((LOG(AF9))/LOG(2)))) -> 0 | AI9: =N9 -> 1121 | AJ9: =COUNTIF(L71:L91,AI9) -> 0 | AK9: =AJ9/(AL4-AJ20) -> 0 | AL9: =IF(AK9=0,0,(AK9*((LOG(AK9))/LOG(2)))) -> 0 | AN9: =N9 -> 1121 | AO9: =COUNTIF(L92:L113,AN9) -> 0 | AP9: =AO9/(AQ4-AO20) -> 0 | AQ9: =IF(AP9=0,0,(AP9*((LOG(AP9))/LOG(2)))) -> 0 | AS9: =N9 -> 1121 | AT9: =COUNTIF(L114:L134,AS9) -> 0 | AU9: =AT9/(AV4-AT20) -> 0 | AV9: =IF(AU9=0,0,(AU9*((LOG(AU9))/LOG(2)))) -> 0
A10: 12 | B10: 398 | C10: 14 | D10: 405 | E10: 13 | F10: 411 | G10: 14 | H10: 417 | K10: 0 | L10: 1111 | N10: 1122 | O10: =COUNTIF($L$7:$L$500,N10) -> 0 | P10: =O10/$Q$4 -> 0 | Q10: =IF(P10=0,0,(P10*((LOG(P10))/LOG(2)))) -> 0 | T10: =N10 -> 1122 | U10: =COUNTIF(L7:L27,T10) -> 0 | V10: =U10/(W4-U20) -> 0 | W10: =IF(V10=0,0,(V10*((LOG(V10))/LOG(2)))) -> 0 | Y10: =N10 -> 1122 | Z10: =COUNTIF(L28:L49,Y10) -> 0 | AA10: =Z10/(AB4-Z20) -> 0 | AB10: =IF(AA10=0,0,(AA10*((LOG(AA10))/LOG(2)))) -> 0 | AD10: =N10 -> 1122 | AE10: =COUNTIF(L50:L70,AD10) -> 0 | AF10: =AE10/(AG4-AE20) -> 0 | AG10: =IF(AF10=0,0,(AF10*((LOG(AF10))/LOG(2)))) -> 0 | AI10: =N10 -> 1122 | AJ10: =COUNTIF(L71:L91,AI10) -> 0 | AK10: =AJ10/(AL4-AJ20) -> 0 | AL10: =IF(AK10=0,0,(AK10*((LOG(AK10))/LOG(2)))) -> 0 | AN10: =N10 -> 1122 | AO10: =COUNTIF(L92:L113,AN10) -> 0 | AP10: =AO10/(AQ4-AO20) -> 0 | AQ10: =IF(AP10=0,0,(AP10*((LOG(AP10))/LOG(2)))) -> 0 | AS10: =N10 -> 1122 | AT10: =COUNTIF(L114:L134,AS10) -> 0 | AU10: =AT10/(AV4-AT20) -> 0 | AV10: =IF(AU10=0,0,(AU10*((LOG(AU10))/LOG(2)))) -> 0
A11: 12 | B11: 527 | C11: 14 | D11: 532 | E11: 13 | F11: 536 | G11: 14 | H11: 542 | K11: 0 | L11: 1111 | N11: 1211 | O11: =COUNTIF($L$7:$L$500,N11) -> 0 | P11: =O11/$Q$4 -> 0 | Q11: =IF(P11=0,0,(P11*((LOG(P11))/LOG(2)))) -> 0 | T11: =N11 -> 1211 | U11: =COUNTIF(L7:L27,T11) -> 0 | V11: =U11/(W4-U20) -> 0 | W11: =IF(V11=0,0,(V11*((LOG(V11))/LOG(2)))) -> 0 | Y11: =N11 -> 1211 | Z11: =COUNTIF(L28:L49,Y11) -> 0 | AA11: =Z11/(AB4-Z20) -> 0 | AB11: =IF(AA11=0,0,(AA11*((LOG(AA11))/LOG(2)))) -> 0 | AD11: =N11 -> 1211 | AE11: =COUNTIF(L50:L70,AD11) -> 0 | AF11: =AE11/(AG4-AE20) -> 0 | AG11: =IF(AF11=0,0,(AF11*((LOG(AF11))/LOG(2)))) -> 0 | AI11: =N11 -> 1211 | AJ11: =COUNTIF(L71:L91,AI11) -> 0 | AK11: =AJ11/(AL4-AJ20) -> 0 | AL11: =IF(AK11=0,0,(AK11*((LOG(AK11))/LOG(2)))) -> 0 | AN11: =N11 -> 1211 | AO11: =COUNTIF(L92:L113,AN11) -> 0 | AP11: =AO11/(AQ4-AO20) -> 0 | AQ11: =IF(AP11=0,0,(AP11*((LOG(AP11))/LOG(2)))) -> 0 | AS11: =N11 -> 1211 | AT11: =COUNTIF(L114:L134,AS11) -> 0 | AU11: =AT11/(AV4-AT20) -> 0 | AV11: =IF(AU11=0,0,(AU11*((LOG(AU11))/LOG(2)))) -> 0
A12: 12 | B12: 665 | C12: 14 | D12: 671 | E12: 13 | F12: 677 | G12: 14 | H12: 683 | K12: 0 | L12: 1111 | N12: 1212 | O12: =COUNTIF($L$7:$L$500,N12) -> 0 | P12: =O12/$Q$4 -> 0 | Q12: =IF(P12=0,0,(P12*((LOG(P12))/LOG(2)))) -> 0 | T12: =N12 -> 1212 | U12: =COUNTIF(L7:L27,T12) -> 0 | V12: =U12/(W4-U20) -> 0 | W12: =IF(V12=0,0,(V12*((LOG(V12))/LOG(2)))) -> 0 | Y12: =N12 -> 1212 | Z12: =COUNTIF(L28:L49,Y12) -> 0 | AA12: =Z12/(AB4-Z20) -> 0 | AB12: =IF(AA12=0,0,(AA12*((LOG(AA12))/LOG(2)))) -> 0 | AD12: =N12 -> 1212 | AE12: =COUNTIF(L50:L70,AD12) -> 0 | AF12: =AE12/(AG4-AE20) -> 0 | AG12: =IF(AF12=0,0,(AF12*((LOG(AF12))/LOG(2)))) -> 0 | AI12: =N12 -> 1212 | AJ12: =COUNTIF(L71:L91,AI12) -> 0 | AK12: =AJ12/(AL4-AJ20) -> 0 | AL12: =IF(AK12=0,0,(AK12*((LOG(AK12))/LOG(2)))) -> 0 | AN12: =N12 -> 1212 | AO12: =COUNTIF(L92:L113,AN12) -> 0 | AP12: =AO12/(AQ4-AO20) -> 0 | AQ12: =IF(AP12=0,0,(AP12*((LOG(AP12))/LOG(2)))) -> 0 | AS12: =N12 -> 1212 | AT12: =COUNTIF(L114:L134,AS12) -> 0 | AU12: =AT12/(AV4-AT20) -> 0 | AV12: =IF(AU12=0,0,(AU12*((LOG(AU12))/LOG(2)))) -> 0
A13: 12 | B13: 791 | C13: 14 | D13: 796 | E13: 13 | F13: 801 | G13: 14 | H13: 807 | K13: 0 | L13: 1111 | N13: 1221 | O13: =COUNTIF($L$7:$L$500,N13) -> 2 | P13: =O13/$Q$4 -> 0.015625 | Q13: =IF(P13=0,0,(P13*((LOG(P13))/LOG(2)))) -> -0.09375 | T13: =N13 -> 1221 | U13: =COUNTIF(L7:L27,T13) -> 0 | V13: =U13/(W4-U20) -> 0 | W13: =IF(V13=0,0,(V13*((LOG(V13))/LOG(2)))) -> 0 | Y13: =N13 -> 1221 | Z13: =COUNTIF(L28:L49,Y13) -> 1 | AA13: =Z13/(AB4-Z20) -> 0.04545454545 | AB13: =IF(AA13=0,0,(AA13*((LOG(AA13))/LOG(2)))) -> -0.2027014372 | AD13: =N13 -> 1221 | AE13: =COUNTIF(L50:L70,AD13) -> 1 | AF13: =AE13/(AG4-AE20) -> 0.04761904762 | AG13: =IF(AF13=0,0,(AF13*((LOG(AF13))/LOG(2)))) -> -0.2091579725 | AI13: =N13 -> 1221 | AJ13: =COUNTIF(L71:L91,AI13) -> 0 | AK13: =AJ13/(AL4-AJ20) -> 0 | AL13: =IF(AK13=0,0,(AK13*((LOG(AK13))/LOG(2)))) -> 0 | AN13: =N13 -> 1221 | AO13: =COUNTIF(L92:L113,AN13) -> 0 | AP13: =AO13/(AQ4-AO20) -> 0 | AQ13: =IF(AP13=0,0,(AP13*((LOG(AP13))/LOG(2)))) -> 0 | AS13: =N13 -> 1221 | AT13: =COUNTIF(L114:L134,AS13) -> 0 | AU13: =AT13/(AV4-AT20) -> 0 | AV13: =IF(AU13=0,0,(AU13*((LOG(AU13))/LOG(2)))) -> 0
A14: 12 | B14: 928 | C14: 14 | D14: 933 | E14: 13 | F14: 937 | G14: 14 | H14: 942 | K14: 0 | L14: 1111 | N14: 1222 | O14: =COUNTIF($L$7:$L$500,N14) -> 3 | P14: =O14/$Q$4 -> 0.0234375 | Q14: =IF(P14=0,0,(P14*((LOG(P14))/LOG(2)))) -> -0.1269149414 | T14: =N14 -> 1222 | U14: =COUNTIF(L7:L27,T14) -> 0 | V14: =U14/(W4-U20) -> 0 | W14: =IF(V14=0,0,(V14*((LOG(V14))/LOG(2)))) -> 0 | Y14: =N14 -> 1222 | Z14: =COUNTIF(L28:L49,Y14) -> 0 | AA14: =Z14/(AB4-Z20) -> 0 | AB14: =IF(AA14=0,0,(AA14*((LOG(AA14))/LOG(2)))) -> 0 | AD14: =N14 -> 1222 | AE14: =COUNTIF(L50:L70,AD14) -> 0 | AF14: =AE14/(AG4-AE20) -> 0 | AG14: =IF(AF14=0,0,(AF14*((LOG(AF14))/LOG(2)))) -> 0 | AI14: =N14 -> 1222 | AJ14: =COUNTIF(L71:L91,AI14) -> 1 | AK14: =AJ14/(AL4-AJ20) -> 0.04761904762 | AL14: =IF(AK14=0,0,(AK14*((LOG(AK14))/LOG(2)))) -> -0.2091579725 | AN14: =N14 -> 1222 | AO14: =COUNTIF(L92:L113,AN14) -> 2 | AP14: =AO14/(AQ4-AO20) -> 0.09523809524 | AQ14: =IF(AP14=0,0,(AP14*((LOG(AP14))/LOG(2)))) -> -0.3230778498 | AS14: =N14 -> 1222 | AT14: =COUNTIF(L114:L134,AS14) -> 0 | AU14: =AT14/(AV4-AT20) -> 0 | AV14: =IF(AU14=0,0,(AU14*((LOG(AU14))/LOG(2)))) -> 0
A15: 12 | B15: 1045 | C15: 14 | D15: 1050 | E15: 13 | F15: 1054 | G15: 14 | H15: 1061 | K15: 0 | L15: 1111 | N15: 2111 | O15: =COUNTIF($L$7:$L$500,N15) -> 35 | P15: =O15/$Q$4 -> 0.2734375 | Q15: =IF(P15=0,0,(P15*((LOG(P15))/LOG(2)))) -> -0.5115241751 | T15: =N15 -> 2111 | U15: =COUNTIF(L7:L27,T15) -> 2 | V15: =U15/(W4-U20) -> 0.09523809524 | W15: =IF(V15=0,0,(V15*((LOG(V15))/LOG(2)))) -> -0.3230778498 | Y15: =N15 -> 2111 | Z15: =COUNTIF(L28:L49,Y15) -> 6 | AA15: =Z15/(AB4-Z20) -> 0.2727272727 | AB15: =IF(AA15=0,0,(AA15*((LOG(AA15))/LOG(2)))) -> -0.5112188503 | AD15: =N15 -> 2111 | AE15: =COUNTIF(L50:L70,AD15) -> 6 | AF15: =AE15/(AG4-AE20) -> 0.2857142857 | AG15: =IF(AF15=0,0,(AF15*((LOG(AF15))/LOG(2)))) -> -0.5163871206 | AI15: =N15 -> 2111 | AJ15: =COUNTIF(L71:L91,AI15) -> 6 | AK15: =AJ15/(AL4-AJ20) -> 0.2857142857 | AL15: =IF(AK15=0,0,(AK15*((LOG(AK15))/LOG(2)))) -> -0.5163871206 | AN15: =N15 -> 2111 | AO15: =COUNTIF(L92:L113,AN15) -> 5 | AP15: =AO15/(AQ4-AO20) -> 0.2380952381 | AQ15: =IF(AP15=0,0,(AP15*((LOG(AP15))/LOG(2)))) -> -0.49294984 | AS15: =N15 -> 2111 | AT15: =COUNTIF(L114:L134,AS15) -> 10 | AU15: =AT15/(AV4-AT20) -> 0.4761904762 | AV15: =IF(AU15=0,0,(AU15*((LOG(AU15))/LOG(2)))) -> -0.5097092038
A16: 12 | B16: 1166 | C16: 14 | D16: 1171 | E16: 13 | F16: 1176 | G16: 14 | H16: 1181 | K16: 0 | L16: 1111 | N16: 2112 | O16: =COUNTIF($L$7:$L$500,N16) -> 0 | P16: =O16/$Q$4 -> 0 | Q16: =IF(P16=0,0,(P16*((LOG(P16))/LOG(2)))) -> 0 | T16: =N16 -> 2112 | U16: =COUNTIF(L7:L27,T16) -> 0 | V16: =U16/(W4-U20) -> 0 | W16: =IF(V16=0,0,(V16*((LOG(V16))/LOG(2)))) -> 0 | Y16: =N16 -> 2112 | Z16: =COUNTIF(L28:L49,Y16) -> 0 | AA16: =Z16/(AB4-Z20) -> 0 | AB16: =IF(AA16=0,0,(AA16*((LOG(AA16))/LOG(2)))) -> 0 | AD16: =N16 -> 2112 | AE16: =COUNTIF(L50:L70,AD16) -> 0 | AF16: =AE16/(AG4-AE20) -> 0 | AG16: =IF(AF16=0,0,(AF16*((LOG(AF16))/LOG(2)))) -> 0 | AI16: =N16 -> 2112 | AJ16: =COUNTIF(L71:L91,AI16) -> 0 | AK16: =AJ16/(AL4-AJ20) -> 0 | AL16: =IF(AK16=0,0,(AK16*((LOG(AK16))/LOG(2)))) -> 0 | AN16: =N16 -> 2112 | AO16: =COUNTIF(L92:L113,AN16) -> 0 | AP16: =AO16/(AQ4-AO20) -> 0 | AQ16: =IF(AP16=0,0,(AP16*((LOG(AP16))/LOG(2)))) -> 0 | AS16: =N16 -> 2112 | AT16: =COUNTIF(L114:L134,AS16) -> 0 | AU16: =AT16/(AV4-AT20) -> 0 | AV16: =IF(AU16=0,0,(AU16*((LOG(AU16))/LOG(2)))) -> 0
A17: 12 | B17: 1295 | C17: 14 | D17: 1300 | E17: 13 | F17: 1305 | G17: 14 | H17: 1313 | K17: 0 | L17: 1111 | N17: 2121 | O17: =COUNTIF($L$7:$L$500,N17) -> 0 | P17: =O17/$Q$4 -> 0 | Q17: =IF(P17=0,0,(P17*((LOG(P17))/LOG(2)))) -> 0 | T17: =N17 -> 2121 | U17: =COUNTIF(L7:L27,T17) -> 0 | V17: =U17/(W4-U20) -> 0 | W17: =IF(V17=0,0,(V17*((LOG(V17))/LOG(2)))) -> 0 | Y17: =N17 -> 2121 | Z17: =COUNTIF(L28:L49,Y17) -> 0 | AA17: =Z17/(AB4-Z20) -> 0 | AB17: =IF(AA17=0,0,(AA17*((LOG(AA17))/LOG(2)))) -> 0 | AD17: =N17 -> 2121 | AE17: =COUNTIF(L50:L70,AD17) -> 0 | AF17: =AE17/(AG4-AE20) -> 0 | AG17: =IF(AF17=0,0,(AF17*((LOG(AF17))/LOG(2)))) -> 0 | AI17: =N17 -> 2121 | AJ17: =COUNTIF(L71:L91,AI17) -> 0 | AK17: =AJ17/(AL4-AJ20) -> 0 | AL17: =IF(AK17=0,0,(AK17*((LOG(AK17))/LOG(2)))) -> 0 | AN17: =N17 -> 2121 | AO17: =COUNTIF(L92:L113,AN17) -> 0 | AP17: =AO17/(AQ4-AO20) -> 0 | AQ17: =IF(AP17=0,0,(AP17*((LOG(AP17))/LOG(2)))) -> 0 | AS17: =N17 -> 2121 | AT17: =COUNTIF(L114:L134,AS17) -> 0 | AU17: =AT17/(AV4-AT20) -> 0 | AV17: =IF(AU17=0,0,(AU17*((LOG(AU17))/LOG(2)))) -> 0
A18: 12 | B18: 1425 | C18: 14 | D18: 1429 | E18: 13 | F18: 1433 | G18: 14 | H18: 1441 | K18: 0 | L18: 1111 | N18: 2122 | O18: =COUNTIF($L$7:$L$500,N18) -> 1 | P18: =O18/$Q$4 -> 0.0078125 | Q18: =IF(P18=0,0,(P18*((LOG(P18))/LOG(2)))) -> -0.0546875 | T18: =N18 -> 2122 | U18: =COUNTIF(L7:L27,T18) -> 0 | V18: =U18/(W4-U20) -> 0 | W18: =IF(V18=0,0,(V18*((LOG(V18))/LOG(2)))) -> 0 | Y18: =N18 -> 2122 | Z18: =COUNTIF(L28:L49,Y18) -> 0 | AA18: =Z18/(AB4-Z20) -> 0 | AB18: =IF(AA18=0,0,(AA18*((LOG(AA18))/LOG(2)))) -> 0 | AD18: =N18 -> 2122 | AE18: =COUNTIF(L50:L70,AD18) -> 0 | AF18: =AE18/(AG4-AE20) -> 0 | AG18: =IF(AF18=0,0,(AF18*((LOG(AF18))/LOG(2)))) -> 0 | AI18: =N18 -> 2122 | AJ18: =COUNTIF(L71:L91,AI18) -> 0 | AK18: =AJ18/(AL4-AJ20) -> 0 | AL18: =IF(AK18=0,0,(AK18*((LOG(AK18))/LOG(2)))) -> 0 | AN18: =N18 -> 2122 | AO18: =COUNTIF(L92:L113,AN18) -> 0 | AP18: =AO18/(AQ4-AO20) -> 0 | AQ18: =IF(AP18=0,0,(AP18*((LOG(AP18))/LOG(2)))) -> 0 | AS18: =N18 -> 2122 | AT18: =COUNTIF(L114:L134,AS18) -> 1 | AU18: =AT18/(AV4-AT20) -> 0.04761904762 | AV18: =IF(AU18=0,0,(AU18*((LOG(AU18))/LOG(2)))) -> -0.2091579725
A19: 12 | B19: 1553 | C19: 14 | D19: 1557 | E19: 13 | F19: 1562 | G19: 14 | H19: 1571 | K19: 0 | L19: 1111 | N19: 2211 | O19: =COUNTIF($L$7:$L$500,N19) -> 13 | P19: =O19/$Q$4 -> 0.1015625 | Q19: =IF(P19=0,0,(P19*((LOG(P19))/LOG(2)))) -> -0.3351115911 | T19: =N19 -> 2211 | U19: =COUNTIF(L7:L27,T19) -> 1 | V19: =U19/(W4-U20) -> 0.04761904762 | W19: =IF(V19=0,0,(V19*((LOG(V19))/LOG(2)))) -> -0.2091579725 | Y19: =N19 -> 2211 | Z19: =COUNTIF(L28:L49,Y19) -> 1 | AA19: =Z19/(AB4-Z20) -> 0.04545454545 | AB19: =IF(AA19=0,0,(AA19*((LOG(AA19))/LOG(2)))) -> -0.2027014372 | AD19: =N19 -> 2211 | AE19: =COUNTIF(L50:L70,AD19) -> 5 | AF19: =AE19/(AG4-AE20) -> 0.2380952381 | AG19: =IF(AF19=0,0,(AF19*((LOG(AF19))/LOG(2)))) -> -0.49294984 | AI19: =N19 -> 2211 | AJ19: =COUNTIF(L71:L91,AI19) -> 2 | AK19: =AJ19/(AL4-AJ20) -> 0.09523809524 | AL19: =IF(AK19=0,0,(AK19*((LOG(AK19))/LOG(2)))) -> -0.3230778498 | AN19: =N19 -> 2211 | AO19: =COUNTIF(L92:L113,AN19) -> 3 | AP19: =AO19/(AQ4-AO20) -> 0.1428571429 | AQ19: =IF(AP19=0,0,(AP19*((LOG(AP19))/LOG(2)))) -> -0.4010507032 | AS19: =N19 -> 2211 | AT19: =COUNTIF(L114:L134,AS19) -> 1 | AU19: =AT19/(AV4-AT20) -> 0.04761904762 | AV19: =IF(AU19=0,0,(AU19*((LOG(AU19))/LOG(2)))) -> -0.2091579725
A20: 12 | B20: 1693 | C20: 14 | D20: 1698 | E20: 13 | F20: 1703 | G20: 14 | H20: 1707 | K20: 0 | L20: 1111 | N20: 2212 | O20: =COUNTIF($L$7:$L$500,N20) -> 1 | P20: =O20/$Q$4 -> 0.0078125 | Q20: =IF(P20=0,0,(P20*((LOG(P20))/LOG(2)))) -> -0.0546875 | T20: =N20 -> 2212 | U20: =COUNTIF(L7:L27,T20) -> 0 | Y20: =N20 -> 2212 | Z20: =COUNTIF(L28:L49,Y20) -> 0 | AD20: =N20 -> 2212 | AE20: =COUNTIF(L50:L70,AD20) -> 0 | AI20: =N20 -> 2212 | AJ20: =COUNTIF(L71:L91,AI20) -> 0 | AN20: =N20 -> 2212 | AO20: =COUNTIF(L92:L113,AN20) -> 1 | AS20: =N20 -> 2212 | AT20: =COUNTIF(L114:L134,AS20) -> 0
A21: 21 | B21: 1823 | C21: 21 | D21: 1829 | E21: 11 | F21: 1844 | G21: 12 | H21: 1849 | K21: 0 | L21: 2211 | N21: 2221 | O21: =COUNTIF($L$7:$L$500,N21) -> 3 | P21: =O21/$Q$4 -> 0.0234375 | Q21: =IF(P21=0,0,(P21*((LOG(P21))/LOG(2)))) -> -0.1269149414 | T21: =N21 -> 2221 | U21: =COUNTIF(L7:L27,T21) -> 0 | V21: =U21/(W4-U20) -> 0 | W21: =IF(V21=0,0,(V21*((LOG(V21))/LOG(2)))) -> 0 | Y21: =N21 -> 2221 | Z21: =COUNTIF(L28:L49,Y21) -> 1 | AA21: =Z21/(AB4-Z20) -> 0.04545454545 | AB21: =IF(AA21=0,0,(AA21*((LOG(AA21))/LOG(2)))) -> -0.2027014372 | AD21: =N21 -> 2221 | AE21: =COUNTIF(L50:L70,AD21) -> 0 | AF21: =AE21/(AG4-AE20) -> 0 | AG21: =IF(AF21=0,0,(AF21*((LOG(AF21))/LOG(2)))) -> 0 | AI21: =N21 -> 2221 | AJ21: =COUNTIF(L71:L91,AI21) -> 1 | AK21: =AJ21/(AL4-AJ20) -> 0.04761904762 | AL21: =IF(AK21=0,0,(AK21*((LOG(AK21))/LOG(2)))) -> -0.2091579725 | AN21: =N21 -> 2221 | AO21: =COUNTIF(L92:L113,AN21) -> 1 | AP21: =AO21/(AQ4-AO20) -> 0.04761904762 | AQ21: =IF(AP21=0,0,(AP21*((LOG(AP21))/LOG(2)))) -> -0.2091579725 | AS21: =N21 -> 2221 | AT21: =COUNTIF(L114:L134,AS21) -> 0 | AU21: =AT21/(AV4-AT20) -> 0 | AV21: =IF(AU21=0,0,(AU21*((LOG(AU21))/LOG(2)))) -> 0
A22: 21 | B22: 1969 | C22: 12 | D22: 1989 | E22: 13 | F22: 1994 | G22: 14 | H22: 2001 | K22: 0 | L22: 2111 | N22: 2222 | O22: =COUNTIF($L$7:$L$500,N22) -> 22 | P22: =O22/$Q$4 -> 0.171875 | Q22: =IF(P22=0,0,(P22*((LOG(P22))/LOG(2)))) -> -0.4366601905 | T22: =N22 -> 2222 | U22: =COUNTIF(L7:L27,T22) -> 0 | V22: =U22/(W4-U20) -> 0 | W22: =IF(V22=0,0,(V22*((LOG(V22))/LOG(2)))) -> 0 | Y22: =N22 -> 2222 | Z22: =COUNTIF(L28:L49,Y22) -> 1 | AA22: =Z22/(AB4-Z20) -> 0.04545454545 | AB22: =IF(AA22=0,0,(AA22*((LOG(AA22))/LOG(2)))) -> -0.2027014372 | AD22: =N22 -> 2222 | AE22: =COUNTIF(L50:L70,AD22) -> 1 | AF22: =AE22/(AG4-AE20) -> 0.04761904762 | AG22: =IF(AF22=0,0,(AF22*((LOG(AF22))/LOG(2)))) -> -0.2091579725 | AI22: =N22 -> 2222 | AJ22: =COUNTIF(L71:L91,AI22) -> 5 | AK22: =AJ22/(AL4-AJ20) -> 0.2380952381 | AL22: =IF(AK22=0,0,(AK22*((LOG(AK22))/LOG(2)))) -> -0.49294984 | AN22: =N22 -> 2222 | AO22: =COUNTIF(L92:L113,AN22) -> 9 | AP22: =AO22/(AQ4-AO20) -> 0.4285714286 | AQ22: =IF(AP22=0,0,(AP22*((LOG(AP22))/LOG(2)))) -> -0.5238824663 | AS22: =N22 -> 2222 | AT22: =COUNTIF(L114:L134,AS22) -> 6 | AU22: =AT22/(AV4-AT20) -> 0.2857142857 | AV22: =IF(AU22=0,0,(AU22*((LOG(AU22))/LOG(2)))) -> -0.5163871206
A23: 12 | B23: 2127 | C23: 14 | D23: 2133 | E23: 13 | F23: 2142 | G23: 14 | H23: 2152 | K23: 0 | L23: 1111 | P23: =SUM(P7:P22) -> 1 | Q23: =-SUM(Q7:Q22) -> 2.325675246 | V23: =SUM(V7:V22) -> 1 | W23: =-SUM(W7:W22) -> 0.7228578977 | AA23: =SUM(AA7:AA22) -> 1 | AB23: =-SUM(AB7:AB22) -> 1.799007754 | AF23: =SUM(AF7:AF22) -> 1 | AG23: =-SUM(AG7:AG22) -> 1.958059543 | AK23: =SUM(AK7:AK22) -> 1 | AL23: =-SUM(AL7:AL22) -> 2.267117876 | AP23: =SUM(AP7:AP22) -> 1 | AQ23: =-SUM(AQ7:AQ22) -> 2.159276804 | AU23: =SUM(AU7:AU22) -> 1 | AV23: =-SUM(AV7:AV22) -> 1.976648092
A24: 12 | B24: 2290 | C24: 14 | D24: 2295 | E24: 13 | F24: 2303 | G24: 14 | H24: 2312 | K24: 0 | L24: 1111 | P24: U= | Q24: =Q23/(LOG(Q4)/LOG(2)) -> 0.3322393208 | V24: U1= | W24: =W23/(LOG(W4)/LOG(2)) -> 0.1645732373 | AA24: U2= | AB24: =AB23/(LOG(AB4)/LOG(2)) -> 0.4034163786 | AF24: U3= | AG24: =AG23/(LOG(AG4)/LOG(2)) -> 0.4457919031 | AK24: U4= | AL24: =AL23/(LOG(AL4)/LOG(2)) -> 0.5161552906 | AP24: U5= | AQ24: =AQ23/(LOG(AQ4)/LOG(2)) -> 0.4842044881 | AU24: U6= | AV24: =AV23/(LOG(AV4)/LOG(2)) -> 0.4500239626
A25: 12 | B25: 2422 | C25: 14 | D25: 2427 | E25: 13 | F25: 2432 | G25: 14 | H25: 2438 | K25: 0 | L25: 1111
A26: 12 | B26: 2556 | C26: 14 | D26: 2560 | E26: 13 | F26: 2565 | G26: 14 | H26: 2572 | K26: 0 | L26: 1111
A27: 21 | B27: 2724 | C27: 12 | D27: 2738 | E27: 13 | F27: 2743 | G27: 14 | H27: 2750 | K27: 0 | L27: 2111 | N27: Total Target Seq
A28: 12 | B28: 2852 | C28: 23 | D28: 2880 | E28: 24 | F28: 2888 | G28: 14 | H28: 2904 | K28: 0 | L28: 1221 | N28: =COUNTIF(L7:L134,G3) -> 1 | P28: 21 | Q28: 22 | R28: 21 | S28: 21 | T28: 22 | U28: 21
A29: 12 | B29: 3048 | C29: 14 | D29: 3053 | E29: 13 | F29: 3059 | G29: 14 | H29: 3064 | K29: 0 | L29: 1111 | P29: % of reinforcement given in 6 equal intervals based on number of trials
A30: 12 | B30: 3188 | C30: 14 | D30: 3194 | E30: 13 | F30: 3203 | G30: 14 | H30: 3212 | K30: 0 | L30: 1111 | P30: %_1 | Q30: %_2 | R30: %_3 | S30: %_4 | T30: %_5 | U30: %_6
A31: 21 | B31: 3405 | C31: 21 | D31: 3413 | E31: 22 | F31: 3421 | G31: 14 | H31: 3440 | K31: 0 | L31: 2221 | O31: target sequence | P31: =$G$3 -> 2212 | Q31: =$G$3 -> 2212 | R31: =$G$3 -> 2212 | S31: =$G$3 -> 2212 | T31: =$G$3 -> 2212 | U31: =$G$3 -> 2212
A32: 21 | B32: 3559 | C32: 12 | D32: 3572 | E32: 13 | F32: 3576 | G32: 14 | H32: 3581 | K32: 0 | L32: 2111 | O32: total reinforcement | P32: =U20 -> 0 | Q32: =Z20 -> 0 | R32: =AE20 -> 0 | S32: =AJ20 -> 0 | T32: =AO20 -> 1 | U32: =AT20 -> 0
A33: 12 | B33: 3715 | C33: 14 | D33: 3719 | E33: 13 | F33: 3724 | G33: 14 | H33: 3732 | K33: 0 | L33: 1111 | O33: % target
A34: 12 | B34: 3857 | C34: 14 | D34: 3863 | E34: 13 | F34: 3868 | G34: 14 | H34: 3876 | K34: 0 | L34: 1111 | O34: CCRF
A35: 21 | B35: 4005 | C35: 12 | D35: 4021 | E35: 13 | F35: 4025 | G35: 14 | H35: 4030 | K35: 0 | L35: 2111 | O35: % CCRf
A36: 12 | B36: 4143 | C36: 14 | D36: 4149 | E36: 13 | F36: 4154 | G36: 14 | H36: 4160 | K36: 0 | L36: 1111 | O36: average response rate | P36: =H27/P28 -> 130.952381 | Q36: =(H49-H27)/Q28 -> 163.8636364 | R36: =(H70-H49)/R28 -> 179.4761905 | S36: =(H91-H70)/S28 -> 210.7619048 | T36: =(H113-H91)/T28 -> 212.5909091 | U36: =(H134-H113)/U28 -> 226.4761905
A37: 21 | B37: 4298 | C37: 12 | D37: 4311 | E37: 13 | F37: 4316 | G37: 14 | H37: 4324 | K37: 0 | L37: 2111
A38: 21 | B38: 4483 | C38: 12 | D38: 4497 | E38: 13 | F38: 4502 | G38: 14 | H38: 4507 | K38: 0 | L38: 2111
A39: 12 | B39: 4652 | C39: 14 | D39: 4656 | E39: 13 | F39: 4661 | G39: 14 | H39: 4669 | K39: 0 | L39: 1111
A40: 12 | B40: 4889 | C40: 14 | D40: 4895 | E40: 13 | F40: 4900 | G40: 14 | H40: 4905 | K40: 0 | L40: 1111
A41: 12 | B41: 5020 | C41: 14 | D41: 5043 | E41: 13 | F41: 5049 | G41: 14 | H41: 5053 | K41: 0 | L41: 1111
A42: 21 | B42: 5172 | C42: 21 | D42: 5188 | E42: 22 | F42: 5195 | G42: 23 | H42: 5203 | K42: 0 | L42: 2222
A43: 12 | B43: 5311 | C43: 14 | D43: 5316 | E43: 13 | F43: 5321 | G43: 14 | H43: 5328 | K43: 0 | L43: 1111
A44: 21 | B44: 5440 | C44: 12 | D44: 5452 | E44: 13 | F44: 5457 | G44: 14 | H44: 5461 | K44: 0 | L44: 2111
A45: 12 | B45: 5664 | C45: 14 | D45: 5669 | E45: 13 | F45: 5673 | G45: 14 | H45: 5678 | K45: 0 | L45: 1111
A46: 21 | B46: 5812 | C46: 21 | D46: 5820 | E46: 11 | F46: 5836 | G46: 12 | H46: 5841 | K46: 0 | L46: 2211
A47: 21 | B47: 6059 | C47: 12 | D47: 6070 | E47: 13 | F47: 6075 | G47: 14 | H47: 6079 | K47: 0 | L47: 2111
A48: 12 | B48: 6201 | C48: 14 | D48: 6206 | E48: 13 | F48: 6211 | G48: 14 | H48: 6217 | K48: 0 | L48: 1111
A49: 12 | B49: 6334 | C49: 14 | D49: 6339 | E49: 13 | F49: 6347 | G49: 14 | H49: 6355 | K49: 0 | L49: 1111
A50: 21 | B50: 6473 | C50: 12 | D50: 6487 | E50: 13 | F50: 6491 | G50: 14 | H50: 6496 | K50: 0 | L50: 2111
A51: 12 | B51: 6629 | C51: 14 | D51: 6636 | E51: 13 | F51: 6643 | G51: 14 | H51: 6650 | K51: 0 | L51: 1111
A52: 21 | B52: 6841 | C52: 12 | D52: 6856 | E52: 13 | F52: 6861 | G52: 14 | H52: 6865 | K52: 0 | L52: 2111
A53: 12 | B53: 6971 | C53: 14 | D53: 6977 | E53: 13 | F53: 6990 | G53: 14 | H53: 6996 | K53: 0 | L53: 1111
A54: 21 | B54: 7126 | C54: 21 | D54: 7134 | E54: 11 | F54: 7147 | G54: 12 | H54: 7151 | K54: 0 | L54: 2211
A55: 12 | B55: 7270 | C55: 23 | D55: 7281 | E55: 24 | F55: 7289 | G55: 14 | H55: 7301 | K55: 0 | L55: 1221
A56: 21 | B56: 7467 | C56: 12 | D56: 7480 | E56: 13 | F56: 7484 | G56: 14 | H56: 7492 | K56: 0 | L56: 2111
A57: 21 | B57: 7628 | C57: 21 | D57: 7637 | E57: 11 | F57: 7649 | G57: 12 | H57: 7657 | K57: 0 | L57: 2211
A58: 21 | B58: 7857 | C58: 12 | D58: 7874 | E58: 13 | F58: 7879 | G58: 14 | H58: 7886 | K58: 0 | L58: 2111
A59: 21 | B59: 7991 | C59: 21 | D59: 8002 | E59: 11 | F59: 8022 | G59: 12 | H59: 8031 | K59: 0 | L59: 2211
A60: 12 | B60: 8169 | C60: 14 | D60: 8174 | E60: 13 | F60: 8182 | G60: 14 | H60: 8190 | K60: 0 | L60: 1111
A61: 21 | B61: 8303 | C61: 21 | D61: 8308 | E61: 11 | F61: 8320 | G61: 12 | H61: 8325 | K61: 0 | L61: 2211
A62: 12 | B62: 8479 | C62: 14 | D62: 8484 | E62: 13 | F62: 8488 | G62: 14 | H62: 8496 | K62: 0 | L62: 1111
A63: 21 | B63: 8596 | C63: 12 | D63: 8619 | E63: 13 | F63: 8625 | G63: 14 | H63: 8632 | K63: 0 | L63: 2111
A64: 12 | B64: 8959 | C64: 14 | D64: 8964 | E64: 13 | F64: 8969 | G64: 14 | H64: 8975 | K64: 0 | L64: 1111
A65: 12 | B65: 9235 | C65: 14 | D65: 9239 | E65: 13 | F65: 9244 | G65: 14 | H65: 9249 | K65: 0 | L65: 1111
A66: 12 | B66: 9431 | C66: 14 | D66: 9436 | E66: 13 | F66: 9443 | G66: 14 | H66: 9451 | K66: 0 | L66: 1111
A67: 21 | B67: 9583 | C67: 21 | D67: 9605 | E67: 11 | F67: 9619 | G67: 12 | H67: 9624 | K67: 0 | L67: 2211
A68: 21 | B68: 9779 | C68: 12 | D68: 9791 | E68: 13 | F68: 9795 | G68: 14 | H68: 9800 | K68: 0 | L68: 2111
A69: 21 | B69: 9934 | C69: 21 | D69: 9939 | E69: 22 | F69: 9946 | G69: 23 | H69: 9979 | K69: 0 | L69: 2222
A70: 12 | B70: 10108 | C70: 14 | D70: 10114 | E70: 13 | F70: 10119 | G70: 14 | H70: 10124 | K70: 0 | L70: 1111
A71: 21 | B71: 10441 | C71: 12 | D71: 10460 | E71: 13 | F71: 10470 | G71: 14 | H71: 10475 | K71: 0 | L71: 2111
A72: 12 | B72: 10586 | C72: 14 | D72: 10592 | E72: 13 | F72: 10598 | G72: 14 | H72: 10603 | K72: 0 | L72: 1111
A73: 21 | B73: 10851 | C73: 12 | D73: 10864 | E73: 13 | F73: 10869 | G73: 14 | H73: 10874 | K73: 0 | L73: 2111
A74: 12 | B74: 11472 | C74: 14 | D74: 11480 | E74: 13 | F74: 11485 | G74: 14 | H74: 11492 | K74: 0 | L74: 1111
A75: 21 | B75: 11623 | C75: 21 | D75: 11628 | E75: 11 | F75: 11642 | G75: 12 | H75: 11646 | K75: 0 | L75: 2211
A76: 12 | B76: 12063 | C76: 14 | D76: 12071 | E76: 13 | F76: 12077 | G76: 14 | H76: 12085 | K76: 0 | L76: 1111
A77: 21 | B77: 12228 | C77: 21 | D77: 12235 | E77: 22 | F77: 12244 | G77: 23 | H77: 12252 | K77: 0 | L77: 2222
A78: 21 | B78: 12417 | C78: 21 | D78: 12433 | E78: 11 | F78: 12450 | G78: 12 | H78: 12455 | K78: 0 | L78: 2211
A79: 21 | B79: 12609 | C79: 21 | D79: 12621 | E79: 22 | F79: 12638 | G79: 14 | H79: 12652 | K79: 0 | L79: 2221
A80: 12 | B80: 12847 | C80: 14 | D80: 12852 | E80: 13 | F80: 12857 | G80: 14 | H80: 12867 | K80: 0 | L80: 1111
A81: 12 | B81: 13005 | C81: 14 | D81: 13011 | E81: 13 | F81: 13016 | G81: 14 | H81: 13023 | K81: 0 | L81: 1111
A82: 21 | B82: 13154 | C82: 12 | D82: 13168 | E82: 13 | F82: 13173 | G82: 14 | H82: 13178 | K82: 0 | L82: 2111
A83: 21 | B83: 13360 | C83: 21 | D83: 13368 | E83: 22 | F83: 13377 | G83: 23 | H83: 13388 | K83: 0 | L83: 2222
A84: 12 | B84: 13512 | C84: 14 | D84: 13519 | E84: 13 | F84: 13523 | G84: 14 | H84: 13528 | K84: 0 | L84: 1111
A85: 21 | B85: 13658 | C85: 12 | D85: 13673 | E85: 13 | F85: 13677 | G85: 14 | H85: 13682 | K85: 0 | L85: 2111
A86: 21 | B86: 13795 | C86: 12 | D86: 13809 | E86: 13 | F86: 13819 | G86: 14 | H86: 13824 | K86: 0 | L86: 2111
A87: 21 | B87: 13929 | C87: 21 | D87: 13937 | E87: 22 | F87: 13945 | G87: 23 | H87: 13952 | K87: 0 | L87: 2222
A88: 12 | B88: 14060 | C88: 23 | D88: 14073 | E88: 24 | F88: 14080 | G88: 23 | H88: 14088 | K88: 0 | L88: 1222
A89: 21 | B89: 14212 | C89: 12 | D89: 14226 | E89: 13 | F89: 14231 | G89: 14 | H89: 14236 | K89: 0 | L89: 2111
A90: 21 | B90: 14365 | C90: 21 | D90: 14393 | E90: 22 | F90: 14401 | G90: 23 | H90: 14411 | K90: 0 | L90: 2222
A91: 21 | B91: 14529 | C91: 21 | D91: 14537 | E91: 22 | F91: 14542 | G91: 23 | H91: 14550 | K91: 0 | L91: 2222
A92: 21 | B92: 14699 | C92: 12 | D92: 14716 | E92: 13 | F92: 14720 | G92: 14 | H92: 14727 | K92: 0 | L92: 2111
A93: 21 | B93: 14844 | C93: 12 | D93: 14859 | E93: 13 | F93: 14864 | G93: 14 | H93: 14868 | K93: 0 | L93: 2111
A94: 21 | B94: 15045 | C94: 21 | D94: 15052 | E94: 22 | F94: 15058 | G94: 23 | H94: 15066 | K94: 0 | L94: 2222
A95: 12 | B95: 15397 | C95: 14 | D95: 15408 | E95: 13 | F95: 15415 | G95: 14 | H95: 15422 | K95: 0 | L95: 1111
A96: 21 | B96: 15593 | C96: 21 | D96: 15599 | E96: 11 | F96: 15614 | G96: 12 | H96: 15618 | K96: 0 | L96: 2211
A97: 21 | B97: 15842 | C97: 12 | D97: 15857 | E97: 13 | F97: 15862 | G97: 14 | H97: 15868 | K97: 0 | L97: 2111
A98: 21 | B98: 16278 | C98: 21 | D98: 16295 | E98: 22 | F98: 16358 | G98: 23 | H98: 16376 | K98: 0 | L98: 2222
A99: 21 | B99: 16478 | C99: 21 | D99: 16484 | E99: 11 | F99: 16499 | G99: 21 | H99: 16515 | K99: 0 | L99: 2212
A100: 21 | B100: 16612 | C100: 21 | D100: 16637 | E100: 22 | F100: 16647 | G100: 23 | H100: 16656 | K100: 0 | L100: 2222
A101: 21 | B101: 16778 | C101: 12 | D101: 16807 | E101: 13 | F101: 16811 | G101: 14 | H101: 16818 | K101: 0 | L101: 2111
A102: 12 | B102: 16950 | C102: 23 | D102: 16966 | E102: 24 | F102: 16973 | G102: 23 | H102: 16982 | K102: 0 | L102: 1222
A103: 21 | B103: 17098 | C103: 21 | D103: 17104 | E103: 22 | F103: 17118 | G103: 23 | H103: 17126 | K103: 0 | L103: 2222
A104: 21 | B104: 17252 | C104: 21 | D104: 17258 | E104: 22 | F104: 17267 | G104: 23 | H104: 17272 | K104: 0 | L104: 2222
A105: 21 | B105: 17406 | C105: 21 | D105: 17411 | E105: 22 | F105: 17420 | G105: 23 | H105: 17426 | K105: 0 | L105: 2222
A106: 21 | B106: 17535 | C106: 21 | D106: 17541 | E106: 11 | F106: 17554 | G106: 12 | H106: 17559 | K106: 0 | L106: 2211
A107: 21 | B107: 17681 | C107: 12 | D107: 17694 | E107: 13 | F107: 17699 | G107: 14 | H107: 17703 | K107: 0 | L107: 2111
A108: 21 | B108: 17965 | C108: 21 | D108: 17973 | E108: 22 | F108: 17981 | G108: 23 | H108: 18002 | K108: 0 | L108: 2222
A109: 12 | B109: 18138 | C109: 23 | D109: 18152 | E109: 24 | F109: 18158 | G109: 23 | H109: 18166 | K109: 0 | L109: 1222
A110: 21 | B110: 18538 | C110: 21 | D110: 18545 | E110: 22 | F110: 18556 | G110: 23 | H110: 18566 | K110: 0 | L110: 2222
A111: 21 | B111: 18867 | C111: 21 | D111: 18874 | E111: 22 | F111: 18884 | G111: 14 | H111: 18900 | K111: 0 | L111: 2221
A112: 21 | B112: 19047 | C112: 21 | D112: 19053 | E112: 22 | F112: 19059 | G112: 23 | H112: 19067 | K112: 0 | L112: 2222
A113: 21 | B113: 19197 | C113: 21 | D113: 19204 | E113: 11 | F113: 19217 | G113: 12 | H113: 19227 | K113: 0 | L113: 2211
A114: 21 | B114: 19390 | C114: 12 | D114: 19404 | E114: 13 | F114: 19408 | G114: 14 | H114: 19413 | K114: 0 | L114: 2111
A115: 21 | B115: 19574 | C115: 12 | D115: 19590 | E115: 13 | F115: 19595 | G115: 14 | H115: 19599 | K115: 0 | L115: 2111
A116: 21 | B116: 19751 | C116: 12 | D116: 19764 | E116: 13 | F116: 19769 | G116: 14 | H116: 19774 | K116: 0 | L116: 2111
A117: 21 | B117: 20099 | C117: 12 | D117: 20115 | E117: 13 | F117: 20120 | G117: 14 | H117: 20129 | K117: 0 | L117: 2111
A118: 21 | B118: 20251 | C118: 21 | D118: 20257 | E118: 22 | F118: 20263 | G118: 23 | H118: 20275 | K118: 0 | L118: 2222
A119: 21 | B119: 20395 | C119: 12 | D119: 20408 | E119: 13 | F119: 20413 | G119: 14 | H119: 20418 | K119: 0 | L119: 2111
A120: 12 | B120: 20730 | C120: 14 | D120: 20735 | E120: 13 | F120: 20741 | G120: 14 | H120: 20749 | K120: 0 | L120: 1111
A121: 12 | B121: 20877 | C121: 14 | D121: 20882 | E121: 13 | F121: 20887 | G121: 14 | H121: 20891 | K121: 0 | L121: 1111
A122: 21 | B122: 21001 | C122: 12 | D122: 21035 | E122: 13 | F122: 21045 | G122: 14 | H122: 21054 | K122: 0 | L122: 2111
A123: 21 | B123: 21428 | C123: 21 | D123: 21444 | E123: 22 | F123: 21452 | G123: 23 | H123: 21460 | K123: 0 | L123: 2222
A124: 21 | B124: 21594 | C124: 12 | D124: 21608 | E124: 13 | F124: 21615 | G124: 14 | H124: 21621 | K124: 0 | L124: 2111
A125: 12 | B125: 21756 | C125: 14 | D125: 21765 | E125: 13 | F125: 21773 | G125: 23 | H125: 21786 | K125: 0 | L125: 1112
A126: 21 | B126: 21909 | C126: 21 | D126: 21920 | E126: 11 | F126: 21935 | G126: 12 | H126: 21941 | K126: 0 | L126: 2211
A127: 21 | B127: 22060 | C127: 12 | D127: 22077 | E127: 13 | F127: 22084 | G127: 14 | H127: 22090 | K127: 0 | L127: 2111
A128: 21 | B128: 22487 | C128: 12 | D128: 22502 | E128: 13 | F128: 22507 | G128: 14 | H128: 22511 | K128: 0 | L128: 2111
A129: 21 | B129: 23028 | C129: 21 | D129: 23036 | E129: 22 | F129: 23042 | G129: 23 | H129: 23051 | K129: 0 | L129: 2222
A130: 21 | B130: 23193 | C130: 21 | D130: 23199 | E130: 22 | F130: 23208 | G130: 23 | H130: 23217 | K130: 0 | L130: 2222
A131: 21 | B131: 23458 | C131: 21 | D131: 23466 | E131: 22 | F131: 23482 | G131: 23 | H131: 23491 | K131: 0 | L131: 2222
A132: 21 | B132: 23677 | C132: 21 | D132: 23686 | E132: 22 | F132: 23702 | G132: 23 | H132: 23712 | K132: 0 | L132: 2222
A133: 21 | B133: 23811 | C133: 12 | D133: 23826 | E133: 13 | F133: 23835 | G133: 14 | H133: 23840 | K133: 0 | L133: 2111
A134: 21 | B134: 23949 | C134: 12 | D134: 23966 | E134: 24 | F134: 23978 | G134: 23 | H134: 23983 | L134: 2122

Sheet !MB15850.091
A1: Report for:!MB15850.091
A2: Date: | B2: <date>
A3: Hen: | B3: <hen> | F3: Correct Sequence | G3: =Start!J2 -> 2212 | P3: Total Sequences in Data | Q3: =4994-COUNTBLANK(L7:L5000) -> 139 | V3: Total Sequences in Block Data | W3: =COUNTA(L7:L29) -> 23 | AA3: Total Sequences in Block Data | AB3: =COUNTA(L30:L52) -> 23 | AF3: Total Sequences in Block Data | AG3: =COUNTA(L53:L76) -> 24 | AK3: Total Sequences in Block Data | AL3: =COUNTA(L77:L99) -> 23 | AP3: Total Sequences in Block Data | AQ3: =COUNTA(L100:L122) -> 23 | AU3: Total Sequences in Block Data | AV3: =COUNTA(L123:L145) -> 23
P4: Total Sequences in Summary | Q4: =SUM(O7:O22) -> 139 | V4: Total Sequences in Block Summary | W4: =SUM(U7:U22) -> 23 | AA4: Total Sequences in Block Summary | AB4: =SUM(Z7:Z22) -> 23 | AF4: Total Sequences in Block Summary | AG4: =SUM(AE7:AE22) -> 24 | AK4: Total Sequences in Block Summary | AL4: =SUM(AJ7:AJ22) -> 23 | AP4: Total Sequences in Block Summary | AQ4: =SUM(AO7:AO22) -> 23 | AU4: Total Sequences in Block Summary | AV4: =SUM(AT7:AT22) -> 23
T5: Block 1 | Y5: Block 2 | AD5: Block 3 | AI5: Block 4 | AN5: Block 5 | AS5: Block 6
A6: Sequence Component 1 | B6: Time 1 | C6: Sequence Component 2 | D6: Time 2 | E6: Sequence Component 3 | F6: Time 3 | G6: Sequence Component 4 | H6: Time 4 | I6: Sequence Component 5 | J6: Time 5 | K6: Correct? 0=No 1=Yes | L6: Sequence | N6: Frequency | P6: Relative Frequency | Q6: Variability | T6: Frequency | V6: Relative Frequency | W6: Variability | Y6: Frequency | AA6: Relative Frequency | AB6: Variability | AD6: Frequency | AF6: Relative Frequency | AG6: Variability | AI6: Frequency | AK6: Relative Frequency | AL6: Variability | AN6: Frequency | AP6: Relative Frequency | AQ6: Variability | AS6: Frequency | AU6: Relative Frequency | AV6: Variability
A7: 12 | B7: 15 | C7: 14 | D7: 21 | E7: 13 | F7: 27 | G7: 14 | H7: 35 | K7: 0 | L7: 1111 | N7: 1111 | O7: =COUNTIF($L$7:$L$500,N7) -> 52 | P7: =O7/$Q$4 -> 0.3741007194 | Q7: =IF(P7=0,0,(P7*((LOG(P7))/LOG(2)))) -> -0.5306623773 | T7: =N7 -> 1111 | U7: =COUNTIF(L7:L29,T7) -> 10 | V7: =U7/(W4-U20) -> 0.4347826087 | W7: =IF(V7=0,0,(V7*((LOG(V7))/LOG(2)))) -> -0.5224495049 | Y7: =N7 -> 1111 | Z7: =COUNTIF(L30:L52,Y7) -> 10 | AA7: =Z7/(AB4-Z20) -> 0.4347826087 | AB7: =IF(AA7=0,0,(AA7*((LOG(AA7))/LOG(2)))) -> -0.5224495049 | AD7: =N7 -> 1111 | AE7: =COUNTIF(L53:L76,AD7) -> 8 | AF7: =AE7/(AG4-AE20) -> 0.3333333333 | AG7: =IF(AF7=0,0,(AF7*((LOG(AF7))/LOG(2)))) -> -0.5283208336 | AI7: =N7 -> 1111 | AJ7: =COUNTIF(L77:L99,AI7) -> 6 | AK7: =AJ7/(AL4-AJ20) -> 0.2608695652 | AL7: =IF(AK7=0,0,(AK7*((LOG(AK7))/LOG(2)))) -> -0.505721597 | AN7: =N7 -> 1111 | AO7: =COUNTIF(L100:L122,AN7) -> 9 | AP7: =AO7/(AQ4-AO20) -> 0.3913043478 | AQ7: =IF(AP7=0,0,(AP7*((LOG(AP7))/LOG(2)))) -> -0.5296840257 | AS7: =N7 -> 1111 | AT7: =COUNTIF(L123:L145,AS7) -> 9 | AU7: =AT7/(AV4-AT20) -> 0.3913043478 | AV7: =IF(AU7=0,0,(AU7*((LOG(AU7))/LOG(2)))) -> -0.5296840257
A8: 12 | B8: 134 | C8: 14 | D8: 142 | E8: 13 | F8: 148 | G8: 14 | H8: 152 | K8: 0 | L8: 1111 | N8: 1112 | O8: =COUNTIF($L$7:$L$500,N8) -> 1 | P8: =O8/$Q$4 -> 0.007194244604 | Q8: =IF(P8=0,0,(P8*((LOG(P8))/LOG(2)))) -> -0.0512154034 | T8: =N8 -> 1112 | U8: =COUNTIF(L7:L29,T8) -> 0 | V8: =U8/(W4-U20) -> 0 | W8: =IF(V8=0,0,(V8*((LOG(V8))/LOG(2)))) -> 0 | Y8: =N8 -> 1112 | Z8: =COUNTIF(L30:L52,Y8) -> 0 | AA8: =Z8/(AB4-Z20) -> 0 | AB8: =IF(AA8=0,0,(AA8*((LOG(AA8))/LOG(2)))) -> 0 | AD8: =N8 -> 1112 | AE8: =COUNTIF(L53:L76,AD8) -> 1 | AF8: =AE8/(AG4-AE20) -> 0.04166666667 | AG8: =IF(AF8=0,0,(AF8*((LOG(AF8))/LOG(2)))) -> -0.1910401042 | AI8: =N8 -> 1112 | AJ8: =COUNTIF(L77:L99,AI8) -> 0 | AK8: =AJ8/(AL4-AJ20) -> 0 | AL8: =IF(AK8=0,0,(AK8*((LOG(AK8))/LOG(2)))) -> 0 | AN8: =N8 -> 1112 | AO8: =COUNTIF(L100:L122,AN8) -> 0 | AP8: =AO8/(AQ4-AO20) -> 0 | AQ8: =IF(AP8=0,0,(AP8*((LOG(AP8))/LOG(2)))) -> 0 | AS8: =N8 -> 1112 | AT8: =COUNTIF(L123:L145,AS8) -> 0 | AU8: =AT8/(AV4-AT20) -> 0 | AV8: =IF(AU8=0,0,(AU8*((LOG(AU8))/LOG(2)))) -> 0
A9: 12 | B9: 257 | C9: 14 | D9: 262 | E9: 13 | F9: 270 | G9: 14 | H9: 277 | K9: 0 | L9: 1111 | N9: 1121 | O9: =COUNTIF($L$7:$L$500,N9) -> 0 | P9: =O9/$Q$4 -> 0 | Q9: =IF(P9=0,0,(P9*((LOG(P9))/LOG(2)))) -> 0 | T9: =N9 -> 1121 | U9: =COUNTIF(L7:L29,T9) -> 0 | V9: =U9/(W4-U20) -> 0 | W9: =IF(V9=0,0,(V9*((LOG(V9))/LOG(2)))) -> 0 | Y9: =N9 -> 1121 | Z9: =COUNTIF(L30:L52,Y9) -> 0 | AA9: =Z9/(AB4-Z20) -> 0 | AB9: =IF(AA9=0,0,(AA9*((LOG(AA9))/LOG(2)))) -> 0 | AD9: =N9 -> 1121 | AE9: =COUNTIF(L53:L76,AD9) -> 0 | AF9: =AE9/(AG4-AE20) -> 0 | AG9: =IF(AF9=0,0,(AF9*((LOG(AF9))/LOG(2)))) -> 0 | AI9: =N9 -> 1121 | AJ9: =COUNTIF(L77:L99,AI9) -> 0 | AK9: =AJ9/(AL4-AJ20) -> 0 | AL9: =IF(AK9=0,0,(AK9*((LOG(AK9))/LOG(2)))) -> 0 | AN9: =N9 -> 1121 | AO9: =COUNTIF(L100:L122,AN9) -> 0 | AP9: =AO9/(AQ4-AO20) -> 0 | AQ9: =IF(AP9=0,0,(AP9*((LOG(AP9))/LOG(2)))) -> 0 | AS9: =N9 -> 1121 | AT9: =COUNTIF(L123:L145,AS9) -> 0 | AU9: =AT9/(AV4-AT20) -> 0 | AV9: =IF(AU9=0,0,(AU9*((LOG(AU9))/LOG(2)))) -> 0
A10: 12 | B10: 386 | C10: 14 | D10: 390 | E10: 13 | F10: 396 | G10: 14 | H10: 403 | K10: 0 | L10: 1111 | N10: 1122 | O10: =COUNTIF($L$7:$L$500,N10) -> 3 | P10: =O10/$Q$4 -> 0.02158273381 | Q10: =IF(P10=0,0,(P10*((LOG(P10))/LOG(2)))) -> -0.1194383864 | T10: =N10 -> 1122 | U10: =COUNTIF(L7:L29,T10) -> 1 | V10: =U10/(W4-U20) -> 0.04347826087 | W10: =IF(V10=0,0,(V10*((LOG(V10))/LOG(2)))) -> -0.1966766068 | Y10: =N10 -> 1122 | Z10: =COUNTIF(L30:L52,Y10) -> 0 | AA10: =Z10/(AB4-Z20) -> 0 | AB10: =IF(AA10=0,0,(AA10*((LOG(AA10))/LOG(2)))) -> 0 | AD10: =N10 -> 1122 | AE10: =COUNTIF(L53:L76,AD10) -> 1 | AF10: =AE10/(AG4-AE20) -> 0.04166666667 | AG10: =IF(AF10=0,0,(AF10*((LOG(AF10))/LOG(2)))) -> -0.1910401042 | AI10: =N10 -> 1122 | AJ10: =COUNTIF(L77:L99,AI10) -> 0 | AK10: =AJ10/(AL4-AJ20) -> 0 | AL10: =IF(AK10=0,0,(AK10*((LOG(AK10))/LOG(2)))) -> 0 | AN10: =N10 -> 1122 | AO10: =COUNTIF(L100:L122,AN10) -> 1 | AP10: =AO10/(AQ4-AO20) -> 0.04347826087 | AQ10: =IF(AP10=0,0,(AP10*((LOG(AP10))/LOG(2)))) -> -0.1966766068 | AS10: =N10 -> 1122 | AT10: =COUNTIF(L123:L145,AS10) -> 0 | AU10: =AT10/(AV4-AT20) -> 0 | AV10: =IF(AU10=0,0,(AU10*((LOG(AU10))/LOG(2)))) -> 0
A11: 21 | B11: 528 | C11: 12 | D11: 541 | E11: 13 | F11: 547 | G11: 14 | H11: 553 | K11: 0 | L11: 2111 | N11: 1211 | O11: =COUNTIF($L$7:$L$500,N11) -> 2 | P11: =O11/$Q$4 -> 0.01438848921 | Q11: =IF(P11=0,0,(P11*((LOG(P11))/LOG(2)))) -> -0.08804231759 | T11: =N11 -> 1211 | U11: =COUNTIF(L7:L29,T11) -> 0 | V11: =U11/(W4-U20) -> 0 | W11: =IF(V11=0,0,(V11*((LOG(V11))/LOG(2)))) -> 0 | Y11: =N11 -> 1211 | Z11: =COUNTIF(L30:L52,Y11) -> 0 | AA11: =Z11/(AB4-Z20) -> 0 | AB11: =IF(AA11=0,0,(AA11*((LOG(AA11))/LOG(2)))) -> 0 | AD11: =N11 -> 1211 | AE11: =COUNTIF(L53:L76,AD11) -> 0 | AF11: =AE11/(AG4-AE20) -> 0 | AG11: =IF(AF11=0,0,(AF11*((LOG(AF11))/LOG(2)))) -> 0 | AI11: =N11 -> 1211 | AJ11: =COUNTIF(L77:L99,AI11) -> 1 | AK11: =AJ11/(AL4-AJ20) -> 0.04347826087 | AL11: =IF(AK11=0,0,(AK11*((LOG(AK11))/LOG(2)))) -> -0.1966766068 | AN11: =N11 -> 1211 | AO11: =COUNTIF(L100:L122,AN11) -> 1 | AP11: =AO11/(AQ4-AO20) -> 0.04347826087 | AQ11: =IF(AP11=0,0,(AP11*((LOG(AP11))/LOG(2)))) -> -0.1966766068 | AS11: =N11 -> 1211 | AT11: =COUNTIF(L123:L145,AS11) -> 0 | AU11: =AT11/(AV4-AT20) -> 0 | AV11: =IF(AU11=0,0,(AU11*((LOG(AU11))/LOG(2)))) -> 0
A12: 12 | B12: 674 | C12: 14 | D12: 687 | E12: 13 | F12: 696 | G12: 14 | H12: 704 | K12: 0 | L12: 1111 | N12: 1212 | O12: =COUNTIF($L$7:$L$500,N12) -> 0 | P12: =O12/$Q$4 -> 0 | Q12: =IF(P12=0,0,(P12*((LOG(P12))/LOG(2)))) -> 0 | T12: =N12 -> 1212 | U12: =COUNTIF(L7:L29,T12) -> 0 | V12: =U12/(W4-U20) -> 0 | W12: =IF(V12=0,0,(V12*((LOG(V12))/LOG(2)))) -> 0 | Y12: =N12 -> 1212 | Z12: =COUNTIF(L30:L52,Y12) -> 0 | AA12: =Z12/(AB4-Z20) -> 0 | AB12: =IF(AA12=0,0,(AA12*((LOG(AA12))/LOG(2)))) -> 0 | AD12: =N12 -> 1212 | AE12: =COUNTIF(L53:L76,AD12) -> 0 | AF12: =AE12/(AG4-AE20) -> 0 | AG12: =IF(AF12=0,0,(AF12*((LOG(AF12))/LOG(2)))) -> 0 | AI12: =N12 -> 1212 | AJ12: =COUNTIF(L77:L99,AI12) -> 0 | AK12: =AJ12/(AL4-AJ20) -> 0 | AL12: =IF(AK12=0,0,(AK12*((LOG(AK12))/LOG(2)))) -> 0 | AN12: =N12 -> 1212 | AO12: =COUNTIF(L100:L122,AN12) -> 0 | AP12: =AO12/(AQ4-AO20) -> 0 | AQ12: =IF(AP12=0,0,(AP12*((LOG(AP12))/LOG(2)))) -> 0 | AS12: =N12 -> 1212 | AT12: =COUNTIF(L123:L145,AS12) -> 0 | AU12: =AT12/(AV4-AT20) -> 0 | AV12: =IF(AU12=0,0,(AU12*((LOG(AU12))/LOG(2)))) -> 0
A13: 21 | B13: 826 | C13: 12 | D13: 839 | E13: 13 | F13: 844 | G13: 14 | H13: 849 | K13: 0 | L13: 2111 | N13: 1221 | O13: =COUNTIF($L$7:$L$500,N13) -> 0 | P13: =O13/$Q$4 -> 0 | Q13: =IF(P13=0,0,(P13*((LOG(P13))/LOG(2)))) -> 0 | T13: =N13 -> 1221 | U13: =COUNTIF(L7:L29,T13) -> 0 | V13: =U13/(W4-U20) -> 0 | W13: =IF(V13=0,0,(V13*((LOG(V13))/LOG(2)))) -> 0 | Y13: =N13 -> 1221 | Z13: =COUNTIF(L30:L52,Y13) -> 0 | AA13: =Z13/(AB4-Z20) -> 0 | AB13: =IF(AA13=0,0,(AA13*((LOG(AA13))/LOG(2)))) -> 0 | AD13: =N13 -> 1221 | AE13: =COUNTIF(L53:L76,AD13) -> 0 | AF13: =AE13/(AG4-AE20) -> 0 | AG13: =IF(AF13=0,0,(AF13*((LOG(AF13))/LOG(2)))) -> 0 | AI13: =N13 -> 1221 | AJ13: =COUNTIF(L77:L99,AI13) -> 0 | AK13: =AJ13/(AL4-AJ20) -> 0 | AL13: =IF(AK13=0,0,(AK13*((LOG(AK13))/LOG(2)))) -> 0 | AN13: =N13 -> 1221 | AO13: =COUNTIF(L100:L122,AN13) -> 0 | AP13: =AO13/(AQ4-AO20) -> 0 | AQ13: =IF(AP13=0,0,(AP13*((LOG(AP13))/LOG(2)))) -> 0 | AS13: =N13 -> 1221 | AT13: =COUNTIF(L123:L145,AS13) -> 0 | AU13: =AT13/(AV4-AT20) -> 0 | AV13: =IF(AU13=0,0,(AU13*((LOG(AU13))/LOG(2)))) -> 0
A14: 12 | B14: 994 | C14: 14 | D14: 1002 | E14: 13 | F14: 1007 | G14: 14 | H14: 1012 | K14: 0 | L14: 1111 | N14: 1222 | O14: =COUNTIF($L$7:$L$500,N14) -> 1 | P14: =O14/$Q$4 -> 0.007194244604 | Q14: =IF(P14=0,0,(P14*((LOG(P14))/LOG(2)))) -> -0.0512154034 | T14: =N14 -> 1222 | U14: =COUNTIF(L7:L29,T14) -> 0 | V14: =U14/(W4-U20) -> 0 | W14: =IF(V14=0,0,(V14*((LOG(V14))/LOG(2)))) -> 0 | Y14: =N14 -> 1222 | Z14: =COUNTIF(L30:L52,Y14) -> 0 | AA14: =Z14/(AB4-Z20) -> 0 | AB14: =IF(AA14=0,0,(AA14*((LOG(AA14))/LOG(2)))) -> 0 | AD14: =N14 -> 1222 | AE14: =COUNTIF(L53:L76,AD14) -> 0 | AF14: =AE14/(AG4-AE20) -> 0 | AG14: =IF(AF14=0,0,(AF14*((LOG(AF14))/LOG(2)))) -> 0 | AI14: =N14 -> 1222 | AJ14: =COUNTIF(L77:L99,AI14) -> 0 | AK14: =AJ14/(AL4-AJ20) -> 0 | AL14: =IF(AK14=0,0,(AK14*((LOG(AK14))/LOG(2)))) -> 0 | AN14: =N14 -> 1222 | AO14: =COUNTIF(L100:L122,AN14) -> 1 | AP14: =AO14/(AQ4-AO20) -> 0.04347826087 | AQ14: =IF(AP14=0,0,(AP14*((LOG(AP14))/LOG(2)))) -> -0.1966766068 | AS14: =N14 -> 1222 | AT14: =COUNTIF(L123:L145,AS14) -> 0 | AU14: =AT14/(AV4-AT20) -> 0 | AV14: =IF(AU14=0,0,(AU14*((LOG(AU14))/LOG(2)))) -> 0
A15: 12 | B15: 1128 | C15: 14 | D15: 1137 | E15: 24 | F15: 1150 | G15: 23 | H15: 1158 | K15: 0 | L15: 1122 | N15: 2111 | O15: =COUNTIF($L$7:$L$500,N15) -> 35 | P15: =O15/$Q$4 -> 0.2517985612 | Q15: =IF(P15=0,0,(P15*((LOG(P15))/LOG(2)))) -> -0.5009930356 | T15: =N15 -> 2111 | U15: =COUNTIF(L7:L29,T15) -> 8 | V15: =U15/(W4-U20) -> 0.347826087 | W15: =IF(V15=0,0,(V15*((LOG(V15))/LOG(2)))) -> -0.5299345934 | Y15: =N15 -> 2111 | Z15: =COUNTIF(L30:L52,Y15) -> 3 | AA15: =Z15/(AB4-Z20) -> 0.1304347826 | AB15: =IF(AA15=0,0,(AA15*((LOG(AA15))/LOG(2)))) -> -0.3832955811 | AD15: =N15 -> 2111 | AE15: =COUNTIF(L53:L76,AD15) -> 3 | AF15: =AE15/(AG4-AE20) -> 0.125 | AG15: =IF(AF15=0,0,(AF15*((LOG(AF15))/LOG(2)))) -> -0.375 | AI15: =N15 -> 2111 | AJ15: =COUNTIF(L77:L99,AI15) -> 8 | AK15: =AJ15/(AL4-AJ20) -> 0.347826087 | AL15: =IF(AK15=0,0,(AK15*((LOG(AK15))/LOG(2)))) -> -0.5299345934 | AN15: =N15 -> 2111 | AO15: =COUNTIF(L100:L122,AN15) -> 6 | AP15: =AO15/(AQ4-AO20) -> 0.2608695652 | AQ15: =IF(AP15=0,0,(AP15*((LOG(AP15))/LOG(2)))) -> -0.505721597 | AS15: =N15 -> 2111 | AT15: =COUNTIF(L123:L145,AS15) -> 7 | AU15: =AT15/(AV4-AT20) -> 0.3043478261 | AV15: =IF(AU15=0,0,(AU15*((LOG(AU15))/LOG(2)))) -> -0.5223238799
A16: 21 | B16: 1283 | C16: 21 | D16: 1288 | E16: 22 | F16: 1295 | G16: 23 | H16: 1316 | K16: 0 | L16: 2222 | N16: 2112 | O16: =COUNTIF($L$7:$L$500,N16) -> 2 | P16: =O16/$Q$4 -> 0.01438848921 | Q16: =IF(P16=0,0,(P16*((LOG(P16))/LOG(2)))) -> -0.08804231759 | T16: =N16 -> 2112 | U16: =COUNTIF(L7:L29,T16) -> 0 | V16: =U16/(W4-U20) -> 0 | W16: =IF(V16=0,0,(V16*((LOG(V16))/LOG(2)))) -> 0 | Y16: =N16 -> 2112 | Z16: =COUNTIF(L30:L52,Y16) -> 0 | AA16: =Z16/(AB4-Z20) -> 0 | AB16: =IF(AA16=0,0,(AA16*((LOG(AA16))/LOG(2)))) -> 0 | AD16: =N16 -> 2112 | AE16: =COUNTIF(L53:L76,AD16) -> 0 | AF16: =AE16/(AG4-AE20) -> 0 | AG16: =IF(AF16=0,0,(AF16*((LOG(AF16))/LOG(2)))) -> 0 | AI16: =N16 -> 2112 | AJ16: =COUNTIF(L77:L99,AI16) -> 1 | AK16: =AJ16/(AL4-AJ20) -> 0.04347826087 | AL16: =IF(AK16=0,0,(AK16*((LOG(AK16))/LOG(2)))) -> -0.1966766068 | AN16: =N16 -> 2112 | AO16: =COUNTIF(L100:L122,AN16) -> 0 | AP16: =AO16/(AQ4-AO20) -> 0 | AQ16: =IF(AP16=0,0,(AP16*((LOG(AP16))/LOG(2)))) -> 0 | AS16: =N16 -> 2112 | AT16: =COUNTIF(L123:L145,AS16) -> 1 | AU16: =AT16/(AV4-AT20) -> 0.04347826087 | AV16: =IF(AU16=0,0,(AU16*((LOG(AU16))/LOG(2)))) -> -0.1966766068
A17: 21 | B17: 1435 | C17: 12 | D17: 1448 | E17: 13 | F17: 1453 | G17: 14 | H17: 1459 | K17: 0 | L17: 2111 | N17: 2121 | O17: =COUNTIF($L$7:$L$500,N17) -> 0 | P17: =O17/$Q$4 -> 0 | Q17: =IF(P17=0,0,(P17*((LOG(P17))/LOG(2)))) -> 0 | T17: =N17 -> 2121 | U17: =COUNTIF(L7:L29,T17) -> 0 | V17: =U17/(W4-U20) -> 0 | W17: =IF(V17=0,0,(V17*((LOG(V17))/LOG(2)))) -> 0 | Y17: =N17 -> 2121 | Z17: =COUNTIF(L30:L52,Y17) -> 0 | AA17: =Z17/(AB4-Z20) -> 0 | AB17: =IF(AA17=0,0,(AA17*((LOG(AA17))/LOG(2)))) -> 0 | AD17: =N17 -> 2121 | AE17: =COUNTIF(L53:L76,AD17) -> 0 | AF17: =AE17/(AG4-AE20) -> 0 | AG17: =IF(AF17=0,0,(AF17*((LOG(AF17))/LOG(2)))) -> 0 | AI17: =N17 -> 2121 | AJ17: =COUNTIF(L77:L99,AI17) -> 0 | AK17: =AJ17/(AL4-AJ20) -> 0 | AL17: =IF(AK17=0,0,(AK17*((LOG(AK17))/LOG(2)))) -> 0 | AN17: =N17 -> 2121 | AO17: =COUNTIF(L100:L122,AN17) -> 0 | AP17: =AO17/(AQ4-AO20) -> 0 | AQ17: =IF(AP17=0,0,(AP17*((LOG(AP17))/LOG(2)))) -> 0 | AS17: =N17 -> 2121 | AT17: =COUNTIF(L123:L145,AS17) -> 0 | AU17: =AT17/(AV4-AT20) -> 0 | AV17: =IF(AU17=0,0,(AU17*((LOG(AU17))/LOG(2)))) -> 0
A18: 12 | B18: 1593 | C18: 14 | D18: 1597 | E18: 13 | F18: 1603 | G18: 14 | H18: 1612 | K18: 0 | L18: 1111 | N18: 2122 | O18: =COUNTIF($L$7:$L$500,N18) -> 0 | P18: =O18/$Q$4 -> 0 | Q18: =IF(P18=0,0,(P18*((LOG(P18))/LOG(2)))) -> 0 | T18: =N18 -> 2122 | U18: =COUNTIF(L7:L29,T18) -> 0 | V18: =U18/(W4-U20) -> 0 | W18: =IF(V18=0,0,(V18*((LOG(V18))/LOG(2)))) -> 0 | Y18: =N18 -> 2122 | Z18: =COUNTIF(L30:L52,Y18) -> 0 | AA18: =Z18/(AB4-Z20) -> 0 | AB18: =IF(AA18=0,0,(AA18*((LOG(AA18))/LOG(2)))) -> 0 | AD18: =N18 -> 2122 | AE18: =COUNTIF(L53:L76,AD18) -> 0 | AF18: =AE18/(AG4-AE20) -> 0 | AG18: =IF(AF18=0,0,(AF18*((LOG(AF18))/LOG(2)))) -> 0 | AI18: =N18 -> 2122 | AJ18: =COUNTIF(L77:L99,AI18) -> 0 | AK18: =AJ18/(AL4-AJ20) -> 0 | AL18: =IF(AK18=0,0,(AK18*((LOG(AK18))/LOG(2)))) -> 0 | AN18: =N18 -> 2122 | AO18: =COUNTIF(L100:L122,AN18) -> 0 | AP18: =AO18/(AQ4-AO20) -> 0 | AQ18: =IF(AP18=0,0,(AP18*((LOG(AP18))/LOG(2)))) -> 0 | AS18: =N18 -> 2122 | AT18: =COUNTIF(L123:L145,AS18) -> 0 | AU18: =AT18/(AV4-AT20) -> 0 | AV18: =IF(AU18=0,0,(AU18*((LOG(AU18))/LOG(2)))) -> 0
A19: 12 | B19: 1762 | C19: 14 | D19: 1770 | E19: 13 | F19: 1777 | G19: 14 | H19: 1786 | K19: 0 | L19: 1111 | N19: 2211 | O19: =COUNTIF($L$7:$L$500,N19) -> 11 | P19: =O19/$Q$4 -> 0.07913669065 | Q19: =IF(P19=0,0,(P19*((LOG(P19))/LOG(2)))) -> -0.2896014676 | T19: =N19 -> 2211 | U19: =COUNTIF(L7:L29,T19) -> 0 | V19: =U19/(W4-U20) -> 0 | W19: =IF(V19=0,0,(V19*((LOG(V19))/LOG(2)))) -> 0 | Y19: =N19 -> 2211 | Z19: =COUNTIF(L30:L52,Y19) -> 1 | AA19: =Z19/(AB4-Z20) -> 0.04347826087 | AB19: =IF(AA19=0,0,(AA19*((LOG(AA19))/LOG(2)))) -> -0.1966766068 | AD19: =N19 -> 2211 | AE19: =COUNTIF(L53:L76,AD19) -> 1 | AF19: =AE19/(AG4-AE20) -> 0.04166666667 | AG19: =IF(AF19=0,0,(AF19*((LOG(AF19))/LOG(2)))) -> -0.1910401042 | AI19: =N19 -> 2211 | AJ19: =COUNTIF(L77:L99,AI19) -> 3 | AK19: =AJ19/(AL4-AJ20) -> 0.1304347826 | AL19: =IF(AK19=0,0,(AK19*((LOG(AK19))/LOG(2)))) -> -0.3832955811 | AN19: =N19 -> 2211 | AO19: =COUNTIF(L100:L122,AN19) -> 2 | AP19: =AO19/(AQ4-AO20) -> 0.08695652174 | AQ19: =IF(AP19=0,0,(AP19*((LOG(AP19))/LOG(2)))) -> -0.3063966918 | AS19: =N19 -> 2211 | AT19: =COUNTIF(L123:L145,AS19) -> 4 | AU19: =AT19/(AV4-AT20) -> 0.1739130435 | AV19: =IF(AU19=0,0,(AU19*((LOG(AU19))/LOG(2)))) -> -0.4388803402
A20: 12 | B20: 1902 | C20: 14 | D20: 1930 | E20: 13 | F20: 1937 | G20: 14 | H20: 1943 | K20: 0 | L20: 1111 | N20: 2212 | O20: =COUNTIF($L$7:$L$500,N20) -> 0 | P20: =O20/$Q$4 -> 0 | Q20: =IF(P20=0,0,(P20*((LOG(P20))/LOG(2)))) -> 0 | T20: =N20 -> 2212 | U20: =COUNTIF(L7:L29,T20) -> 0 | Y20: =N20 -> 2212 | Z20: =COUNTIF(L30:L52,Y20) -> 0 | AD20: =N20 -> 2212 | AE20: =COUNTIF(L53:L76,AD20) -> 0 | AI20: =N20 -> 2212 | AJ20: =COUNTIF(L77:L99,AI20) -> 0 | AN20: =N20 -> 2212 | AO20: =COUNTIF(L100:L122,AN20) -> 0 | AS20: =N20 -> 2212 | AT20: =COUNTIF(L123:L145,AS20) -> 0
A21: 21 | B21: 2085 | C21: 12 | D21: 2098 | E21: 13 | F21: 2102 | G21: 14 | H21: 2106 | K21: 0 | L21: 2111 | N21: 2221 | O21: =COUNTIF($L$7:$L$500,N21) -> 3 | P21: =O21/$Q$4 -> 0.02158273381 | Q21: =IF(P21=0,0,(P21*((LOG(P21))/LOG(2)))) -> -0.1194383864 | T21: =N21 -> 2221 | U21: =COUNTIF(L7:L29,T21) -> 0 | V21: =U21/(W4-U20) -> 0 | W21: =IF(V21=0,0,(V21*((LOG(V21))/LOG(2)))) -> 0 | Y21: =N21 -> 2221 | Z21: =COUNTIF(L30:L52,Y21) -> 0 | AA21: =Z21/(AB4-Z20) -> 0 | AB21: =IF(AA21=0,0,(AA21*((LOG(AA21))/LOG(2)))) -> 0 | AD21: =N21 -> 2221 | AE21: =COUNTIF(L53:L76,AD21) -> 0 | AF21: =AE21/(AG4-AE20) -> 0 | AG21: =IF(AF21=0,0,(AF21*((LOG(AF21))/LOG(2)))) -> 0 | AI21: =N21 -> 2221 | AJ21: =COUNTIF(L77:L99,AI21) -> 1 | AK21: =AJ21/(AL4-AJ20) -> 0.04347826087 | AL21: =IF(AK21=0,0,(AK21*((LOG(AK21))/LOG(2)))) -> -0.1966766068 | AN21: =N21 -> 2221 | AO21: =COUNTIF(L100:L122,AN21) -> 2 | AP21: =AO21/(AQ4-AO20) -> 0.08695652174 | AQ21: =IF(AP21=0,0,(AP21*((LOG(AP21))/LOG(2)))) -> -0.3063966918 | AS21: =N21 -> 2221 | AT21: =COUNTIF(L123:L145,AS21) -> 0 | AU21: =AT21/(AV4-AT20) -> 0 | AV21: =IF(AU21=0,0,(AU21*((LOG(AU21))/LOG(2)))) -> 0
A22: 21 | B22: 2218 | C22: 21 | D22: 2224 | E22: 22 | F22: 2229 | G22: 23 | H22: 2237 | K22: 0 | L22: 2222 | N22: 2222 | O22: =COUNTIF($L$7:$L$500,N22) -> 29 | P22: =O22/$Q$4 -> 0.2086330935 | Q22: =IF(P22=0,0,(P22*((LOG(P22))/LOG(2)))) -> -0.4717110953 | T22: =N22 -> 2222 | U22: =COUNTIF(L7:L29,T22) -> 4 | V22: =U22/(W4-U20) -> 0.1739130435 | W22: =IF(V22=0,0,(V22*((LOG(V22))/LOG(2)))) -> -0.4388803402 | Y22: =N22 -> 2222 | Z22: =COUNTIF(L30:L52,Y22) -> 9 | AA22: =Z22/(AB4-Z20) -> 0.3913043478 | AB22: =IF(AA22=0,0,(AA22*((LOG(AA22))/LOG(2)))) -> -0.5296840257 | AD22: =N22 -> 2222 | AE22: =COUNTIF(L53:L76,AD22) -> 10 | AF22: =AE22/(AG4-AE20) -> 0.4166666667 | AG22: =IF(AF22=0,0,(AF22*((LOG(AF22))/LOG(2)))) -> -0.5262643358 | AI22: =N22 -> 2222 | AJ22: =COUNTIF(L77:L99,AI22) -> 3 | AK22: =AJ22/(AL4-AJ20) -> 0.1304347826 | AL22: =IF(AK22=0,0,(AK22*((LOG(AK22))/LOG(2)))) -> -0.3832955811 | AN22: =N22 -> 2222 | AO22: =COUNTIF(L100:L122,AN22) -> 1 | AP22: =AO22/(AQ4-AO20) -> 0.04347826087 | AQ22: =IF(AP22=0,0,(AP22*((LOG(AP22))/LOG(2)))) -> -0.1966766068 | AS22: =N22 -> 2222 | AT22: =COUNTIF(L123:L145,AS22) -> 2 | AU22: =AT22/(AV4-AT20) -> 0.08695652174 | AV22: =IF(AU22=0,0,(AU22*((LOG(AU22))/LOG(2)))) -> -0.3063966918
A23: 21 | B23: 2356 | C23: 21 | D23: 2364 | E23: 22 | F23: 2372 | G23: 23 | H23: 2380 | K23: 0 | L23: 2222 | P23: =SUM(P7:P22) -> 1 | Q23: =-SUM(Q7:Q22) -> 2.310360191 | V23: =SUM(V7:V22) -> 1 | W23: =-SUM(W7:W22) -> 1.687941045 | AA23: =SUM(AA7:AA22) -> 1 | AB23: =-SUM(AB7:AB22) -> 1.632105718 | AF23: =SUM(AF7:AF22) -> 1 | AG23: =-SUM(AG7:AG22) -> 2.002705482 | AK23: =SUM(AK7:AK22) -> 1 | AL23: =-SUM(AL7:AL22) -> 2.392277173 | AP23: =SUM(AP7:AP22) -> 1 | AQ23: =-SUM(AQ7:AQ22) -> 2.434905434 | AU23: =SUM(AU7:AU22) -> 1 | AV23: =-SUM(AV7:AV22) -> 1.993961544
A24: 21 | B24: 2498 | C24: 12 | D24: 2521 | E24: 13 | F24: 2526 | G24: 14 | H24: 2534 | K24: 0 | L24: 2111 | P24: U= | Q24: =Q23/(LOG(Q4)/LOG(2)) -> 0.3245370578 | V24: U1= | W24: =W23/(LOG(W4)/LOG(2)) -> 0.3731442305 | AA24: U2= | AB24: =AB23/(LOG(AB4)/LOG(2)) -> 0.3608010091 | AF24: U3= | AG24: =AG23/(LOG(AG4)/LOG(2)) -> 0.4367986612 | AK24: U4= | AL24: =AL23/(LOG(AL4)/LOG(2)) -> 0.5288481061 | AP24: U5= | AQ24: =AQ23/(LOG(AQ4)/LOG(2)) -> 0.5382717109 | AU24: U6= | AV24: =AV23/(LOG(AV4)/LOG(2)) -> 0.4407945694
A25: 12 | B25: 2782 | C25: 14 | D25: 2787 | E25: 13 | F25: 2794 | G25: 14 | H25: 2803 | K25: 0 | L25: 1111
A26: 21 | B26: 2928 | C26: 12 | D26: 2940 | E26: 13 | F26: 2945 | G26: 14 | H26: 2950 | K26: 0 | L26: 2111
A27: 21 | B27: 3058 | C27: 12 | D27: 3071 | E27: 13 | F27: 3076 | G27: 14 | H27: 3080 | K27: 0 | L27: 2111 | N27: Total Target Seq
A28: 21 | B28: 3182 | C28: 12 | D28: 3197 | E28: 13 | F28: 3202 | G28: 14 | H28: 3206 | K28: 0 | L28: 2111 | N28: =COUNTIF(L7:L145,G3) -> 0 | P28: 23 | Q28: 23 | R28: 24 | S28: 23 | T28: 23 | U28: 23
A29: 21 | B29: 3316 | C29: 21 | D29: 3324 | E29: 22 | F29: 3332 | G29: 23 | H29: 3346 | K29: 0 | L29: 2222 | P29: % of reinforcement given in 6 equal intervals based on number of trials
A30: 21 | B30: 3453 | C30: 12 | D30: 3468 | E30: 13 | F30: 3473 | G30: 14 | H30: 3479 | K30: 0 | L30: 2111 | P30: %_1 | Q30: %_2 | R30: %_3 | S30: %_4 | T30: %_5 | U30: %_6
A31: 21 | B31: 3592 | C31: 21 | D31: 3597 | E31: 22 | F31: 3603 | G31: 23 | H31: 3609 | K31: 0 | L31: 2222 | O31: target sequence | P31: =$G$3 -> 2212 | Q31: =$G$3 -> 2212 | R31: =$G$3 -> 2212 | S31: =$G$3 -> 2212 | T31: =$G$3 -> 2212 | U31: =$G$3 -> 2212
A32: 21 | B32: 3736 | C32: 21 | D32: 3741 | E32: 22 | F32: 3756 | G32: 23 | H32: 3767 | K32: 0 | L32: 2222 | O32: total reinforcement | P32: =U20 -> 0 | Q32: =Z20 -> 0 | R32: =AE20 -> 0 | S32: =AJ20 -> 0 | T32: =AO20 -> 0 | U32: =AT20 -> 0
A33: 12 | B33: 3898 | C33: 14 | D33: 3904 | E33: 13 | F33: 3918 | G33: 14 | H33: 3927 | K33: 0 | L33: 1111 | O33: % target
A34: 12 | B34: 4061 | C34: 14 | D34: 4066 | E34: 13 | F34: 4078 | G34: 14 | H34: 4087 | K34: 0 | L34: 1111 | O34: CCRF
A35: 21 | B35: 4193 | C35: 21 | D35: 4199 | E35: 11 | F35: 4213 | G35: 12 | H35: 4218 | K35: 0 | L35: 2211 | O35: % CCRf
A36: 12 | B36: 4306 | C36: 14 | D36: 4313 | E36: 13 | F36: 4321 | G36: 14 | H36: 4328 | K36: 0 | L36: 1111 | O36: average response rate | P36: =H29/P28 -> 145.4782609 | Q36: =(H52-H29)/Q28 -> 139.3478261 | R36: =(H76-H52)/R28 -> 144.9583333 | S36: =(H99-H76)/S28 -> 163.6956522 | T36: =(H122-H99)/T28 -> 206.6521739 | U36: =(H145-H122)/U28 -> 234.6521739
A37: 21 | B37: 4427 | C37: 21 | D37: 4445 | E37: 22 | F37: 4450 | G37: 23 | H37: 4459 | K37: 0 | L37: 2222
A38: 12 | B38: 4568 | C38: 14 | D38: 4573 | E38: 13 | F38: 4577 | G38: 14 | H38: 4581 | K38: 0 | L38: 1111
A39: 21 | B39: 4711 | C39: 21 | D39: 4716 | E39: 22 | F39: 4724 | G39: 23 | H39: 4732 | K39: 0 | L39: 2222
A40: 12 | B40: 4853 | C40: 14 | D40: 4862 | E40: 13 | F40: 4871 | G40: 14 | H40: 4880 | K40: 0 | L40: 1111
A41: 21 | B41: 4986 | C41: 12 | D41: 5000 | E41: 13 | F41: 5005 | G41: 14 | H41: 5011 | K41: 0 | L41: 2111
A42: 21 | B42: 5112 | C42: 21 | D42: 5120 | E42: 22 | F42: 5126 | G42: 23 | H42: 5131 | K42: 0 | L42: 2222
A43: 21 | B43: 5237 | C43: 12 | D43: 5255 | E43: 13 | F43: 5261 | G43: 14 | H43: 5268 | K43: 0 | L43: 2111
A44: 21 | B44: 5421 | C44: 21 | D44: 5429 | E44: 22 | F44: 5436 | G44: 23 | H44: 5459 | K44: 0 | L44: 2222
A45: 12 | B45: 5587 | C45: 14 | D45: 5592 | E45: 13 | F45: 5597 | G45: 14 | H45: 5605 | K45: 0 | L45: 1111
A46: 21 | B46: 5722 | C46: 21 | D46: 5731 | E46: 22 | F46: 5738 | G46: 23 | H46: 5745 | K46: 0 | L46: 2222
A47: 21 | B47: 5859 | C47: 21 | D47: 5865 | E47: 22 | F47: 5873 | G47: 23 | H47: 5881 | K47: 0 | L47: 2222
A48: 12 | B48: 6000 | C48: 14 | D48: 6006 | E48: 13 | F48: 6014 | G48: 14 | H48: 6026 | K48: 0 | L48: 1111
A49: 12 | B49: 6128 | C49: 14 | D49: 6133 | E49: 13 | F49: 6144 | G49: 14 | H49: 6149 | K49: 0 | L49: 1111
A50: 21 | B50: 6257 | C50: 21 | D50: 6263 | E50: 22 | F50: 6278 | G50: 23 | H50: 6286 | K50: 0 | L50: 2222
A51: 12 | B51: 6400 | C51: 14 | D51: 6410 | E51: 13 | F51: 6415 | G51: 14 | H51: 6423 | K51: 0 | L51: 1111
A52: 12 | B52: 6530 | C52: 14 | D52: 6536 | E52: 13 | F52: 6541 | G52: 14 | H52: 6551 | K52: 0 | L52: 1111
A53: 12 | B53: 6663 | C53: 14 | D53: 6669 | E53: 24 | F53: 6682 | G53: 23 | H53: 6689 | K53: 0 | L53: 1122
A54: 12 | B54: 6806 | C54: 14 | D54: 6811 | E54: 13 | F54: 6815 | G54: 14 | H54: 6821 | K54: 0 | L54: 1111
A55: 21 | B55: 6960 | C55: 21 | D55: 6979 | E55: 22 | F55: 6992 | G55: 23 | H55: 6999 | K55: 0 | L55: 2222
A56: 21 | B56: 7111 | C56: 21 | D56: 7119 | E56: 22 | F56: 7124 | G56: 23 | H56: 7129 | K56: 0 | L56: 2222
A57: 12 | B57: 7236 | C57: 14 | D57: 7246 | E57: 13 | F57: 7252 | G57: 14 | H57: 7259 | K57: 0 | L57: 1111
A58: 21 | B58: 7368 | C58: 21 | D58: 7377 | E58: 22 | F58: 7382 | G58: 23 | H58: 7388 | K58: 0 | L58: 2222
A59: 12 | B59: 7507 | C59: 14 | D59: 7512 | E59: 13 | F59: 7521 | G59: 23 | H59: 7534 | K59: 0 | L59: 1112
A60: 21 | B60: 7643 | C60: 21 | D60: 7648 | E60: 22 | F60: 7659 | G60: 23 | H60: 7667 | K60: 0 | L60: 2222
A61: 21 | B61: 7785 | C61: 21 | D61: 7791 | E61: 22 | F61: 7797 | G61: 23 | H61: 7802 | K61: 0 | L61: 2222
A62: 21 | B62: 7913 | C62: 21 | D62: 7924 | E62: 22 | F62: 7933 | G62: 23 | H62: 7940 | K62: 0 | L62: 2222
A63: 12 | B63: 8063 | C63: 14 | D63: 8068 | E63: 13 | F63: 8077 | G63: 14 | H63: 8086 | K63: 0 | L63: 1111
A64: 12 | B64: 8208 | C64: 14 | D64: 8213 | E64: 13 | F64: 8215 | G64: 14 | H64: 8223 | K64: 0 | L64: 1111
A65: 21 | B65: 8357 | C65: 21 | D65: 8362 | E65: 22 | F65: 8370 | G65: 23 | H65: 8381 | K65: 0 | L65: 2222
A66: 21 | B66: 8490 | C66: 12 | D66: 8503 | E66: 13 | F66: 8508 | G66: 14 | H66: 8513 | K66: 0 | L66: 2111
A67: 12 | B67: 8642 | C67: 14 | D67: 8648 | E67: 13 | F67: 8654 | G67: 14 | H67: 8663 | K67: 0 | L67: 1111
A68: 21 | B68: 8772 | C68: 12 | D68: 8789 | E68: 13 | F68: 8794 | G68: 14 | H68: 8801 | K68: 0 | L68: 2111
A69: 21 | B69: 8963 | C69: 21 | D69: 8971 | E69: 22 | F69: 8982 | G69: 23 | H69: 9003 | K69: 0 | L69: 2222
A70: 12 | B70: 9118 | C70: 14 | D70: 9127 | E70: 13 | F70: 9132 | G70: 14 | H70: 9140 | K70: 0 | L70: 1111
A71: 21 | B71: 9243 | C71: 21 | D71: 9254 | E71: 11 | F71: 9268 | G71: 12 | H71: 9273 | K71: 0 | L71: 2211
A72: 12 | B72: 9390 | C72: 14 | D72: 9395 | E72: 13 | F72: 9405 | G72: 14 | H72: 9413 | K72: 0 | L72: 1111
A73: 21 | B73: 9534 | C73: 12 | D73: 9548 | E73: 13 | F73: 9560 | G73: 14 | H73: 9569 | K73: 0 | L73: 2111
A74: 12 | B74: 9727 | C74: 14 | D74: 9732 | E74: 13 | F74: 9737 | G74: 14 | H74: 9742 | K74: 0 | L74: 1111
A75: 21 | B75: 9857 | C75: 21 | D75: 9881 | E75: 22 | F75: 9886 | G75: 23 | H75: 9890 | K75: 0 | L75: 2222
A76: 21 | B76: 10009 | C76: 21 | D76: 10014 | E76: 22 | F76: 10019 | G76: 23 | H76: 10030 | K76: 0 | L76: 2222
A77: 21 | B77: 10158 | C77: 21 | D77: 10166 | E77: 22 | F77: 10175 | G77: 23 | H77: 10190 | K77: 0 | L77: 2222
A78: 12 | B78: 10294 | C78: 14 | D78: 10323 | E78: 13 | F78: 10327 | G78: 14 | H78: 10336 | K78: 0 | L78: 1111
A79: 21 | B79: 10445 | C79: 12 | D79: 10457 | E79: 13 | F79: 10462 | G79: 14 | H79: 10469 | K79: 0 | L79: 2111
A80: 21 | B80: 10587 | C80: 12 | D80: 10599 | E80: 13 | F80: 10605 | G80: 14 | H80: 10613 | K80: 0 | L80: 2111
A81: 21 | B81: 10720 | C81: 12 | D81: 10733 | E81: 13 | F81: 10738 | G81: 14 | H81: 10739 | K81: 0 | L81: 2111
A82: 21 | B82: 10856 | C82: 12 | D82: 10873 | E82: 13 | F82: 10881 | G82: 23 | H82: 10914 | K82: 0 | L82: 2112
A83: 12 | B83: 11045 | C83: 14 | D83: 11056 | E83: 13 | F83: 11064 | G83: 14 | H83: 11072 | K83: 0 | L83: 1111
A84: 12 | B84: 11184 | C84: 23 | D84: 11193 | E84: 13 | F84: 11209 | G84: 14 | H84: 11214 | K84: 0 | L84: 1211
A85: 21 | B85: 11325 | C85: 12 | D85: 11342 | E85: 13 | F85: 11351 | G85: 14 | H85: 11362 | K85: 0 | L85: 2111
A86: 21 | B86: 11480 | C86: 21 | D86: 11488 | E86: 11 | F86: 11504 | G86: 12 | H86: 11511 | K86: 0 | L86: 2211
A87: 12 | B87: 11651 | C87: 14 | D87: 11656 | E87: 13 | F87: 11661 | G87: 14 | H87: 11668 | K87: 0 | L87: 1111
A88: 21 | B88: 11768 | C88: 21 | D88: 11796 | E88: 22 | F88: 11803 | G88: 14 | H88: 11819 | K88: 0 | L88: 2221
A89: 12 | B89: 11918 | C89: 14 | D89: 11929 | E89: 13 | F89: 11952 | G89: 14 | H89: 11965 | K89: 0 | L89: 1111
A90: 21 | B90: 12127 | C90: 12 | D90: 12139 | E90: 13 | F90: 12144 | G90: 14 | H90: 12149 | K90: 0 | L90: 2111
A91: 21 | B91: 12280 | C91: 21 | D91: 12298 | E91: 22 | F91: 12307 | G91: 23 | H91: 12322 | K91: 0 | L91: 2222
A92: 12 | B92: 12555 | C92: 14 | D92: 12559 | E92: 13 | F92: 12564 | G92: 14 | H92: 12574 | K92: 0 | L92: 1111
A93: 21 | B93: 12685 | C93: 21 | D93: 12694 | E93: 11 | F93: 12714 | G93: 12 | H93: 12722 | K93: 0 | L93: 2211
A94: 21 | B94: 12837 | C94: 21 | D94: 12847 | E94: 11 | F94: 12860 | G94: 12 | H94: 12869 | K94: 0 | L94: 2211
A95: 21 | B95: 12986 | C95: 21 | D95: 12992 | E95: 22 | F95: 12998 | G95: 23 | H95: 13004 | K95: 0 | L95: 2222
A96: 12 | B96: 13139 | C96: 14 | D96: 13150 | E96: 13 | F96: 13157 | G96: 14 | H96: 13165 | K96: 0 | L96: 1111
A97: 21 | B97: 13465 | C97: 12 | D97: 13483 | E97: 13 | F97: 13488 | G97: 14 | H97: 13494 | K97: 0 | L97: 2111
A98: 21 | B98: 13609 | C98: 12 | D98: 13631 | E98: 13 | F98: 13637 | G98: 14 | H98: 13644 | K98: 0 | L98: 2111
A99: 21 | B99: 13771 | C99: 12 | D99: 13786 | E99: 13 | F99: 13790 | G99: 14 | H99: 13795 | K99: 0 | L99: 2111
A100: 21 | B100: 13902 | C100: 12 | D100: 13932 | E100: 13 | F100: 13937 | G100: 14 | H100: 13942 | K100: 0 | L100: 2111
A101: 21 | B101: 14106 | C101: 12 | D101: 14121 | E101: 13 | F101: 14125 | G101: 14 | H101: 14130 | K101: 0 | L101: 2111
A102: 21 | B102: 15026 | C102: 21 | D102: 15035 | E102: 22 | F102: 15043 | G102: 14 | H102: 15058 | K102: 0 | L102: 2221
A103: 12 | B103: 15160 | C103: 14 | D103: 15165 | E103: 13 | F103: 15170 | G103: 14 | H103: 15178 | K103: 0 | L103: 1111
A104: 21 | B104: 15305 | C104: 12 | D104: 15321 | E104: 13 | F104: 15326 | G104: 14 | H104: 15330 | K104: 0 | L104: 2111
A105: 21 | B105: 15448 | C105: 21 | D105: 15460 | E105: 11 | F105: 15471 | G105: 12 | H105: 15477 | K105: 0 | L105: 2211
A106: 21 | B106: 15606 | C106: 12 | D106: 15618 | E106: 13 | F106: 15623 | G106: 14 | H106: 15631 | K106: 0 | L106: 2111
A107: 12 | B107: 15747 | C107: 23 | D107: 15760 | E107: 13 | F107: 15775 | G107: 14 | H107: 15780 | K107: 0 | L107: 1211
A108: 21 | B108: 15925 | C108: 12 | D108: 15937 | E108: 13 | F108: 15942 | G108: 14 | H108: 15948 | K108: 0 | L108: 2111
A109: 21 | B109: 16077 | C109: 21 | D109: 16087 | E109: 11 | F109: 16099 | G109: 12 | H109: 16104 | K109: 0 | L109: 2211
A110: 12 | B110: 16253 | C110: 14 | D110: 16258 | E110: 13 | F110: 16266 | G110: 14 | H110: 16275 | K110: 0 | L110: 1111
A111: 12 | B111: 16472 | C111: 14 | D111: 16477 | E111: 13 | F111: 16484 | G111: 14 | H111: 16491 | K111: 0 | L111: 1111
A112: 12 | B112: 16636 | C112: 14 | D112: 16641 | E112: 13 | F112: 16650 | G112: 14 | H112: 16657 | K112: 0 | L112: 1111
A113: 21 | B113: 16862 | C113: 12 | D113: 16877 | E113: 13 | F113: 16882 | G113: 14 | H113: 16887 | K113: 0 | L113: 2111
A114: 21 | B114: 17009 | C114: 21 | D114: 17028 | E114: 22 | F114: 17037 | G114: 23 | H114: 17045 | K114: 0 | L114: 2222
A115: 12 | B115: 17189 | C115: 23 | D115: 17202 | E115: 24 | F115: 17207 | G115: 23 | H115: 17211 | K115: 0 | L115: 1222
A116: 21 | B116: 17339 | C116: 21 | D116: 17345 | E116: 22 | F116: 17354 | G116: 14 | H116: 17375 | K116: 0 | L116: 2221
A117: 12 | B117: 17551 | C117: 14 | D117: 17564 | E117: 24 | F117: 17598 | G117: 23 | H117: 17609 | K117: 0 | L117: 1122
A118: 12 | B118: 17747 | C118: 14 | D118: 17753 | E118: 13 | F118: 17757 | G118: 14 | H118: 17763 | K118: 0 | L118: 1111
A119: 12 | B119: 17918 | C119: 14 | D119: 17925 | E119: 13 | F119: 17930 | G119: 14 | H119: 17937 | K119: 0 | L119: 1111
A120: 12 | B120: 18117 | C120: 14 | D120: 18121 | E120: 13 | F120: 18127 | G120: 14 | H120: 18135 | K120: 0 | L120: 1111
A121: 12 | B121: 18354 | C121: 14 | D121: 18362 | E121: 13 | F121: 18368 | G121: 14 | H121: 18376 | K121: 0 | L121: 1111
A122: 12 | B122: 18535 | C122: 14 | D122: 18539 | E122: 13 | F122: 18544 | G122: 14 | H122: 18548 | K122: 0 | L122: 1111
A123: 12 | B123: 18744 | C123: 14 | D123: 18752 | E123: 13 | F123: 18757 | G123: 14 | H123: 18763 | K123: 0 | L123: 1111
A124: 12 | B124: 19021 | C124: 14 | D124: 19026 | E124: 13 | F124: 19031 | G124: 14 | H124: 19041 | K124: 0 | L124: 1111
A125: 12 | B125: 19159 | C125: 14 | D125: 19183 | E125: 13 | F125: 19188 | G125: 14 | H125: 19192 | K125: 0 | L125: 1111
A126: 12 | B126: 19401 | C126: 14 | D126: 19406 | E126: 13 | F126: 19414 | G126: 14 | H126: 19419 | K126: 0 | L126: 1111
A127: 12 | B127: 19712 | C127: 14 | D127: 19722 | E127: 13 | F127: 19731 | G127: 14 | H127: 19739 | K127: 0 | L127: 1111
A128: 12 | B128: 19857 | C128: 14 | D128: 19862 | E128: 13 | F128: 19869 | G128: 14 | H128: 19874 | K128: 0 | L128: 1111
A129: 12 | B129: 20146 | C129: 14 | D129: 20151 | E129: 13 | F129: 20157 | G129: 14 | H129: 20165 | K129: 0 | L129: 1111
A130: 21 | B130: 20324 | C130: 21 | D130: 20333 | E130: 22 | F130: 20341 | G130: 23 | H130: 20346 | K130: 0 | L130: 2222
A131: 21 | B131: 20475 | C131: 21 | D131: 20484 | E131: 11 | F131: 20498 | G131: 12 | H131: 20503 | K131: 0 | L131: 2211
A132: 21 | B132: 20831 | C132: 12 | D132: 20855 | E132: 13 | F132: 20860 | G132: 14 | H132: 20866 | K132: 0 | L132: 2111
A133: 21 | B133: 20985 | C133: 12 | D133: 20998 | E133: 13 | F133: 21003 | G133: 14 | H133: 21008 | K133: 0 | L133: 2111
A134: 21 | B134: 21134 | C134: 12 | D134: 21147 | E134: 13 | F134: 21155 | G134: 14 | H134: 21160 | K134: 0 | L134: 2111
A135: 21 | B135: 21382 | C135: 12 | D135: 21435 | E135: 13 | F135: 21447 | G135: 14 | H135: 21455 | K135: 0 | L135: 2111
A136: 21 | B136: 21642 | C136: 12 | D136: 21654 | E136: 13 | F136: 21659 | G136: 14 | H136: 21666 | K136: 0 | L136: 2111
A137: 21 | B137: 21797 | C137: 21 | D137: 21823 | E137: 11 | F137: 21838 | G137: 12 | H137: 21843 | K137: 0 | L137: 2211
A138: 21 | B138: 22000 | C138: 21 | D138: 22009 | E138: 11 | F138: 22022 | G138: 12 | H138: 22033 | K138: 0 | L138: 2211
A139: 21 | B139: 22170 | C139: 12 | D139: 22185 | E139: 13 | F139: 22192 | G139: 23 | H139: 22202 | K139: 0 | L139: 2112
A140: 21 | B140: 22488 | C140: 12 | D140: 22501 | E140: 13 | F140: 22505 | G140: 14 | H140: 22511 | K140: 0 | L140: 2111
A141: 12 | B141: 22899 | C141: 14 | D141: 22904 | E141: 13 | F141: 22911 | G141: 14 | H141: 22919 | K141: 0 | L141: 1111
A142: 21 | B142: 23236 | C142: 21 | D142: 23250 | E142: 11 | F142: 23264 | G142: 12 | H142: 23268 | K142: 0 | L142: 2211
A143: 21 | B143: 23406 | C143: 12 | D143: 23421 | E143: 13 | F143: 23426 | G143: 14 | H143: 23437 | K143: 0 | L143: 2111
A144: 21 | B144: 23602 | C144: 21 | D144: 23617 | E144: 22 | F144: 23625 | G144: 23 | H144: 23630 | K144: 0 | L144: 2222
A145: 12 | B145: 23925 | C145: 14 | D145: 23931 | E145: 13 | F145: 23937 | G145: 14 | H145: 23945 | L145: 1111

Sheet !MB16900.091
A1: Report for:!MB16900.091
A2: Date: | B2: <date>
A3: Hen: | B3: <hen> | F3: Correct Sequence | G3: =Start!J2 -> 2212 | P3: Total Sequences in Data | Q3: =4994-COUNTBLANK(L7:L5000) -> 135 | V3: Total Sequences in Block Data | W3: =COUNTA(L7:L29) -> 23 | AA3: Total Sequences in Block Data | AB3: =COUNTA(L30:L51) -> 22 | AF3: Total Sequences in Block Data | AG3: =COUNTA(L52:L74) -> 23 | AK3: Total Sequences in Block Data | AL3: =COUNTA(L75:L96) -> 22 | AP3: Total Sequences in Block Data | AQ3: =COUNTA(L97:L119) -> 23 | AU3: Total Sequences in Block Data | AV3: =COUNTA(L120:L141) -> 22
P4: Total Sequences in Summary | Q4: =SUM(O7:O22) -> 135 | V4: Total Sequences in Block Summary | W4: =SUM(U7:U22) -> 23 | AA4: Total Sequences in Block Summary | AB4: =SUM(Z7:Z22) -> 22 | AF4: Total Sequences in Block Summary | AG4: =SUM(AE7:AE22) -> 23 | AK4: Total Sequences in Block Summary | AL4: =SUM(AJ7:AJ22) -> 22 | AP4: Total Sequences in Block Summary | AQ4: =SUM(AO7:AO22) -> 23 | AU4: Total Sequences in Block Summary | AV4: =SUM(AT7:AT22) -> 22
T5: Block 1 | Y5: Block 2 | AD5: Block 3 | AI5: Block 4 | AN5: Block 5 | AS5: Block 6
A6: Sequence Component 1 | B6: Time 1 | C6: Sequence Component 2 | D6: Time 2 | E6: Sequence Component 3 | F6: Time 3 | G6: Sequence Component 4 | H6: Time 4 | I6: Sequence Component 5 | J6: Time 5 | K6: Correct? 0=No 1=Yes | L6: Sequence | N6: Frequency | P6: Relative Frequency | Q6: Variability | T6: Frequency | V6: Relative Frequency | W6: Variability | Y6: Frequency | AA6: Relative Frequency | AB6: Variability | AD6: Frequency | AF6: Relative Frequency | AG6: Variability | AI6: Frequency | AK6: Relative Frequency | AL6: Variability | AN6: Frequency | AP6: Relative Frequency | AQ6: Variability | AS6: Frequency | AU6: Relative Frequency | AV6: Variability
A7: 12 | B7: 12 | C7: 14 | D7: 20 | E7: 13 | F7: 29 | G7: 14 | H7: 37 | K7: 0 | L7: 1111 | N7: 1111 | O7: =COUNTIF($L$7:$L$500,N7) -> 24 | P7: =O7/$Q$4 -> 0.1777777778 | Q7: =IF(P7=0,0,(P7*((LOG(P7))/LOG(2)))) -> -0.442996106 | T7: =N7 -> 1111 | U7: =COUNTIF(L7:L29,T7) -> 8 | V7: =U7/(W4-U20) -> 0.347826087 | W7: =IF(V7=0,0,(V7*((LOG(V7))/LOG(2)))) -> -0.5299345934 | Y7: =N7 -> 1111 | Z7: =COUNTIF(L30:L51,Y7) -> 9 | AA7: =Z7/(AB4-Z20) -> 0.4090909091 | AB7: =IF(AA7=0,0,(AA7*((LOG(AA7))/LOG(2)))) -> -0.5275254343 | AD7: =N7 -> 1111 | AE7: =COUNTIF(L52:L74,AD7) -> 4 | AF7: =AE7/(AG4-AE20) -> 0.1739130435 | AG7: =IF(AF7=0,0,(AF7*((LOG(AF7))/LOG(2)))) -> -0.4388803402 | AI7: =N7 -> 1111 | AJ7: =COUNTIF(L75:L96,AI7) -> 1 | AK7: =AJ7/(AL4-AJ20) -> 0.04545454545 | AL7: =IF(AK7=0,0,(AK7*((LOG(AK7))/LOG(2)))) -> -0.2027014372 | AN7: =N7 -> 1111 | AO7: =COUNTIF(L97:L119,AN7) -> 2 | AP7: =AO7/(AQ4-AO20) -> 0.08695652174 | AQ7: =IF(AP7=0,0,(AP7*((LOG(AP7))/LOG(2)))) -> -0.3063966918 | AS7: =N7 -> 1111 | AT7: =COUNTIF(L120:L141,AS7) -> 0 | AU7: =AT7/(AV4-AT20) -> 0 | AV7: =IF(AU7=0,0,(AU7*((LOG(AU7))/LOG(2)))) -> 0
A8: 12 | B8: 139 | C8: 14 | D8: 144 | E8: 13 | F8: 150 | G8: 14 | H8: 158 | K8: 0 | L8: 1111 | N8: 1112 | O8: =COUNTIF($L$7:$L$500,N8) -> 0 | P8: =O8/$Q$4 -> 0 | Q8: =IF(P8=0,0,(P8*((LOG(P8))/LOG(2)))) -> 0 | T8: =N8 -> 1112 | U8: =COUNTIF(L7:L29,T8) -> 0 | V8: =U8/(W4-U20) -> 0 | W8: =IF(V8=0,0,(V8*((LOG(V8))/LOG(2)))) -> 0 | Y8: =N8 -> 1112 | Z8: =COUNTIF(L30:L51,Y8) -> 0 | AA8: =Z8/(AB4-Z20) -> 0 | AB8: =IF(AA8=0,0,(AA8*((LOG(AA8))/LOG(2)))) -> 0 | AD8: =N8 -> 1112 | AE8: =COUNTIF(L52:L74,AD8) -> 0 | AF8: =AE8/(AG4-AE20) -> 0 | AG8: =IF(AF8=0,0,(AF8*((LOG(AF8))/LOG(2)))) -> 0 | AI8: =N8 -> 1112 | AJ8: =COUNTIF(L75:L96,AI8) -> 0 | AK8: =AJ8/(AL4-AJ20) -> 0 | AL8: =IF(AK8=0,0,(AK8*((LOG(AK8))/LOG(2)))) -> 0 | AN8: =N8 -> 1112 | AO8: =COUNTIF(L97:L119,AN8) -> 0 | AP8: =AO8/(AQ4-AO20) -> 0 | AQ8: =IF(AP8=0,0,(AP8*((LOG(AP8))/LOG(2)))) -> 0 | AS8: =N8 -> 1112 | AT8: =COUNTIF(L120:L141,AS8) -> 0 | AU8: =AT8/(AV4-AT20) -> 0 | AV8: =IF(AU8=0,0,(AU8*((LOG(AU8))/LOG(2)))) -> 0
A9: 21 | B9: 260 | C9: 12 | D9: 273 | E9: 13 | F9: 284 | G9: 14 | H9: 292 | K9: 0 | L9: 2111 | N9: 1121 | O9: =COUNTIF($L$7:$L$500,N9) -> 0 | P9: =O9/$Q$4 -> 0 | Q9: =IF(P9=0,0,(P9*((LOG(P9))/LOG(2)))) -> 0 | T9: =N9 -> 1121 | U9: =COUNTIF(L7:L29,T9) -> 0 | V9: =U9/(W4-U20) -> 0 | W9: =IF(V9=0,0,(V9*((LOG(V9))/LOG(2)))) -> 0 | Y9: =N9 -> 1121 | Z9: =COUNTIF(L30:L51,Y9) -> 0 | AA9: =Z9/(AB4-Z20) -> 0 | AB9: =IF(AA9=0,0,(AA9*((LOG(AA9))/LOG(2)))) -> 0 | AD9: =N9 -> 1121 | AE9: =COUNTIF(L52:L74,AD9) -> 0 | AF9: =AE9/(AG4-AE20) -> 0 | AG9: =IF(AF9=0,0,(AF9*((LOG(AF9))/LOG(2)))) -> 0 | AI9: =N9 -> 1121 | AJ9: =COUNTIF(L75:L96,AI9) -> 0 | AK9: =AJ9/(AL4-AJ20) -> 0 | AL9: =IF(AK9=0,0,(AK9*((LOG(AK9))/LOG(2)))) -> 0 | AN9: =N9 -> 1121 | AO9: =COUNTIF(L97:L119,AN9) -> 0 | AP9: =AO9/(AQ4-AO20) -> 0 | AQ9: =IF(AP9=0,0,(AP9*((LOG(AP9))/LOG(2)))) -> 0 | AS9: =N9 -> 1121 | AT9: =COUNTIF(L120:L141,AS9) -> 0 | AU9: =AT9/(AV4-AT20) -> 0 | AV9: =IF(AU9=0,0,(AU9*((LOG(AU9))/LOG(2)))) -> 0
A10: 12 | B10: 402 | C10: 14 | D10: 407 | E10: 13 | F10: 412 | G10: 14 | H10: 418 | K10: 0 | L10: 1111 | N10: 1122 | O10: =COUNTIF($L$7:$L$500,N10) -> 1 | P10: =O10/$Q$4 -> 0.007407407407 | Q10: =IF(P10=0,0,(P10*((LOG(P10))/LOG(2)))) -> -0.05242085627 | T10: =N10 -> 1122 | U10: =COUNTIF(L7:L29,T10) -> 0 | V10: =U10/(W4-U20) -> 0 | W10: =IF(V10=0,0,(V10*((LOG(V10))/LOG(2)))) -> 0 | Y10: =N10 -> 1122 | Z10: =COUNTIF(L30:L51,Y10) -> 0 | AA10: =Z10/(AB4-Z20) -> 0 | AB10: =IF(AA10=0,0,(AA10*((LOG(AA10))/LOG(2)))) -> 0 | AD10: =N10 -> 1122 | AE10: =COUNTIF(L52:L74,AD10) -> 1 | AF10: =AE10/(AG4-AE20) -> 0.04347826087 | AG10: =IF(AF10=0,0,(AF10*((LOG(AF10))/LOG(2)))) -> -0.1966766068 | AI10: =N10 -> 1122 | AJ10: =COUNTIF(L75:L96,AI10) -> 0 | AK10: =AJ10/(AL4-AJ20) -> 0 | AL10: =IF(AK10=0,0,(AK10*((LOG(AK10))/LOG(2)))) -> 0 | AN10: =N10 -> 1122 | AO10: =COUNTIF(L97:L119,AN10) -> 0 | AP10: =AO10/(AQ4-AO20) -> 0 | AQ10: =IF(AP10=0,0,(AP10*((LOG(AP10))/LOG(2)))) -> 0 | AS10: =N10 -> 1122 | AT10: =COUNTIF(L120:L141,AS10) -> 0 | AU10: =AT10/(AV4-AT20) -> 0 | AV10: =IF(AU10=0,0,(AU10*((LOG(AU10))/LOG(2)))) -> 0
A11: 12 | B11: 517 | C11: 14 | D11: 525 | E11: 13 | F11: 532 | G11: 14 | H11: 539 | K11: 0 | L11: 1111 | N11: 1211 | O11: =COUNTIF($L$7:$L$500,N11) -> 1 | P11: =O11/$Q$4 -> 0.007407407407 | Q11: =IF(P11=0,0,(P11*((LOG(P11))/LOG(2)))) -> -0.05242085627 | T11: =N11 -> 1211 | U11: =COUNTIF(L7:L29,T11) -> 0 | V11: =U11/(W4-U20) -> 0 | W11: =IF(V11=0,0,(V11*((LOG(V11))/LOG(2)))) -> 0 | Y11: =N11 -> 1211 | Z11: =COUNTIF(L30:L51,Y11) -> 0 | AA11: =Z11/(AB4-Z20) -> 0 | AB11: =IF(AA11=0,0,(AA11*((LOG(AA11))/LOG(2)))) -> 0 | AD11: =N11 -> 1211 | AE11: =COUNTIF(L52:L74,AD11) -> 0 | AF11: =AE11/(AG4-AE20) -> 0 | AG11: =IF(AF11=0,0,(AF11*((LOG(AF11))/LOG(2)))) -> 0 | AI11: =N11 -> 1211 | AJ11: =COUNTIF(L75:L96,AI11) -> 0 | AK11: =AJ11/(AL4-AJ20) -> 0 | AL11: =IF(AK11=0,0,(AK11*((LOG(AK11))/LOG(2)))) -> 0 | AN11: =N11 -> 1211 | AO11: =COUNTIF(L97:L119,AN11) -> 0 | AP11: =AO11/(AQ4-AO20) -> 0 | AQ11: =IF(AP11=0,0,(AP11*((LOG(AP11))/LOG(2)))) -> 0 | AS11: =N11 -> 1211 | AT11: =COUNTIF(L120:L141,AS11) -> 1 | AU11: =AT11/(AV4-AT20) -> 0.04545454545 | AV11: =IF(AU11=0,0,(AU11*((LOG(AU11))/LOG(2)))) -> -0.2027014372
A12: 21 | B12: 645 | C12: 12 | D12: 658 | E12: 13 | F12: 662 | G12: 14 | H12: 669 | K12: 0 | L12: 2111 | N12: 1212 | O12: =COUNTIF($L$7:$L$500,N12) -> 0 | P12: =O12/$Q$4 -> 0 | Q12: =IF(P12=0,0,(P12*((LOG(P12))/LOG(2)))) -> 0 | T12: =N12 -> 1212 | U12: =COUNTIF(L7:L29,T12) -> 0 | V12: =U12/(W4-U20) -> 0 | W12: =IF(V12=0,0,(V12*((LOG(V12))/LOG(2)))) -> 0 | Y12: =N12 -> 1212 | Z12: =COUNTIF(L30:L51,Y12) -> 0 | AA12: =Z12/(AB4-Z20) -> 0 | AB12: =IF(AA12=0,0,(AA12*((LOG(AA12))/LOG(2)))) -> 0 | AD12: =N12 -> 1212 | AE12: =COUNTIF(L52:L74,AD12) -> 0 | AF12: =AE12/(AG4-AE20) -> 0 | AG12: =IF(AF12=0,0,(AF12*((LOG(AF12))/LOG(2)))) -> 0 | AI12: =N12 -> 1212 | AJ12: =COUNTIF(L75:L96,AI12) -> 0 | AK12: =AJ12/(AL4-AJ20) -> 0 | AL12: =IF(AK12=0,0,(AK12*((LOG(AK12))/LOG(2)))) -> 0 | AN12: =N12 -> 1212 | AO12: =COUNTIF(L97:L119,AN12) -> 0 | AP12: =AO12/(AQ4-AO20) -> 0 | AQ12: =IF(AP12=0,0,(AP12*((LOG(AP12))/LOG(2)))) -> 0 | AS12: =N12 -> 1212 | AT12: =COUNTIF(L120:L141,AS12) -> 0 | AU12: =AT12/(AV4-AT20) -> 0 | AV12: =IF(AU12=0,0,(AU12*((LOG(AU12))/LOG(2)))) -> 0
A13: 21 | B13: 800 | C13: 21 | D13: 805 | E13: 22 | F13: 811 | G13: 14 | H13: 825 | K13: 0 | L13: 2221 | N13: 1221 | O13: =COUNTIF($L$7:$L$500,N13) -> 0 | P13: =O13/$Q$4 -> 0 | Q13: =IF(P13=0,0,(P13*((LOG(P13))/LOG(2)))) -> 0 | T13: =N13 -> 1221 | U13: =COUNTIF(L7:L29,T13) -> 0 | V13: =U13/(W4-U20) -> 0 | W13: =IF(V13=0,0,(V13*((LOG(V13))/LOG(2)))) -> 0 | Y13: =N13 -> 1221 | Z13: =COUNTIF(L30:L51,Y13) -> 0 | AA13: =Z13/(AB4-Z20) -> 0 | AB13: =IF(AA13=0,0,(AA13*((LOG(AA13))/LOG(2)))) -> 0 | AD13: =N13 -> 1221 | AE13: =COUNTIF(L52:L74,AD13) -> 0 | AF13: =AE13/(AG4-AE20) -> 0 | AG13: =IF(AF13=0,0,(AF13*((LOG(AF13))/LOG(2)))) -> 0 | AI13: =N13 -> 1221 | AJ13: =COUNTIF(L75:L96,AI13) -> 0 | AK13: =AJ13/(AL4-AJ20) -> 0 | AL13: =IF(AK13=0,0,(AK13*((LOG(AK13))/LOG(2)))) -> 0 | AN13: =N13 -> 1221 | AO13: =COUNTIF(L97:L119,AN13) -> 0 | AP13: =AO13/(AQ4-AO20) -> 0 | AQ13: =IF(AP13=0,0,(AP13*((LOG(AP13))/LOG(2)))) -> 0 | AS13: =N13 -> 1221 | AT13: =COUNTIF(L120:L141,AS13) -> 0 | AU13: =AT13/(AV4-AT20) -> 0 | AV13: =IF(AU13=0,0,(AU13*((LOG(AU13))/LOG(2)))) -> 0
A14: 21 | B14: 932 | C14: 12 | D14: 945 | E14: 13 | F14: 956 | G14: 14 | H14: 961 | K14: 0 | L14: 2111 | N14: 1222 | O14: =COUNTIF($L$7:$L$500,N14) -> 0 | P14: =O14/$Q$4 -> 0 | Q14: =IF(P14=0,0,(P14*((LOG(P14))/LOG(2)))) -> 0 | T14: =N14 -> 1222 | U14: =COUNTIF(L7:L29,T14) -> 0 | V14: =U14/(W4-U20) -> 0 | W14: =IF(V14=0,0,(V14*((LOG(V14))/LOG(2)))) -> 0 | Y14: =N14 -> 1222 | Z14: =COUNTIF(L30:L51,Y14) -> 0 | AA14: =Z14/(AB4-Z20) -> 0 | AB14: =IF(AA14=0,0,(AA14*((LOG(AA14))/LOG(2)))) -> 0 | AD14: =N14 -> 1222 | AE14: =COUNTIF(L52:L74,AD14) -> 0 | AF14: =AE14/(AG4-AE20) -> 0 | AG14: =IF(AF14=0,0,(AF14*((LOG(AF14))/LOG(2)))) -> 0 | AI14: =N14 -> 1222 | AJ14: =COUNTIF(L75:L96,AI14) -> 0 | AK14: =AJ14/(AL4-AJ20) -> 0 | AL14: =IF(AK14=0,0,(AK14*((LOG(AK14))/LOG(2)))) -> 0 | AN14: =N14 -> 1222 | AO14: =COUNTIF(L97:L119,AN14) -> 0 | AP14: =AO14/(AQ4-AO20) -> 0 | AQ14: =IF(AP14=0,0,(AP14*((LOG(AP14))/LOG(2)))) -> 0 | AS14: =N14 -> 1222 | AT14: =COUNTIF(L120:L141,AS14) -> 0 | AU14: =AT14/(AV4-AT20) -> 0 | AV14: =IF(AU14=0,0,(AU14*((LOG(AU14))/LOG(2)))) -> 0
A15: 21 | B15: 1073 | C15: 12 | D15: 1084 | E15: 13 | F15: 1088 | G15: 14 | H15: 1094 | K15: 0 | L15: 2111 | N15: 2111 | O15: =COUNTIF($L$7:$L$500,N15) -> 51 | P15: =O15/$Q$4 -> 0.3777777778 | Q15: =IF(P15=0,0,(P15*((LOG(P15))/LOG(2)))) -> -0.5305474297 | T15: =N15 -> 2111 | U15: =COUNTIF(L7:L29,T15) -> 11 | V15: =U15/(W4-U20) -> 0.4782608696 | W15: =IF(V15=0,0,(V15*((LOG(V15))/LOG(2)))) -> -0.5089319005 | Y15: =N15 -> 2111 | Z15: =COUNTIF(L30:L51,Y15) -> 8 | AA15: =Z15/(AB4-Z20) -> 0.3636363636 | AB15: =IF(AA15=0,0,(AA15*((LOG(AA15))/LOG(2)))) -> -0.5307024068 | AD15: =N15 -> 2111 | AE15: =COUNTIF(L52:L74,AD15) -> 7 | AF15: =AE15/(AG4-AE20) -> 0.3043478261 | AG15: =IF(AF15=0,0,(AF15*((LOG(AF15))/LOG(2)))) -> -0.5223238799 | AI15: =N15 -> 2111 | AJ15: =COUNTIF(L75:L96,AI15) -> 7 | AK15: =AJ15/(AL4-AJ20) -> 0.3181818182 | AL15: =IF(AK15=0,0,(AK15*((LOG(AK15))/LOG(2)))) -> -0.5256607671 | AN15: =N15 -> 2111 | AO15: =COUNTIF(L97:L119,AN15) -> 7 | AP15: =AO15/(AQ4-AO20) -> 0.3043478261 | AQ15: =IF(AP15=0,0,(AP15*((LOG(AP15))/LOG(2)))) -> -0.5223238799 | AS15: =N15 -> 2111 | AT15: =COUNTIF(L120:L141,AS15) -> 11 | AU15: =AT15/(AV4-AT20) -> 0.5 | AV15: =IF(AU15=0,0,(AU15*((LOG(AU15))/LOG(2)))) -> -0.5
A16: 12 | B16: 1206 | C16: 14 | D16: 1212 | E16: 13 | F16: 1216 | G16: 14 | H16: 1224 | K16: 0 | L16: 1111 | N16: 2112 | O16: =COUNTIF($L$7:$L$500,N16) -> 1 | P16: =O16/$Q$4 -> 0.007407407407 | Q16: =IF(P16=0,0,(P16*((LOG(P16))/LOG(2)))) -> -0.05242085627 | T16: =N16 -> 2112 | U16: =COUNTIF(L7:L29,T16) -> 0 | V16: =U16/(W4-U20) -> 0 | W16: =IF(V16=0,0,(V16*((LOG(V16))/LOG(2)))) -> 0 | Y16: =N16 -> 2112 | Z16: =COUNTIF(L30:L51,Y16) -> 0 | AA16: =Z16/(AB4-Z20) -> 0 | AB16: =IF(AA16=0,0,(AA16*((LOG(AA16))/LOG(2)))) -> 0 | AD16: =N16 -> 2112 | AE16: =COUNTIF(L52:L74,AD16) -> 1 | AF16: =AE16/(AG4-AE20) -> 0.04347826087 | AG16: =IF(AF16=0,0,(AF16*((LOG(AF16))/LOG(2)))) -> -0.1966766068 | AI16: =N16 -> 2112 | AJ16: =COUNTIF(L75:L96,AI16) -> 0 | AK16: =AJ16/(AL4-AJ20) -> 0 | AL16: =IF(AK16=0,0,(AK16*((LOG(AK16))/LOG(2)))) -> 0 | AN16: =N16 -> 2112 | AO16: =COUNTIF(L97:L119,AN16) -> 0 | AP16: =AO16/(AQ4-AO20) -> 0 | AQ16: =IF(AP16=0,0,(AP16*((LOG(AP16))/LOG(2)))) -> 0 | AS16: =N16 -> 2112 | AT16: =COUNTIF(L120:L141,AS16) -> 0 | AU16: =AT16/(AV4-AT20) -> 0 | AV16: =IF(AU16=0,0,(AU16*((LOG(AU16))/LOG(2)))) -> 0
A17: 21 | B17: 1372 | C17: 21 | D17: 1380 | E17: 22 | F17: 1388 | G17: 14 | H17: 1404 | K17: 0 | L17: 2221 | N17: 2121 | O17: =COUNTIF($L$7:$L$500,N17) -> 1 | P17: =O17/$Q$4 -> 0.007407407407 | Q17: =IF(P17=0,0,(P17*((LOG(P17))/LOG(2)))) -> -0.05242085627 | T17: =N17 -> 2121 | U17: =COUNTIF(L7:L29,T17) -> 0 | V17: =U17/(W4-U20) -> 0 | W17: =IF(V17=0,0,(V17*((LOG(V17))/LOG(2)))) -> 0 | Y17: =N17 -> 2121 | Z17: =COUNTIF(L30:L51,Y17) -> 0 | AA17: =Z17/(AB4-Z20) -> 0 | AB17: =IF(AA17=0,0,(AA17*((LOG(AA17))/LOG(2)))) -> 0 | AD17: =N17 -> 2121 | AE17: =COUNTIF(L52:L74,AD17) -> 0 | AF17: =AE17/(AG4-AE20) -> 0 | AG17: =IF(AF17=0,0,(AF17*((LOG(AF17))/LOG(2)))) -> 0 | AI17: =N17 -> 2121 | AJ17: =COUNTIF(L75:L96,AI17) -> 0 | AK17: =AJ17/(AL4-AJ20) -> 0 | AL17: =IF(AK17=0,0,(AK17*((LOG(AK17))/LOG(2)))) -> 0 | AN17: =N17 -> 2121 | AO17: =COUNTIF(L97:L119,AN17) -> 1 | AP17: =AO17/(AQ4-AO20) -> 0.04347826087 | AQ17: =IF(AP17=0,0,(AP17*((LOG(AP17))/LOG(2)))) -> -0.1966766068 | AS17: =N17 -> 2121 | AT17: =COUNTIF(L120:L141,AS17) -> 0 | AU17: =AT17/(AV4-AT20) -> 0 | AV17: =IF(AU17=0,0,(AU17*((LOG(AU17))/LOG(2)))) -> 0
